Workbook

Sheet Cover
C9: AusNet Services
C10: Business Case Evaluation
C11: Eastern Cranbourne 66kV loop augmentation

Sheet 1_KMA->
C6: Key Modelling Assumptions
C7: Section 1.
C9: =Cover!$C$9 -> AusNet Services
C10: =Cover!$C$10 -> Business Case Evaluation
C11: =Cover!$C$11 -> Eastern Cranbourne 66kV loop augmentation

Sheet 1_KMA
B1: Key Modelling Assumptions | I1: Regulatory Period Indicator | J1: ='1_KMA'!J30 -> 0 | K1: ='1_KMA'!K30 -> 0 | L1: ='1_KMA'!L30 -> 1 | M1: ='1_KMA'!M30 -> 1 | N1: ='1_KMA'!N30 -> 1 | O1: ='1_KMA'!O30 -> 1 | P1: ='1_KMA'!P30 -> 1 | Q1: ='1_KMA'!Q30 -> 0 | R1: ='1_KMA'!R30 -> 0 | S1: ='1_KMA'!S30 -> 0 | T1: ='1_KMA'!T30 -> 0 | U1: ='1_KMA'!U30 -> 0 | V1: ='1_KMA'!V30 -> 0 | W1: ='1_KMA'!W30 -> 0 | X1: ='1_KMA'!X30 -> 0 | Y1: ='1_KMA'!Y30 -> 0 | Z1: ='1_KMA'!Z30 -> 0 | AA1: ='1_KMA'!AA30 -> 0 | AB1: ='1_KMA'!AB30 -> 0 | AC1: ='1_KMA'!AC30 -> 0 | AD1: ='1_KMA'!AD30 -> 0 | AE1: ='1_KMA'!AE30 -> 0 | AF1: ='1_KMA'!AF30 -> 0 | AG1: ='1_KMA'!AG30 -> 0 | AH1: ='1_KMA'!AH30 -> 0 | AI1: ='1_KMA'!AI30 -> 0 | AJ1: ='1_KMA'!AJ30 -> 0 | AK1: ='1_KMA'!AK30 -> 0 | AL1: ='1_KMA'!AL30 -> 0 | AM1: ='1_KMA'!AM30 -> 0 | AN1: ='1_KMA'!AN30 -> 0 | AO1: ='1_KMA'!AO30 -> 0 | AP1: ='1_KMA'!AP30 -> 0 | AQ1: ='1_KMA'!AQ30 -> 0 | AR1: ='1_KMA'!AR30 -> 0 | AS1: ='1_KMA'!AS30 -> 0 | AT1: ='1_KMA'!AT30 -> 0 | AU1: ='1_KMA'!AU30 -> 0 | AV1: ='1_KMA'!AV30 -> 0 | AW1: ='1_KMA'!AW30 -> 0 | AX1: ='1_KMA'!AX30 -> 0 | AY1: ='1_KMA'!AY30 -> 0 | AZ1: ='1_KMA'!AZ30 -> 0 | BA1: ='1_KMA'!BA30 -> 0 | BB1: ='1_KMA'!BB30 -> 0 | BC1: ='1_KMA'!BC30 -> 0 | BD1: ='1_KMA'!BD30 -> 0 | BE1: ='1_KMA'!BE30 -> 0 | BF1: ='1_KMA'!BF30 -> 0 | BG1: ='1_KMA'!BG30 -> 0
B2: =Cover!$C$9 -> AusNet Services | I2: Period Start Date | J2: ='1_KMA'!J31 -> 2024-07-01 | K2: ='1_KMA'!K31 -> 2025-07-01 | L2: ='1_KMA'!L31 -> 2026-07-01 | M2: ='1_KMA'!M31 -> 2027-07-01 | N2: ='1_KMA'!N31 -> 2028-07-01 | O2: ='1_KMA'!O31 -> 2029-07-01 | P2: ='1_KMA'!P31 -> 2030-07-01 | Q2: ='1_KMA'!Q31 -> 2031-07-01 | R2: ='1_KMA'!R31 -> 2032-07-01 | S2: ='1_KMA'!S31 -> 2033-07-01 | T2: ='1_KMA'!T31 -> 2034-07-01 | U2: ='1_KMA'!U31 -> 2035-07-01 | V2: ='1_KMA'!V31 -> 2036-07-01 | W2: ='1_KMA'!W31 -> 2037-07-01 | X2: ='1_KMA'!X31 -> 2038-07-01 | Y2: ='1_KMA'!Y31 -> 2039-07-01 | Z2: ='1_KMA'!Z31 -> 2040-07-01 | AA2: ='1_KMA'!AA31 -> 2041-07-01 | AB2: ='1_KMA'!AB31 -> 2042-07-01 | AC2: ='1_KMA'!AC31 -> 2043-07-01 | AD2: ='1_KMA'!AD31 -> 2044-07-01 | AE2: ='1_KMA'!AE31 -> 2045-07-01 | AF2: ='1_KMA'!AF31 -> 2046-07-01 | AG2: ='1_KMA'!AG31 -> 2047-07-01 | AH2: ='1_KMA'!AH31 -> 2048-07-01 | AI2: ='1_KMA'!AI31 -> 2049-07-01 | AJ2: ='1_KMA'!AJ31 -> 2050-07-01 | AK2: ='1_KMA'!AK31 -> 2051-07-01 | AL2: ='1_KMA'!AL31 -> 2052-07-01 | AM2: ='1_KMA'!AM31 -> 2053-07-01 | AN2: ='1_KMA'!AN31 -> 2054-07-01 | AO2: ='1_KMA'!AO31 -> 2055-07-01 | AP2: ='1_KMA'!AP31 -> 2056-07-01 | AQ2: ='1_KMA'!AQ31 -> 2057-07-01 | AR2: ='1_KMA'!AR31 -> 2058-07-01 | AS2: ='1_KMA'!AS31 -> 2059-07-01 | AT2: ='1_KMA'!AT31 -> 2060-07-01 | AU2: ='1_KMA'!AU31 -> 2061-07-01 | AV2: ='1_KMA'!AV31 -> 2062-07-01 | AW2: ='1_KMA'!AW31 -> 2063-07-01 | AX2: ='1_KMA'!AX31 -> 2064-07-01 | AY2: ='1_KMA'!AY31 -> 2065-07-01 | AZ2: ='1_KMA'!AZ31 -> 2066-07-01 | BA2: ='1_KMA'!BA31 -> 2067-07-01 | BB2: ='1_KMA'!BB31 -> 2068-07-01 | BC2: ='1_KMA'!BC31 -> 2069-07-01 | BD2: ='1_KMA'!BD31 -> 2070-07-01 | BE2: ='1_KMA'!BE31 -> 2071-07-01 | BF2: ='1_KMA'!BF31 -> 2072-07-01 | BG2: ='1_KMA'!BG31 -> 2073-07-01
B3: =Cover!$C$10 -> Business Case Evaluation | I3: Period End Date | J3: ='1_KMA'!J32 -> 2025-06-30 | K3: ='1_KMA'!K32 -> 2026-06-30 | L3: ='1_KMA'!L32 -> 2027-06-30 | M3: ='1_KMA'!M32 -> 2028-06-30 | N3: ='1_KMA'!N32 -> 2029-06-30 | O3: ='1_KMA'!O32 -> 2030-06-30 | P3: ='1_KMA'!P32 -> 2031-06-30 | Q3: ='1_KMA'!Q32 -> 2032-06-30 | R3: ='1_KMA'!R32 -> 2033-06-30 | S3: ='1_KMA'!S32 -> 2034-06-30 | T3: ='1_KMA'!T32 -> 2035-06-30 | U3: ='1_KMA'!U32 -> 2036-06-30 | V3: ='1_KMA'!V32 -> 2037-06-30 | W3: ='1_KMA'!W32 -> 2038-06-30 | X3: ='1_KMA'!X32 -> 2039-06-30 | Y3: ='1_KMA'!Y32 -> 2040-06-30 | Z3: ='1_KMA'!Z32 -> 2041-06-30 | AA3: ='1_KMA'!AA32 -> 2042-06-30 | AB3: ='1_KMA'!AB32 -> 2043-06-30 | AC3: ='1_KMA'!AC32 -> 2044-06-30 | AD3: ='1_KMA'!AD32 -> 2045-06-30 | AE3: ='1_KMA'!AE32 -> 2046-06-30 | AF3: ='1_KMA'!AF32 -> 2047-06-30 | AG3: ='1_KMA'!AG32 -> 2048-06-30 | AH3: ='1_KMA'!AH32 -> 2049-06-30 | AI3: ='1_KMA'!AI32 -> 2050-06-30 | AJ3: ='1_KMA'!AJ32 -> 2051-06-30 | AK3: ='1_KMA'!AK32 -> 2052-06-30 | AL3: ='1_KMA'!AL32 -> 2053-06-30 | AM3: ='1_KMA'!AM32 -> 2054-06-30 | AN3: ='1_KMA'!AN32 -> 2055-06-30 | AO3: ='1_KMA'!AO32 -> 2056-06-30 | AP3: ='1_KMA'!AP32 -> 2057-06-30 | AQ3: ='1_KMA'!AQ32 -> 2058-06-30 | AR3: ='1_KMA'!AR32 -> 2059-06-30 | AS3: ='1_KMA'!AS32 -> 2060-06-30 | AT3: ='1_KMA'!AT32 -> 2061-06-30 | AU3: ='1_KMA'!AU32 -> 2062-06-30 | AV3: ='1_KMA'!AV32 -> 2063-06-30 | AW3: ='1_KMA'!AW32 -> 2064-06-30 | AX3: ='1_KMA'!AX32 -> 2065-06-30 | AY3: ='1_KMA'!AY32 -> 2066-06-30 | AZ3: ='1_KMA'!AZ32 -> 2067-06-30 | BA3: ='1_KMA'!BA32 -> 2068-06-30 | BB3: ='1_KMA'!BB32 -> 2069-06-30 | BC3: ='1_KMA'!BC32 -> 2070-06-30 | BD3: ='1_KMA'!BD32 -> 2071-06-30 | BE3: ='1_KMA'!BE32 -> 2072-06-30 | BF3: ='1_KMA'!BF32 -> 2073-06-30 | BG3: ='1_KMA'!BG32 -> 2074-06-30
B4: =Cover!$C$11 -> Eastern Cranbourne 66kV loop augmentation | I4: Project Year | J4: ='1_KMA'!J33 -> 1 | K4: ='1_KMA'!K33 -> 2 | L4: ='1_KMA'!L33 -> 3 | M4: ='1_KMA'!M33 -> 4 | N4: ='1_KMA'!N33 -> 5 | O4: ='1_KMA'!O33 -> 6 | P4: ='1_KMA'!P33 -> 7 | Q4: ='1_KMA'!Q33 -> 8 | R4: ='1_KMA'!R33 -> 9 | S4: ='1_KMA'!S33 -> 10 | T4: ='1_KMA'!T33 -> 11 | U4: ='1_KMA'!U33 -> 12 | V4: ='1_KMA'!V33 -> 13 | W4: ='1_KMA'!W33 -> 14 | X4: ='1_KMA'!X33 -> 15 | Y4: ='1_KMA'!Y33 -> 16 | Z4: ='1_KMA'!Z33 -> 17 | AA4: ='1_KMA'!AA33 -> 18 | AB4: ='1_KMA'!AB33 -> 19 | AC4: ='1_KMA'!AC33 -> 20 | AD4: ='1_KMA'!AD33 -> 21 | AE4: ='1_KMA'!AE33 -> 22 | AF4: ='1_KMA'!AF33 -> 23 | AG4: ='1_KMA'!AG33 -> 24 | AH4: ='1_KMA'!AH33 -> 25 | AI4: ='1_KMA'!AI33 -> 26 | AJ4: ='1_KMA'!AJ33 -> 27 | AK4: ='1_KMA'!AK33 -> 28 | AL4: ='1_KMA'!AL33 -> 29 | AM4: ='1_KMA'!AM33 -> 30 | AN4: ='1_KMA'!AN33 -> 31 | AO4: ='1_KMA'!AO33 -> 32 | AP4: ='1_KMA'!AP33 -> 33 | AQ4: ='1_KMA'!AQ33 -> 34 | AR4: ='1_KMA'!AR33 -> 35 | AS4: ='1_KMA'!AS33 -> 36 | AT4: ='1_KMA'!AT33 -> 37 | AU4: ='1_KMA'!AU33 -> 38 | AV4: ='1_KMA'!AV33 -> 39 | AW4: ='1_KMA'!AW33 -> 40 | AX4: ='1_KMA'!AX33 -> 41 | AY4: ='1_KMA'!AY33 -> 42 | AZ4: ='1_KMA'!AZ33 -> 43 | BA4: ='1_KMA'!BA33 -> 44 | BB4: ='1_KMA'!BB33 -> 45 | BC4: ='1_KMA'!BC33 -> 46 | BD4: ='1_KMA'!BD33 -> 47 | BE4: ='1_KMA'!BE33 -> 48 | BF4: ='1_KMA'!BF33 -> 49 | BG4: ='1_KMA'!BG33 -> 50
I5: Financial Year | J5: ='1_KMA'!J34 -> 2025 | K5: ='1_KMA'!K34 -> 2026 | L5: ='1_KMA'!L34 -> 2027 | M5: ='1_KMA'!M34 -> 2028 | N5: ='1_KMA'!N34 -> 2029 | O5: ='1_KMA'!O34 -> 2030 | P5: ='1_KMA'!P34 -> 2031 | Q5: ='1_KMA'!Q34 -> 2032 | R5: ='1_KMA'!R34 -> 2033 | S5: ='1_KMA'!S34 -> 2034 | T5: ='1_KMA'!T34 -> 2035 | U5: ='1_KMA'!U34 -> 2036 | V5: ='1_KMA'!V34 -> 2037 | W5: ='1_KMA'!W34 -> 2038 | X5: ='1_KMA'!X34 -> 2039 | Y5: ='1_KMA'!Y34 -> 2040 | Z5: ='1_KMA'!Z34 -> 2041 | AA5: ='1_KMA'!AA34 -> 2042 | AB5: ='1_KMA'!AB34 -> 2043 | AC5: ='1_KMA'!AC34 -> 2044 | AD5: ='1_KMA'!AD34 -> 2045 | AE5: ='1_KMA'!AE34 -> 2046 | AF5: ='1_KMA'!AF34 -> 2047 | AG5: ='1_KMA'!AG34 -> 2048 | AH5: ='1_KMA'!AH34 -> 2049 | AI5: ='1_KMA'!AI34 -> 2050 | AJ5: ='1_KMA'!AJ34 -> 2051 | AK5: ='1_KMA'!AK34 -> 2052 | AL5: ='1_KMA'!AL34 -> 2053 | AM5: ='1_KMA'!AM34 -> 2054 | AN5: ='1_KMA'!AN34 -> 2055 | AO5: ='1_KMA'!AO34 -> 2056 | AP5: ='1_KMA'!AP34 -> 2057 | AQ5: ='1_KMA'!AQ34 -> 2058 | AR5: ='1_KMA'!AR34 -> 2059 | AS5: ='1_KMA'!AS34 -> 2060 | AT5: ='1_KMA'!AT34 -> 2061 | AU5: ='1_KMA'!AU34 -> 2062 | AV5: ='1_KMA'!AV34 -> 2063 | AW5: ='1_KMA'!AW34 -> 2064 | AX5: ='1_KMA'!AX34 -> 2065 | AY5: ='1_KMA'!AY34 -> 2066 | AZ5: ='1_KMA'!AZ34 -> 2067 | BA5: ='1_KMA'!BA34 -> 2068 | BB5: ='1_KMA'!BB34 -> 2069 | BC5: ='1_KMA'!BC34 -> 2070 | BD5: ='1_KMA'!BD34 -> 2071 | BE5: ='1_KMA'!BE34 -> 2072 | BF5: ='1_KMA'!BF34 -> 2073 | BG5: ='1_KMA'!BG34 -> 2074
B7: Project Details
B9: Option Name | E9: Description | L9: Life of the asset for annualised cost calculation (years) | O9: Will this option be used in your assessment?
B10: Base Case | E10: Do Nothing: BAU | O10: Yes
B11: Option 1 | E11: Install new 66kV line between CBTS and OFR | L11: 45 | O11: Yes
B12: Option 2 | E12: Install new 66kV line between CBTS and PHM | L12: 45 | O12: Yes
B13: Option 3 | E13: Install new 66kV line between CBTS-PSH and PSH-PHM | L13: 45 | O13: Yes
B14: Option 4 | E14: Install new 66kV line between CBTS-LLG | L14: 45 | O14: Yes
B15: Option 5 | E15: Construct a 25MW/100MWh Battery Energy Storage System | L15: 15 | O15: Yes
B17: Modelling Controls
B19: Denomination of Entered Cashflows | I19: $millions
B20: Dollar Basis of Entered Value for all Parts of the Model | I20: 2024-06-30
B21: Dollar Basis Needed for EDPR | I21: 2024-06-30
B22: Model Start Date | I22: 2024-07-01
B23: Assessment Period (Years) | I23: 30
B24: Model End Date | I24: =EOMONTH(I22+(I23*365),0) -> 2054-06-30
B25: Regulatory Period Start Date | I25: 2026-07-01
B26: Regulatory Period End Date | I26: 2031-06-30
B27: CPI p.a. (for future periods withouta RBA forecast) | I27: 0.025
B28: Real discount rate (base case) | I28: =Controls!E21 -> 0.05555
B30: Regulatory Period Indicator | J30: =IF(AND(J$31>=$I$25,J$32<=$I$26),1,0) -> 0 | K30: =IF(AND(K$31>=$I$25,K$32<=$I$26),1,0) -> 0 | L30: 1 | M30: 1 | N30: 1 | O30: 1 | P30: 1 | Q30: 0 | R30: 0 | S30: 0 | T30: 0 | U30: 0 | V30: 0 | W30: 0 | X30: 0 | Y30: 0 | Z30: 0 | AA30: 0 | AB30: 0 | AC30: 0 | AD30: 0 | AE30: 0 | AF30: 0 | AG30: 0 | AH30: 0 | AI30: 0 | AJ30: 0 | AK30: 0 | AL30: 0 | AM30: 0 | AN30: 0 | AO30: 0 | AP30: =IF(AND(AP$31>=$I$25,AP$32<=$I$26),1,0) -> 0 | AQ30: 0 | AR30: 0 | AS30: 0 | AT30: 0 | AU30: 0 | AV30: 0 | AW30: 0 | AX30: 0 | AY30: 0 | AZ30: 0 | BA30: 0 | BB30: 0 | BC30: 0 | BD30: 0 | BE30: 0 | BF30: 0 | BG30: 0
B31: Period Start Date | J31: =EDATE($I$22,(J33-1)*12) -> 2024-07-01 | K31: =EDATE($I$22,(K33-1)*12) -> 2025-07-01 | L31: 2026-07-01 | M31: 2027-07-01 | N31: 2028-07-01 | O31: 2029-07-01 | P31: 2030-07-01 | Q31: 2031-07-01 | R31: 2032-07-01 | S31: 2033-07-01 | T31: 2034-07-01 | U31: 2035-07-01 | V31: 2036-07-01 | W31: 2037-07-01 | X31: 2038-07-01 | Y31: 2039-07-01 | Z31: 2040-07-01 | AA31: 2041-07-01 | AB31: 2042-07-01 | AC31: 2043-07-01 | AD31: 2044-07-01 | AE31: 2045-07-01 | AF31: 2046-07-01 | AG31: 2047-07-01 | AH31: 2048-07-01 | AI31: 2049-07-01 | AJ31: 2050-07-01 | AK31: 2051-07-01 | AL31: 2052-07-01 | AM31: 2053-07-01 | AN31: 2054-07-01 | AO31: 2055-07-01 | AP31: =EDATE($I$22,(AP33-1)*12) -> 2056-07-01 | AQ31: 2057-07-01 | AR31: 2058-07-01 | AS31: 2059-07-01 | AT31: 2060-07-01 | AU31: 2061-07-01 | AV31: 2062-07-01 | AW31: 2063-07-01 | AX31: 2064-07-01 | AY31: 2065-07-01 | AZ31: 2066-07-01 | BA31: 2067-07-01 | BB31: 2068-07-01 | BC31: 2069-07-01 | BD31: 2070-07-01 | BE31: 2071-07-01 | BF31: 2072-07-01 | BG31: 2073-07-01
B32: Period End Date | J32: =EDATE(J31,12)-1 -> 2025-06-30 | K32: =EDATE(K31,12)-1 -> 2026-06-30 | L32: 2027-06-30 | M32: =EDATE(M31,12)-1 -> 2028-06-30 | N32: 2029-06-30 | O32: 2030-06-30 | P32: 2031-06-30 | Q32: 2032-06-30 | R32: 2033-06-30 | S32: 2034-06-30 | T32: 2035-06-30 | U32: 2036-06-30 | V32: 2037-06-30 | W32: 2038-06-30 | X32: 2039-06-30 | Y32: 2040-06-30 | Z32: 2041-06-30 | AA32: 2042-06-30 | AB32: 2043-06-30 | AC32: 2044-06-30 | AD32: 2045-06-30 | AE32: 2046-06-30 | AF32: 2047-06-30 | AG32: 2048-06-30 | AH32: 2049-06-30 | AI32: 2050-06-30 | AJ32: 2051-06-30 | AK32: 2052-06-30 | AL32: 2053-06-30 | AM32: 2054-06-30 | AN32: 2055-06-30 | AO32: 2056-06-30 | AP32: 2057-06-30 | AQ32: 2058-06-30 | AR32: 2059-06-30 | AS32: 2060-06-30 | AT32: 2061-06-30 | AU32: 2062-06-30 | AV32: 2063-06-30 | AW32: 2064-06-30 | AX32: 2065-06-30 | AY32: 2066-06-30 | AZ32: 2067-06-30 | BA32: 2068-06-30 | BB32: 2069-06-30 | BC32: 2070-06-30 | BD32: 2071-06-30 | BE32: 2072-06-30 | BF32: 2073-06-30 | BG32: 2074-06-30
B33: ="Project Year" -> Project Year | J33: =COLUMNS($J33:J33) -> 1 | K33: =COLUMNS($J33:K33) -> 2 | L33: =COLUMNS($J33:L33) -> 3 | M33: =COLUMNS($J33:M33) -> 4 | N33: =COLUMNS($J33:N33) -> 5 | O33: =COLUMNS($J33:O33) -> 6 | P33: =COLUMNS($J33:P33) -> 7 | Q33: =COLUMNS($J33:Q33) -> 8 | R33: =COLUMNS($J33:R33) -> 9 | S33: =COLUMNS($J33:S33) -> 10 | T33: =COLUMNS($J33:T33) -> 11 | U33: =COLUMNS($J33:U33) -> 12 | V33: =COLUMNS($J33:V33) -> 13 | W33: =COLUMNS($J33:W33) -> 14 | X33: =COLUMNS($J33:X33) -> 15 | Y33: =COLUMNS($J33:Y33) -> 16 | Z33: =COLUMNS($J33:Z33) -> 17 | AA33: =COLUMNS($J33:AA33) -> 18 | AB33: =COLUMNS($J33:AB33) -> 19 | AC33: =COLUMNS($J33:AC33) -> 20 | AD33: =COLUMNS($J33:AD33) -> 21 | AE33: =COLUMNS($J33:AE33) -> 22 | AF33: =COLUMNS($J33:AF33) -> 23 | AG33: =COLUMNS($J33:AG33) -> 24 | AH33: =COLUMNS($J33:AH33) -> 25 | AI33: =COLUMNS($J33:AI33) -> 26 | AJ33: =COLUMNS($J33:AJ33) -> 27 | AK33: =COLUMNS($J33:AK33) -> 28 | AL33: =COLUMNS($J33:AL33) -> 29 | AM33: =COLUMNS($J33:AM33) -> 30 | AN33: =COLUMNS($J33:AN33) -> 31 | AO33: =COLUMNS($J33:AO33) -> 32 | AP33: =COLUMNS($J33:AP33) -> 33 | AQ33: =COLUMNS($J33:AQ33) -> 34 | AR33: =COLUMNS($J33:AR33) -> 35 | AS33: =COLUMNS($J33:AS33) -> 36 | AT33: =COLUMNS($J33:AT33) -> 37 | AU33: =COLUMNS($J33:AU33) -> 38 | AV33: =COLUMNS($J33:AV33) -> 39 | AW33: =COLUMNS($J33:AW33) -> 40 | AX33: =COLUMNS($J33:AX33) -> 41 | AY33: =COLUMNS($J33:AY33) -> 42 | AZ33: =COLUMNS($J33:AZ33) -> 43 | BA33: =COLUMNS($J33:BA33) -> 44 | BB33: =COLUMNS($J33:BB33) -> 45 | BC33: =COLUMNS($J33:BC33) -> 46 | BD33: =COLUMNS($J33:BD33) -> 47 | BE33: =COLUMNS($J33:BE33) -> 48 | BF33: =COLUMNS($J33:BF33) -> 49 | BG33: =COLUMNS($J33:BG33) -> 50
B34: Financial Year | J34: =YEAR(J32) -> 2025 | K34: =YEAR(K32) -> 2026 | L34: 2027 | M34: 2028 | N34: 2029 | O34: 2030 | P34: 2031 | Q34: 2032 | R34: 2033 | S34: 2034 | T34: 2035 | U34: 2036 | V34: 2037 | W34: 2038 | X34: 2039 | Y34: 2040 | Z34: 2041 | AA34: 2042 | AB34: 2043 | AC34: 2044 | AD34: 2045 | AE34: 2046 | AF34: 2047 | AG34: 2048 | AH34: 2049 | AI34: 2050 | AJ34: 2051 | AK34: 2052 | AL34: 2053 | AM34: 2054 | AN34: 2055 | AO34: 2056 | AP34: 2057 | AQ34: 2058 | AR34: 2059 | AS34: 2060 | AT34: 2061 | AU34: 2062 | AV34: 2063 | AW34: 2064 | AX34: 2065 | AY34: 2066 | AZ34: 2067 | BA34: 2068 | BB34: 2069 | BC34: 2070 | BD34: 2071 | BE34: 2072 | BF34: 2073 | BG34: 2074

Sheet 2.1_Inputs
C6: Inputs
C7: Section 2.1.
C9: =Cover!$C$9 -> AusNet Services
C10: =Cover!$C$10 -> Business Case Evaluation
C11: =Cover!$C$11 -> Eastern Cranbourne 66kV loop augmentation

Sheet 2.1_BC
B1: General Inputs: Base Case | I1: Regulatory Period Indicator | J1: ='1_KMA'!J30 -> 0 | K1: ='1_KMA'!K30 -> 0 | L1: ='1_KMA'!L30 -> 1 | M1: ='1_KMA'!M30 -> 1 | N1: ='1_KMA'!N30 -> 1 | O1: ='1_KMA'!O30 -> 1 | P1: ='1_KMA'!P30 -> 1 | Q1: ='1_KMA'!Q30 -> 0 | R1: ='1_KMA'!R30 -> 0 | S1: ='1_KMA'!S30 -> 0 | T1: ='1_KMA'!T30 -> 0 | U1: ='1_KMA'!U30 -> 0 | V1: ='1_KMA'!V30 -> 0 | W1: ='1_KMA'!W30 -> 0 | X1: ='1_KMA'!X30 -> 0 | Y1: ='1_KMA'!Y30 -> 0 | Z1: ='1_KMA'!Z30 -> 0 | AA1: ='1_KMA'!AA30 -> 0 | AB1: ='1_KMA'!AB30 -> 0 | AC1: ='1_KMA'!AC30 -> 0 | AD1: ='1_KMA'!AD30 -> 0 | AE1: ='1_KMA'!AE30 -> 0 | AF1: ='1_KMA'!AF30 -> 0 | AG1: ='1_KMA'!AG30 -> 0 | AH1: ='1_KMA'!AH30 -> 0 | AI1: ='1_KMA'!AI30 -> 0 | AJ1: ='1_KMA'!AJ30 -> 0 | AK1: ='1_KMA'!AK30 -> 0 | AL1: ='1_KMA'!AL30 -> 0 | AM1: ='1_KMA'!AM30 -> 0 | AN1: ='1_KMA'!AN30 -> 0 | AO1: ='1_KMA'!AO30 -> 0 | AP1: ='1_KMA'!AP30 -> 0 | AQ1: ='1_KMA'!AQ30 -> 0 | AR1: ='1_KMA'!AR30 -> 0 | AS1: ='1_KMA'!AS30 -> 0 | AT1: ='1_KMA'!AT30 -> 0 | AU1: ='1_KMA'!AU30 -> 0 | AV1: ='1_KMA'!AV30 -> 0 | AW1: ='1_KMA'!AW30 -> 0 | AX1: ='1_KMA'!AX30 -> 0 | AY1: ='1_KMA'!AY30 -> 0 | AZ1: ='1_KMA'!AZ30 -> 0 | BA1: ='1_KMA'!BA30 -> 0 | BB1: ='1_KMA'!BB30 -> 0 | BC1: ='1_KMA'!BC30 -> 0 | BD1: ='1_KMA'!BD30 -> 0 | BE1: ='1_KMA'!BE30 -> 0 | BF1: ='1_KMA'!BF30 -> 0 | BG1: ='1_KMA'!BG30 -> 0
B2: =Cover!$C$9 -> AusNet Services | I2: Period Start Date | J2: ='1_KMA'!J31 -> 2024-07-01 | K2: ='1_KMA'!K31 -> 2025-07-01 | L2: ='1_KMA'!L31 -> 2026-07-01 | M2: ='1_KMA'!M31 -> 2027-07-01 | N2: ='1_KMA'!N31 -> 2028-07-01 | O2: ='1_KMA'!O31 -> 2029-07-01 | P2: ='1_KMA'!P31 -> 2030-07-01 | Q2: ='1_KMA'!Q31 -> 2031-07-01 | R2: ='1_KMA'!R31 -> 2032-07-01 | S2: ='1_KMA'!S31 -> 2033-07-01 | T2: ='1_KMA'!T31 -> 2034-07-01 | U2: ='1_KMA'!U31 -> 2035-07-01 | V2: ='1_KMA'!V31 -> 2036-07-01 | W2: ='1_KMA'!W31 -> 2037-07-01 | X2: ='1_KMA'!X31 -> 2038-07-01 | Y2: ='1_KMA'!Y31 -> 2039-07-01 | Z2: ='1_KMA'!Z31 -> 2040-07-01 | AA2: ='1_KMA'!AA31 -> 2041-07-01 | AB2: ='1_KMA'!AB31 -> 2042-07-01 | AC2: ='1_KMA'!AC31 -> 2043-07-01 | AD2: ='1_KMA'!AD31 -> 2044-07-01 | AE2: ='1_KMA'!AE31 -> 2045-07-01 | AF2: ='1_KMA'!AF31 -> 2046-07-01 | AG2: ='1_KMA'!AG31 -> 2047-07-01 | AH2: ='1_KMA'!AH31 -> 2048-07-01 | AI2: ='1_KMA'!AI31 -> 2049-07-01 | AJ2: ='1_KMA'!AJ31 -> 2050-07-01 | AK2: ='1_KMA'!AK31 -> 2051-07-01 | AL2: ='1_KMA'!AL31 -> 2052-07-01 | AM2: ='1_KMA'!AM31 -> 2053-07-01 | AN2: ='1_KMA'!AN31 -> 2054-07-01 | AO2: ='1_KMA'!AO31 -> 2055-07-01 | AP2: ='1_KMA'!AP31 -> 2056-07-01 | AQ2: ='1_KMA'!AQ31 -> 2057-07-01 | AR2: ='1_KMA'!AR31 -> 2058-07-01 | AS2: ='1_KMA'!AS31 -> 2059-07-01 | AT2: ='1_KMA'!AT31 -> 2060-07-01 | AU2: ='1_KMA'!AU31 -> 2061-07-01 | AV2: ='1_KMA'!AV31 -> 2062-07-01 | AW2: ='1_KMA'!AW31 -> 2063-07-01 | AX2: ='1_KMA'!AX31 -> 2064-07-01 | AY2: ='1_KMA'!AY31 -> 2065-07-01 | AZ2: ='1_KMA'!AZ31 -> 2066-07-01 | BA2: ='1_KMA'!BA31 -> 2067-07-01 | BB2: ='1_KMA'!BB31 -> 2068-07-01 | BC2: ='1_KMA'!BC31 -> 2069-07-01 | BD2: ='1_KMA'!BD31 -> 2070-07-01 | BE2: ='1_KMA'!BE31 -> 2071-07-01 | BF2: ='1_KMA'!BF31 -> 2072-07-01 | BG2: ='1_KMA'!BG31 -> 2073-07-01
B3: =Cover!$C$10 -> Business Case Evaluation | I3: Period End Date | J3: ='1_KMA'!J32 -> 2025-06-30 | K3: ='1_KMA'!K32 -> 2026-06-30 | L3: ='1_KMA'!L32 -> 2027-06-30 | M3: ='1_KMA'!M32 -> 2028-06-30 | N3: ='1_KMA'!N32 -> 2029-06-30 | O3: ='1_KMA'!O32 -> 2030-06-30 | P3: ='1_KMA'!P32 -> 2031-06-30 | Q3: ='1_KMA'!Q32 -> 2032-06-30 | R3: ='1_KMA'!R32 -> 2033-06-30 | S3: ='1_KMA'!S32 -> 2034-06-30 | T3: ='1_KMA'!T32 -> 2035-06-30 | U3: ='1_KMA'!U32 -> 2036-06-30 | V3: ='1_KMA'!V32 -> 2037-06-30 | W3: ='1_KMA'!W32 -> 2038-06-30 | X3: ='1_KMA'!X32 -> 2039-06-30 | Y3: ='1_KMA'!Y32 -> 2040-06-30 | Z3: ='1_KMA'!Z32 -> 2041-06-30 | AA3: ='1_KMA'!AA32 -> 2042-06-30 | AB3: ='1_KMA'!AB32 -> 2043-06-30 | AC3: ='1_KMA'!AC32 -> 2044-06-30 | AD3: ='1_KMA'!AD32 -> 2045-06-30 | AE3: ='1_KMA'!AE32 -> 2046-06-30 | AF3: ='1_KMA'!AF32 -> 2047-06-30 | AG3: ='1_KMA'!AG32 -> 2048-06-30 | AH3: ='1_KMA'!AH32 -> 2049-06-30 | AI3: ='1_KMA'!AI32 -> 2050-06-30 | AJ3: ='1_KMA'!AJ32 -> 2051-06-30 | AK3: ='1_KMA'!AK32 -> 2052-06-30 | AL3: ='1_KMA'!AL32 -> 2053-06-30 | AM3: ='1_KMA'!AM32 -> 2054-06-30 | AN3: ='1_KMA'!AN32 -> 2055-06-30 | AO3: ='1_KMA'!AO32 -> 2056-06-30 | AP3: ='1_KMA'!AP32 -> 2057-06-30 | AQ3: ='1_KMA'!AQ32 -> 2058-06-30 | AR3: ='1_KMA'!AR32 -> 2059-06-30 | AS3: ='1_KMA'!AS32 -> 2060-06-30 | AT3: ='1_KMA'!AT32 -> 2061-06-30 | AU3: ='1_KMA'!AU32 -> 2062-06-30 | AV3: ='1_KMA'!AV32 -> 2063-06-30 | AW3: ='1_KMA'!AW32 -> 2064-06-30 | AX3: ='1_KMA'!AX32 -> 2065-06-30 | AY3: ='1_KMA'!AY32 -> 2066-06-30 | AZ3: ='1_KMA'!AZ32 -> 2067-06-30 | BA3: ='1_KMA'!BA32 -> 2068-06-30 | BB3: ='1_KMA'!BB32 -> 2069-06-30 | BC3: ='1_KMA'!BC32 -> 2070-06-30 | BD3: ='1_KMA'!BD32 -> 2071-06-30 | BE3: ='1_KMA'!BE32 -> 2072-06-30 | BF3: ='1_KMA'!BF32 -> 2073-06-30 | BG3: ='1_KMA'!BG32 -> 2074-06-30
B4: =Cover!$C$11 -> Eastern Cranbourne 66kV loop augmentation | I4: Project Year | J4: ='1_KMA'!J33 -> 1 | K4: ='1_KMA'!K33 -> 2 | L4: ='1_KMA'!L33 -> 3 | M4: ='1_KMA'!M33 -> 4 | N4: ='1_KMA'!N33 -> 5 | O4: ='1_KMA'!O33 -> 6 | P4: ='1_KMA'!P33 -> 7 | Q4: ='1_KMA'!Q33 -> 8 | R4: ='1_KMA'!R33 -> 9 | S4: ='1_KMA'!S33 -> 10 | T4: ='1_KMA'!T33 -> 11 | U4: ='1_KMA'!U33 -> 12 | V4: ='1_KMA'!V33 -> 13 | W4: ='1_KMA'!W33 -> 14 | X4: ='1_KMA'!X33 -> 15 | Y4: ='1_KMA'!Y33 -> 16 | Z4: ='1_KMA'!Z33 -> 17 | AA4: ='1_KMA'!AA33 -> 18 | AB4: ='1_KMA'!AB33 -> 19 | AC4: ='1_KMA'!AC33 -> 20 | AD4: ='1_KMA'!AD33 -> 21 | AE4: ='1_KMA'!AE33 -> 22 | AF4: ='1_KMA'!AF33 -> 23 | AG4: ='1_KMA'!AG33 -> 24 | AH4: ='1_KMA'!AH33 -> 25 | AI4: ='1_KMA'!AI33 -> 26 | AJ4: ='1_KMA'!AJ33 -> 27 | AK4: ='1_KMA'!AK33 -> 28 | AL4: ='1_KMA'!AL33 -> 29 | AM4: ='1_KMA'!AM33 -> 30 | AN4: ='1_KMA'!AN33 -> 31 | AO4: ='1_KMA'!AO33 -> 32 | AP4: ='1_KMA'!AP33 -> 33 | AQ4: ='1_KMA'!AQ33 -> 34 | AR4: ='1_KMA'!AR33 -> 35 | AS4: ='1_KMA'!AS33 -> 36 | AT4: ='1_KMA'!AT33 -> 37 | AU4: ='1_KMA'!AU33 -> 38 | AV4: ='1_KMA'!AV33 -> 39 | AW4: ='1_KMA'!AW33 -> 40 | AX4: ='1_KMA'!AX33 -> 41 | AY4: ='1_KMA'!AY33 -> 42 | AZ4: ='1_KMA'!AZ33 -> 43 | BA4: ='1_KMA'!BA33 -> 44 | BB4: ='1_KMA'!BB33 -> 45 | BC4: ='1_KMA'!BC33 -> 46 | BD4: ='1_KMA'!BD33 -> 47 | BE4: ='1_KMA'!BE33 -> 48 | BF4: ='1_KMA'!BF33 -> 49 | BG4: ='1_KMA'!BG33 -> 50
I5: Financial Year | J5: ='1_KMA'!J34 -> 2025 | K5: ='1_KMA'!K34 -> 2026 | L5: ='1_KMA'!L34 -> 2027 | M5: ='1_KMA'!M34 -> 2028 | N5: ='1_KMA'!N34 -> 2029 | O5: ='1_KMA'!O34 -> 2030 | P5: ='1_KMA'!P34 -> 2031 | Q5: ='1_KMA'!Q34 -> 2032 | R5: ='1_KMA'!R34 -> 2033 | S5: ='1_KMA'!S34 -> 2034 | T5: ='1_KMA'!T34 -> 2035 | U5: ='1_KMA'!U34 -> 2036 | V5: ='1_KMA'!V34 -> 2037 | W5: ='1_KMA'!W34 -> 2038 | X5: ='1_KMA'!X34 -> 2039 | Y5: ='1_KMA'!Y34 -> 2040 | Z5: ='1_KMA'!Z34 -> 2041 | AA5: ='1_KMA'!AA34 -> 2042 | AB5: ='1_KMA'!AB34 -> 2043 | AC5: ='1_KMA'!AC34 -> 2044 | AD5: ='1_KMA'!AD34 -> 2045 | AE5: ='1_KMA'!AE34 -> 2046 | AF5: ='1_KMA'!AF34 -> 2047 | AG5: ='1_KMA'!AG34 -> 2048 | AH5: ='1_KMA'!AH34 -> 2049 | AI5: ='1_KMA'!AI34 -> 2050 | AJ5: ='1_KMA'!AJ34 -> 2051 | AK5: ='1_KMA'!AK34 -> 2052 | AL5: ='1_KMA'!AL34 -> 2053 | AM5: ='1_KMA'!AM34 -> 2054 | AN5: ='1_KMA'!AN34 -> 2055 | AO5: ='1_KMA'!AO34 -> 2056 | AP5: ='1_KMA'!AP34 -> 2057 | AQ5: ='1_KMA'!AQ34 -> 2058 | AR5: ='1_KMA'!AR34 -> 2059 | AS5: ='1_KMA'!AS34 -> 2060 | AT5: ='1_KMA'!AT34 -> 2061 | AU5: ='1_KMA'!AU34 -> 2062 | AV5: ='1_KMA'!AV34 -> 2063 | AW5: ='1_KMA'!AW34 -> 2064 | AX5: ='1_KMA'!AX34 -> 2065 | AY5: ='1_KMA'!AY34 -> 2066 | AZ5: ='1_KMA'!AZ34 -> 2067 | BA5: ='1_KMA'!BA34 -> 2068 | BB5: ='1_KMA'!BB34 -> 2069 | BC5: ='1_KMA'!BC34 -> 2070 | BD5: ='1_KMA'!BD34 -> 2071 | BE5: ='1_KMA'!BE34 -> 2072 | BF5: ='1_KMA'!BF34 -> 2073 | BG5: ='1_KMA'!BG34 -> 2074
B7: Summary
B9: Costs | G9: $ Basis Reminder | H9: $ Reminder
B10: Capex | G10: ='1_KMA'!$I$20 -> 2024-06-30 | H10: ='1_KMA'!$I$19 -> $millions | J10: =J47 -> 0 | K10: =K47 -> 0 | L10: =L47 -> 0 | M10: 0 | N10: 0 | O10: 0 | P10: 0 | Q10: 0 | R10: 0 | S10: 0 | T10: 0 | U10: 0 | V10: 0 | W10: 0 | X10: 0 | Y10: 0 | Z10: 0 | AA10: 0 | AB10: 0 | AC10: 0 | AD10: 0 | AE10: 0 | AF10: 0 | AG10: 0 | AH10: 0 | AI10: 0 | AJ10: 0 | AK10: 0 | AL10: 0 | AM10: 0 | AN10: 0 | AO10: 0 | AP10: 0 | AQ10: 0 | AR10: 0 | AS10: 0 | AT10: 0 | AU10: 0 | AV10: 0 | AW10: 0 | AX10: 0 | AY10: 0 | AZ10: 0 | BA10: 0 | BB10: 0 | BC10: 0 | BD10: 0 | BE10: 0 | BF10: 0 | BG10: 0
B11: Capex offset | G11: ='1_KMA'!$I$20 -> 2024-06-30 | H11: ='1_KMA'!$I$19 -> $millions | J11: =-J59 -> 0 | K11: =-K59 -> 0 | L11: =-L59 -> 0 | M11: 0 | N11: 0 | O11: 0 | P11: 0 | Q11: 0 | R11: 0 | S11: 0 | T11: 0 | U11: 0 | V11: 0 | W11: 0 | X11: 0 | Y11: 0 | Z11: 0 | AA11: 0 | AB11: 0 | AC11: 0 | AD11: 0 | AE11: 0 | AF11: 0 | AG11: 0 | AH11: 0 | AI11: 0 | AJ11: 0 | AK11: 0 | AL11: 0 | AM11: 0 | AN11: 0 | AO11: 0 | AP11: 0 | AQ11: 0 | AR11: 0 | AS11: 0 | AT11: 0 | AU11: 0 | AV11: 0 | AW11: 0 | AX11: 0 | AY11: 0 | AZ11: 0 | BA11: 0 | BB11: 0 | BC11: 0 | BD11: 0 | BE11: 0 | BF11: 0 | BG11: 0
B12: Opex | G12: ='1_KMA'!$I$20 -> 2024-06-30 | H12: ='1_KMA'!$I$19 -> $millions | J12: =J82 -> 0 | K12: =K82 -> 0 | L12: =L82 -> 0 | M12: =M82 -> 0 | N12: =N82 -> 0 | O12: 0 | P12: 0 | Q12: 0 | R12: 0 | S12: 0 | T12: 0 | U12: 0 | V12: 0 | W12: 0 | X12: 0 | Y12: 0 | Z12: 0 | AA12: 0 | AB12: 0 | AC12: 0 | AD12: 0 | AE12: 0 | AF12: 0 | AG12: 0 | AH12: 0 | AI12: 0 | AJ12: 0 | AK12: 0 | AL12: 0 | AM12: 0 | AN12: 0 | AO12: 0 | AP12: 0 | AQ12: 0 | AR12: 0 | AS12: 0 | AT12: 0 | AU12: 0 | AV12: 0 | AW12: 0 | AX12: 0 | AY12: 0 | AZ12: 0 | BA12: 0 | BB12: 0 | BC12: 0 | BD12: 0 | BE12: 0 | BF12: 0 | BG12: 0
B13: Total | G13: ='1_KMA'!$I$20 -> 2024-06-30 | H13: ='1_KMA'!$I$19 -> $millions | J13: =SUM(J10:J12) -> 0 | K13: =SUM(K10:K12) -> 0 | L13: 0 | M13: 0 | N13: 0 | O13: 0 | P13: 0 | Q13: 0 | R13: 0 | S13: 0 | T13: 0 | U13: 0 | V13: 0 | W13: 0 | X13: 0 | Y13: 0 | Z13: 0 | AA13: 0 | AB13: 0 | AC13: 0 | AD13: 0 | AE13: 0 | AF13: 0 | AG13: 0 | AH13: 0 | AI13: 0 | AJ13: 0 | AK13: 0 | AL13: 0 | AM13: 0 | AN13: 0 | AO13: 0 | AP13: 0 | AQ13: 0 | AR13: 0 | AS13: 0 | AT13: 0 | AU13: 0 | AV13: 0 | AW13: 0 | AX13: 0 | AY13: 0 | AZ13: 0 | BA13: 0 | BB13: 0 | BC13: 0 | BD13: 0 | BE13: 0 | BF13: 0 | BG13: 0
B15: Benefits | G15: $ Basis Reminder | H15: $ Reminder
B16: Value of EUE | G16: ='1_KMA'!$I$20 -> 2024-06-30 | H16: ='1_KMA'!$I$19 -> $millions | J16: =-J93 -> 0 | K16: =-K93 -> 0 | L16: -0.1047 | M16: -1.0108 | N16: -2.858 | O16: -0.864 | P16: -2.2109 | Q16: -3.9971 | R16: -6.539 | S16: -10.1145 | T16: -14.9844 | U16: -21.2257 | V16: -29.4786 | W16: -39.9487 | X16: -39.9487 | Y16: -39.9487 | Z16: -39.9487 | AA16: -39.9487 | AB16: -39.9487 | AC16: -39.9487 | AD16: -39.9487 | AE16: -39.9487 | AF16: -39.9487 | AG16: -39.9487 | AH16: -39.9487 | AI16: -39.9487 | AJ16: -39.9487 | AK16: -39.9487 | AL16: -39.9487 | AM16: -39.9487 | AN16: 0 | AO16: 0 | AP16: 0 | AQ16: 0 | AR16: 0 | AS16: 0 | AT16: 0 | AU16: 0 | AV16: 0 | AW16: 0 | AX16: 0 | AY16: 0 | AZ16: 0 | BA16: 0 | BB16: 0 | BC16: 0 | BD16: 0 | BE16: 0 | BF16: 0 | BG16: 0
B21: Total | G21: ='1_KMA'!$I$20 -> 2024-06-30 | H21: ='1_KMA'!$I$19 -> $millions | J21: =SUM(J16:J20) -> 0 | K21: =SUM(K16:K20) -> 0 | L21: -0.1047 | M21: -1.0108 | N21: -2.858 | O21: -0.864 | P21: -2.2109 | Q21: -3.9971 | R21: -6.539 | S21: -10.1145 | T21: -14.9844 | U21: -21.2257 | V21: -29.4786 | W21: -39.9487 | X21: -39.9487 | Y21: -39.9487 | Z21: -39.9487 | AA21: -39.9487 | AB21: -39.9487 | AC21: -39.9487 | AD21: -39.9487 | AE21: -39.9487 | AF21: -39.9487 | AG21: -39.9487 | AH21: -39.9487 | AI21: -39.9487 | AJ21: -39.9487 | AK21: -39.9487 | AL21: -39.9487 | AM21: -39.9487 | AN21: 0 | AO21: 0 | AP21: 0 | AQ21: 0 | AR21: 0 | AS21: 0 | AT21: 0 | AU21: 0 | AV21: 0 | AW21: 0 | AX21: 0 | AY21: 0 | AZ21: 0 | BA21: 0 | BB21: 0 | BC21: 0 | BD21: 0 | BE21: 0 | BF21: 0 | BG21: 0
B24: Cost Inputs
B26: Capex Build Up
B28: Name | H28: Unit | J28: Unit Rate
B34: Name | H34: Unit | J34: Quantities
B40: Name | G40: $ Basis Reminder | H40: $ Reminder
G41: ='1_KMA'!$I$20 -> 2024-06-30 | H41: ='1_KMA'!$I$19 -> $millions | J41: =$J$29*J35 -> 0 | K41: =$J$29*K35 -> 0 | L41: =$J$29*L35 -> 0 | M41: =$J$29*M35 -> 0 | N41: 0 | O41: 0 | P41: 0 | Q41: 0 | R41: 0 | S41: 0 | T41: 0 | U41: 0 | V41: 0 | W41: 0 | X41: 0 | Y41: 0 | Z41: 0 | AA41: 0 | AB41: 0 | AC41: 0 | AD41: 0 | AE41: 0 | AF41: 0 | AG41: 0 | AH41: 0 | AI41: 0 | AJ41: 0 | AK41: 0 | AL41: 0 | AM41: 0 | AN41: 0 | AO41: 0 | AP41: 0 | AQ41: 0 | AR41: 0 | AS41: 0 | AT41: 0 | AU41: 0 | AV41: 0 | AW41: 0 | AX41: 0 | AY41: 0 | AZ41: 0 | BA41: 0 | BB41: 0 | BC41: 0 | BD41: 0 | BE41: 0 | BF41: 0 | BG41: 0
G42: ='1_KMA'!$I$20 -> 2024-06-30 | H42: ='1_KMA'!$I$19 -> $millions | J42: =$J$30*J36 -> 0 | K42: =$J$30*K36 -> 0 | L42: =$J$30*L36 -> 0 | M42: =$J$30*M36 -> 0 | N42: 0 | O42: 0 | P42: 0 | Q42: 0 | R42: 0 | S42: 0 | T42: 0 | U42: 0 | V42: 0 | W42: 0 | X42: 0 | Y42: 0 | Z42: 0 | AA42: 0 | AB42: 0 | AC42: 0 | AD42: 0 | AE42: 0 | AF42: 0 | AG42: 0 | AH42: 0 | AI42: 0 | AJ42: 0 | AK42: 0 | AL42: 0 | AM42: 0 | AN42: 0 | AO42: 0 | AP42: 0 | AQ42: 0 | AR42: 0 | AS42: 0 | AT42: 0 | AU42: 0 | AV42: 0 | AW42: 0 | AX42: 0 | AY42: 0 | AZ42: 0 | BA42: 0 | BB42: 0 | BC42: 0 | BD42: 0 | BE42: 0 | BF42: 0 | BG42: 0
G43: ='1_KMA'!$I$20 -> 2024-06-30 | H43: ='1_KMA'!$I$19 -> $millions | J43: =$J$31*J37 -> 0 | K43: =$J$31*K37 -> 0 | L43: =$J$31*L37 -> 0 | M43: =$J$31*M37 -> 0 | N43: 0 | O43: 0 | P43: 0 | Q43: 0 | R43: 0 | S43: 0 | T43: 0 | U43: 0 | V43: 0 | W43: 0 | X43: 0 | Y43: 0 | Z43: 0 | AA43: 0 | AB43: 0 | AC43: 0 | AD43: 0 | AE43: 0 | AF43: 0 | AG43: 0 | AH43: 0 | AI43: 0 | AJ43: 0 | AK43: 0 | AL43: 0 | AM43: 0 | AN43: 0 | AO43: 0 | AP43: 0 | AQ43: 0 | AR43: 0 | AS43: 0 | AT43: 0 | AU43: 0 | AV43: 0 | AW43: 0 | AX43: 0 | AY43: 0 | AZ43: 0 | BA43: 0 | BB43: 0 | BC43: 0 | BD43: 0 | BE43: 0 | BF43: 0 | BG43: 0
G44: ='1_KMA'!$I$20 -> 2024-06-30 | H44: ='1_KMA'!$I$19 -> $millions | J44: =$J$32*J38 -> 0 | K44: =$J$32*K38 -> 0 | L44: =$J$32*L38 -> 0 | M44: =$J$32*M38 -> 0 | N44: =$J$32*N38 -> 0 | O44: 0 | P44: 0 | Q44: 0 | R44: 0 | S44: 0 | T44: 0 | U44: 0 | V44: 0 | W44: 0 | X44: 0 | Y44: 0 | Z44: 0 | AA44: 0 | AB44: 0 | AC44: 0 | AD44: 0 | AE44: 0 | AF44: 0 | AG44: 0 | AH44: 0 | AI44: 0 | AJ44: 0 | AK44: 0 | AL44: 0 | AM44: 0 | AN44: 0 | AO44: 0 | AP44: 0 | AQ44: 0 | AR44: 0 | AS44: 0 | AT44: 0 | AU44: 0 | AV44: 0 | AW44: 0 | AX44: 0 | AY44: 0 | AZ44: 0 | BA44: 0 | BB44: 0 | BC44: 0 | BD44: 0 | BE44: 0 | BF44: 0 | BG44: 0
G46: $ Basis Reminder | H46: $ Reminder
B47: Total | G47: ='1_KMA'!$I$20 -> 2024-06-30 | H47: ='1_KMA'!$I$19 -> $millions | J47: =SUM(J41:J44) -> 0 | K47: =SUM(K41:K44) -> 0 | L47: 0 | M47: =SUM(M41:M44) -> 0 | N47: 0 | O47: 0 | P47: 0 | Q47: 0 | R47: 0 | S47: 0 | T47: 0 | U47: 0 | V47: 0 | W47: 0 | X47: 0 | Y47: 0 | Z47: 0 | AA47: 0 | AB47: 0 | AC47: 0 | AD47: 0 | AE47: 0 | AF47: 0 | AG47: 0 | AH47: 0 | AI47: 0 | AJ47: 0 | AK47: 0 | AL47: 0 | AM47: 0 | AN47: 0 | AO47: 0 | AP47: =SUM(AP41:AP44) -> 0 | AQ47: 0 | AR47: 0 | AS47: 0 | AT47: 0 | AU47: 0 | AV47: 0 | AW47: 0 | AX47: 0 | AY47: 0 | AZ47: 0 | BA47: 0 | BB47: 0 | BC47: 0 | BD47: 0 | BE47: 0 | BF47: 0 | BG47: 0
B49: Capex Offset
B52: Name | G52: $ Basis Reminder | H52: $ Reminder
G53: ='1_KMA'!$I$20 -> 2024-06-30 | H53: ='1_KMA'!$I$19 -> $millions
G54: ='1_KMA'!$I$20 -> 2024-06-30 | H54: ='1_KMA'!$I$19 -> $millions
G55: ='1_KMA'!$I$20 -> 2024-06-30 | H55: ='1_KMA'!$I$19 -> $millions
G56: ='1_KMA'!$I$20 -> 2024-06-30 | H56: ='1_KMA'!$I$19 -> $millions
G58: $ Basis Reminder | H58: $ Reminder
B59: Total | G59: ='1_KMA'!$I$20 -> 2024-06-30 | H59: ='1_KMA'!$I$19 -> $millions | J59: =SUM(J53:J56) -> 0 | K59: =SUM(K53:K56) -> 0 | L59: =SUM(L53:L56) -> 0 | M59: 0 | N59: 0 | O59: 0 | P59: 0 | Q59: 0 | R59: 0 | S59: 0 | T59: 0 | U59: 0 | V59: 0 | W59: 0 | X59: 0 | Y59: 0 | Z59: 0 | AA59: 0 | AB59: 0 | AC59: 0 | AD59: 0 | AE59: 0 | AF59: 0 | AG59: 0 | AH59: 0 | AI59: 0 | AJ59: 0 | AK59: 0 | AL59: 0 | AM59: 0 | AN59: 0 | AO59: 0 | AP59: 0 | AQ59: 0 | AR59: 0 | AS59: 0 | AT59: 0 | AU59: 0 | AV59: 0 | AW59: 0 | AX59: 0 | AY59: 0 | AZ59: 0 | BA59: 0 | BB59: 0 | BC59: 0 | BD59: 0 | BE59: 0 | BF59: 0 | BG59: =SUM(BG53:BG56) -> 0
B61: Opex Build Up
B63: Name | H63: Unit | J63: Value
B69: Name | H69: Unit | J69: Quantities
B75: Name | G75: $ Basis Reminder | H75: $ Reminder
G76: ='1_KMA'!$I$20 -> 2024-06-30 | H76: ='1_KMA'!$I$19 -> $millions | J76: =$J$64*J70 -> 0 | K76: =$J$64*K70 -> 0 | L76: =$J$64*L70 -> 0 | M76: =$J$64*M70 -> 0 | N76: 0 | O76: 0 | P76: 0 | Q76: 0 | R76: 0 | S76: 0 | T76: 0 | U76: 0 | V76: 0 | W76: 0 | X76: 0 | Y76: 0 | Z76: 0 | AA76: 0 | AB76: 0 | AC76: 0 | AD76: 0 | AE76: 0 | AF76: 0 | AG76: 0 | AH76: 0 | AI76: 0 | AJ76: 0 | AK76: 0 | AL76: 0 | AM76: 0 | AN76: 0 | AO76: 0 | AP76: 0 | AQ76: 0 | AR76: 0 | AS76: 0 | AT76: 0 | AU76: 0 | AV76: 0 | AW76: 0 | AX76: 0 | AY76: 0 | AZ76: 0 | BA76: 0 | BB76: 0 | BC76: 0 | BD76: 0 | BE76: 0 | BF76: 0 | BG76: 0
G77: ='1_KMA'!$I$20 -> 2024-06-30 | H77: ='1_KMA'!$I$19 -> $millions | J77: =$J$65*J71 -> 0 | K77: =$J$65*K71 -> 0 | L77: =$J$65*L71 -> 0 | M77: =$J$65*M71 -> 0 | N77: =$J$65*N71 -> 0 | O77: 0 | P77: 0 | Q77: 0 | R77: 0 | S77: 0 | T77: 0 | U77: 0 | V77: 0 | W77: 0 | X77: 0 | Y77: 0 | Z77: 0 | AA77: 0 | AB77: 0 | AC77: 0 | AD77: 0 | AE77: 0 | AF77: 0 | AG77: 0 | AH77: 0 | AI77: 0 | AJ77: 0 | AK77: 0 | AL77: 0 | AM77: 0 | AN77: 0 | AO77: 0 | AP77: 0 | AQ77: 0 | AR77: 0 | AS77: 0 | AT77: 0 | AU77: 0 | AV77: 0 | AW77: 0 | AX77: 0 | AY77: 0 | AZ77: 0 | BA77: 0 | BB77: 0 | BC77: 0 | BD77: 0 | BE77: 0 | BF77: 0 | BG77: 0
G78: ='1_KMA'!$I$20 -> 2024-06-30 | H78: ='1_KMA'!$I$19 -> $millions | J78: =$J$66*J72 -> 0 | K78: =$J$66*K72 -> 0 | L78: =$J$66*L72 -> 0 | M78: =$J$66*M72 -> 0 | N78: 0 | O78: =$J$66*O72 -> 0 | P78: 0 | Q78: 0 | R78: 0 | S78: 0 | T78: 0 | U78: 0 | V78: 0 | W78: 0 | X78: 0 | Y78: 0 | Z78: 0 | AA78: 0 | AB78: 0 | AC78: 0 | AD78: 0 | AE78: 0 | AF78: 0 | AG78: 0 | AH78: 0 | AI78: 0 | AJ78: 0 | AK78: 0 | AL78: 0 | AM78: 0 | AN78: 0 | AO78: 0 | AP78: 0 | AQ78: 0 | AR78: 0 | AS78: 0 | AT78: 0 | AU78: 0 | AV78: 0 | AW78: 0 | AX78: 0 | AY78: 0 | AZ78: 0 | BA78: 0 | BB78: 0 | BC78: 0 | BD78: 0 | BE78: 0 | BF78: 0 | BG78: 0
G79: ='1_KMA'!$I$20 -> 2024-06-30 | H79: ='1_KMA'!$I$19 -> $millions | J79: =$J$67*J73 -> 0 | K79: =$J$67*K73 -> 0 | L79: =$J$67*L73 -> 0 | M79: 0 | N79: =$J$67*N73 -> 0 | O79: 0 | P79: =$J$67*P73 -> 0 | Q79: 0 | R79: 0 | S79: 0 | T79: 0 | U79: 0 | V79: 0 | W79: 0 | X79: 0 | Y79: 0 | Z79: 0 | AA79: 0 | AB79: 0 | AC79: 0 | AD79: 0 | AE79: 0 | AF79: 0 | AG79: 0 | AH79: 0 | AI79: 0 | AJ79: 0 | AK79: 0 | AL79: 0 | AM79: 0 | AN79: 0 | AO79: 0 | AP79: 0 | AQ79: 0 | AR79: 0 | AS79: 0 | AT79: 0 | AU79: 0 | AV79: 0 | AW79: 0 | AX79: 0 | AY79: 0 | AZ79: 0 | BA79: 0 | BB79: 0 | BC79: 0 | BD79: 0 | BE79: 0 | BF79: 0 | BG79: 0
G81: $ Basis Reminder | H81: $ Reminder
B82: Total | G82: ='1_KMA'!$I$20 -> 2024-06-30 | H82: ='1_KMA'!$I$19 -> $millions | J82: =SUM(J76:J79) -> 0 | K82: =SUM(K76:K79) -> 0 | L82: =SUM(L76:L79) -> 0 | M82: =SUM(M76:M79) -> 0 | N82: =SUM(N76:N79) -> 0 | O82: 0 | P82: 0 | Q82: 0 | R82: 0 | S82: 0 | T82: 0 | U82: 0 | V82: 0 | W82: 0 | X82: 0 | Y82: 0 | Z82: 0 | AA82: 0 | AB82: 0 | AC82: 0 | AD82: 0 | AE82: 0 | AF82: 0 | AG82: 0 | AH82: 0 | AI82: 0 | AJ82: 0 | AK82: 0 | AL82: 0 | AM82: 0 | AN82: 0 | AO82: 0 | AP82: 0 | AQ82: 0 | AR82: 0 | AS82: 0 | AT82: 0 | AU82: 0 | AV82: 0 | AW82: 0 | AX82: 0 | AY82: 0 | AZ82: 0 | BA82: 0 | BB82: 0 | BC82: 0 | BD82: 0 | BE82: 0 | BF82: 0 | BG82: =SUM(BG76:BG79) -> 0
B84: Benefits Inputs
B86: Value of EUE
G89: $ Basis Reminder | H89: $ Reminder
B90: Value of Expected Unserved Energy (EUE) | G90: ='1_KMA'!$I$20 -> 2024-06-30 | H90: ='1_KMA'!$I$19 -> $millions | J90: 0 | K90: 0 | L90: 0.1047 | M90: 1.0108 | N90: 2.858 | O90: 0.864 | P90: 2.2109 | Q90: 3.9971 | R90: 6.539 | S90: 10.1145 | T90: 14.9844 | U90: 21.2257 | V90: 29.4786 | W90: 39.9487 | X90: 39.9487 | Y90: 39.9487 | Z90: 39.9487 | AA90: 39.9487 | AB90: 39.9487 | AC90: 39.9487 | AD90: 39.9487 | AE90: 39.9487 | AF90: 39.9487 | AG90: 39.9487 | AH90: 39.9487 | AI90: 39.9487 | AJ90: 39.9487 | AK90: 39.9487 | AL90: 39.9487 | AM90: 39.9487
G92: $ Basis Reminder | H92: $ Reminder
B93: Total | G93: ='1_KMA'!$I$20 -> 2024-06-30 | H93: ='1_KMA'!$I$19 -> $millions | J93: =J90 -> 0 | K93: =K90 -> 0 | L93: =L90 -> 0.1047 | M93: 1.0108 | N93: 2.858 | O93: 0.864 | P93: 2.2109 | Q93: 3.9971 | R93: 6.539 | S93: 10.1145 | T93: 14.9844 | U93: 21.2257 | V93: 29.4786 | W93: 39.9487 | X93: 39.9487 | Y93: 39.9487 | Z93: 39.9487 | AA93: 39.9487 | AB93: 39.9487 | AC93: 39.9487 | AD93: 39.9487 | AE93: 39.9487 | AF93: 39.9487 | AG93: 39.9487 | AH93: 39.9487 | AI93: 39.9487 | AJ93: 39.9487 | AK93: 39.9487 | AL93: 39.9487 | AM93: 39.9487 | AN93: 0 | AO93: 0 | AP93: 0 | AQ93: 0 | AR93: 0 | AS93: 0 | AT93: 0 | AU93: 0 | AV93: 0 | AW93: 0 | AX93: 0 | AY93: 0 | AZ93: 0 | BA93: 0 | BB93: 0 | BC93: 0 | BD93: 0 | BE93: 0 | BF93: 0 | BG93: =BG90 -> 0

Sheet 2.1_Op1
B1: General Inputs: Option 1 | I1: Regulatory Period Indicator | J1: ='1_KMA'!J30 -> 0 | K1: ='1_KMA'!K30 -> 0 | L1: ='1_KMA'!L30 -> 1 | M1: ='1_KMA'!M30 -> 1 | N1: ='1_KMA'!N30 -> 1 | O1: ='1_KMA'!O30 -> 1 | P1: ='1_KMA'!P30 -> 1 | Q1: ='1_KMA'!Q30 -> 0 | R1: ='1_KMA'!R30 -> 0 | S1: ='1_KMA'!S30 -> 0 | T1: ='1_KMA'!T30 -> 0 | U1: ='1_KMA'!U30 -> 0 | V1: ='1_KMA'!V30 -> 0 | W1: ='1_KMA'!W30 -> 0 | X1: ='1_KMA'!X30 -> 0 | Y1: ='1_KMA'!Y30 -> 0 | Z1: ='1_KMA'!Z30 -> 0 | AA1: ='1_KMA'!AA30 -> 0 | AB1: ='1_KMA'!AB30 -> 0 | AC1: ='1_KMA'!AC30 -> 0 | AD1: ='1_KMA'!AD30 -> 0 | AE1: ='1_KMA'!AE30 -> 0 | AF1: ='1_KMA'!AF30 -> 0 | AG1: ='1_KMA'!AG30 -> 0 | AH1: ='1_KMA'!AH30 -> 0 | AI1: ='1_KMA'!AI30 -> 0 | AJ1: ='1_KMA'!AJ30 -> 0 | AK1: ='1_KMA'!AK30 -> 0 | AL1: ='1_KMA'!AL30 -> 0 | AM1: ='1_KMA'!AM30 -> 0 | AN1: ='1_KMA'!AN30 -> 0 | AO1: ='1_KMA'!AO30 -> 0 | AP1: ='1_KMA'!AP30 -> 0 | AQ1: ='1_KMA'!AQ30 -> 0 | AR1: ='1_KMA'!AR30 -> 0 | AS1: ='1_KMA'!AS30 -> 0 | AT1: ='1_KMA'!AT30 -> 0 | AU1: ='1_KMA'!AU30 -> 0 | AV1: ='1_KMA'!AV30 -> 0 | AW1: ='1_KMA'!AW30 -> 0 | AX1: ='1_KMA'!AX30 -> 0 | AY1: ='1_KMA'!AY30 -> 0 | AZ1: ='1_KMA'!AZ30 -> 0 | BA1: ='1_KMA'!BA30 -> 0 | BB1: ='1_KMA'!BB30 -> 0 | BC1: ='1_KMA'!BC30 -> 0 | BD1: ='1_KMA'!BD30 -> 0 | BE1: ='1_KMA'!BE30 -> 0 | BF1: ='1_KMA'!BF30 -> 0 | BG1: ='1_KMA'!BG30 -> 0
B2: =Cover!$C$9 -> AusNet Services | I2: Period Start Date | J2: ='1_KMA'!J31 -> 2024-07-01 | K2: ='1_KMA'!K31 -> 2025-07-01 | L2: ='1_KMA'!L31 -> 2026-07-01 | M2: ='1_KMA'!M31 -> 2027-07-01 | N2: ='1_KMA'!N31 -> 2028-07-01 | O2: ='1_KMA'!O31 -> 2029-07-01 | P2: ='1_KMA'!P31 -> 2030-07-01 | Q2: ='1_KMA'!Q31 -> 2031-07-01 | R2: ='1_KMA'!R31 -> 2032-07-01 | S2: ='1_KMA'!S31 -> 2033-07-01 | T2: ='1_KMA'!T31 -> 2034-07-01 | U2: ='1_KMA'!U31 -> 2035-07-01 | V2: ='1_KMA'!V31 -> 2036-07-01 | W2: ='1_KMA'!W31 -> 2037-07-01 | X2: ='1_KMA'!X31 -> 2038-07-01 | Y2: ='1_KMA'!Y31 -> 2039-07-01 | Z2: ='1_KMA'!Z31 -> 2040-07-01 | AA2: ='1_KMA'!AA31 -> 2041-07-01 | AB2: ='1_KMA'!AB31 -> 2042-07-01 | AC2: ='1_KMA'!AC31 -> 2043-07-01 | AD2: ='1_KMA'!AD31 -> 2044-07-01 | AE2: ='1_KMA'!AE31 -> 2045-07-01 | AF2: ='1_KMA'!AF31 -> 2046-07-01 | AG2: ='1_KMA'!AG31 -> 2047-07-01 | AH2: ='1_KMA'!AH31 -> 2048-07-01 | AI2: ='1_KMA'!AI31 -> 2049-07-01 | AJ2: ='1_KMA'!AJ31 -> 2050-07-01 | AK2: ='1_KMA'!AK31 -> 2051-07-01 | AL2: ='1_KMA'!AL31 -> 2052-07-01 | AM2: ='1_KMA'!AM31 -> 2053-07-01 | AN2: ='1_KMA'!AN31 -> 2054-07-01 | AO2: ='1_KMA'!AO31 -> 2055-07-01 | AP2: ='1_KMA'!AP31 -> 2056-07-01 | AQ2: ='1_KMA'!AQ31 -> 2057-07-01 | AR2: ='1_KMA'!AR31 -> 2058-07-01 | AS2: ='1_KMA'!AS31 -> 2059-07-01 | AT2: ='1_KMA'!AT31 -> 2060-07-01 | AU2: ='1_KMA'!AU31 -> 2061-07-01 | AV2: ='1_KMA'!AV31 -> 2062-07-01 | AW2: ='1_KMA'!AW31 -> 2063-07-01 | AX2: ='1_KMA'!AX31 -> 2064-07-01 | AY2: ='1_KMA'!AY31 -> 2065-07-01 | AZ2: ='1_KMA'!AZ31 -> 2066-07-01 | BA2: ='1_KMA'!BA31 -> 2067-07-01 | BB2: ='1_KMA'!BB31 -> 2068-07-01 | BC2: ='1_KMA'!BC31 -> 2069-07-01 | BD2: ='1_KMA'!BD31 -> 2070-07-01 | BE2: ='1_KMA'!BE31 -> 2071-07-01 | BF2: ='1_KMA'!BF31 -> 2072-07-01 | BG2: ='1_KMA'!BG31 -> 2073-07-01
B3: =Cover!$C$10 -> Business Case Evaluation | I3: Period End Date | J3: ='1_KMA'!J32 -> 2025-06-30 | K3: ='1_KMA'!K32 -> 2026-06-30 | L3: ='1_KMA'!L32 -> 2027-06-30 | M3: ='1_KMA'!M32 -> 2028-06-30 | N3: ='1_KMA'!N32 -> 2029-06-30 | O3: ='1_KMA'!O32 -> 2030-06-30 | P3: ='1_KMA'!P32 -> 2031-06-30 | Q3: ='1_KMA'!Q32 -> 2032-06-30 | R3: ='1_KMA'!R32 -> 2033-06-30 | S3: ='1_KMA'!S32 -> 2034-06-30 | T3: ='1_KMA'!T32 -> 2035-06-30 | U3: ='1_KMA'!U32 -> 2036-06-30 | V3: ='1_KMA'!V32 -> 2037-06-30 | W3: ='1_KMA'!W32 -> 2038-06-30 | X3: ='1_KMA'!X32 -> 2039-06-30 | Y3: ='1_KMA'!Y32 -> 2040-06-30 | Z3: ='1_KMA'!Z32 -> 2041-06-30 | AA3: ='1_KMA'!AA32 -> 2042-06-30 | AB3: ='1_KMA'!AB32 -> 2043-06-30 | AC3: ='1_KMA'!AC32 -> 2044-06-30 | AD3: ='1_KMA'!AD32 -> 2045-06-30 | AE3: ='1_KMA'!AE32 -> 2046-06-30 | AF3: ='1_KMA'!AF32 -> 2047-06-30 | AG3: ='1_KMA'!AG32 -> 2048-06-30 | AH3: ='1_KMA'!AH32 -> 2049-06-30 | AI3: ='1_KMA'!AI32 -> 2050-06-30 | AJ3: ='1_KMA'!AJ32 -> 2051-06-30 | AK3: ='1_KMA'!AK32 -> 2052-06-30 | AL3: ='1_KMA'!AL32 -> 2053-06-30 | AM3: ='1_KMA'!AM32 -> 2054-06-30 | AN3: ='1_KMA'!AN32 -> 2055-06-30 | AO3: ='1_KMA'!AO32 -> 2056-06-30 | AP3: ='1_KMA'!AP32 -> 2057-06-30 | AQ3: ='1_KMA'!AQ32 -> 2058-06-30 | AR3: ='1_KMA'!AR32 -> 2059-06-30 | AS3: ='1_KMA'!AS32 -> 2060-06-30 | AT3: ='1_KMA'!AT32 -> 2061-06-30 | AU3: ='1_KMA'!AU32 -> 2062-06-30 | AV3: ='1_KMA'!AV32 -> 2063-06-30 | AW3: ='1_KMA'!AW32 -> 2064-06-30 | AX3: ='1_KMA'!AX32 -> 2065-06-30 | AY3: ='1_KMA'!AY32 -> 2066-06-30 | AZ3: ='1_KMA'!AZ32 -> 2067-06-30 | BA3: ='1_KMA'!BA32 -> 2068-06-30 | BB3: ='1_KMA'!BB32 -> 2069-06-30 | BC3: ='1_KMA'!BC32 -> 2070-06-30 | BD3: ='1_KMA'!BD32 -> 2071-06-30 | BE3: ='1_KMA'!BE32 -> 2072-06-30 | BF3: ='1_KMA'!BF32 -> 2073-06-30 | BG3: ='1_KMA'!BG32 -> 2074-06-30
B4: =Cover!$C$11 -> Eastern Cranbourne 66kV loop augmentation | I4: Project Year | J4: ='1_KMA'!J33 -> 1 | K4: ='1_KMA'!K33 -> 2 | L4: ='1_KMA'!L33 -> 3 | M4: ='1_KMA'!M33 -> 4 | N4: ='1_KMA'!N33 -> 5 | O4: ='1_KMA'!O33 -> 6 | P4: ='1_KMA'!P33 -> 7 | Q4: ='1_KMA'!Q33 -> 8 | R4: ='1_KMA'!R33 -> 9 | S4: ='1_KMA'!S33 -> 10 | T4: ='1_KMA'!T33 -> 11 | U4: ='1_KMA'!U33 -> 12 | V4: ='1_KMA'!V33 -> 13 | W4: ='1_KMA'!W33 -> 14 | X4: ='1_KMA'!X33 -> 15 | Y4: ='1_KMA'!Y33 -> 16 | Z4: ='1_KMA'!Z33 -> 17 | AA4: ='1_KMA'!AA33 -> 18 | AB4: ='1_KMA'!AB33 -> 19 | AC4: ='1_KMA'!AC33 -> 20 | AD4: ='1_KMA'!AD33 -> 21 | AE4: ='1_KMA'!AE33 -> 22 | AF4: ='1_KMA'!AF33 -> 23 | AG4: ='1_KMA'!AG33 -> 24 | AH4: ='1_KMA'!AH33 -> 25 | AI4: ='1_KMA'!AI33 -> 26 | AJ4: ='1_KMA'!AJ33 -> 27 | AK4: ='1_KMA'!AK33 -> 28 | AL4: ='1_KMA'!AL33 -> 29 | AM4: ='1_KMA'!AM33 -> 30 | AN4: ='1_KMA'!AN33 -> 31 | AO4: ='1_KMA'!AO33 -> 32 | AP4: ='1_KMA'!AP33 -> 33 | AQ4: ='1_KMA'!AQ33 -> 34 | AR4: ='1_KMA'!AR33 -> 35 | AS4: ='1_KMA'!AS33 -> 36 | AT4: ='1_KMA'!AT33 -> 37 | AU4: ='1_KMA'!AU33 -> 38 | AV4: ='1_KMA'!AV33 -> 39 | AW4: ='1_KMA'!AW33 -> 40 | AX4: ='1_KMA'!AX33 -> 41 | AY4: ='1_KMA'!AY33 -> 42 | AZ4: ='1_KMA'!AZ33 -> 43 | BA4: ='1_KMA'!BA33 -> 44 | BB4: ='1_KMA'!BB33 -> 45 | BC4: ='1_KMA'!BC33 -> 46 | BD4: ='1_KMA'!BD33 -> 47 | BE4: ='1_KMA'!BE33 -> 48 | BF4: ='1_KMA'!BF33 -> 49 | BG4: ='1_KMA'!BG33 -> 50
I5: Financial Year | J5: ='1_KMA'!J34 -> 2025 | K5: ='1_KMA'!K34 -> 2026 | L5: ='1_KMA'!L34 -> 2027 | M5: ='1_KMA'!M34 -> 2028 | N5: ='1_KMA'!N34 -> 2029 | O5: ='1_KMA'!O34 -> 2030 | P5: ='1_KMA'!P34 -> 2031 | Q5: ='1_KMA'!Q34 -> 2032 | R5: ='1_KMA'!R34 -> 2033 | S5: ='1_KMA'!S34 -> 2034 | T5: ='1_KMA'!T34 -> 2035 | U5: ='1_KMA'!U34 -> 2036 | V5: ='1_KMA'!V34 -> 2037 | W5: ='1_KMA'!W34 -> 2038 | X5: ='1_KMA'!X34 -> 2039 | Y5: ='1_KMA'!Y34 -> 2040 | Z5: ='1_KMA'!Z34 -> 2041 | AA5: ='1_KMA'!AA34 -> 2042 | AB5: ='1_KMA'!AB34 -> 2043 | AC5: ='1_KMA'!AC34 -> 2044 | AD5: ='1_KMA'!AD34 -> 2045 | AE5: ='1_KMA'!AE34 -> 2046 | AF5: ='1_KMA'!AF34 -> 2047 | AG5: ='1_KMA'!AG34 -> 2048 | AH5: ='1_KMA'!AH34 -> 2049 | AI5: ='1_KMA'!AI34 -> 2050 | AJ5: ='1_KMA'!AJ34 -> 2051 | AK5: ='1_KMA'!AK34 -> 2052 | AL5: ='1_KMA'!AL34 -> 2053 | AM5: ='1_KMA'!AM34 -> 2054 | AN5: ='1_KMA'!AN34 -> 2055 | AO5: ='1_KMA'!AO34 -> 2056 | AP5: ='1_KMA'!AP34 -> 2057 | AQ5: ='1_KMA'!AQ34 -> 2058 | AR5: ='1_KMA'!AR34 -> 2059 | AS5: ='1_KMA'!AS34 -> 2060 | AT5: ='1_KMA'!AT34 -> 2061 | AU5: ='1_KMA'!AU34 -> 2062 | AV5: ='1_KMA'!AV34 -> 2063 | AW5: ='1_KMA'!AW34 -> 2064 | AX5: ='1_KMA'!AX34 -> 2065 | AY5: ='1_KMA'!AY34 -> 2066 | AZ5: ='1_KMA'!AZ34 -> 2067 | BA5: ='1_KMA'!BA34 -> 2068 | BB5: ='1_KMA'!BB34 -> 2069 | BC5: ='1_KMA'!BC34 -> 2070 | BD5: ='1_KMA'!BD34 -> 2071 | BE5: ='1_KMA'!BE34 -> 2072 | BF5: ='1_KMA'!BF34 -> 2073 | BG5: ='1_KMA'!BG34 -> 2074
B7: Summary
B9: Costs | G9: $ Basis Reminder | H9: $ Reminder
B10: Capex | G10: ='1_KMA'!$I$20 -> 2024-06-30 | H10: ='1_KMA'!$I$19 -> $millions | J10: =J47 -> 0 | K10: =K47 -> 0 | L10: =L47 -> 11.26 | M10: 11.26 | N10: 11.26 | O10: 0 | P10: 0 | Q10: 0 | R10: 0 | S10: 0 | T10: 0 | U10: 0 | V10: 0 | W10: 0 | X10: 0 | Y10: 0 | Z10: 0 | AA10: 0 | AB10: 0 | AC10: 0 | AD10: 0 | AE10: 0 | AF10: 0 | AG10: 0 | AH10: 0 | AI10: 0 | AJ10: 0 | AK10: 0 | AL10: 0 | AM10: 0 | AN10: 0 | AO10: 0 | AP10: 0 | AQ10: 0 | AR10: 0 | AS10: 0 | AT10: 0 | AU10: 0 | AV10: 0 | AW10: 0 | AX10: 0 | AY10: 0 | AZ10: 0 | BA10: 0 | BB10: 0 | BC10: 0 | BD10: 0 | BE10: 0 | BF10: 0 | BG10: 0
B11: Capex offset | G11: ='1_KMA'!$I$20 -> 2024-06-30 | H11: ='1_KMA'!$I$19 -> $millions | J11: =-J59 -> 0 | K11: =-K59 -> 0 | L11: =-L59 -> 0 | M11: 0 | N11: 0 | O11: 0 | P11: 0 | Q11: 0 | R11: 0 | S11: 0 | T11: 0 | U11: 0 | V11: 0 | W11: 0 | X11: 0 | Y11: 0 | Z11: 0 | AA11: 0 | AB11: 0 | AC11: 0 | AD11: 0 | AE11: 0 | AF11: 0 | AG11: 0 | AH11: 0 | AI11: 0 | AJ11: 0 | AK11: 0 | AL11: 0 | AM11: 0 | AN11: 0 | AO11: 0 | AP11: 0 | AQ11: 0 | AR11: 0 | AS11: 0 | AT11: 0 | AU11: 0 | AV11: 0 | AW11: 0 | AX11: 0 | AY11: 0 | AZ11: 0 | BA11: 0 | BB11: 0 | BC11: 0 | BD11: 0 | BE11: 0 | BF11: 0 | BG11: 0
B12: Opex | G12: ='1_KMA'!$I$20 -> 2024-06-30 | H12: ='1_KMA'!$I$19 -> $millions | J12: =J82 -> 0 | K12: =K82 -> 0 | L12: 0 | M12: =M82 -> 0 | N12: 0.3378 | O12: 0.3378 | P12: 0.3378 | Q12: 0.3378 | R12: 0.3378 | S12: 0.3378 | T12: 0.3378 | U12: 0.3378 | V12: 0.3378 | W12: 0.3378 | X12: 0.3378 | Y12: 0.3378 | Z12: 0.3378 | AA12: 0.3378 | AB12: 0.3378 | AC12: 0.3378 | AD12: 0.3378 | AE12: 0.3378 | AF12: 0.3378 | AG12: 0.3378 | AH12: 0.3378 | AI12: 0.3378 | AJ12: 0.3378 | AK12: 0.3378 | AL12: 0.3378 | AM12: 0.3378 | AN12: 0 | AO12: 0 | AP12: 0 | AQ12: 0 | AR12: 0 | AS12: 0 | AT12: 0 | AU12: 0 | AV12: 0 | AW12: 0 | AX12: 0 | AY12: 0 | AZ12: 0 | BA12: 0 | BB12: 0 | BC12: 0 | BD12: 0 | BE12: 0 | BF12: 0 | BG12: 0
B13: Total | G13: ='1_KMA'!$I$20 -> 2024-06-30 | H13: ='1_KMA'!$I$19 -> $millions | J13: =SUM(J10:J12) -> 0 | K13: =SUM(K10:K12) -> 0 | L13: =SUM(L10:L12) -> 11.26 | M13: 11.26 | N13: 11.5978 | O13: 0.3378 | P13: 0.3378 | Q13: 0.3378 | R13: 0.3378 | S13: 0.3378 | T13: 0.3378 | U13: 0.3378 | V13: 0.3378 | W13: 0.3378 | X13: 0.3378 | Y13: 0.3378 | Z13: 0.3378 | AA13: 0.3378 | AB13: 0.3378 | AC13: 0.3378 | AD13: 0.3378 | AE13: 0.3378 | AF13: 0.3378 | AG13: 0.3378 | AH13: 0.3378 | AI13: 0.3378 | AJ13: 0.3378 | AK13: 0.3378 | AL13: 0.3378 | AM13: 0.3378 | AN13: 0 | AO13: 0 | AP13: 0 | AQ13: 0 | AR13: 0 | AS13: 0 | AT13: 0 | AU13: 0 | AV13: 0 | AW13: 0 | AX13: 0 | AY13: 0 | AZ13: 0 | BA13: 0 | BB13: 0 | BC13: 0 | BD13: 0 | BE13: 0 | BF13: 0 | BG13: 0
B15: Benefits | G15: $ Basis Reminder | H15: $ Reminder
B16: Value of EUE | G16: ='1_KMA'!$I$20 -> 2024-06-30 | H16: ='1_KMA'!$I$19 -> $millions | J16: =-J93 -> 0 | K16: =-K93 -> 0 | L16: -0.1047 | M16: -1.0108 | N16: -1.331872505e-09 | O16: -4.917072212e-09 | P16: -7.980731544e-09 | Q16: -1.208338565e-08 | R16: -1.809034751e-08 | S16: -2.696698368e-08 | T16: -3.959877951e-08 | U16: -0.1119790223 | V16: -0.4824377829 | W16: -1.29621327 | X16: -1.29621327 | Y16: -1.29621327 | Z16: -1.29621327 | AA16: -1.29621327 | AB16: -1.29621327 | AC16: -1.29621327 | AD16: -1.29621327 | AE16: -1.29621327 | AF16: -1.29621327 | AG16: -1.29621327 | AH16: -1.29621327 | AI16: -1.29621327 | AJ16: -1.29621327 | AK16: -1.29621327 | AL16: -1.29621327 | AM16: -1.29621327 | AN16: 0 | AO16: 0 | AP16: 0 | AQ16: 0 | AR16: 0 | AS16: 0 | AT16: 0 | AU16: 0 | AV16: 0 | AW16: 0 | AX16: 0 | AY16: 0 | AZ16: 0 | BA16: 0 | BB16: 0 | BC16: 0 | BD16: 0 | BE16: 0 | BF16: 0 | BG16: 0
B21: Total | G21: ='1_KMA'!$I$20 -> 2024-06-30 | H21: ='1_KMA'!$I$19 -> $millions | J21: =SUM(J16:J20) -> 0 | K21: =SUM(K16:K20) -> 0 | L21: -0.1047 | M21: -1.0108 | N21: -1.331872505e-09 | O21: -4.917072212e-09 | P21: -7.980731544e-09 | Q21: -1.208338565e-08 | R21: -1.809034751e-08 | S21: -2.696698368e-08 | T21: -3.959877951e-08 | U21: -0.1119790223 | V21: -0.4824377829 | W21: -1.29621327 | X21: -1.29621327 | Y21: -1.29621327 | Z21: -1.29621327 | AA21: -1.29621327 | AB21: -1.29621327 | AC21: -1.29621327 | AD21: -1.29621327 | AE21: -1.29621327 | AF21: -1.29621327 | AG21: -1.29621327 | AH21: -1.29621327 | AI21: -1.29621327 | AJ21: -1.29621327 | AK21: -1.29621327 | AL21: -1.29621327 | AM21: -1.29621327 | AN21: 0 | AO21: 0 | AP21: 0 | AQ21: 0 | AR21: 0 | AS21: 0 | AT21: 0 | AU21: 0 | AV21: 0 | AW21: 0 | AX21: 0 | AY21: 0 | AZ21: 0 | BA21: 0 | BB21: 0 | BC21: 0 | BD21: 0 | BE21: 0 | BF21: 0 | BG21: 0
B24: Cost Inputs
B26: Capex Build Up
B28: Name | H28: Unit | J28: Unit Rate
B29: New 66kV Line between CBTS and OFR | J29: 33.78
B30: OFR Enabling works
B31: CBTS enabling works
B34: Name | H34: Unit | J34: Quantities
B35: =B29 -> New 66kV Line between CBTS and OFR | L35: =1/3 -> 0.3333333333 | M35: =1/3 -> 0.3333333333 | N35: 0.3333333333
B36: =B30 -> OFR Enabling works
B37: =B31 -> CBTS enabling works
B40: Name | G40: $ Basis Reminder | H40: $ Reminder
B41: =B29 -> New 66kV Line between CBTS and OFR | G41: ='1_KMA'!$I$20 -> 2024-06-30 | H41: ='1_KMA'!$I$19 -> $millions | J41: =$J$29*J35 -> 0 | K41: =$J$29*K35 -> 0 | L41: =$J$29*L35 -> 11.26 | M41: 11.26 | N41: 11.26 | O41: 0 | P41: 0 | Q41: 0 | R41: 0 | S41: 0 | T41: 0 | U41: 0 | V41: 0 | W41: 0 | X41: 0 | Y41: 0 | Z41: 0 | AA41: 0 | AB41: 0 | AC41: 0 | AD41: 0 | AE41: 0 | AF41: 0 | AG41: 0 | AH41: 0 | AI41: 0 | AJ41: 0 | AK41: 0 | AL41: 0 | AM41: 0 | AN41: 0 | AO41: 0 | AP41: 0 | AQ41: 0 | AR41: 0 | AS41: 0 | AT41: 0 | AU41: 0 | AV41: 0 | AW41: 0 | AX41: 0 | AY41: 0 | AZ41: 0 | BA41: 0 | BB41: 0 | BC41: 0 | BD41: 0 | BE41: 0 | BF41: 0 | BG41: 0
B42: =B30 -> OFR Enabling works | G42: ='1_KMA'!$I$20 -> 2024-06-30 | H42: ='1_KMA'!$I$19 -> $millions | J42: =$J$30*J36 -> 0 | K42: =$J$30*K36 -> 0 | L42: =$J$30*L36 -> 0 | M42: =$J$30*M36 -> 0 | N42: =$J$30*N36 -> 0 | O42: 0 | P42: 0 | Q42: 0 | R42: 0 | S42: 0 | T42: 0 | U42: 0 | V42: 0 | W42: 0 | X42: 0 | Y42: 0 | Z42: 0 | AA42: 0 | AB42: 0 | AC42: 0 | AD42: 0 | AE42: 0 | AF42: 0 | AG42: 0 | AH42: 0 | AI42: 0 | AJ42: 0 | AK42: 0 | AL42: 0 | AM42: 0 | AN42: 0 | AO42: 0 | AP42: 0 | AQ42: 0 | AR42: 0 | AS42: 0 | AT42: 0 | AU42: 0 | AV42: 0 | AW42: 0 | AX42: 0 | AY42: 0 | AZ42: 0 | BA42: 0 | BB42: 0 | BC42: 0 | BD42: 0 | BE42: 0 | BF42: 0 | BG42: 0
B43: =B37 -> CBTS enabling works | G43: ='1_KMA'!$I$20 -> 2024-06-30 | H43: ='1_KMA'!$I$19 -> $millions | J43: =$J$31*J37 -> 0 | K43: =$J$31*K37 -> 0 | L43: =$J$31*L37 -> 0 | M43: 0 | N43: =$J$31*N37 -> 0 | O43: 0 | P43: 0 | Q43: 0 | R43: 0 | S43: 0 | T43: 0 | U43: 0 | V43: 0 | W43: 0 | X43: 0 | Y43: 0 | Z43: 0 | AA43: 0 | AB43: 0 | AC43: 0 | AD43: 0 | AE43: 0 | AF43: 0 | AG43: 0 | AH43: 0 | AI43: 0 | AJ43: 0 | AK43: 0 | AL43: 0 | AM43: 0 | AN43: 0 | AO43: 0 | AP43: 0 | AQ43: 0 | AR43: 0 | AS43: 0 | AT43: 0 | AU43: 0 | AV43: 0 | AW43: 0 | AX43: 0 | AY43: 0 | AZ43: 0 | BA43: 0 | BB43: 0 | BC43: 0 | BD43: 0 | BE43: 0 | BF43: 0 | BG43: 0
G44: ='1_KMA'!$I$20 -> 2024-06-30 | H44: ='1_KMA'!$I$19 -> $millions | J44: =$J$32*J38 -> 0 | K44: =$J$32*K38 -> 0 | L44: =$J$32*L38 -> 0 | M44: 0 | N44: 0 | O44: =$J$32*O38 -> 0 | P44: 0 | Q44: 0 | R44: 0 | S44: 0 | T44: 0 | U44: 0 | V44: 0 | W44: 0 | X44: 0 | Y44: 0 | Z44: 0 | AA44: 0 | AB44: 0 | AC44: 0 | AD44: 0 | AE44: 0 | AF44: 0 | AG44: 0 | AH44: 0 | AI44: 0 | AJ44: 0 | AK44: 0 | AL44: 0 | AM44: 0 | AN44: 0 | AO44: 0 | AP44: 0 | AQ44: 0 | AR44: 0 | AS44: 0 | AT44: 0 | AU44: 0 | AV44: 0 | AW44: 0 | AX44: 0 | AY44: 0 | AZ44: 0 | BA44: 0 | BB44: 0 | BC44: 0 | BD44: 0 | BE44: 0 | BF44: 0 | BG44: 0
G46: $ Basis Reminder | H46: $ Reminder
B47: Total | G47: ='1_KMA'!$I$20 -> 2024-06-30 | H47: ='1_KMA'!$I$19 -> $millions | J47: =SUM(J41:J44) -> 0 | K47: =SUM(K41:K44) -> 0 | L47: 11.26 | M47: 11.26 | N47: 11.26 | O47: 0 | P47: 0 | Q47: 0 | R47: 0 | S47: 0 | T47: 0 | U47: 0 | V47: 0 | W47: 0 | X47: 0 | Y47: 0 | Z47: 0 | AA47: 0 | AB47: 0 | AC47: 0 | AD47: 0 | AE47: 0 | AF47: 0 | AG47: 0 | AH47: 0 | AI47: 0 | AJ47: 0 | AK47: 0 | AL47: 0 | AM47: 0 | AN47: 0 | AO47: 0 | AP47: 0 | AQ47: 0 | AR47: 0 | AS47: 0 | AT47: 0 | AU47: 0 | AV47: 0 | AW47: 0 | AX47: 0 | AY47: 0 | AZ47: 0 | BA47: 0 | BB47: 0 | BC47: 0 | BD47: 0 | BE47: 0 | BF47: 0 | BG47: 0
B49: Capex Offset
B52: Name | G52: $ Basis Reminder | H52: $ Reminder
G53: ='1_KMA'!$I$20 -> 2024-06-30 | H53: ='1_KMA'!$I$19 -> $millions
G54: ='1_KMA'!$I$20 -> 2024-06-30 | H54: ='1_KMA'!$I$19 -> $millions
G55: ='1_KMA'!$I$20 -> 2024-06-30 | H55: ='1_KMA'!$I$19 -> $millions
G56: ='1_KMA'!$I$20 -> 2024-06-30 | H56: ='1_KMA'!$I$19 -> $millions
G58: $ Basis Reminder | H58: $ Reminder
B59: Total | G59: ='1_KMA'!$I$20 -> 2024-06-30 | H59: ='1_KMA'!$I$19 -> $millions | J59: =SUM(J53:J56) -> 0 | K59: =SUM(K53:K56) -> 0 | L59: =SUM(L53:L56) -> 0 | M59: 0 | N59: 0 | O59: 0 | P59: 0 | Q59: 0 | R59: 0 | S59: 0 | T59: 0 | U59: 0 | V59: 0 | W59: 0 | X59: 0 | Y59: 0 | Z59: 0 | AA59: 0 | AB59: 0 | AC59: 0 | AD59: 0 | AE59: 0 | AF59: 0 | AG59: 0 | AH59: 0 | AI59: 0 | AJ59: 0 | AK59: 0 | AL59: 0 | AM59: 0 | AN59: 0 | AO59: 0 | AP59: 0 | AQ59: 0 | AR59: 0 | AS59: 0 | AT59: 0 | AU59: 0 | AV59: 0 | AW59: 0 | AX59: 0 | AY59: 0 | AZ59: 0 | BA59: 0 | BB59: 0 | BC59: 0 | BD59: 0 | BE59: 0 | BF59: 0 | BG59: 0
B61: Opex Build Up
B63: Name | H63: Unit | J63: Value
B64: Line inspection | H64: 1% of project cost | J64: =SUM(J29:J32)*0.01 -> 0.3378
B69: Name | H69: Unit | J69: Quantities
B70: =B64 -> Line inspection | N70: 1 | O70: =N70 -> 1 | P70: =O70 -> 1 | Q70: 1 | R70: 1 | S70: 1 | T70: 1 | U70: 1 | V70: 1 | W70: 1 | X70: 1 | Y70: 1 | Z70: 1 | AA70: 1 | AB70: 1 | AC70: 1 | AD70: 1 | AE70: 1 | AF70: 1 | AG70: 1 | AH70: 1 | AI70: 1 | AJ70: 1 | AK70: 1 | AL70: 1 | AM70: 1
B75: Name | G75: $ Basis Reminder | H75: $ Reminder
B76: =B64 -> Line inspection | G76: ='1_KMA'!$I$20 -> 2024-06-30 | H76: ='1_KMA'!$I$19 -> $millions | J76: =$J$64*J70 -> 0 | K76: =$J$64*K70 -> 0 | L76: =$J$64*L70 -> 0 | M76: =$J$64*M70 -> 0 | N76: 0.3378 | O76: 0.3378 | P76: =$J$64*P70 -> 0.3378 | Q76: 0.3378 | R76: 0.3378 | S76: 0.3378 | T76: 0.3378 | U76: 0.3378 | V76: 0.3378 | W76: 0.3378 | X76: 0.3378 | Y76: 0.3378 | Z76: 0.3378 | AA76: 0.3378 | AB76: 0.3378 | AC76: 0.3378 | AD76: 0.3378 | AE76: 0.3378 | AF76: 0.3378 | AG76: 0.3378 | AH76: 0.3378 | AI76: 0.3378 | AJ76: 0.3378 | AK76: 0.3378 | AL76: 0.3378 | AM76: 0.3378 | AN76: 0 | AO76: 0 | AP76: 0 | AQ76: 0 | AR76: 0 | AS76: 0 | AT76: 0 | AU76: 0 | AV76: 0 | AW76: 0 | AX76: 0 | AY76: 0 | AZ76: 0 | BA76: 0 | BB76: 0 | BC76: 0 | BD76: 0 | BE76: 0 | BF76: 0 | BG76: 0
G77: ='1_KMA'!$I$20 -> 2024-06-30 | H77: ='1_KMA'!$I$19 -> $millions | J77: =$J$65*J71 -> 0 | K77: =$J$65*K71 -> 0 | L77: =$J$65*L71 -> 0 | M77: =$J$65*M71 -> 0 | N77: 0 | O77: 0 | P77: =$J$65*P71 -> 0 | Q77: 0 | R77: 0 | S77: 0 | T77: 0 | U77: 0 | V77: 0 | W77: 0 | X77: 0 | Y77: 0 | Z77: 0 | AA77: 0 | AB77: 0 | AC77: 0 | AD77: 0 | AE77: 0 | AF77: 0 | AG77: 0 | AH77: 0 | AI77: 0 | AJ77: 0 | AK77: 0 | AL77: 0 | AM77: 0 | AN77: 0 | AO77: 0 | AP77: 0 | AQ77: 0 | AR77: 0 | AS77: 0 | AT77: 0 | AU77: 0 | AV77: 0 | AW77: 0 | AX77: 0 | AY77: 0 | AZ77: 0 | BA77: 0 | BB77: 0 | BC77: 0 | BD77: 0 | BE77: 0 | BF77: 0 | BG77: 0
G78: ='1_KMA'!$I$20 -> 2024-06-30 | H78: ='1_KMA'!$I$19 -> $millions | J78: =$J$66*J72 -> 0 | K78: =$J$66*K72 -> 0 | L78: =$J$66*L72 -> 0 | M78: 0 | N78: =$J$66*N72 -> 0 | O78: 0 | P78: 0 | Q78: 0 | R78: 0 | S78: 0 | T78: 0 | U78: 0 | V78: 0 | W78: 0 | X78: 0 | Y78: 0 | Z78: 0 | AA78: 0 | AB78: 0 | AC78: 0 | AD78: 0 | AE78: 0 | AF78: 0 | AG78: 0 | AH78: 0 | AI78: 0 | AJ78: 0 | AK78: 0 | AL78: 0 | AM78: 0 | AN78: 0 | AO78: 0 | AP78: 0 | AQ78: 0 | AR78: 0 | AS78: 0 | AT78: 0 | AU78: 0 | AV78: 0 | AW78: 0 | AX78: 0 | AY78: 0 | AZ78: 0 | BA78: 0 | BB78: 0 | BC78: 0 | BD78: 0 | BE78: 0 | BF78: 0 | BG78: 0
G79: ='1_KMA'!$I$20 -> 2024-06-30 | H79: ='1_KMA'!$I$19 -> $millions | J79: =$J$67*J73 -> 0 | K79: =$J$67*K73 -> 0 | L79: =$J$67*L73 -> 0 | M79: 0 | N79: 0 | O79: =$J$67*O73 -> 0 | P79: 0 | Q79: 0 | R79: 0 | S79: 0 | T79: 0 | U79: 0 | V79: 0 | W79: 0 | X79: 0 | Y79: 0 | Z79: 0 | AA79: 0 | AB79: 0 | AC79: 0 | AD79: 0 | AE79: 0 | AF79: 0 | AG79: 0 | AH79: 0 | AI79: 0 | AJ79: 0 | AK79: 0 | AL79: 0 | AM79: 0 | AN79: 0 | AO79: 0 | AP79: 0 | AQ79: 0 | AR79: 0 | AS79: 0 | AT79: 0 | AU79: 0 | AV79: 0 | AW79: 0 | AX79: 0 | AY79: 0 | AZ79: 0 | BA79: 0 | BB79: 0 | BC79: 0 | BD79: 0 | BE79: 0 | BF79: 0 | BG79: 0
G81: $ Basis Reminder | H81: $ Reminder
B82: Total | G82: ='1_KMA'!$I$20 -> 2024-06-30 | H82: ='1_KMA'!$I$19 -> $millions | J82: =SUM(J76:J79) -> 0 | K82: =SUM(K76:K79) -> 0 | L82: =SUM(L76:L79) -> 0 | M82: 0 | N82: 0.3378 | O82: 0.3378 | P82: 0.3378 | Q82: 0.3378 | R82: 0.3378 | S82: 0.3378 | T82: 0.3378 | U82: 0.3378 | V82: 0.3378 | W82: 0.3378 | X82: 0.3378 | Y82: 0.3378 | Z82: 0.3378 | AA82: 0.3378 | AB82: 0.3378 | AC82: 0.3378 | AD82: 0.3378 | AE82: 0.3378 | AF82: 0.3378 | AG82: 0.3378 | AH82: 0.3378 | AI82: 0.3378 | AJ82: 0.3378 | AK82: 0.3378 | AL82: 0.3378 | AM82: 0.3378 | AN82: 0 | AO82: 0 | AP82: 0 | AQ82: 0 | AR82: 0 | AS82: 0 | AT82: 0 | AU82: 0 | AV82: 0 | AW82: 0 | AX82: 0 | AY82: 0 | AZ82: 0 | BA82: 0 | BB82: 0 | BC82: 0 | BD82: 0 | BE82: 0 | BF82: 0 | BG82: =SUM(BG76:BG79) -> 0
B84: Benefits Inputs
B86: Value of EUE
G89: $ Basis Reminder | H89: $ Reminder
B90: Value of Expected Unserved Energy (EUE) | G90: ='1_KMA'!$I$20 -> 2024-06-30 | H90: ='1_KMA'!$I$19 -> $millions | J90: 0 | K90: 0 | L90: 0.1047 | M90: 1.0108 | N90: 1.331872505e-09 | O90: 4.917072212e-09 | P90: 7.980731544e-09 | Q90: 1.208338565e-08 | R90: 1.809034751e-08 | S90: 2.696698368e-08 | T90: 3.959877951e-08 | U90: 0.1119790223 | V90: 0.4824377829 | W90: 1.29621327 | X90: 1.29621327 | Y90: 1.29621327 | Z90: 1.29621327 | AA90: 1.29621327 | AB90: 1.29621327 | AC90: 1.29621327 | AD90: 1.29621327 | AE90: 1.29621327 | AF90: 1.29621327 | AG90: 1.29621327 | AH90: 1.29621327 | AI90: 1.29621327 | AJ90: 1.29621327 | AK90: 1.29621327 | AL90: 1.29621327 | AM90: 1.29621327
G92: $ Basis Reminder | H92: $ Reminder
B93: Total | G93: ='1_KMA'!$I$20 -> 2024-06-30 | H93: ='1_KMA'!$I$19 -> $millions | J93: =J90 -> 0 | K93: =K90 -> 0 | L93: 0.1047 | M93: 1.0108 | N93: 1.331872505e-09 | O93: 4.917072212e-09 | P93: 7.980731544e-09 | Q93: 1.208338565e-08 | R93: 1.809034751e-08 | S93: 2.696698368e-08 | T93: 3.959877951e-08 | U93: 0.1119790223 | V93: 0.4824377829 | W93: 1.29621327 | X93: 1.29621327 | Y93: 1.29621327 | Z93: 1.29621327 | AA93: 1.29621327 | AB93: 1.29621327 | AC93: 1.29621327 | AD93: 1.29621327 | AE93: 1.29621327 | AF93: 1.29621327 | AG93: 1.29621327 | AH93: 1.29621327 | AI93: 1.29621327 | AJ93: 1.29621327 | AK93: 1.29621327 | AL93: 1.29621327 | AM93: 1.29621327 | AN93: 0 | AO93: 0 | AP93: 0 | AQ93: 0 | AR93: 0 | AS93: 0 | AT93: 0 | AU93: 0 | AV93: 0 | AW93: 0 | AX93: 0 | AY93: 0 | AZ93: 0 | BA93: 0 | BB93: 0 | BC93: 0 | BD93: 0 | BE93: 0 | BF93: 0 | BG93: 0

Sheet 2.1_Op2
B1: General Inputs: Option 2 | I1: Regulatory Period Indicator | J1: ='1_KMA'!J30 -> 0 | K1: ='1_KMA'!K30 -> 0 | L1: ='1_KMA'!L30 -> 1 | M1: ='1_KMA'!M30 -> 1 | N1: ='1_KMA'!N30 -> 1 | O1: ='1_KMA'!O30 -> 1 | P1: ='1_KMA'!P30 -> 1 | Q1: ='1_KMA'!Q30 -> 0 | R1: ='1_KMA'!R30 -> 0 | S1: ='1_KMA'!S30 -> 0 | T1: ='1_KMA'!T30 -> 0 | U1: ='1_KMA'!U30 -> 0 | V1: ='1_KMA'!V30 -> 0 | W1: ='1_KMA'!W30 -> 0 | X1: ='1_KMA'!X30 -> 0 | Y1: ='1_KMA'!Y30 -> 0 | Z1: ='1_KMA'!Z30 -> 0 | AA1: ='1_KMA'!AA30 -> 0 | AB1: ='1_KMA'!AB30 -> 0 | AC1: ='1_KMA'!AC30 -> 0 | AD1: ='1_KMA'!AD30 -> 0 | AE1: ='1_KMA'!AE30 -> 0 | AF1: ='1_KMA'!AF30 -> 0 | AG1: ='1_KMA'!AG30 -> 0 | AH1: ='1_KMA'!AH30 -> 0 | AI1: ='1_KMA'!AI30 -> 0 | AJ1: ='1_KMA'!AJ30 -> 0 | AK1: ='1_KMA'!AK30 -> 0 | AL1: ='1_KMA'!AL30 -> 0 | AM1: ='1_KMA'!AM30 -> 0 | AN1: ='1_KMA'!AN30 -> 0 | AO1: ='1_KMA'!AO30 -> 0 | AP1: ='1_KMA'!AP30 -> 0 | AQ1: ='1_KMA'!AQ30 -> 0 | AR1: ='1_KMA'!AR30 -> 0 | AS1: ='1_KMA'!AS30 -> 0 | AT1: ='1_KMA'!AT30 -> 0 | AU1: ='1_KMA'!AU30 -> 0 | AV1: ='1_KMA'!AV30 -> 0 | AW1: ='1_KMA'!AW30 -> 0 | AX1: ='1_KMA'!AX30 -> 0 | AY1: ='1_KMA'!AY30 -> 0 | AZ1: ='1_KMA'!AZ30 -> 0 | BA1: ='1_KMA'!BA30 -> 0 | BB1: ='1_KMA'!BB30 -> 0 | BC1: ='1_KMA'!BC30 -> 0 | BD1: ='1_KMA'!BD30 -> 0 | BE1: ='1_KMA'!BE30 -> 0 | BF1: ='1_KMA'!BF30 -> 0 | BG1: ='1_KMA'!BG30 -> 0
B2: =Cover!$C$9 -> AusNet Services | I2: Period Start Date | J2: ='1_KMA'!J31 -> 2024-07-01 | K2: ='1_KMA'!K31 -> 2025-07-01 | L2: ='1_KMA'!L31 -> 2026-07-01 | M2: ='1_KMA'!M31 -> 2027-07-01 | N2: ='1_KMA'!N31 -> 2028-07-01 | O2: ='1_KMA'!O31 -> 2029-07-01 | P2: ='1_KMA'!P31 -> 2030-07-01 | Q2: ='1_KMA'!Q31 -> 2031-07-01 | R2: ='1_KMA'!R31 -> 2032-07-01 | S2: ='1_KMA'!S31 -> 2033-07-01 | T2: ='1_KMA'!T31 -> 2034-07-01 | U2: ='1_KMA'!U31 -> 2035-07-01 | V2: ='1_KMA'!V31 -> 2036-07-01 | W2: ='1_KMA'!W31 -> 2037-07-01 | X2: ='1_KMA'!X31 -> 2038-07-01 | Y2: ='1_KMA'!Y31 -> 2039-07-01 | Z2: ='1_KMA'!Z31 -> 2040-07-01 | AA2: ='1_KMA'!AA31 -> 2041-07-01 | AB2: ='1_KMA'!AB31 -> 2042-07-01 | AC2: ='1_KMA'!AC31 -> 2043-07-01 | AD2: ='1_KMA'!AD31 -> 2044-07-01 | AE2: ='1_KMA'!AE31 -> 2045-07-01 | AF2: ='1_KMA'!AF31 -> 2046-07-01 | AG2: ='1_KMA'!AG31 -> 2047-07-01 | AH2: ='1_KMA'!AH31 -> 2048-07-01 | AI2: ='1_KMA'!AI31 -> 2049-07-01 | AJ2: ='1_KMA'!AJ31 -> 2050-07-01 | AK2: ='1_KMA'!AK31 -> 2051-07-01 | AL2: ='1_KMA'!AL31 -> 2052-07-01 | AM2: ='1_KMA'!AM31 -> 2053-07-01 | AN2: ='1_KMA'!AN31 -> 2054-07-01 | AO2: ='1_KMA'!AO31 -> 2055-07-01 | AP2: ='1_KMA'!AP31 -> 2056-07-01 | AQ2: ='1_KMA'!AQ31 -> 2057-07-01 | AR2: ='1_KMA'!AR31 -> 2058-07-01 | AS2: ='1_KMA'!AS31 -> 2059-07-01 | AT2: ='1_KMA'!AT31 -> 2060-07-01 | AU2: ='1_KMA'!AU31 -> 2061-07-01 | AV2: ='1_KMA'!AV31 -> 2062-07-01 | AW2: ='1_KMA'!AW31 -> 2063-07-01 | AX2: ='1_KMA'!AX31 -> 2064-07-01 | AY2: ='1_KMA'!AY31 -> 2065-07-01 | AZ2: ='1_KMA'!AZ31 -> 2066-07-01 | BA2: ='1_KMA'!BA31 -> 2067-07-01 | BB2: ='1_KMA'!BB31 -> 2068-07-01 | BC2: ='1_KMA'!BC31 -> 2069-07-01 | BD2: ='1_KMA'!BD31 -> 2070-07-01 | BE2: ='1_KMA'!BE31 -> 2071-07-01 | BF2: ='1_KMA'!BF31 -> 2072-07-01 | BG2: ='1_KMA'!BG31 -> 2073-07-01
B3: =Cover!$C$10 -> Business Case Evaluation | I3: Period End Date | J3: ='1_KMA'!J32 -> 2025-06-30 | K3: ='1_KMA'!K32 -> 2026-06-30 | L3: ='1_KMA'!L32 -> 2027-06-30 | M3: ='1_KMA'!M32 -> 2028-06-30 | N3: ='1_KMA'!N32 -> 2029-06-30 | O3: ='1_KMA'!O32 -> 2030-06-30 | P3: ='1_KMA'!P32 -> 2031-06-30 | Q3: ='1_KMA'!Q32 -> 2032-06-30 | R3: ='1_KMA'!R32 -> 2033-06-30 | S3: ='1_KMA'!S32 -> 2034-06-30 | T3: ='1_KMA'!T32 -> 2035-06-30 | U3: ='1_KMA'!U32 -> 2036-06-30 | V3: ='1_KMA'!V32 -> 2037-06-30 | W3: ='1_KMA'!W32 -> 2038-06-30 | X3: ='1_KMA'!X32 -> 2039-06-30 | Y3: ='1_KMA'!Y32 -> 2040-06-30 | Z3: ='1_KMA'!Z32 -> 2041-06-30 | AA3: ='1_KMA'!AA32 -> 2042-06-30 | AB3: ='1_KMA'!AB32 -> 2043-06-30 | AC3: ='1_KMA'!AC32 -> 2044-06-30 | AD3: ='1_KMA'!AD32 -> 2045-06-30 | AE3: ='1_KMA'!AE32 -> 2046-06-30 | AF3: ='1_KMA'!AF32 -> 2047-06-30 | AG3: ='1_KMA'!AG32 -> 2048-06-30 | AH3: ='1_KMA'!AH32 -> 2049-06-30 | AI3: ='1_KMA'!AI32 -> 2050-06-30 | AJ3: ='1_KMA'!AJ32 -> 2051-06-30 | AK3: ='1_KMA'!AK32 -> 2052-06-30 | AL3: ='1_KMA'!AL32 -> 2053-06-30 | AM3: ='1_KMA'!AM32 -> 2054-06-30 | AN3: ='1_KMA'!AN32 -> 2055-06-30 | AO3: ='1_KMA'!AO32 -> 2056-06-30 | AP3: ='1_KMA'!AP32 -> 2057-06-30 | AQ3: ='1_KMA'!AQ32 -> 2058-06-30 | AR3: ='1_KMA'!AR32 -> 2059-06-30 | AS3: ='1_KMA'!AS32 -> 2060-06-30 | AT3: ='1_KMA'!AT32 -> 2061-06-30 | AU3: ='1_KMA'!AU32 -> 2062-06-30 | AV3: ='1_KMA'!AV32 -> 2063-06-30 | AW3: ='1_KMA'!AW32 -> 2064-06-30 | AX3: ='1_KMA'!AX32 -> 2065-06-30 | AY3: ='1_KMA'!AY32 -> 2066-06-30 | AZ3: ='1_KMA'!AZ32 -> 2067-06-30 | BA3: ='1_KMA'!BA32 -> 2068-06-30 | BB3: ='1_KMA'!BB32 -> 2069-06-30 | BC3: ='1_KMA'!BC32 -> 2070-06-30 | BD3: ='1_KMA'!BD32 -> 2071-06-30 | BE3: ='1_KMA'!BE32 -> 2072-06-30 | BF3: ='1_KMA'!BF32 -> 2073-06-30 | BG3: ='1_KMA'!BG32 -> 2074-06-30
B4: =Cover!$C$11 -> Eastern Cranbourne 66kV loop augmentation | I4: Project Year | J4: ='1_KMA'!J33 -> 1 | K4: ='1_KMA'!K33 -> 2 | L4: ='1_KMA'!L33 -> 3 | M4: ='1_KMA'!M33 -> 4 | N4: ='1_KMA'!N33 -> 5 | O4: ='1_KMA'!O33 -> 6 | P4: ='1_KMA'!P33 -> 7 | Q4: ='1_KMA'!Q33 -> 8 | R4: ='1_KMA'!R33 -> 9 | S4: ='1_KMA'!S33 -> 10 | T4: ='1_KMA'!T33 -> 11 | U4: ='1_KMA'!U33 -> 12 | V4: ='1_KMA'!V33 -> 13 | W4: ='1_KMA'!W33 -> 14 | X4: ='1_KMA'!X33 -> 15 | Y4: ='1_KMA'!Y33 -> 16 | Z4: ='1_KMA'!Z33 -> 17 | AA4: ='1_KMA'!AA33 -> 18 | AB4: ='1_KMA'!AB33 -> 19 | AC4: ='1_KMA'!AC33 -> 20 | AD4: ='1_KMA'!AD33 -> 21 | AE4: ='1_KMA'!AE33 -> 22 | AF4: ='1_KMA'!AF33 -> 23 | AG4: ='1_KMA'!AG33 -> 24 | AH4: ='1_KMA'!AH33 -> 25 | AI4: ='1_KMA'!AI33 -> 26 | AJ4: ='1_KMA'!AJ33 -> 27 | AK4: ='1_KMA'!AK33 -> 28 | AL4: ='1_KMA'!AL33 -> 29 | AM4: ='1_KMA'!AM33 -> 30 | AN4: ='1_KMA'!AN33 -> 31 | AO4: ='1_KMA'!AO33 -> 32 | AP4: ='1_KMA'!AP33 -> 33 | AQ4: ='1_KMA'!AQ33 -> 34 | AR4: ='1_KMA'!AR33 -> 35 | AS4: ='1_KMA'!AS33 -> 36 | AT4: ='1_KMA'!AT33 -> 37 | AU4: ='1_KMA'!AU33 -> 38 | AV4: ='1_KMA'!AV33 -> 39 | AW4: ='1_KMA'!AW33 -> 40 | AX4: ='1_KMA'!AX33 -> 41 | AY4: ='1_KMA'!AY33 -> 42 | AZ4: ='1_KMA'!AZ33 -> 43 | BA4: ='1_KMA'!BA33 -> 44 | BB4: ='1_KMA'!BB33 -> 45 | BC4: ='1_KMA'!BC33 -> 46 | BD4: ='1_KMA'!BD33 -> 47 | BE4: ='1_KMA'!BE33 -> 48 | BF4: ='1_KMA'!BF33 -> 49 | BG4: ='1_KMA'!BG33 -> 50
I5: Financial Year | J5: ='1_KMA'!J34 -> 2025 | K5: ='1_KMA'!K34 -> 2026 | L5: ='1_KMA'!L34 -> 2027 | M5: ='1_KMA'!M34 -> 2028 | N5: ='1_KMA'!N34 -> 2029 | O5: ='1_KMA'!O34 -> 2030 | P5: ='1_KMA'!P34 -> 2031 | Q5: ='1_KMA'!Q34 -> 2032 | R5: ='1_KMA'!R34 -> 2033 | S5: ='1_KMA'!S34 -> 2034 | T5: ='1_KMA'!T34 -> 2035 | U5: ='1_KMA'!U34 -> 2036 | V5: ='1_KMA'!V34 -> 2037 | W5: ='1_KMA'!W34 -> 2038 | X5: ='1_KMA'!X34 -> 2039 | Y5: ='1_KMA'!Y34 -> 2040 | Z5: ='1_KMA'!Z34 -> 2041 | AA5: ='1_KMA'!AA34 -> 2042 | AB5: ='1_KMA'!AB34 -> 2043 | AC5: ='1_KMA'!AC34 -> 2044 | AD5: ='1_KMA'!AD34 -> 2045 | AE5: ='1_KMA'!AE34 -> 2046 | AF5: ='1_KMA'!AF34 -> 2047 | AG5: ='1_KMA'!AG34 -> 2048 | AH5: ='1_KMA'!AH34 -> 2049 | AI5: ='1_KMA'!AI34 -> 2050 | AJ5: ='1_KMA'!AJ34 -> 2051 | AK5: ='1_KMA'!AK34 -> 2052 | AL5: ='1_KMA'!AL34 -> 2053 | AM5: ='1_KMA'!AM34 -> 2054 | AN5: ='1_KMA'!AN34 -> 2055 | AO5: ='1_KMA'!AO34 -> 2056 | AP5: ='1_KMA'!AP34 -> 2057 | AQ5: ='1_KMA'!AQ34 -> 2058 | AR5: ='1_KMA'!AR34 -> 2059 | AS5: ='1_KMA'!AS34 -> 2060 | AT5: ='1_KMA'!AT34 -> 2061 | AU5: ='1_KMA'!AU34 -> 2062 | AV5: ='1_KMA'!AV34 -> 2063 | AW5: ='1_KMA'!AW34 -> 2064 | AX5: ='1_KMA'!AX34 -> 2065 | AY5: ='1_KMA'!AY34 -> 2066 | AZ5: ='1_KMA'!AZ34 -> 2067 | BA5: ='1_KMA'!BA34 -> 2068 | BB5: ='1_KMA'!BB34 -> 2069 | BC5: ='1_KMA'!BC34 -> 2070 | BD5: ='1_KMA'!BD34 -> 2071 | BE5: ='1_KMA'!BE34 -> 2072 | BF5: ='1_KMA'!BF34 -> 2073 | BG5: ='1_KMA'!BG34 -> 2074
B7: Summary
B9: Costs | G9: $ Basis Reminder | H9: $ Reminder
B10: Capex | G10: ='1_KMA'!$I$20 -> 2024-06-30 | H10: ='1_KMA'!$I$19 -> $millions | J10: =J47 -> 0 | K10: =K47 -> 0 | L10: 13.37333333 | M10: 13.37333333 | N10: 13.37333333 | O10: 0 | P10: 0 | Q10: 0 | R10: 0 | S10: 0 | T10: 0 | U10: 0 | V10: 0 | W10: 0 | X10: 0 | Y10: 0 | Z10: 0 | AA10: 0 | AB10: 0 | AC10: 0 | AD10: 0 | AE10: 0 | AF10: 0 | AG10: 0 | AH10: 0 | AI10: 0 | AJ10: 0 | AK10: 0 | AL10: 0 | AM10: 0 | AN10: 0 | AO10: 0 | AP10: 0 | AQ10: 0 | AR10: 0 | AS10: 0 | AT10: 0 | AU10: 0 | AV10: 0 | AW10: 0 | AX10: 0 | AY10: 0 | AZ10: 0 | BA10: 0 | BB10: 0 | BC10: 0 | BD10: 0 | BE10: 0 | BF10: 0 | BG10: 0
B11: Capex offset | G11: ='1_KMA'!$I$20 -> 2024-06-30 | H11: ='1_KMA'!$I$19 -> $millions | J11: =-J59 -> 0 | K11: =-K59 -> 0 | L11: 0 | M11: 0 | N11: 0 | O11: 0 | P11: 0 | Q11: 0 | R11: 0 | S11: 0 | T11: 0 | U11: 0 | V11: 0 | W11: 0 | X11: 0 | Y11: 0 | Z11: 0 | AA11: 0 | AB11: 0 | AC11: 0 | AD11: 0 | AE11: 0 | AF11: 0 | AG11: 0 | AH11: 0 | AI11: 0 | AJ11: 0 | AK11: 0 | AL11: 0 | AM11: 0 | AN11: 0 | AO11: 0 | AP11: 0 | AQ11: 0 | AR11: 0 | AS11: 0 | AT11: 0 | AU11: 0 | AV11: 0 | AW11: 0 | AX11: 0 | AY11: 0 | AZ11: 0 | BA11: 0 | BB11: 0 | BC11: 0 | BD11: 0 | BE11: 0 | BF11: 0 | BG11: 0
B12: Opex | G12: ='1_KMA'!$I$20 -> 2024-06-30 | H12: ='1_KMA'!$I$19 -> $millions | J12: =J82 -> 0 | K12: =K82 -> 0 | L12: 0 | M12: 0 | N12: 0.4012 | O12: 0.4012 | P12: 0.4012 | Q12: 0.4012 | R12: 0.4012 | S12: 0.4012 | T12: 0.4012 | U12: 0.4012 | V12: 0.4012 | W12: 0.4012 | X12: 0.4012 | Y12: 0.4012 | Z12: 0.4012 | AA12: 0.4012 | AB12: 0.4012 | AC12: 0.4012 | AD12: 0.4012 | AE12: 0.4012 | AF12: 0.4012 | AG12: 0.4012 | AH12: 0.4012 | AI12: 0.4012 | AJ12: 0.4012 | AK12: 0.4012 | AL12: 0.4012 | AM12: 0.4012 | AN12: 0 | AO12: 0 | AP12: 0 | AQ12: 0 | AR12: 0 | AS12: 0 | AT12: 0 | AU12: 0 | AV12: 0 | AW12: 0 | AX12: 0 | AY12: 0 | AZ12: 0 | BA12: 0 | BB12: 0 | BC12: 0 | BD12: 0 | BE12: 0 | BF12: 0 | BG12: 0
B13: Total | G13: ='1_KMA'!$I$20 -> 2024-06-30 | H13: ='1_KMA'!$I$19 -> $millions | J13: =SUM(J10:J12) -> 0 | K13: =SUM(K10:K12) -> 0 | L13: 13.37333333 | M13: 13.37333333 | N13: 13.77453333 | O13: 0.4012 | P13: 0.4012 | Q13: 0.4012 | R13: 0.4012 | S13: 0.4012 | T13: 0.4012 | U13: 0.4012 | V13: 0.4012 | W13: 0.4012 | X13: 0.4012 | Y13: 0.4012 | Z13: 0.4012 | AA13: 0.4012 | AB13: 0.4012 | AC13: 0.4012 | AD13: 0.4012 | AE13: 0.4012 | AF13: 0.4012 | AG13: 0.4012 | AH13: 0.4012 | AI13: 0.4012 | AJ13: 0.4012 | AK13: 0.4012 | AL13: 0.4012 | AM13: 0.4012 | AN13: 0 | AO13: 0 | AP13: 0 | AQ13: 0 | AR13: 0 | AS13: 0 | AT13: 0 | AU13: 0 | AV13: 0 | AW13: 0 | AX13: 0 | AY13: 0 | AZ13: 0 | BA13: 0 | BB13: 0 | BC13: 0 | BD13: 0 | BE13: 0 | BF13: 0 | BG13: 0
B15: Benefits | G15: $ Basis Reminder | H15: $ Reminder
B16: Value of EUE | G16: ='1_KMA'!$I$20 -> 2024-06-30 | H16: ='1_KMA'!$I$19 -> $millions | J16: =-J93 -> 0 | K16: =-K93 -> 0 | L16: -0.1047 | M16: -1.0108 | N16: -8.021440146e-09 | O16: -3.008854898e-09 | P16: -5.74778382e-09 | Q16: -9.386862496e-09 | R16: -1.475539778e-08 | S16: -0.1152844362 | T16: -0.511342475 | U16: -1.355624699 | V16: -2.671228084 | W16: -4.578952119 | X16: -4.578952119 | Y16: -4.578952119 | Z16: -4.578952119 | AA16: -4.578952119 | AB16: -4.578952119 | AC16: -4.578952119 | AD16: -4.578952119 | AE16: -4.578952119 | AF16: -4.578952119 | AG16: -4.578952119 | AH16: -4.578952119 | AI16: -4.578952119 | AJ16: -4.578952119 | AK16: -4.578952119 | AL16: -4.578952119 | AM16: -4.578952119 | AN16: 0 | AO16: 0 | AP16: 0 | AQ16: 0 | AR16: 0 | AS16: 0 | AT16: 0 | AU16: 0 | AV16: 0 | AW16: 0 | AX16: 0 | AY16: 0 | AZ16: 0 | BA16: 0 | BB16: 0 | BC16: 0 | BD16: 0 | BE16: 0 | BF16: 0 | BG16: 0
B21: Total | G21: ='1_KMA'!$I$20 -> 2024-06-30 | H21: ='1_KMA'!$I$19 -> $millions | J21: =SUM(J16:J20) -> 0 | K21: =SUM(K16:K20) -> 0 | L21: -0.1047 | M21: -1.0108 | N21: -8.021440146e-09 | O21: -3.008854898e-09 | P21: -5.74778382e-09 | Q21: -9.386862496e-09 | R21: -1.475539778e-08 | S21: -0.1152844362 | T21: -0.511342475 | U21: -1.355624699 | V21: -2.671228084 | W21: -4.578952119 | X21: -4.578952119 | Y21: -4.578952119 | Z21: -4.578952119 | AA21: -4.578952119 | AB21: -4.578952119 | AC21: -4.578952119 | AD21: -4.578952119 | AE21: -4.578952119 | AF21: -4.578952119 | AG21: -4.578952119 | AH21: -4.578952119 | AI21: -4.578952119 | AJ21: -4.578952119 | AK21: -4.578952119 | AL21: -4.578952119 | AM21: -4.578952119 | AN21: 0 | AO21: 0 | AP21: 0 | AQ21: 0 | AR21: 0 | AS21: 0 | AT21: 0 | AU21: 0 | AV21: 0 | AW21: 0 | AX21: 0 | AY21: 0 | AZ21: 0 | BA21: 0 | BB21: 0 | BC21: 0 | BD21: 0 | BE21: 0 | BF21: 0 | BG21: 0
B24: Cost Inputs
B26: Capex Build Up
B28: Name | H28: Unit | J28: Unit Rate
B29: New 66kV Line between CBTS and PHM | J29: 40.12
B30: PHM Enabling works
B31: CBTS enabling works
B34: Name | H34: Unit | J34: Quantities
B35: =B29 -> New 66kV Line between CBTS and PHM | L35: =1/3 -> 0.3333333333 | M35: =1/3 -> 0.3333333333 | N35: 0.3333333333
B36: =B30 -> PHM Enabling works
B37: =B31 -> CBTS enabling works
B40: Name | G40: $ Basis Reminder | H40: $ Reminder
B41: =B29 -> New 66kV Line between CBTS and PHM | G41: ='1_KMA'!$I$20 -> 2024-06-30 | H41: ='1_KMA'!$I$19 -> $millions | J41: =$J$29*J35 -> 0 | K41: 0 | L41: 13.37333333 | M41: 13.37333333 | N41: 13.37333333 | O41: 0 | P41: 0 | Q41: =$J$29*Q35 -> 0 | R41: 0 | S41: 0 | T41: 0 | U41: 0 | V41: 0 | W41: 0 | X41: 0 | Y41: 0 | Z41: 0 | AA41: 0 | AB41: 0 | AC41: 0 | AD41: 0 | AE41: 0 | AF41: 0 | AG41: 0 | AH41: 0 | AI41: 0 | AJ41: 0 | AK41: 0 | AL41: 0 | AM41: 0 | AN41: 0 | AO41: 0 | AP41: 0 | AQ41: 0 | AR41: 0 | AS41: 0 | AT41: 0 | AU41: 0 | AV41: 0 | AW41: 0 | AX41: 0 | AY41: 0 | AZ41: 0 | BA41: 0 | BB41: 0 | BC41: 0 | BD41: 0 | BE41: 0 | BF41: 0 | BG41: 0
B42: =B30 -> PHM Enabling works | G42: ='1_KMA'!$I$20 -> 2024-06-30 | H42: ='1_KMA'!$I$19 -> $millions | J42: =$J$30*J36 -> 0 | K42: 0 | L42: 0 | M42: 0 | N42: 0 | O42: 0 | P42: 0 | Q42: =$J$30*Q36 -> 0 | R42: 0 | S42: 0 | T42: 0 | U42: 0 | V42: 0 | W42: 0 | X42: 0 | Y42: 0 | Z42: 0 | AA42: 0 | AB42: 0 | AC42: 0 | AD42: 0 | AE42: 0 | AF42: 0 | AG42: 0 | AH42: 0 | AI42: 0 | AJ42: 0 | AK42: 0 | AL42: 0 | AM42: 0 | AN42: 0 | AO42: 0 | AP42: 0 | AQ42: 0 | AR42: 0 | AS42: 0 | AT42: 0 | AU42: 0 | AV42: 0 | AW42: 0 | AX42: 0 | AY42: 0 | AZ42: 0 | BA42: 0 | BB42: 0 | BC42: 0 | BD42: 0 | BE42: 0 | BF42: 0 | BG42: 0
B43: =B31 -> CBTS enabling works | G43: ='1_KMA'!$I$20 -> 2024-06-30 | H43: ='1_KMA'!$I$19 -> $millions | J43: =$J$31*J37 -> 0 | K43: 0 | L43: 0 | M43: 0 | N43: 0 | O43: 0 | P43: 0 | Q43: =$J$31*Q37 -> 0 | R43: 0 | S43: 0 | T43: 0 | U43: 0 | V43: 0 | W43: 0 | X43: 0 | Y43: 0 | Z43: 0 | AA43: 0 | AB43: 0 | AC43: 0 | AD43: 0 | AE43: 0 | AF43: 0 | AG43: 0 | AH43: 0 | AI43: 0 | AJ43: 0 | AK43: 0 | AL43: 0 | AM43: 0 | AN43: 0 | AO43: 0 | AP43: 0 | AQ43: 0 | AR43: 0 | AS43: 0 | AT43: 0 | AU43: 0 | AV43: 0 | AW43: 0 | AX43: 0 | AY43: 0 | AZ43: 0 | BA43: 0 | BB43: 0 | BC43: 0 | BD43: 0 | BE43: 0 | BF43: 0 | BG43: 0
G44: ='1_KMA'!$I$20 -> 2024-06-30 | H44: ='1_KMA'!$I$19 -> $millions | J44: =$J$32*J38 -> 0 | K44: =$J$32*K38 -> 0 | L44: =$J$32*L38 -> 0 | M44: =$J$32*M38 -> 0 | N44: 0 | O44: 0 | P44: 0 | Q44: 0 | R44: 0 | S44: 0 | T44: 0 | U44: 0 | V44: 0 | W44: 0 | X44: 0 | Y44: 0 | Z44: 0 | AA44: 0 | AB44: 0 | AC44: 0 | AD44: 0 | AE44: 0 | AF44: 0 | AG44: 0 | AH44: 0 | AI44: 0 | AJ44: 0 | AK44: 0 | AL44: 0 | AM44: 0 | AN44: 0 | AO44: 0 | AP44: 0 | AQ44: 0 | AR44: 0 | AS44: 0 | AT44: 0 | AU44: 0 | AV44: 0 | AW44: 0 | AX44: 0 | AY44: 0 | AZ44: 0 | BA44: 0 | BB44: 0 | BC44: 0 | BD44: 0 | BE44: 0 | BF44: 0 | BG44: 0
G46: $ Basis Reminder | H46: $ Reminder
B47: Total | G47: ='1_KMA'!$I$20 -> 2024-06-30 | H47: ='1_KMA'!$I$19 -> $millions | J47: =SUM(J41:J44) -> 0 | K47: =SUM(K41:K44) -> 0 | L47: =SUM(L41:L44) -> 13.37333333 | M47: 13.37333333 | N47: 13.37333333 | O47: 0 | P47: 0 | Q47: 0 | R47: 0 | S47: 0 | T47: 0 | U47: 0 | V47: 0 | W47: 0 | X47: 0 | Y47: 0 | Z47: 0 | AA47: 0 | AB47: 0 | AC47: 0 | AD47: 0 | AE47: 0 | AF47: 0 | AG47: 0 | AH47: 0 | AI47: 0 | AJ47: 0 | AK47: 0 | AL47: 0 | AM47: 0 | AN47: 0 | AO47: 0 | AP47: 0 | AQ47: 0 | AR47: 0 | AS47: 0 | AT47: 0 | AU47: 0 | AV47: 0 | AW47: 0 | AX47: 0 | AY47: 0 | AZ47: 0 | BA47: 0 | BB47: 0 | BC47: 0 | BD47: 0 | BE47: 0 | BF47: 0 | BG47: =SUM(BG41:BG44) -> 0
B49: Capex Offset
B52: Name | G52: $ Basis Reminder | H52: $ Reminder
G53: ='1_KMA'!$I$20 -> 2024-06-30 | H53: ='1_KMA'!$I$19 -> $millions
G54: ='1_KMA'!$I$20 -> 2024-06-30 | H54: ='1_KMA'!$I$19 -> $millions
G55: ='1_KMA'!$I$20 -> 2024-06-30 | H55: ='1_KMA'!$I$19 -> $millions
G56: ='1_KMA'!$I$20 -> 2024-06-30 | H56: ='1_KMA'!$I$19 -> $millions
G58: $ Basis Reminder | H58: $ Reminder
B59: Total | G59: ='1_KMA'!$I$20 -> 2024-06-30 | H59: ='1_KMA'!$I$19 -> $millions | J59: =SUM(J53:J56) -> 0 | K59: =SUM(K53:K56) -> 0 | L59: =SUM(L53:L56) -> 0 | M59: 0 | N59: 0 | O59: 0 | P59: 0 | Q59: 0 | R59: 0 | S59: 0 | T59: 0 | U59: 0 | V59: 0 | W59: 0 | X59: 0 | Y59: 0 | Z59: 0 | AA59: 0 | AB59: 0 | AC59: 0 | AD59: 0 | AE59: 0 | AF59: 0 | AG59: 0 | AH59: 0 | AI59: 0 | AJ59: 0 | AK59: 0 | AL59: 0 | AM59: 0 | AN59: 0 | AO59: 0 | AP59: 0 | AQ59: 0 | AR59: 0 | AS59: 0 | AT59: 0 | AU59: 0 | AV59: 0 | AW59: 0 | AX59: 0 | AY59: 0 | AZ59: 0 | BA59: 0 | BB59: 0 | BC59: 0 | BD59: 0 | BE59: 0 | BF59: 0 | BG59: 0
B61: Opex Build Up
B63: Name | H63: Unit | J63: Value
B64: Equipment maintenance (inc. lines) | H64: 1% of project cost | J64: =SUM(J29:J32)*0.01 -> 0.4012
B69: Name | H69: Unit | J69: Quantities
B70: =B64 -> Equipment maintenance (inc. lines) | H70: 1% of project cost | N70: 1 | O70: 1 | P70: 1 | Q70: 1 | R70: 1 | S70: 1 | T70: 1 | U70: 1 | V70: 1 | W70: 1 | X70: 1 | Y70: 1 | Z70: 1 | AA70: 1 | AB70: 1 | AC70: 1 | AD70: 1 | AE70: 1 | AF70: 1 | AG70: 1 | AH70: 1 | AI70: 1 | AJ70: 1 | AK70: 1 | AL70: 1 | AM70: 1
B75: Name | G75: $ Basis Reminder | H75: $ Reminder
B76: =B64 -> Equipment maintenance (inc. lines) | G76: ='1_KMA'!$I$20 -> 2024-06-30 | H76: ='1_KMA'!$I$19 -> $millions | J76: =$J$64*J70 -> 0 | K76: 0 | L76: 0 | M76: =$J$64*M70 -> 0 | N76: =$J$64*N70 -> 0.4012 | O76: 0.4012 | P76: 0.4012 | Q76: 0.4012 | R76: 0.4012 | S76: 0.4012 | T76: 0.4012 | U76: 0.4012 | V76: 0.4012 | W76: 0.4012 | X76: 0.4012 | Y76: 0.4012 | Z76: 0.4012 | AA76: 0.4012 | AB76: 0.4012 | AC76: 0.4012 | AD76: 0.4012 | AE76: 0.4012 | AF76: 0.4012 | AG76: 0.4012 | AH76: 0.4012 | AI76: 0.4012 | AJ76: 0.4012 | AK76: 0.4012 | AL76: 0.4012 | AM76: 0.4012 | AN76: 0 | AO76: 0 | AP76: 0 | AQ76: 0 | AR76: 0 | AS76: 0 | AT76: 0 | AU76: 0 | AV76: 0 | AW76: 0 | AX76: 0 | AY76: 0 | AZ76: 0 | BA76: 0 | BB76: 0 | BC76: 0 | BD76: 0 | BE76: 0 | BF76: 0 | BG76: 0
G77: ='1_KMA'!$I$20 -> 2024-06-30 | H77: ='1_KMA'!$I$19 -> $millions | J77: =$J$65*J71 -> 0 | K77: 0 | L77: 0 | M77: =$J$65*M71 -> 0 | N77: =$J$65*N71 -> 0 | O77: 0 | P77: 0 | Q77: 0 | R77: 0 | S77: 0 | T77: 0 | U77: 0 | V77: 0 | W77: 0 | X77: 0 | Y77: 0 | Z77: 0 | AA77: 0 | AB77: 0 | AC77: 0 | AD77: 0 | AE77: 0 | AF77: 0 | AG77: 0 | AH77: 0 | AI77: 0 | AJ77: 0 | AK77: 0 | AL77: 0 | AM77: 0 | AN77: 0 | AO77: 0 | AP77: 0 | AQ77: 0 | AR77: 0 | AS77: 0 | AT77: 0 | AU77: 0 | AV77: 0 | AW77: 0 | AX77: 0 | AY77: 0 | AZ77: 0 | BA77: 0 | BB77: 0 | BC77: 0 | BD77: 0 | BE77: 0 | BF77: 0 | BG77: 0
G78: ='1_KMA'!$I$20 -> 2024-06-30 | H78: ='1_KMA'!$I$19 -> $millions | J78: =$J$66*J72 -> 0 | K78: 0 | L78: 0 | M78: =$J$66*M72 -> 0 | N78: =$J$66*N72 -> 0 | O78: 0 | P78: 0 | Q78: 0 | R78: 0 | S78: 0 | T78: 0 | U78: 0 | V78: 0 | W78: 0 | X78: 0 | Y78: 0 | Z78: 0 | AA78: 0 | AB78: 0 | AC78: 0 | AD78: 0 | AE78: 0 | AF78: 0 | AG78: 0 | AH78: 0 | AI78: 0 | AJ78: 0 | AK78: 0 | AL78: 0 | AM78: 0 | AN78: 0 | AO78: 0 | AP78: 0 | AQ78: 0 | AR78: 0 | AS78: 0 | AT78: 0 | AU78: 0 | AV78: 0 | AW78: 0 | AX78: 0 | AY78: 0 | AZ78: 0 | BA78: 0 | BB78: 0 | BC78: 0 | BD78: 0 | BE78: 0 | BF78: 0 | BG78: 0
G79: ='1_KMA'!$I$20 -> 2024-06-30 | H79: ='1_KMA'!$I$19 -> $millions | J79: =$J$67*J73 -> 0 | K79: 0 | L79: 0 | M79: =$J$67*M73 -> 0 | N79: =$J$67*N73 -> 0 | O79: 0 | P79: 0 | Q79: 0 | R79: 0 | S79: 0 | T79: 0 | U79: 0 | V79: 0 | W79: 0 | X79: 0 | Y79: 0 | Z79: 0 | AA79: 0 | AB79: 0 | AC79: 0 | AD79: 0 | AE79: 0 | AF79: 0 | AG79: 0 | AH79: 0 | AI79: 0 | AJ79: 0 | AK79: 0 | AL79: 0 | AM79: 0 | AN79: 0 | AO79: 0 | AP79: 0 | AQ79: 0 | AR79: 0 | AS79: 0 | AT79: 0 | AU79: 0 | AV79: 0 | AW79: 0 | AX79: 0 | AY79: 0 | AZ79: 0 | BA79: 0 | BB79: 0 | BC79: 0 | BD79: 0 | BE79: 0 | BF79: 0 | BG79: 0
G81: $ Basis Reminder | H81: $ Reminder
B82: Total | G82: ='1_KMA'!$I$20 -> 2024-06-30 | H82: ='1_KMA'!$I$19 -> $millions | J82: =SUM(J76:J79) -> 0 | K82: =SUM(K76:K79) -> 0 | L82: =SUM(L76:L79) -> 0 | M82: 0 | N82: 0.4012 | O82: 0.4012 | P82: 0.4012 | Q82: 0.4012 | R82: 0.4012 | S82: 0.4012 | T82: 0.4012 | U82: 0.4012 | V82: 0.4012 | W82: 0.4012 | X82: 0.4012 | Y82: 0.4012 | Z82: 0.4012 | AA82: 0.4012 | AB82: 0.4012 | AC82: 0.4012 | AD82: 0.4012 | AE82: 0.4012 | AF82: 0.4012 | AG82: 0.4012 | AH82: 0.4012 | AI82: 0.4012 | AJ82: 0.4012 | AK82: 0.4012 | AL82: 0.4012 | AM82: 0.4012 | AN82: 0 | AO82: 0 | AP82: 0 | AQ82: 0 | AR82: 0 | AS82: 0 | AT82: 0 | AU82: 0 | AV82: 0 | AW82: 0 | AX82: 0 | AY82: 0 | AZ82: 0 | BA82: 0 | BB82: 0 | BC82: 0 | BD82: 0 | BE82: 0 | BF82: 0 | BG82: =SUM(BG76:BG79) -> 0
B84: Benefits Inputs
B86: Value of EUE
G89: $ Basis Reminder | H89: $ Reminder
B90: Value of Expected Unserved Energy (EUE) | G90: ='1_KMA'!$I$20 -> 2024-06-30 | H90: ='1_KMA'!$I$19 -> $millions | J90: 0 | K90: 0 | L90: 0.1047 | M90: 1.0108 | N90: 8.021440146e-09 | O90: 3.008854898e-09 | P90: 5.74778382e-09 | Q90: 9.386862496e-09 | R90: 1.475539778e-08 | S90: 0.1152844362 | T90: 0.511342475 | U90: 1.355624699 | V90: 2.671228084 | W90: 4.578952119 | X90: 4.578952119 | Y90: 4.578952119 | Z90: 4.578952119 | AA90: 4.578952119 | AB90: 4.578952119 | AC90: 4.578952119 | AD90: 4.578952119 | AE90: 4.578952119 | AF90: 4.578952119 | AG90: 4.578952119 | AH90: 4.578952119 | AI90: 4.578952119 | AJ90: 4.578952119 | AK90: 4.578952119 | AL90: 4.578952119 | AM90: 4.578952119
G92: $ Basis Reminder | H92: $ Reminder
B93: Total | G93: ='1_KMA'!$I$20 -> 2024-06-30 | H93: ='1_KMA'!$I$19 -> $millions | J93: =J90 -> 0 | K93: =K90 -> 0 | L93: 0.1047 | M93: 1.0108 | N93: 8.021440146e-09 | O93: 3.008854898e-09 | P93: 5.74778382e-09 | Q93: 9.386862496e-09 | R93: 1.475539778e-08 | S93: 0.1152844362 | T93: 0.511342475 | U93: 1.355624699 | V93: 2.671228084 | W93: 4.578952119 | X93: 4.578952119 | Y93: 4.578952119 | Z93: 4.578952119 | AA93: 4.578952119 | AB93: 4.578952119 | AC93: 4.578952119 | AD93: 4.578952119 | AE93: 4.578952119 | AF93: 4.578952119 | AG93: 4.578952119 | AH93: 4.578952119 | AI93: 4.578952119 | AJ93: 4.578952119 | AK93: 4.578952119 | AL93: 4.578952119 | AM93: 4.578952119 | AN93: 0 | AO93: 0 | AP93: 0 | AQ93: 0 | AR93: 0 | AS93: 0 | AT93: 0 | AU93: 0 | AV93: 0 | AW93: 0 | AX93: 0 | AY93: 0 | AZ93: 0 | BA93: 0 | BB93: 0 | BC93: 0 | BD93: 0 | BE93: 0 | BF93: 0 | BG93: 0

Sheet 2.1_Op3
B1: General Inputs: Option 3 | I1: Regulatory Period Indicator | J1: ='1_KMA'!J30 -> 0 | K1: ='1_KMA'!K30 -> 0 | L1: ='1_KMA'!L30 -> 1 | M1: ='1_KMA'!M30 -> 1 | N1: ='1_KMA'!N30 -> 1 | O1: ='1_KMA'!O30 -> 1 | P1: ='1_KMA'!P30 -> 1 | Q1: ='1_KMA'!Q30 -> 0 | R1: ='1_KMA'!R30 -> 0 | S1: ='1_KMA'!S30 -> 0 | T1: ='1_KMA'!T30 -> 0 | U1: ='1_KMA'!U30 -> 0 | V1: ='1_KMA'!V30 -> 0 | W1: ='1_KMA'!W30 -> 0 | X1: ='1_KMA'!X30 -> 0 | Y1: ='1_KMA'!Y30 -> 0 | Z1: ='1_KMA'!Z30 -> 0 | AA1: ='1_KMA'!AA30 -> 0 | AB1: ='1_KMA'!AB30 -> 0 | AC1: ='1_KMA'!AC30 -> 0 | AD1: ='1_KMA'!AD30 -> 0 | AE1: ='1_KMA'!AE30 -> 0 | AF1: ='1_KMA'!AF30 -> 0 | AG1: ='1_KMA'!AG30 -> 0 | AH1: ='1_KMA'!AH30 -> 0 | AI1: ='1_KMA'!AI30 -> 0 | AJ1: ='1_KMA'!AJ30 -> 0 | AK1: ='1_KMA'!AK30 -> 0 | AL1: ='1_KMA'!AL30 -> 0 | AM1: ='1_KMA'!AM30 -> 0 | AN1: ='1_KMA'!AN30 -> 0 | AO1: ='1_KMA'!AO30 -> 0 | AP1: ='1_KMA'!AP30 -> 0 | AQ1: ='1_KMA'!AQ30 -> 0 | AR1: ='1_KMA'!AR30 -> 0 | AS1: ='1_KMA'!AS30 -> 0 | AT1: ='1_KMA'!AT30 -> 0 | AU1: ='1_KMA'!AU30 -> 0 | AV1: ='1_KMA'!AV30 -> 0 | AW1: ='1_KMA'!AW30 -> 0 | AX1: ='1_KMA'!AX30 -> 0 | AY1: ='1_KMA'!AY30 -> 0 | AZ1: ='1_KMA'!AZ30 -> 0 | BA1: ='1_KMA'!BA30 -> 0 | BB1: ='1_KMA'!BB30 -> 0 | BC1: ='1_KMA'!BC30 -> 0 | BD1: ='1_KMA'!BD30 -> 0 | BE1: ='1_KMA'!BE30 -> 0 | BF1: ='1_KMA'!BF30 -> 0 | BG1: ='1_KMA'!BG30 -> 0
B2: =Cover!$C$9 -> AusNet Services | I2: Period Start Date | J2: ='1_KMA'!J31 -> 2024-07-01 | K2: ='1_KMA'!K31 -> 2025-07-01 | L2: ='1_KMA'!L31 -> 2026-07-01 | M2: ='1_KMA'!M31 -> 2027-07-01 | N2: ='1_KMA'!N31 -> 2028-07-01 | O2: ='1_KMA'!O31 -> 2029-07-01 | P2: ='1_KMA'!P31 -> 2030-07-01 | Q2: ='1_KMA'!Q31 -> 2031-07-01 | R2: ='1_KMA'!R31 -> 2032-07-01 | S2: ='1_KMA'!S31 -> 2033-07-01 | T2: ='1_KMA'!T31 -> 2034-07-01 | U2: ='1_KMA'!U31 -> 2035-07-01 | V2: ='1_KMA'!V31 -> 2036-07-01 | W2: ='1_KMA'!W31 -> 2037-07-01 | X2: ='1_KMA'!X31 -> 2038-07-01 | Y2: ='1_KMA'!Y31 -> 2039-07-01 | Z2: ='1_KMA'!Z31 -> 2040-07-01 | AA2: ='1_KMA'!AA31 -> 2041-07-01 | AB2: ='1_KMA'!AB31 -> 2042-07-01 | AC2: ='1_KMA'!AC31 -> 2043-07-01 | AD2: ='1_KMA'!AD31 -> 2044-07-01 | AE2: ='1_KMA'!AE31 -> 2045-07-01 | AF2: ='1_KMA'!AF31 -> 2046-07-01 | AG2: ='1_KMA'!AG31 -> 2047-07-01 | AH2: ='1_KMA'!AH31 -> 2048-07-01 | AI2: ='1_KMA'!AI31 -> 2049-07-01 | AJ2: ='1_KMA'!AJ31 -> 2050-07-01 | AK2: ='1_KMA'!AK31 -> 2051-07-01 | AL2: ='1_KMA'!AL31 -> 2052-07-01 | AM2: ='1_KMA'!AM31 -> 2053-07-01 | AN2: ='1_KMA'!AN31 -> 2054-07-01 | AO2: ='1_KMA'!AO31 -> 2055-07-01 | AP2: ='1_KMA'!AP31 -> 2056-07-01 | AQ2: ='1_KMA'!AQ31 -> 2057-07-01 | AR2: ='1_KMA'!AR31 -> 2058-07-01 | AS2: ='1_KMA'!AS31 -> 2059-07-01 | AT2: ='1_KMA'!AT31 -> 2060-07-01 | AU2: ='1_KMA'!AU31 -> 2061-07-01 | AV2: ='1_KMA'!AV31 -> 2062-07-01 | AW2: ='1_KMA'!AW31 -> 2063-07-01 | AX2: ='1_KMA'!AX31 -> 2064-07-01 | AY2: ='1_KMA'!AY31 -> 2065-07-01 | AZ2: ='1_KMA'!AZ31 -> 2066-07-01 | BA2: ='1_KMA'!BA31 -> 2067-07-01 | BB2: ='1_KMA'!BB31 -> 2068-07-01 | BC2: ='1_KMA'!BC31 -> 2069-07-01 | BD2: ='1_KMA'!BD31 -> 2070-07-01 | BE2: ='1_KMA'!BE31 -> 2071-07-01 | BF2: ='1_KMA'!BF31 -> 2072-07-01 | BG2: ='1_KMA'!BG31 -> 2073-07-01
B3: =Cover!$C$10 -> Business Case Evaluation | I3: Period End Date | J3: ='1_KMA'!J32 -> 2025-06-30 | K3: ='1_KMA'!K32 -> 2026-06-30 | L3: ='1_KMA'!L32 -> 2027-06-30 | M3: ='1_KMA'!M32 -> 2028-06-30 | N3: ='1_KMA'!N32 -> 2029-06-30 | O3: ='1_KMA'!O32 -> 2030-06-30 | P3: ='1_KMA'!P32 -> 2031-06-30 | Q3: ='1_KMA'!Q32 -> 2032-06-30 | R3: ='1_KMA'!R32 -> 2033-06-30 | S3: ='1_KMA'!S32 -> 2034-06-30 | T3: ='1_KMA'!T32 -> 2035-06-30 | U3: ='1_KMA'!U32 -> 2036-06-30 | V3: ='1_KMA'!V32 -> 2037-06-30 | W3: ='1_KMA'!W32 -> 2038-06-30 | X3: ='1_KMA'!X32 -> 2039-06-30 | Y3: ='1_KMA'!Y32 -> 2040-06-30 | Z3: ='1_KMA'!Z32 -> 2041-06-30 | AA3: ='1_KMA'!AA32 -> 2042-06-30 | AB3: ='1_KMA'!AB32 -> 2043-06-30 | AC3: ='1_KMA'!AC32 -> 2044-06-30 | AD3: ='1_KMA'!AD32 -> 2045-06-30 | AE3: ='1_KMA'!AE32 -> 2046-06-30 | AF3: ='1_KMA'!AF32 -> 2047-06-30 | AG3: ='1_KMA'!AG32 -> 2048-06-30 | AH3: ='1_KMA'!AH32 -> 2049-06-30 | AI3: ='1_KMA'!AI32 -> 2050-06-30 | AJ3: ='1_KMA'!AJ32 -> 2051-06-30 | AK3: ='1_KMA'!AK32 -> 2052-06-30 | AL3: ='1_KMA'!AL32 -> 2053-06-30 | AM3: ='1_KMA'!AM32 -> 2054-06-30 | AN3: ='1_KMA'!AN32 -> 2055-06-30 | AO3: ='1_KMA'!AO32 -> 2056-06-30 | AP3: ='1_KMA'!AP32 -> 2057-06-30 | AQ3: ='1_KMA'!AQ32 -> 2058-06-30 | AR3: ='1_KMA'!AR32 -> 2059-06-30 | AS3: ='1_KMA'!AS32 -> 2060-06-30 | AT3: ='1_KMA'!AT32 -> 2061-06-30 | AU3: ='1_KMA'!AU32 -> 2062-06-30 | AV3: ='1_KMA'!AV32 -> 2063-06-30 | AW3: ='1_KMA'!AW32 -> 2064-06-30 | AX3: ='1_KMA'!AX32 -> 2065-06-30 | AY3: ='1_KMA'!AY32 -> 2066-06-30 | AZ3: ='1_KMA'!AZ32 -> 2067-06-30 | BA3: ='1_KMA'!BA32 -> 2068-06-30 | BB3: ='1_KMA'!BB32 -> 2069-06-30 | BC3: ='1_KMA'!BC32 -> 2070-06-30 | BD3: ='1_KMA'!BD32 -> 2071-06-30 | BE3: ='1_KMA'!BE32 -> 2072-06-30 | BF3: ='1_KMA'!BF32 -> 2073-06-30 | BG3: ='1_KMA'!BG32 -> 2074-06-30
B4: =Cover!$C$11 -> Eastern Cranbourne 66kV loop augmentation | I4: Project Year | J4: ='1_KMA'!J33 -> 1 | K4: ='1_KMA'!K33 -> 2 | L4: ='1_KMA'!L33 -> 3 | M4: ='1_KMA'!M33 -> 4 | N4: ='1_KMA'!N33 -> 5 | O4: ='1_KMA'!O33 -> 6 | P4: ='1_KMA'!P33 -> 7 | Q4: ='1_KMA'!Q33 -> 8 | R4: ='1_KMA'!R33 -> 9 | S4: ='1_KMA'!S33 -> 10 | T4: ='1_KMA'!T33 -> 11 | U4: ='1_KMA'!U33 -> 12 | V4: ='1_KMA'!V33 -> 13 | W4: ='1_KMA'!W33 -> 14 | X4: ='1_KMA'!X33 -> 15 | Y4: ='1_KMA'!Y33 -> 16 | Z4: ='1_KMA'!Z33 -> 17 | AA4: ='1_KMA'!AA33 -> 18 | AB4: ='1_KMA'!AB33 -> 19 | AC4: ='1_KMA'!AC33 -> 20 | AD4: ='1_KMA'!AD33 -> 21 | AE4: ='1_KMA'!AE33 -> 22 | AF4: ='1_KMA'!AF33 -> 23 | AG4: ='1_KMA'!AG33 -> 24 | AH4: ='1_KMA'!AH33 -> 25 | AI4: ='1_KMA'!AI33 -> 26 | AJ4: ='1_KMA'!AJ33 -> 27 | AK4: ='1_KMA'!AK33 -> 28 | AL4: ='1_KMA'!AL33 -> 29 | AM4: ='1_KMA'!AM33 -> 30 | AN4: ='1_KMA'!AN33 -> 31 | AO4: ='1_KMA'!AO33 -> 32 | AP4: ='1_KMA'!AP33 -> 33 | AQ4: ='1_KMA'!AQ33 -> 34 | AR4: ='1_KMA'!AR33 -> 35 | AS4: ='1_KMA'!AS33 -> 36 | AT4: ='1_KMA'!AT33 -> 37 | AU4: ='1_KMA'!AU33 -> 38 | AV4: ='1_KMA'!AV33 -> 39 | AW4: ='1_KMA'!AW33 -> 40 | AX4: ='1_KMA'!AX33 -> 41 | AY4: ='1_KMA'!AY33 -> 42 | AZ4: ='1_KMA'!AZ33 -> 43 | BA4: ='1_KMA'!BA33 -> 44 | BB4: ='1_KMA'!BB33 -> 45 | BC4: ='1_KMA'!BC33 -> 46 | BD4: ='1_KMA'!BD33 -> 47 | BE4: ='1_KMA'!BE33 -> 48 | BF4: ='1_KMA'!BF33 -> 49 | BG4: ='1_KMA'!BG33 -> 50
I5: Financial Year | J5: ='1_KMA'!J34 -> 2025 | K5: ='1_KMA'!K34 -> 2026 | L5: ='1_KMA'!L34 -> 2027 | M5: ='1_KMA'!M34 -> 2028 | N5: ='1_KMA'!N34 -> 2029 | O5: ='1_KMA'!O34 -> 2030 | P5: ='1_KMA'!P34 -> 2031 | Q5: ='1_KMA'!Q34 -> 2032 | R5: ='1_KMA'!R34 -> 2033 | S5: ='1_KMA'!S34 -> 2034 | T5: ='1_KMA'!T34 -> 2035 | U5: ='1_KMA'!U34 -> 2036 | V5: ='1_KMA'!V34 -> 2037 | W5: ='1_KMA'!W34 -> 2038 | X5: ='1_KMA'!X34 -> 2039 | Y5: ='1_KMA'!Y34 -> 2040 | Z5: ='1_KMA'!Z34 -> 2041 | AA5: ='1_KMA'!AA34 -> 2042 | AB5: ='1_KMA'!AB34 -> 2043 | AC5: ='1_KMA'!AC34 -> 2044 | AD5: ='1_KMA'!AD34 -> 2045 | AE5: ='1_KMA'!AE34 -> 2046 | AF5: ='1_KMA'!AF34 -> 2047 | AG5: ='1_KMA'!AG34 -> 2048 | AH5: ='1_KMA'!AH34 -> 2049 | AI5: ='1_KMA'!AI34 -> 2050 | AJ5: ='1_KMA'!AJ34 -> 2051 | AK5: ='1_KMA'!AK34 -> 2052 | AL5: ='1_KMA'!AL34 -> 2053 | AM5: ='1_KMA'!AM34 -> 2054 | AN5: ='1_KMA'!AN34 -> 2055 | AO5: ='1_KMA'!AO34 -> 2056 | AP5: ='1_KMA'!AP34 -> 2057 | AQ5: ='1_KMA'!AQ34 -> 2058 | AR5: ='1_KMA'!AR34 -> 2059 | AS5: ='1_KMA'!AS34 -> 2060 | AT5: ='1_KMA'!AT34 -> 2061 | AU5: ='1_KMA'!AU34 -> 2062 | AV5: ='1_KMA'!AV34 -> 2063 | AW5: ='1_KMA'!AW34 -> 2064 | AX5: ='1_KMA'!AX34 -> 2065 | AY5: ='1_KMA'!AY34 -> 2066 | AZ5: ='1_KMA'!AZ34 -> 2067 | BA5: ='1_KMA'!BA34 -> 2068 | BB5: ='1_KMA'!BB34 -> 2069 | BC5: ='1_KMA'!BC34 -> 2070 | BD5: ='1_KMA'!BD34 -> 2071 | BE5: ='1_KMA'!BE34 -> 2072 | BF5: ='1_KMA'!BF34 -> 2073 | BG5: ='1_KMA'!BG34 -> 2074
B7: Summary
B9: Costs | G9: $ Basis Reminder | H9: $ Reminder
B10: Capex | G10: ='1_KMA'!$I$20 -> 2024-06-30 | H10: ='1_KMA'!$I$19 -> $millions | J10: =J47 -> 0 | K10: =K47 -> 0 | L10: 14.76546125 | M10: 14.76546125 | N10: 14.76546125 | O10: 0 | P10: 0 | Q10: 0 | R10: 0 | S10: 0 | T10: 0 | U10: 0 | V10: 0 | W10: 0 | X10: 0 | Y10: 0 | Z10: 0 | AA10: 0 | AB10: 0 | AC10: 0 | AD10: 0 | AE10: 0 | AF10: 0 | AG10: 0 | AH10: 0 | AI10: 0 | AJ10: 0 | AK10: 0 | AL10: 0 | AM10: 0 | AN10: 0 | AO10: 0 | AP10: 0 | AQ10: 0 | AR10: 0 | AS10: 0 | AT10: 0 | AU10: 0 | AV10: 0 | AW10: 0 | AX10: 0 | AY10: 0 | AZ10: 0 | BA10: 0 | BB10: 0 | BC10: 0 | BD10: 0 | BE10: 0 | BF10: 0 | BG10: 0
B11: Capex offset | G11: ='1_KMA'!$I$20 -> 2024-06-30 | H11: ='1_KMA'!$I$19 -> $millions | J11: =-J59 -> 0 | K11: =-K59 -> 0 | L11: 0 | M11: 0 | N11: 0 | O11: 0 | P11: 0 | Q11: 0 | R11: 0 | S11: 0 | T11: 0 | U11: 0 | V11: 0 | W11: 0 | X11: 0 | Y11: 0 | Z11: 0 | AA11: 0 | AB11: 0 | AC11: 0 | AD11: 0 | AE11: 0 | AF11: 0 | AG11: 0 | AH11: 0 | AI11: 0 | AJ11: 0 | AK11: 0 | AL11: 0 | AM11: 0 | AN11: 0 | AO11: 0 | AP11: 0 | AQ11: 0 | AR11: 0 | AS11: 0 | AT11: 0 | AU11: 0 | AV11: 0 | AW11: 0 | AX11: 0 | AY11: 0 | AZ11: 0 | BA11: 0 | BB11: 0 | BC11: 0 | BD11: 0 | BE11: 0 | BF11: 0 | BG11: 0
B12: Opex | G12: ='1_KMA'!$I$20 -> 2024-06-30 | H12: ='1_KMA'!$I$19 -> $millions | J12: =J82 -> 0 | K12: =K82 -> 0 | L12: 0 | M12: 0 | N12: 0.4429638376 | O12: 0.4429638376 | P12: 0.4429638376 | Q12: 0.4429638376 | R12: 0.4429638376 | S12: 0.4429638376 | T12: 0.4429638376 | U12: 0.4429638376 | V12: 0.4429638376 | W12: 0.4429638376 | X12: 0.4429638376 | Y12: 0.4429638376 | Z12: 0.4429638376 | AA12: 0.4429638376 | AB12: 0.4429638376 | AC12: 0.4429638376 | AD12: 0.4429638376 | AE12: 0.4429638376 | AF12: 0.4429638376 | AG12: 0.4429638376 | AH12: 0.4429638376 | AI12: 0.4429638376 | AJ12: 0.4429638376 | AK12: 0.4429638376 | AL12: 0.4429638376 | AM12: 0.4429638376 | AN12: 0 | AO12: 0 | AP12: 0 | AQ12: 0 | AR12: 0 | AS12: 0 | AT12: 0 | AU12: 0 | AV12: 0 | AW12: 0 | AX12: 0 | AY12: 0 | AZ12: 0 | BA12: 0 | BB12: 0 | BC12: 0 | BD12: 0 | BE12: 0 | BF12: 0 | BG12: 0
B13: Total | G13: ='1_KMA'!$I$20 -> 2024-06-30 | H13: ='1_KMA'!$I$19 -> $millions | J13: =SUM(J10:J12) -> 0 | K13: =SUM(K10:K12) -> 0 | L13: 14.76546125 | M13: 14.76546125 | N13: 15.20842509 | O13: 0.4429638376 | P13: 0.4429638376 | Q13: 0.4429638376 | R13: 0.4429638376 | S13: 0.4429638376 | T13: 0.4429638376 | U13: 0.4429638376 | V13: 0.4429638376 | W13: 0.4429638376 | X13: 0.4429638376 | Y13: 0.4429638376 | Z13: 0.4429638376 | AA13: 0.4429638376 | AB13: 0.4429638376 | AC13: 0.4429638376 | AD13: 0.4429638376 | AE13: 0.4429638376 | AF13: 0.4429638376 | AG13: 0.4429638376 | AH13: 0.4429638376 | AI13: 0.4429638376 | AJ13: 0.4429638376 | AK13: 0.4429638376 | AL13: 0.4429638376 | AM13: 0.4429638376 | AN13: 0 | AO13: 0 | AP13: 0 | AQ13: 0 | AR13: 0 | AS13: 0 | AT13: 0 | AU13: 0 | AV13: 0 | AW13: 0 | AX13: 0 | AY13: 0 | AZ13: 0 | BA13: 0 | BB13: 0 | BC13: 0 | BD13: 0 | BE13: 0 | BF13: 0 | BG13: 0
B15: Benefits | G15: $ Basis Reminder | H15: $ Reminder
B16: Value of EUE | G16: ='1_KMA'!$I$20 -> 2024-06-30 | H16: ='1_KMA'!$I$19 -> $millions | J16: =-J93 -> 0 | K16: =-K93 -> 0 | L16: -0.1047 | M16: -1.0108 | N16: -2.715730736e-10 | O16: -1.868833925e-09 | P16: -3.978998999e-09 | Q16: -6.760925617e-09 | R16: -0.1157455451 | S16: -0.5178444666 | T16: -1.384618033 | U16: -2.737422741 | V16: -4.642590931 | W16: -7.353118071 | X16: -7.353118071 | Y16: -7.353118071 | Z16: -7.353118071 | AA16: -7.353118071 | AB16: -7.353118071 | AC16: -7.353118071 | AD16: -7.353118071 | AE16: -7.353118071 | AF16: -7.353118071 | AG16: -7.353118071 | AH16: -7.353118071 | AI16: -7.353118071 | AJ16: -7.353118071 | AK16: -7.353118071 | AL16: -7.353118071 | AM16: -7.353118071 | AN16: 0 | AO16: 0 | AP16: 0 | AQ16: 0 | AR16: 0 | AS16: 0 | AT16: 0 | AU16: 0 | AV16: 0 | AW16: 0 | AX16: 0 | AY16: 0 | AZ16: 0 | BA16: 0 | BB16: 0 | BC16: 0 | BD16: 0 | BE16: 0 | BF16: 0 | BG16: 0
B21: Total | G21: ='1_KMA'!$I$20 -> 2024-06-30 | H21: ='1_KMA'!$I$19 -> $millions | J21: =SUM(J16:J20) -> 0 | K21: =SUM(K16:K20) -> 0 | L21: -0.1047 | M21: -1.0108 | N21: -2.715730736e-10 | O21: -1.868833925e-09 | P21: -3.978998999e-09 | Q21: -6.760925617e-09 | R21: -0.1157455451 | S21: -0.5178444666 | T21: -1.384618033 | U21: -2.737422741 | V21: -4.642590931 | W21: -7.353118071 | X21: -7.353118071 | Y21: -7.353118071 | Z21: -7.353118071 | AA21: -7.353118071 | AB21: -7.353118071 | AC21: -7.353118071 | AD21: -7.353118071 | AE21: -7.353118071 | AF21: -7.353118071 | AG21: -7.353118071 | AH21: -7.353118071 | AI21: -7.353118071 | AJ21: -7.353118071 | AK21: -7.353118071 | AL21: -7.353118071 | AM21: -7.353118071 | AN21: 0 | AO21: 0 | AP21: 0 | AQ21: 0 | AR21: 0 | AS21: 0 | AT21: 0 | AU21: 0 | AV21: 0 | AW21: 0 | AX21: 0 | AY21: 0 | AZ21: 0 | BA21: 0 | BB21: 0 | BC21: 0 | BD21: 0 | BE21: 0 | BF21: 0 | BG21: 0
B24: Cost Inputs
B26: Capex Build Up
B28: Name | H28: Unit | J28: Unit Rate
B29: Establish new 66kV Switching Station | H29: Establish station | J29: 44.29638376
B30: Reconductor part of TGN-MFA 66kV Line
B31: Construct new 66kV line SLE-TGN-MFA (inc. underground)
B32: Primary/Secondary works at SLE
B34: Name | H34: Unit | J34: Quantities
B35: =B29 -> Establish new 66kV Switching Station | L35: =1/3 -> 0.3333333333 | M35: 0.3333333333 | N35: =1/3 -> 0.3333333333
B36: =B30 -> Reconductor part of TGN-MFA 66kV Line
B37: =B31 -> Construct new 66kV line SLE-TGN-MFA (inc. underground)
B38: Primary/Secondary works at SLE
B40: Name | G40: $ Basis Reminder | H40: $ Reminder
G41: ='1_KMA'!$I$20 -> 2024-06-30 | H41: ='1_KMA'!$I$19 -> $millions | J41: =$J$29*J35 -> 0 | K41: =$J$29*K35 -> 0 | L41: =$J$29*L35 -> 14.76546125 | M41: =$J$29*M35 -> 14.76546125 | N41: 14.76546125 | O41: 0 | P41: 0 | Q41: 0 | R41: 0 | S41: 0 | T41: 0 | U41: 0 | V41: 0 | W41: 0 | X41: 0 | Y41: 0 | Z41: 0 | AA41: 0 | AB41: 0 | AC41: 0 | AD41: 0 | AE41: 0 | AF41: 0 | AG41: 0 | AH41: 0 | AI41: 0 | AJ41: 0 | AK41: 0 | AL41: 0 | AM41: 0 | AN41: 0 | AO41: 0 | AP41: 0 | AQ41: 0 | AR41: 0 | AS41: 0 | AT41: 0 | AU41: 0 | AV41: 0 | AW41: 0 | AX41: 0 | AY41: 0 | AZ41: 0 | BA41: 0 | BB41: 0 | BC41: 0 | BD41: 0 | BE41: 0 | BF41: 0 | BG41: 0
G42: ='1_KMA'!$I$20 -> 2024-06-30 | H42: ='1_KMA'!$I$19 -> $millions | J42: =$J$30*J36 -> 0 | K42: =$J$30*K36 -> 0 | L42: =$J$30*L36 -> 0 | M42: =$J$30*M36 -> 0 | N42: 0 | O42: 0 | P42: 0 | Q42: 0 | R42: 0 | S42: 0 | T42: 0 | U42: 0 | V42: 0 | W42: 0 | X42: 0 | Y42: 0 | Z42: 0 | AA42: 0 | AB42: 0 | AC42: 0 | AD42: 0 | AE42: 0 | AF42: 0 | AG42: 0 | AH42: 0 | AI42: 0 | AJ42: 0 | AK42: 0 | AL42: 0 | AM42: 0 | AN42: 0 | AO42: 0 | AP42: 0 | AQ42: 0 | AR42: 0 | AS42: 0 | AT42: 0 | AU42: 0 | AV42: 0 | AW42: 0 | AX42: 0 | AY42: 0 | AZ42: 0 | BA42: 0 | BB42: 0 | BC42: 0 | BD42: 0 | BE42: 0 | BF42: 0 | BG42: 0
G43: ='1_KMA'!$I$20 -> 2024-06-30 | H43: ='1_KMA'!$I$19 -> $millions | J43: =$J$31*J37 -> 0 | K43: =$J$31*K37 -> 0 | L43: =$J$31*L37 -> 0 | M43: =$J$31*M37 -> 0 | N43: 0 | O43: 0 | P43: 0 | Q43: 0 | R43: 0 | S43: 0 | T43: 0 | U43: 0 | V43: 0 | W43: 0 | X43: 0 | Y43: 0 | Z43: 0 | AA43: 0 | AB43: 0 | AC43: 0 | AD43: 0 | AE43: 0 | AF43: 0 | AG43: 0 | AH43: 0 | AI43: 0 | AJ43: 0 | AK43: 0 | AL43: 0 | AM43: 0 | AN43: 0 | AO43: 0 | AP43: 0 | AQ43: 0 | AR43: 0 | AS43: 0 | AT43: 0 | AU43: 0 | AV43: 0 | AW43: 0 | AX43: 0 | AY43: 0 | AZ43: 0 | BA43: 0 | BB43: 0 | BC43: 0 | BD43: 0 | BE43: 0 | BF43: 0 | BG43: 0
G44: ='1_KMA'!$I$20 -> 2024-06-30 | H44: ='1_KMA'!$I$19 -> $millions | J44: =$J$32*J38 -> 0 | K44: =$J$32*K38 -> 0 | L44: =$J$32*L38 -> 0 | M44: 0 | N44: 0 | O44: 0 | P44: 0 | Q44: 0 | R44: 0 | S44: 0 | T44: 0 | U44: 0 | V44: 0 | W44: 0 | X44: 0 | Y44: 0 | Z44: 0 | AA44: 0 | AB44: 0 | AC44: 0 | AD44: 0 | AE44: 0 | AF44: 0 | AG44: 0 | AH44: 0 | AI44: 0 | AJ44: 0 | AK44: 0 | AL44: 0 | AM44: 0 | AN44: 0 | AO44: 0 | AP44: 0 | AQ44: 0 | AR44: 0 | AS44: 0 | AT44: 0 | AU44: 0 | AV44: 0 | AW44: 0 | AX44: 0 | AY44: 0 | AZ44: 0 | BA44: 0 | BB44: 0 | BC44: 0 | BD44: 0 | BE44: 0 | BF44: 0 | BG44: 0
G46: $ Basis Reminder | H46: $ Reminder
B47: Total | G47: ='1_KMA'!$I$20 -> 2024-06-30 | H47: ='1_KMA'!$I$19 -> $millions | J47: =SUM(J41:J44) -> 0 | K47: =SUM(K41:K44) -> 0 | L47: =SUM(L41:L44) -> 14.76546125 | M47: 14.76546125 | N47: 14.76546125 | O47: 0 | P47: 0 | Q47: 0 | R47: 0 | S47: 0 | T47: 0 | U47: 0 | V47: 0 | W47: 0 | X47: 0 | Y47: 0 | Z47: 0 | AA47: 0 | AB47: 0 | AC47: 0 | AD47: 0 | AE47: 0 | AF47: 0 | AG47: 0 | AH47: 0 | AI47: 0 | AJ47: 0 | AK47: 0 | AL47: 0 | AM47: 0 | AN47: 0 | AO47: 0 | AP47: 0 | AQ47: 0 | AR47: 0 | AS47: 0 | AT47: 0 | AU47: 0 | AV47: 0 | AW47: 0 | AX47: 0 | AY47: 0 | AZ47: 0 | BA47: 0 | BB47: 0 | BC47: 0 | BD47: 0 | BE47: 0 | BF47: 0 | BG47: =SUM(BG41:BG44) -> 0
B49: Capex Offset
B52: Name | G52: $ Basis Reminder | H52: $ Reminder
G53: ='1_KMA'!$I$20 -> 2024-06-30 | H53: ='1_KMA'!$I$19 -> $millions
G54: ='1_KMA'!$I$20 -> 2024-06-30 | H54: ='1_KMA'!$I$19 -> $millions
G55: ='1_KMA'!$I$20 -> 2024-06-30 | H55: ='1_KMA'!$I$19 -> $millions
G56: ='1_KMA'!$I$20 -> 2024-06-30 | H56: ='1_KMA'!$I$19 -> $millions
G58: $ Basis Reminder | H58: $ Reminder
B59: Total | G59: ='1_KMA'!$I$20 -> 2024-06-30 | H59: ='1_KMA'!$I$19 -> $millions | J59: =SUM(J53:J56) -> 0 | K59: =SUM(K53:K56) -> 0 | L59: =SUM(L53:L56) -> 0 | M59: 0 | N59: 0 | O59: 0 | P59: 0 | Q59: 0 | R59: 0 | S59: 0 | T59: 0 | U59: 0 | V59: 0 | W59: 0 | X59: 0 | Y59: 0 | Z59: 0 | AA59: 0 | AB59: 0 | AC59: 0 | AD59: 0 | AE59: 0 | AF59: 0 | AG59: 0 | AH59: 0 | AI59: 0 | AJ59: 0 | AK59: 0 | AL59: 0 | AM59: 0 | AN59: 0 | AO59: 0 | AP59: 0 | AQ59: 0 | AR59: 0 | AS59: 0 | AT59: 0 | AU59: 0 | AV59: 0 | AW59: 0 | AX59: 0 | AY59: 0 | AZ59: 0 | BA59: 0 | BB59: 0 | BC59: 0 | BD59: 0 | BE59: 0 | BF59: 0 | BG59: 0
B61: Opex Build Up
B63: Name | H63: Unit | J63: Value
B64: Equipment maintenance (inc lines) | H64: 1% of project cost | J64: =0.01*SUM(J29:J32) -> 0.4429638376
B69: Name | H69: Unit | J69: Quantities
B70: =B64 -> Equipment maintenance (inc lines) | H70: [e.g., feeder km] | N70: 1 | O70: 1 | P70: 1 | Q70: 1 | R70: 1 | S70: 1 | T70: 1 | U70: 1 | V70: 1 | W70: 1 | X70: 1 | Y70: 1 | Z70: 1 | AA70: 1 | AB70: 1 | AC70: 1 | AD70: 1 | AE70: 1 | AF70: 1 | AG70: 1 | AH70: 1 | AI70: 1 | AJ70: 1 | AK70: 1 | AL70: 1 | AM70: 1
B75: Name | G75: $ Basis Reminder | H75: $ Reminder
B76: =B64 -> Equipment maintenance (inc lines) | G76: ='1_KMA'!$I$20 -> 2024-06-30 | H76: ='1_KMA'!$I$19 -> $millions | J76: =$J$64*J70 -> 0 | K76: =$J$64*K70 -> 0 | L76: =$J$64*L70 -> 0 | M76: =$J$64*M70 -> 0 | N76: 0.4429638376 | O76: 0.4429638376 | P76: 0.4429638376 | Q76: 0.4429638376 | R76: 0.4429638376 | S76: 0.4429638376 | T76: 0.4429638376 | U76: 0.4429638376 | V76: 0.4429638376 | W76: 0.4429638376 | X76: 0.4429638376 | Y76: 0.4429638376 | Z76: 0.4429638376 | AA76: 0.4429638376 | AB76: 0.4429638376 | AC76: 0.4429638376 | AD76: 0.4429638376 | AE76: 0.4429638376 | AF76: 0.4429638376 | AG76: 0.4429638376 | AH76: 0.4429638376 | AI76: 0.4429638376 | AJ76: 0.4429638376 | AK76: 0.4429638376 | AL76: 0.4429638376 | AM76: 0.4429638376 | AN76: 0 | AO76: 0 | AP76: 0 | AQ76: 0 | AR76: 0 | AS76: 0 | AT76: 0 | AU76: 0 | AV76: 0 | AW76: 0 | AX76: 0 | AY76: 0 | AZ76: 0 | BA76: 0 | BB76: 0 | BC76: 0 | BD76: 0 | BE76: 0 | BF76: 0 | BG76: 0
G77: ='1_KMA'!$I$20 -> 2024-06-30 | H77: ='1_KMA'!$I$19 -> $millions | J77: =$J$65*J71 -> 0 | K77: =$J$65*K71 -> 0 | L77: =$J$65*L71 -> 0 | M77: =$J$65*M71 -> 0 | N77: 0 | O77: 0 | P77: 0 | Q77: 0 | R77: 0 | S77: 0 | T77: 0 | U77: 0 | V77: 0 | W77: 0 | X77: 0 | Y77: 0 | Z77: 0 | AA77: 0 | AB77: 0 | AC77: 0 | AD77: 0 | AE77: 0 | AF77: 0 | AG77: 0 | AH77: 0 | AI77: 0 | AJ77: 0 | AK77: 0 | AL77: 0 | AM77: 0 | AN77: 0 | AO77: 0 | AP77: 0 | AQ77: 0 | AR77: 0 | AS77: 0 | AT77: 0 | AU77: 0 | AV77: 0 | AW77: 0 | AX77: 0 | AY77: 0 | AZ77: 0 | BA77: 0 | BB77: 0 | BC77: 0 | BD77: 0 | BE77: 0 | BF77: 0 | BG77: 0
G78: ='1_KMA'!$I$20 -> 2024-06-30 | H78: ='1_KMA'!$I$19 -> $millions | J78: =$J$66*J72 -> 0 | K78: =$J$66*K72 -> 0 | L78: =$J$66*L72 -> 0 | M78: 0 | N78: 0 | O78: 0 | P78: 0 | Q78: 0 | R78: 0 | S78: 0 | T78: 0 | U78: 0 | V78: 0 | W78: 0 | X78: 0 | Y78: 0 | Z78: 0 | AA78: 0 | AB78: 0 | AC78: 0 | AD78: 0 | AE78: 0 | AF78: 0 | AG78: 0 | AH78: 0 | AI78: 0 | AJ78: 0 | AK78: 0 | AL78: 0 | AM78: 0 | AN78: 0 | AO78: 0 | AP78: 0 | AQ78: 0 | AR78: 0 | AS78: 0 | AT78: 0 | AU78: 0 | AV78: 0 | AW78: 0 | AX78: 0 | AY78: 0 | AZ78: 0 | BA78: 0 | BB78: 0 | BC78: 0 | BD78: 0 | BE78: 0 | BF78: 0 | BG78: 0
G79: ='1_KMA'!$I$20 -> 2024-06-30 | H79: ='1_KMA'!$I$19 -> $millions | J79: =$J$67*J73 -> 0 | K79: =$J$67*K73 -> 0 | L79: =$J$67*L73 -> 0 | M79: 0 | N79: 0 | O79: 0 | P79: 0 | Q79: 0 | R79: 0 | S79: 0 | T79: 0 | U79: 0 | V79: 0 | W79: 0 | X79: 0 | Y79: 0 | Z79: 0 | AA79: 0 | AB79: 0 | AC79: 0 | AD79: 0 | AE79: 0 | AF79: 0 | AG79: 0 | AH79: 0 | AI79: 0 | AJ79: 0 | AK79: 0 | AL79: 0 | AM79: 0 | AN79: 0 | AO79: 0 | AP79: 0 | AQ79: 0 | AR79: 0 | AS79: 0 | AT79: 0 | AU79: 0 | AV79: 0 | AW79: 0 | AX79: 0 | AY79: 0 | AZ79: 0 | BA79: 0 | BB79: 0 | BC79: 0 | BD79: 0 | BE79: 0 | BF79: 0 | BG79: 0
G81: $ Basis Reminder | H81: $ Reminder
B82: Total | G82: ='1_KMA'!$I$20 -> 2024-06-30 | H82: ='1_KMA'!$I$19 -> $millions | J82: =SUM(J76:J79) -> 0 | K82: =SUM(K76:K79) -> 0 | L82: =SUM(L76:L79) -> 0 | M82: 0 | N82: 0.4429638376 | O82: 0.4429638376 | P82: 0.4429638376 | Q82: 0.4429638376 | R82: 0.4429638376 | S82: 0.4429638376 | T82: 0.4429638376 | U82: 0.4429638376 | V82: 0.4429638376 | W82: 0.4429638376 | X82: 0.4429638376 | Y82: 0.4429638376 | Z82: 0.4429638376 | AA82: 0.4429638376 | AB82: 0.4429638376 | AC82: 0.4429638376 | AD82: 0.4429638376 | AE82: 0.4429638376 | AF82: 0.4429638376 | AG82: 0.4429638376 | AH82: 0.4429638376 | AI82: 0.4429638376 | AJ82: 0.4429638376 | AK82: 0.4429638376 | AL82: 0.4429638376 | AM82: 0.4429638376 | AN82: 0 | AO82: 0 | AP82: 0 | AQ82: 0 | AR82: 0 | AS82: 0 | AT82: 0 | AU82: 0 | AV82: 0 | AW82: 0 | AX82: 0 | AY82: 0 | AZ82: 0 | BA82: 0 | BB82: 0 | BC82: 0 | BD82: 0 | BE82: 0 | BF82: 0 | BG82: =SUM(BG76:BG79) -> 0
B84: Benefits Inputs
B86: Value of EUE
G89: $ Basis Reminder | H89: $ Reminder
B90: Value of Expected Unserved Energy (EUE) | G90: ='1_KMA'!$I$20 -> 2024-06-30 | H90: ='1_KMA'!$I$19 -> $millions | J90: 0 | K90: 0 | L90: 0.1047 | M90: 1.0108 | N90: 2.715730736e-10 | O90: 1.868833925e-09 | P90: 3.978998999e-09 | Q90: 6.760925617e-09 | R90: 0.1157455451 | S90: 0.5178444666 | T90: 1.384618033 | U90: 2.737422741 | V90: 4.642590931 | W90: 7.353118071 | X90: 7.353118071 | Y90: 7.353118071 | Z90: 7.353118071 | AA90: 7.353118071 | AB90: 7.353118071 | AC90: 7.353118071 | AD90: 7.353118071 | AE90: 7.353118071 | AF90: 7.353118071 | AG90: 7.353118071 | AH90: 7.353118071 | AI90: 7.353118071 | AJ90: 7.353118071 | AK90: 7.353118071 | AL90: 7.353118071 | AM90: 7.353118071
G92: $ Basis Reminder | H92: $ Reminder
B93: Total | G93: ='1_KMA'!$I$20 -> 2024-06-30 | H93: ='1_KMA'!$I$19 -> $millions | J93: =J90 -> 0 | K93: =K90 -> 0 | L93: 0.1047 | M93: 1.0108 | N93: 2.715730736e-10 | O93: 1.868833925e-09 | P93: 3.978998999e-09 | Q93: 6.760925617e-09 | R93: 0.1157455451 | S93: 0.5178444666 | T93: 1.384618033 | U93: 2.737422741 | V93: 4.642590931 | W93: 7.353118071 | X93: 7.353118071 | Y93: 7.353118071 | Z93: 7.353118071 | AA93: 7.353118071 | AB93: 7.353118071 | AC93: 7.353118071 | AD93: 7.353118071 | AE93: 7.353118071 | AF93: 7.353118071 | AG93: 7.353118071 | AH93: 7.353118071 | AI93: 7.353118071 | AJ93: 7.353118071 | AK93: 7.353118071 | AL93: 7.353118071 | AM93: 7.353118071 | AN93: 0 | AO93: 0 | AP93: 0 | AQ93: 0 | AR93: 0 | AS93: 0 | AT93: 0 | AU93: 0 | AV93: 0 | AW93: 0 | AX93: 0 | AY93: 0 | AZ93: 0 | BA93: 0 | BB93: 0 | BC93: 0 | BD93: 0 | BE93: 0 | BF93: 0 | BG93: 0

Sheet 2.1_Op4
B1: General Inputs: Option 4 | I1: Regulatory Period Indicator | J1: ='1_KMA'!J30 -> 0 | K1: ='1_KMA'!K30 -> 0 | L1: ='1_KMA'!L30 -> 1 | M1: ='1_KMA'!M30 -> 1 | N1: ='1_KMA'!N30 -> 1 | O1: ='1_KMA'!O30 -> 1 | P1: ='1_KMA'!P30 -> 1 | Q1: ='1_KMA'!Q30 -> 0 | R1: ='1_KMA'!R30 -> 0 | S1: ='1_KMA'!S30 -> 0 | T1: ='1_KMA'!T30 -> 0 | U1: ='1_KMA'!U30 -> 0 | V1: ='1_KMA'!V30 -> 0 | W1: ='1_KMA'!W30 -> 0 | X1: ='1_KMA'!X30 -> 0 | Y1: ='1_KMA'!Y30 -> 0 | Z1: ='1_KMA'!Z30 -> 0 | AA1: ='1_KMA'!AA30 -> 0 | AB1: ='1_KMA'!AB30 -> 0 | AC1: ='1_KMA'!AC30 -> 0 | AD1: ='1_KMA'!AD30 -> 0 | AE1: ='1_KMA'!AE30 -> 0 | AF1: ='1_KMA'!AF30 -> 0 | AG1: ='1_KMA'!AG30 -> 0 | AH1: ='1_KMA'!AH30 -> 0 | AI1: ='1_KMA'!AI30 -> 0 | AJ1: ='1_KMA'!AJ30 -> 0 | AK1: ='1_KMA'!AK30 -> 0 | AL1: ='1_KMA'!AL30 -> 0 | AM1: ='1_KMA'!AM30 -> 0 | AN1: ='1_KMA'!AN30 -> 0 | AO1: ='1_KMA'!AO30 -> 0 | AP1: ='1_KMA'!AP30 -> 0 | AQ1: ='1_KMA'!AQ30 -> 0 | AR1: ='1_KMA'!AR30 -> 0 | AS1: ='1_KMA'!AS30 -> 0 | AT1: ='1_KMA'!AT30 -> 0 | AU1: ='1_KMA'!AU30 -> 0 | AV1: ='1_KMA'!AV30 -> 0 | AW1: ='1_KMA'!AW30 -> 0 | AX1: ='1_KMA'!AX30 -> 0 | AY1: ='1_KMA'!AY30 -> 0 | AZ1: ='1_KMA'!AZ30 -> 0 | BA1: ='1_KMA'!BA30 -> 0 | BB1: ='1_KMA'!BB30 -> 0 | BC1: ='1_KMA'!BC30 -> 0 | BD1: ='1_KMA'!BD30 -> 0 | BE1: ='1_KMA'!BE30 -> 0 | BF1: ='1_KMA'!BF30 -> 0 | BG1: ='1_KMA'!BG30 -> 0
B2: =Cover!$C$9 -> AusNet Services | I2: Period Start Date | J2: ='1_KMA'!J31 -> 2024-07-01 | K2: ='1_KMA'!K31 -> 2025-07-01 | L2: ='1_KMA'!L31 -> 2026-07-01 | M2: ='1_KMA'!M31 -> 2027-07-01 | N2: ='1_KMA'!N31 -> 2028-07-01 | O2: ='1_KMA'!O31 -> 2029-07-01 | P2: ='1_KMA'!P31 -> 2030-07-01 | Q2: ='1_KMA'!Q31 -> 2031-07-01 | R2: ='1_KMA'!R31 -> 2032-07-01 | S2: ='1_KMA'!S31 -> 2033-07-01 | T2: ='1_KMA'!T31 -> 2034-07-01 | U2: ='1_KMA'!U31 -> 2035-07-01 | V2: ='1_KMA'!V31 -> 2036-07-01 | W2: ='1_KMA'!W31 -> 2037-07-01 | X2: ='1_KMA'!X31 -> 2038-07-01 | Y2: ='1_KMA'!Y31 -> 2039-07-01 | Z2: ='1_KMA'!Z31 -> 2040-07-01 | AA2: ='1_KMA'!AA31 -> 2041-07-01 | AB2: ='1_KMA'!AB31 -> 2042-07-01 | AC2: ='1_KMA'!AC31 -> 2043-07-01 | AD2: ='1_KMA'!AD31 -> 2044-07-01 | AE2: ='1_KMA'!AE31 -> 2045-07-01 | AF2: ='1_KMA'!AF31 -> 2046-07-01 | AG2: ='1_KMA'!AG31 -> 2047-07-01 | AH2: ='1_KMA'!AH31 -> 2048-07-01 | AI2: ='1_KMA'!AI31 -> 2049-07-01 | AJ2: ='1_KMA'!AJ31 -> 2050-07-01 | AK2: ='1_KMA'!AK31 -> 2051-07-01 | AL2: ='1_KMA'!AL31 -> 2052-07-01 | AM2: ='1_KMA'!AM31 -> 2053-07-01 | AN2: ='1_KMA'!AN31 -> 2054-07-01 | AO2: ='1_KMA'!AO31 -> 2055-07-01 | AP2: ='1_KMA'!AP31 -> 2056-07-01 | AQ2: ='1_KMA'!AQ31 -> 2057-07-01 | AR2: ='1_KMA'!AR31 -> 2058-07-01 | AS2: ='1_KMA'!AS31 -> 2059-07-01 | AT2: ='1_KMA'!AT31 -> 2060-07-01 | AU2: ='1_KMA'!AU31 -> 2061-07-01 | AV2: ='1_KMA'!AV31 -> 2062-07-01 | AW2: ='1_KMA'!AW31 -> 2063-07-01 | AX2: ='1_KMA'!AX31 -> 2064-07-01 | AY2: ='1_KMA'!AY31 -> 2065-07-01 | AZ2: ='1_KMA'!AZ31 -> 2066-07-01 | BA2: ='1_KMA'!BA31 -> 2067-07-01 | BB2: ='1_KMA'!BB31 -> 2068-07-01 | BC2: ='1_KMA'!BC31 -> 2069-07-01 | BD2: ='1_KMA'!BD31 -> 2070-07-01 | BE2: ='1_KMA'!BE31 -> 2071-07-01 | BF2: ='1_KMA'!BF31 -> 2072-07-01 | BG2: ='1_KMA'!BG31 -> 2073-07-01
B3: =Cover!$C$10 -> Business Case Evaluation | I3: Period End Date | J3: ='1_KMA'!J32 -> 2025-06-30 | K3: ='1_KMA'!K32 -> 2026-06-30 | L3: ='1_KMA'!L32 -> 2027-06-30 | M3: ='1_KMA'!M32 -> 2028-06-30 | N3: ='1_KMA'!N32 -> 2029-06-30 | O3: ='1_KMA'!O32 -> 2030-06-30 | P3: ='1_KMA'!P32 -> 2031-06-30 | Q3: ='1_KMA'!Q32 -> 2032-06-30 | R3: ='1_KMA'!R32 -> 2033-06-30 | S3: ='1_KMA'!S32 -> 2034-06-30 | T3: ='1_KMA'!T32 -> 2035-06-30 | U3: ='1_KMA'!U32 -> 2036-06-30 | V3: ='1_KMA'!V32 -> 2037-06-30 | W3: ='1_KMA'!W32 -> 2038-06-30 | X3: ='1_KMA'!X32 -> 2039-06-30 | Y3: ='1_KMA'!Y32 -> 2040-06-30 | Z3: ='1_KMA'!Z32 -> 2041-06-30 | AA3: ='1_KMA'!AA32 -> 2042-06-30 | AB3: ='1_KMA'!AB32 -> 2043-06-30 | AC3: ='1_KMA'!AC32 -> 2044-06-30 | AD3: ='1_KMA'!AD32 -> 2045-06-30 | AE3: ='1_KMA'!AE32 -> 2046-06-30 | AF3: ='1_KMA'!AF32 -> 2047-06-30 | AG3: ='1_KMA'!AG32 -> 2048-06-30 | AH3: ='1_KMA'!AH32 -> 2049-06-30 | AI3: ='1_KMA'!AI32 -> 2050-06-30 | AJ3: ='1_KMA'!AJ32 -> 2051-06-30 | AK3: ='1_KMA'!AK32 -> 2052-06-30 | AL3: ='1_KMA'!AL32 -> 2053-06-30 | AM3: ='1_KMA'!AM32 -> 2054-06-30 | AN3: ='1_KMA'!AN32 -> 2055-06-30 | AO3: ='1_KMA'!AO32 -> 2056-06-30 | AP3: ='1_KMA'!AP32 -> 2057-06-30 | AQ3: ='1_KMA'!AQ32 -> 2058-06-30 | AR3: ='1_KMA'!AR32 -> 2059-06-30 | AS3: ='1_KMA'!AS32 -> 2060-06-30 | AT3: ='1_KMA'!AT32 -> 2061-06-30 | AU3: ='1_KMA'!AU32 -> 2062-06-30 | AV3: ='1_KMA'!AV32 -> 2063-06-30 | AW3: ='1_KMA'!AW32 -> 2064-06-30 | AX3: ='1_KMA'!AX32 -> 2065-06-30 | AY3: ='1_KMA'!AY32 -> 2066-06-30 | AZ3: ='1_KMA'!AZ32 -> 2067-06-30 | BA3: ='1_KMA'!BA32 -> 2068-06-30 | BB3: ='1_KMA'!BB32 -> 2069-06-30 | BC3: ='1_KMA'!BC32 -> 2070-06-30 | BD3: ='1_KMA'!BD32 -> 2071-06-30 | BE3: ='1_KMA'!BE32 -> 2072-06-30 | BF3: ='1_KMA'!BF32 -> 2073-06-30 | BG3: ='1_KMA'!BG32 -> 2074-06-30
B4: =Cover!$C$11 -> Eastern Cranbourne 66kV loop augmentation | I4: Project Year | J4: ='1_KMA'!J33 -> 1 | K4: ='1_KMA'!K33 -> 2 | L4: ='1_KMA'!L33 -> 3 | M4: ='1_KMA'!M33 -> 4 | N4: ='1_KMA'!N33 -> 5 | O4: ='1_KMA'!O33 -> 6 | P4: ='1_KMA'!P33 -> 7 | Q4: ='1_KMA'!Q33 -> 8 | R4: ='1_KMA'!R33 -> 9 | S4: ='1_KMA'!S33 -> 10 | T4: ='1_KMA'!T33 -> 11 | U4: ='1_KMA'!U33 -> 12 | V4: ='1_KMA'!V33 -> 13 | W4: ='1_KMA'!W33 -> 14 | X4: ='1_KMA'!X33 -> 15 | Y4: ='1_KMA'!Y33 -> 16 | Z4: ='1_KMA'!Z33 -> 17 | AA4: ='1_KMA'!AA33 -> 18 | AB4: ='1_KMA'!AB33 -> 19 | AC4: ='1_KMA'!AC33 -> 20 | AD4: ='1_KMA'!AD33 -> 21 | AE4: ='1_KMA'!AE33 -> 22 | AF4: ='1_KMA'!AF33 -> 23 | AG4: ='1_KMA'!AG33 -> 24 | AH4: ='1_KMA'!AH33 -> 25 | AI4: ='1_KMA'!AI33 -> 26 | AJ4: ='1_KMA'!AJ33 -> 27 | AK4: ='1_KMA'!AK33 -> 28 | AL4: ='1_KMA'!AL33 -> 29 | AM4: ='1_KMA'!AM33 -> 30 | AN4: ='1_KMA'!AN33 -> 31 | AO4: ='1_KMA'!AO33 -> 32 | AP4: ='1_KMA'!AP33 -> 33 | AQ4: ='1_KMA'!AQ33 -> 34 | AR4: ='1_KMA'!AR33 -> 35 | AS4: ='1_KMA'!AS33 -> 36 | AT4: ='1_KMA'!AT33 -> 37 | AU4: ='1_KMA'!AU33 -> 38 | AV4: ='1_KMA'!AV33 -> 39 | AW4: ='1_KMA'!AW33 -> 40 | AX4: ='1_KMA'!AX33 -> 41 | AY4: ='1_KMA'!AY33 -> 42 | AZ4: ='1_KMA'!AZ33 -> 43 | BA4: ='1_KMA'!BA33 -> 44 | BB4: ='1_KMA'!BB33 -> 45 | BC4: ='1_KMA'!BC33 -> 46 | BD4: ='1_KMA'!BD33 -> 47 | BE4: ='1_KMA'!BE33 -> 48 | BF4: ='1_KMA'!BF33 -> 49 | BG4: ='1_KMA'!BG33 -> 50
I5: Financial Year | J5: ='1_KMA'!J34 -> 2025 | K5: ='1_KMA'!K34 -> 2026 | L5: ='1_KMA'!L34 -> 2027 | M5: ='1_KMA'!M34 -> 2028 | N5: ='1_KMA'!N34 -> 2029 | O5: ='1_KMA'!O34 -> 2030 | P5: ='1_KMA'!P34 -> 2031 | Q5: ='1_KMA'!Q34 -> 2032 | R5: ='1_KMA'!R34 -> 2033 | S5: ='1_KMA'!S34 -> 2034 | T5: ='1_KMA'!T34 -> 2035 | U5: ='1_KMA'!U34 -> 2036 | V5: ='1_KMA'!V34 -> 2037 | W5: ='1_KMA'!W34 -> 2038 | X5: ='1_KMA'!X34 -> 2039 | Y5: ='1_KMA'!Y34 -> 2040 | Z5: ='1_KMA'!Z34 -> 2041 | AA5: ='1_KMA'!AA34 -> 2042 | AB5: ='1_KMA'!AB34 -> 2043 | AC5: ='1_KMA'!AC34 -> 2044 | AD5: ='1_KMA'!AD34 -> 2045 | AE5: ='1_KMA'!AE34 -> 2046 | AF5: ='1_KMA'!AF34 -> 2047 | AG5: ='1_KMA'!AG34 -> 2048 | AH5: ='1_KMA'!AH34 -> 2049 | AI5: ='1_KMA'!AI34 -> 2050 | AJ5: ='1_KMA'!AJ34 -> 2051 | AK5: ='1_KMA'!AK34 -> 2052 | AL5: ='1_KMA'!AL34 -> 2053 | AM5: ='1_KMA'!AM34 -> 2054 | AN5: ='1_KMA'!AN34 -> 2055 | AO5: ='1_KMA'!AO34 -> 2056 | AP5: ='1_KMA'!AP34 -> 2057 | AQ5: ='1_KMA'!AQ34 -> 2058 | AR5: ='1_KMA'!AR34 -> 2059 | AS5: ='1_KMA'!AS34 -> 2060 | AT5: ='1_KMA'!AT34 -> 2061 | AU5: ='1_KMA'!AU34 -> 2062 | AV5: ='1_KMA'!AV34 -> 2063 | AW5: ='1_KMA'!AW34 -> 2064 | AX5: ='1_KMA'!AX34 -> 2065 | AY5: ='1_KMA'!AY34 -> 2066 | AZ5: ='1_KMA'!AZ34 -> 2067 | BA5: ='1_KMA'!BA34 -> 2068 | BB5: ='1_KMA'!BB34 -> 2069 | BC5: ='1_KMA'!BC34 -> 2070 | BD5: ='1_KMA'!BD34 -> 2071 | BE5: ='1_KMA'!BE34 -> 2072 | BF5: ='1_KMA'!BF34 -> 2073 | BG5: ='1_KMA'!BG34 -> 2074
B7: Summary
B9: Costs | G9: $ Basis Reminder | H9: $ Reminder
B10: Capex | G10: ='1_KMA'!$I$20 -> 2024-06-30 | H10: ='1_KMA'!$I$19 -> $millions | J10: =J47 -> 0 | K10: =K47 -> 0 | L10: 0 | M10: 0 | N10: 0 | O10: 16.76366667 | P10: 16.76366667 | Q10: 16.76366667 | R10: 0 | S10: 0 | T10: 0 | U10: 0 | V10: 0 | W10: 0 | X10: 0 | Y10: 0 | Z10: 0 | AA10: 0 | AB10: 0 | AC10: 0 | AD10: 0 | AE10: 0 | AF10: 0 | AG10: 0 | AH10: 0 | AI10: 0 | AJ10: 0 | AK10: 0 | AL10: 0 | AM10: 0 | AN10: 0 | AO10: 0 | AP10: 0 | AQ10: 0 | AR10: 0 | AS10: 0 | AT10: 0 | AU10: 0 | AV10: 0 | AW10: 0 | AX10: 0 | AY10: 0 | AZ10: 0 | BA10: 0 | BB10: 0 | BC10: 0 | BD10: 0 | BE10: 0 | BF10: 0 | BG10: 0
B11: Capex offset | G11: ='1_KMA'!$I$20 -> 2024-06-30 | H11: ='1_KMA'!$I$19 -> $millions | J11: =-J59 -> 0 | K11: =-K59 -> 0 | L11: 0 | M11: 0 | N11: 0 | O11: 0 | P11: 0 | Q11: 0 | R11: 0 | S11: 0 | T11: 0 | U11: 0 | V11: 0 | W11: 0 | X11: 0 | Y11: 0 | Z11: 0 | AA11: 0 | AB11: 0 | AC11: 0 | AD11: 0 | AE11: 0 | AF11: 0 | AG11: 0 | AH11: 0 | AI11: 0 | AJ11: 0 | AK11: 0 | AL11: 0 | AM11: 0 | AN11: 0 | AO11: 0 | AP11: 0 | AQ11: 0 | AR11: 0 | AS11: 0 | AT11: 0 | AU11: 0 | AV11: 0 | AW11: 0 | AX11: 0 | AY11: 0 | AZ11: 0 | BA11: 0 | BB11: 0 | BC11: 0 | BD11: 0 | BE11: 0 | BF11: 0 | BG11: 0
B12: Opex | G12: ='1_KMA'!$I$20 -> 2024-06-30 | H12: ='1_KMA'!$I$19 -> $millions | J12: =J82 -> 0 | K12: =K82 -> 0 | L12: 0 | M12: 0 | N12: 0 | O12: 0 | P12: 0 | Q12: 0.50291 | R12: 0.50291 | S12: 0.50291 | T12: 0.50291 | U12: 0.50291 | V12: 0.50291 | W12: 0.50291 | X12: 0.50291 | Y12: 0.50291 | Z12: 0.50291 | AA12: 0.50291 | AB12: 0.50291 | AC12: 0.50291 | AD12: 0.50291 | AE12: 0.50291 | AF12: 0.50291 | AG12: 0.50291 | AH12: 0.50291 | AI12: 0.50291 | AJ12: 0.50291 | AK12: 0.50291 | AL12: 0.50291 | AM12: 0.50291 | AN12: 0 | AO12: 0 | AP12: 0 | AQ12: 0 | AR12: 0 | AS12: 0 | AT12: 0 | AU12: 0 | AV12: 0 | AW12: 0 | AX12: 0 | AY12: 0 | AZ12: 0 | BA12: 0 | BB12: 0 | BC12: 0 | BD12: 0 | BE12: 0 | BF12: 0 | BG12: 0
B13: Total | G13: ='1_KMA'!$I$20 -> 2024-06-30 | H13: ='1_KMA'!$I$19 -> $millions | J13: =SUM(J10:J12) -> 0 | K13: =SUM(K10:K12) -> 0 | L13: 0 | M13: 0 | N13: 0 | O13: 16.76366667 | P13: 16.76366667 | Q13: 17.26657667 | R13: 0.50291 | S13: 0.50291 | T13: 0.50291 | U13: 0.50291 | V13: 0.50291 | W13: 0.50291 | X13: 0.50291 | Y13: 0.50291 | Z13: 0.50291 | AA13: 0.50291 | AB13: 0.50291 | AC13: 0.50291 | AD13: 0.50291 | AE13: 0.50291 | AF13: 0.50291 | AG13: 0.50291 | AH13: 0.50291 | AI13: 0.50291 | AJ13: 0.50291 | AK13: 0.50291 | AL13: 0.50291 | AM13: 0.50291 | AN13: 0 | AO13: 0 | AP13: 0 | AQ13: 0 | AR13: 0 | AS13: 0 | AT13: 0 | AU13: 0 | AV13: 0 | AW13: 0 | AX13: 0 | AY13: 0 | AZ13: 0 | BA13: 0 | BB13: 0 | BC13: 0 | BD13: 0 | BE13: 0 | BF13: 0 | BG13: 0
B15: Benefits | G15: $ Basis Reminder | H15: $ Reminder
B16: Value of EUE | G16: ='1_KMA'!$I$20 -> 2024-06-30 | H16: ='1_KMA'!$I$19 -> $millions | J16: =-J93 -> 0 | K16: =-K93 -> 0 | L16: -0.1047 | M16: -1.0108 | N16: -2.858 | O16: -0.864 | P16: -2.2109 | Q16: -0.7501607257 | R16: -1.802497874 | S16: -3.367381953 | T16: -5.622717943 | U16: -8.715095583 | V16: -12.96126933 | W16: -18.53765197 | X16: -18.53765197 | Y16: -18.53765197 | Z16: -18.53765197 | AA16: -18.53765197 | AB16: -18.53765197 | AC16: -18.53765197 | AD16: -18.53765197 | AE16: -18.53765197 | AF16: -18.53765197 | AG16: -18.53765197 | AH16: -18.53765197 | AI16: -18.53765197 | AJ16: -18.53765197 | AK16: -18.53765197 | AL16: -18.53765197 | AM16: -18.53765197 | AN16: 0 | AO16: 0 | AP16: 0 | AQ16: 0 | AR16: 0 | AS16: 0 | AT16: 0 | AU16: 0 | AV16: 0 | AW16: 0 | AX16: 0 | AY16: 0 | AZ16: 0 | BA16: 0 | BB16: 0 | BC16: 0 | BD16: 0 | BE16: 0 | BF16: 0 | BG16: 0
B21: Total | G21: ='1_KMA'!$I$20 -> 2024-06-30 | H21: ='1_KMA'!$I$19 -> $millions | J21: =SUM(J16:J20) -> 0 | K21: =SUM(K16:K20) -> 0 | L21: -0.1047 | M21: -1.0108 | N21: -2.858 | O21: -0.864 | P21: -2.2109 | Q21: -0.7501607257 | R21: -1.802497874 | S21: -3.367381953 | T21: -5.622717943 | U21: -8.715095583 | V21: -12.96126933 | W21: -18.53765197 | X21: -18.53765197 | Y21: -18.53765197 | Z21: -18.53765197 | AA21: -18.53765197 | AB21: -18.53765197 | AC21: -18.53765197 | AD21: -18.53765197 | AE21: -18.53765197 | AF21: -18.53765197 | AG21: -18.53765197 | AH21: -18.53765197 | AI21: -18.53765197 | AJ21: -18.53765197 | AK21: -18.53765197 | AL21: -18.53765197 | AM21: -18.53765197 | AN21: 0 | AO21: 0 | AP21: 0 | AQ21: 0 | AR21: 0 | AS21: 0 | AT21: 0 | AU21: 0 | AV21: 0 | AW21: 0 | AX21: 0 | AY21: 0 | AZ21: 0 | BA21: 0 | BB21: 0 | BC21: 0 | BD21: 0 | BE21: 0 | BF21: 0 | BG21: 0
B24: Cost Inputs
B26: Capex Build Up
B28: Name | H28: Unit | J28: Unit Rate
B29: New 66kV Line between CBTS and PHM | J29: 50.291
B30: PHM Enabling works
B31: CBTS enabling works
B34: Name | H34: Unit | J34: Quantities
B35: =B29 -> New 66kV Line between CBTS and PHM | O35: =1/3 -> 0.3333333333 | P35: =1/3 -> 0.3333333333 | Q35: =1/3 -> 0.3333333333
B36: =B30 -> PHM Enabling works
B37: =B31 -> CBTS enabling works
B40: Name | G40: $ Basis Reminder | H40: $ Reminder
B41: =B29 -> New 66kV Line between CBTS and PHM | G41: ='1_KMA'!$I$20 -> 2024-06-30 | H41: ='1_KMA'!$I$19 -> $millions | J41: =$J$29*J35 -> 0 | K41: =$J$29*K35 -> 0 | L41: =$J$29*L35 -> 0 | M41: =$J$29*M35 -> 0 | N41: 0 | O41: 16.76366667 | P41: 16.76366667 | Q41: 16.76366667 | R41: 0 | S41: 0 | T41: 0 | U41: 0 | V41: 0 | W41: 0 | X41: 0 | Y41: 0 | Z41: 0 | AA41: 0 | AB41: 0 | AC41: 0 | AD41: 0 | AE41: 0 | AF41: 0 | AG41: 0 | AH41: 0 | AI41: 0 | AJ41: 0 | AK41: 0 | AL41: 0 | AM41: 0 | AN41: 0 | AO41: 0 | AP41: 0 | AQ41: 0 | AR41: 0 | AS41: 0 | AT41: 0 | AU41: 0 | AV41: 0 | AW41: 0 | AX41: 0 | AY41: 0 | AZ41: 0 | BA41: 0 | BB41: 0 | BC41: 0 | BD41: 0 | BE41: 0 | BF41: 0 | BG41: 0
B42: =B30 -> PHM Enabling works | G42: ='1_KMA'!$I$20 -> 2024-06-30 | H42: ='1_KMA'!$I$19 -> $millions | J42: =$J$30*J36 -> 0 | K42: =$J$30*K36 -> 0 | L42: =$J$30*L36 -> 0 | M42: =$J$30*M36 -> 0 | N42: 0 | O42: 0 | P42: 0 | Q42: 0 | R42: 0 | S42: 0 | T42: 0 | U42: 0 | V42: 0 | W42: 0 | X42: 0 | Y42: 0 | Z42: 0 | AA42: 0 | AB42: 0 | AC42: 0 | AD42: 0 | AE42: 0 | AF42: 0 | AG42: 0 | AH42: 0 | AI42: 0 | AJ42: 0 | AK42: 0 | AL42: 0 | AM42: 0 | AN42: 0 | AO42: 0 | AP42: 0 | AQ42: 0 | AR42: 0 | AS42: 0 | AT42: 0 | AU42: 0 | AV42: 0 | AW42: 0 | AX42: 0 | AY42: 0 | AZ42: 0 | BA42: 0 | BB42: 0 | BC42: 0 | BD42: 0 | BE42: 0 | BF42: 0 | BG42: 0
B43: =B31 -> CBTS enabling works | G43: ='1_KMA'!$I$20 -> 2024-06-30 | H43: ='1_KMA'!$I$19 -> $millions | J43: =$J$31*J37 -> 0 | K43: =$J$31*K37 -> 0 | L43: =$J$31*L37 -> 0 | M43: 0 | N43: 0 | O43: 0 | P43: 0 | Q43: 0 | R43: 0 | S43: 0 | T43: 0 | U43: 0 | V43: 0 | W43: 0 | X43: 0 | Y43: 0 | Z43: 0 | AA43: 0 | AB43: 0 | AC43: 0 | AD43: 0 | AE43: 0 | AF43: 0 | AG43: 0 | AH43: 0 | AI43: 0 | AJ43: 0 | AK43: 0 | AL43: 0 | AM43: 0 | AN43: 0 | AO43: 0 | AP43: 0 | AQ43: 0 | AR43: 0 | AS43: 0 | AT43: 0 | AU43: 0 | AV43: 0 | AW43: 0 | AX43: 0 | AY43: 0 | AZ43: 0 | BA43: 0 | BB43: 0 | BC43: 0 | BD43: 0 | BE43: 0 | BF43: 0 | BG43: 0
G44: ='1_KMA'!$I$20 -> 2024-06-30 | H44: ='1_KMA'!$I$19 -> $millions | J44: =$J$32*J38 -> 0 | K44: =$J$32*K38 -> 0 | L44: =$J$32*L38 -> 0 | M44: 0 | N44: 0 | O44: 0 | P44: 0 | Q44: 0 | R44: 0 | S44: 0 | T44: 0 | U44: 0 | V44: 0 | W44: 0 | X44: 0 | Y44: 0 | Z44: 0 | AA44: 0 | AB44: 0 | AC44: 0 | AD44: 0 | AE44: 0 | AF44: 0 | AG44: 0 | AH44: 0 | AI44: 0 | AJ44: 0 | AK44: 0 | AL44: 0 | AM44: 0 | AN44: 0 | AO44: 0 | AP44: 0 | AQ44: 0 | AR44: 0 | AS44: 0 | AT44: 0 | AU44: 0 | AV44: 0 | AW44: 0 | AX44: 0 | AY44: 0 | AZ44: 0 | BA44: 0 | BB44: 0 | BC44: 0 | BD44: 0 | BE44: 0 | BF44: 0 | BG44: 0
G46: $ Basis Reminder | H46: $ Reminder
B47: Total | G47: ='1_KMA'!$I$20 -> 2024-06-30 | H47: ='1_KMA'!$I$19 -> $millions | J47: =SUM(J41:J44) -> 0 | K47: =SUM(K41:K44) -> 0 | L47: =SUM(L41:L44) -> 0 | M47: =SUM(M41:M44) -> 0 | N47: 0 | O47: 16.76366667 | P47: 16.76366667 | Q47: 16.76366667 | R47: 0 | S47: 0 | T47: 0 | U47: 0 | V47: 0 | W47: 0 | X47: 0 | Y47: 0 | Z47: 0 | AA47: 0 | AB47: 0 | AC47: 0 | AD47: 0 | AE47: 0 | AF47: 0 | AG47: 0 | AH47: 0 | AI47: 0 | AJ47: 0 | AK47: 0 | AL47: 0 | AM47: 0 | AN47: 0 | AO47: 0 | AP47: 0 | AQ47: 0 | AR47: 0 | AS47: 0 | AT47: 0 | AU47: 0 | AV47: 0 | AW47: 0 | AX47: 0 | AY47: 0 | AZ47: 0 | BA47: 0 | BB47: 0 | BC47: 0 | BD47: 0 | BE47: 0 | BF47: 0 | BG47: =SUM(BG41:BG44) -> 0
B49: Capex Offset
B52: Name | G52: $ Basis Reminder | H52: $ Reminder
G53: ='1_KMA'!$I$20 -> 2024-06-30 | H53: ='1_KMA'!$I$19 -> $millions
G54: ='1_KMA'!$I$20 -> 2024-06-30 | H54: ='1_KMA'!$I$19 -> $millions
G55: ='1_KMA'!$I$20 -> 2024-06-30 | H55: ='1_KMA'!$I$19 -> $millions
G56: ='1_KMA'!$I$20 -> 2024-06-30 | H56: ='1_KMA'!$I$19 -> $millions
G58: $ Basis Reminder | H58: $ Reminder
B59: Total | G59: ='1_KMA'!$I$20 -> 2024-06-30 | H59: ='1_KMA'!$I$19 -> $millions | J59: =SUM(J53:J56) -> 0 | K59: =SUM(K53:K56) -> 0 | L59: =SUM(L53:L56) -> 0 | M59: 0 | N59: 0 | O59: 0 | P59: 0 | Q59: 0 | R59: 0 | S59: 0 | T59: 0 | U59: 0 | V59: 0 | W59: 0 | X59: 0 | Y59: 0 | Z59: 0 | AA59: 0 | AB59: 0 | AC59: 0 | AD59: 0 | AE59: 0 | AF59: 0 | AG59: 0 | AH59: 0 | AI59: 0 | AJ59: 0 | AK59: 0 | AL59: 0 | AM59: 0 | AN59: 0 | AO59: 0 | AP59: 0 | AQ59: 0 | AR59: 0 | AS59: 0 | AT59: 0 | AU59: 0 | AV59: 0 | AW59: 0 | AX59: 0 | AY59: 0 | AZ59: 0 | BA59: 0 | BB59: 0 | BC59: 0 | BD59: 0 | BE59: 0 | BF59: 0 | BG59: 0
B61: Opex Build Up
B63: Name | H63: Unit | J63: Value
B64: Asset Maintenance | H64: 1% of total project cost | J64: =0.01*(SUM(J29:J32)) -> 0.50291
B69: Name | H69: Unit | J69: Quantities
B70: =B64 -> Asset Maintenance | Q70: 1 | R70: 1 | S70: 1 | T70: 1 | U70: 1 | V70: 1 | W70: 1 | X70: 1 | Y70: 1 | Z70: 1 | AA70: 1 | AB70: 1 | AC70: 1 | AD70: 1 | AE70: 1 | AF70: 1 | AG70: 1 | AH70: 1 | AI70: 1 | AJ70: 1 | AK70: 1 | AL70: 1 | AM70: 1
B75: Name | G75: $ Basis Reminder | H75: $ Reminder
B76: =B64 -> Asset Maintenance | G76: ='1_KMA'!$I$20 -> 2024-06-30 | H76: ='1_KMA'!$I$19 -> $millions | J76: =$J$64*J70 -> 0 | K76: =$J$64*K70 -> 0 | L76: =$J$64*L70 -> 0 | M76: =$J$64*M70 -> 0 | N76: 0 | O76: 0 | P76: 0 | Q76: 0.50291 | R76: 0.50291 | S76: 0.50291 | T76: 0.50291 | U76: 0.50291 | V76: 0.50291 | W76: 0.50291 | X76: 0.50291 | Y76: 0.50291 | Z76: 0.50291 | AA76: 0.50291 | AB76: 0.50291 | AC76: 0.50291 | AD76: 0.50291 | AE76: 0.50291 | AF76: 0.50291 | AG76: 0.50291 | AH76: 0.50291 | AI76: 0.50291 | AJ76: 0.50291 | AK76: 0.50291 | AL76: 0.50291 | AM76: 0.50291 | AN76: 0 | AO76: 0 | AP76: 0 | AQ76: 0 | AR76: 0 | AS76: 0 | AT76: 0 | AU76: 0 | AV76: 0 | AW76: 0 | AX76: 0 | AY76: 0 | AZ76: 0 | BA76: 0 | BB76: 0 | BC76: 0 | BD76: 0 | BE76: 0 | BF76: 0 | BG76: 0
G77: ='1_KMA'!$I$20 -> 2024-06-30 | H77: ='1_KMA'!$I$19 -> $millions | J77: =$J$65*J71 -> 0 | K77: =$J$65*K71 -> 0 | L77: =$J$65*L71 -> 0 | M77: 0 | N77: =$J$65*N71 -> 0 | O77: 0 | P77: 0 | Q77: 0 | R77: 0 | S77: 0 | T77: 0 | U77: 0 | V77: 0 | W77: 0 | X77: 0 | Y77: 0 | Z77: 0 | AA77: 0 | AB77: 0 | AC77: 0 | AD77: 0 | AE77: 0 | AF77: 0 | AG77: 0 | AH77: 0 | AI77: 0 | AJ77: 0 | AK77: 0 | AL77: 0 | AM77: 0 | AN77: 0 | AO77: 0 | AP77: 0 | AQ77: 0 | AR77: 0 | AS77: 0 | AT77: 0 | AU77: 0 | AV77: 0 | AW77: 0 | AX77: 0 | AY77: 0 | AZ77: 0 | BA77: 0 | BB77: 0 | BC77: 0 | BD77: 0 | BE77: 0 | BF77: 0 | BG77: 0
G78: ='1_KMA'!$I$20 -> 2024-06-30 | H78: ='1_KMA'!$I$19 -> $millions | J78: =$J$66*J72 -> 0 | K78: =$J$66*K72 -> 0 | L78: =$J$66*L72 -> 0 | M78: 0 | N78: 0 | O78: 0 | P78: 0 | Q78: 0 | R78: 0 | S78: 0 | T78: 0 | U78: 0 | V78: 0 | W78: 0 | X78: 0 | Y78: 0 | Z78: 0 | AA78: 0 | AB78: 0 | AC78: 0 | AD78: 0 | AE78: 0 | AF78: 0 | AG78: 0 | AH78: 0 | AI78: 0 | AJ78: 0 | AK78: 0 | AL78: 0 | AM78: 0 | AN78: 0 | AO78: 0 | AP78: 0 | AQ78: 0 | AR78: 0 | AS78: 0 | AT78: 0 | AU78: 0 | AV78: 0 | AW78: 0 | AX78: 0 | AY78: 0 | AZ78: 0 | BA78: 0 | BB78: 0 | BC78: 0 | BD78: 0 | BE78: 0 | BF78: 0 | BG78: 0
G79: ='1_KMA'!$I$20 -> 2024-06-30 | H79: ='1_KMA'!$I$19 -> $millions | J79: =$J$67*J73 -> 0 | K79: =$J$67*K73 -> 0 | L79: =$J$67*L73 -> 0 | M79: 0 | N79: 0 | O79: 0 | P79: 0 | Q79: 0 | R79: 0 | S79: 0 | T79: 0 | U79: 0 | V79: 0 | W79: 0 | X79: 0 | Y79: 0 | Z79: 0 | AA79: 0 | AB79: 0 | AC79: 0 | AD79: 0 | AE79: 0 | AF79: 0 | AG79: 0 | AH79: 0 | AI79: 0 | AJ79: 0 | AK79: 0 | AL79: 0 | AM79: 0 | AN79: 0 | AO79: 0 | AP79: 0 | AQ79: 0 | AR79: 0 | AS79: 0 | AT79: 0 | AU79: 0 | AV79: 0 | AW79: 0 | AX79: 0 | AY79: 0 | AZ79: 0 | BA79: 0 | BB79: 0 | BC79: 0 | BD79: 0 | BE79: 0 | BF79: 0 | BG79: 0
G81: $ Basis Reminder | H81: $ Reminder
B82: Total | G82: ='1_KMA'!$I$20 -> 2024-06-30 | H82: ='1_KMA'!$I$19 -> $millions | J82: =SUM(J76:J79) -> 0 | K82: =SUM(K76:K79) -> 0 | L82: =SUM(L76:L79) -> 0 | M82: 0 | N82: 0 | O82: 0 | P82: 0 | Q82: 0.50291 | R82: 0.50291 | S82: 0.50291 | T82: 0.50291 | U82: 0.50291 | V82: 0.50291 | W82: 0.50291 | X82: 0.50291 | Y82: 0.50291 | Z82: 0.50291 | AA82: 0.50291 | AB82: 0.50291 | AC82: 0.50291 | AD82: 0.50291 | AE82: 0.50291 | AF82: 0.50291 | AG82: 0.50291 | AH82: 0.50291 | AI82: 0.50291 | AJ82: 0.50291 | AK82: 0.50291 | AL82: 0.50291 | AM82: 0.50291 | AN82: 0 | AO82: 0 | AP82: 0 | AQ82: 0 | AR82: 0 | AS82: 0 | AT82: 0 | AU82: 0 | AV82: 0 | AW82: 0 | AX82: 0 | AY82: 0 | AZ82: 0 | BA82: 0 | BB82: 0 | BC82: 0 | BD82: 0 | BE82: 0 | BF82: 0 | BG82: =SUM(BG76:BG79) -> 0
B84: Benefits Inputs
B86: Value of EUE
G89: $ Basis Reminder | H89: $ Reminder
B90: Value of Expected Unserved Energy (EUE) | G90: ='1_KMA'!$I$20 -> 2024-06-30 | H90: ='1_KMA'!$I$19 -> $millions | J90: 0 | K90: 0 | L90: 0.1047 | M90: 1.0108 | N90: 2.858 | O90: 0.864 | P90: 2.2109 | Q90: 0.7501607257 | R90: 1.802497874 | S90: 3.367381953 | T90: 5.622717943 | U90: 8.715095583 | V90: 12.96126933 | W90: 18.53765197 | X90: 18.53765197 | Y90: 18.53765197 | Z90: 18.53765197 | AA90: 18.53765197 | AB90: 18.53765197 | AC90: 18.53765197 | AD90: 18.53765197 | AE90: 18.53765197 | AF90: 18.53765197 | AG90: 18.53765197 | AH90: 18.53765197 | AI90: 18.53765197 | AJ90: 18.53765197 | AK90: 18.53765197 | AL90: 18.53765197 | AM90: 18.53765197
G92: $ Basis Reminder | H92: $ Reminder
B93: Total | G93: ='1_KMA'!$I$20 -> 2024-06-30 | H93: ='1_KMA'!$I$19 -> $millions | J93: =J90 -> 0 | K93: =K90 -> 0 | L93: 0.1047 | M93: 1.0108 | N93: 2.858 | O93: 0.864 | P93: 2.2109 | Q93: 0.7501607257 | R93: 1.802497874 | S93: 3.367381953 | T93: 5.622717943 | U93: 8.715095583 | V93: 12.96126933 | W93: 18.53765197 | X93: 18.53765197 | Y93: 18.53765197 | Z93: 18.53765197 | AA93: 18.53765197 | AB93: 18.53765197 | AC93: 18.53765197 | AD93: 18.53765197 | AE93: 18.53765197 | AF93: 18.53765197 | AG93: 18.53765197 | AH93: 18.53765197 | AI93: 18.53765197 | AJ93: 18.53765197 | AK93: 18.53765197 | AL93: 18.53765197 | AM93: 18.53765197 | AN93: 0 | AO93: 0 | AP93: 0 | AQ93: 0 | AR93: 0 | AS93: 0 | AT93: 0 | AU93: 0 | AV93: 0 | AW93: 0 | AX93: 0 | AY93: 0 | AZ93: 0 | BA93: 0 | BB93: 0 | BC93: 0 | BD93: 0 | BE93: 0 | BF93: 0 | BG93: 0

Sheet 2.1_Op5
B1: General Inputs: Option 5 | I1: Regulatory Period Indicator | J1: ='1_KMA'!J30 -> 0 | K1: ='1_KMA'!K30 -> 0 | L1: ='1_KMA'!L30 -> 1 | M1: ='1_KMA'!M30 -> 1 | N1: ='1_KMA'!N30 -> 1 | O1: ='1_KMA'!O30 -> 1 | P1: ='1_KMA'!P30 -> 1 | Q1: ='1_KMA'!Q30 -> 0 | R1: ='1_KMA'!R30 -> 0 | S1: ='1_KMA'!S30 -> 0 | T1: ='1_KMA'!T30 -> 0 | U1: ='1_KMA'!U30 -> 0 | V1: ='1_KMA'!V30 -> 0 | W1: ='1_KMA'!W30 -> 0 | X1: ='1_KMA'!X30 -> 0 | Y1: ='1_KMA'!Y30 -> 0 | Z1: ='1_KMA'!Z30 -> 0 | AA1: ='1_KMA'!AA30 -> 0 | AB1: ='1_KMA'!AB30 -> 0 | AC1: ='1_KMA'!AC30 -> 0 | AD1: ='1_KMA'!AD30 -> 0 | AE1: ='1_KMA'!AE30 -> 0 | AF1: ='1_KMA'!AF30 -> 0 | AG1: ='1_KMA'!AG30 -> 0 | AH1: ='1_KMA'!AH30 -> 0 | AI1: ='1_KMA'!AI30 -> 0 | AJ1: ='1_KMA'!AJ30 -> 0 | AK1: ='1_KMA'!AK30 -> 0 | AL1: ='1_KMA'!AL30 -> 0 | AM1: ='1_KMA'!AM30 -> 0 | AN1: ='1_KMA'!AN30 -> 0 | AO1: ='1_KMA'!AO30 -> 0 | AP1: ='1_KMA'!AP30 -> 0 | AQ1: ='1_KMA'!AQ30 -> 0 | AR1: ='1_KMA'!AR30 -> 0 | AS1: ='1_KMA'!AS30 -> 0 | AT1: ='1_KMA'!AT30 -> 0 | AU1: ='1_KMA'!AU30 -> 0 | AV1: ='1_KMA'!AV30 -> 0 | AW1: ='1_KMA'!AW30 -> 0 | AX1: ='1_KMA'!AX30 -> 0 | AY1: ='1_KMA'!AY30 -> 0 | AZ1: ='1_KMA'!AZ30 -> 0 | BA1: ='1_KMA'!BA30 -> 0 | BB1: ='1_KMA'!BB30 -> 0 | BC1: ='1_KMA'!BC30 -> 0 | BD1: ='1_KMA'!BD30 -> 0 | BE1: ='1_KMA'!BE30 -> 0 | BF1: ='1_KMA'!BF30 -> 0 | BG1: ='1_KMA'!BG30 -> 0
B2: =Cover!$C$9 -> AusNet Services | I2: Period Start Date | J2: ='1_KMA'!J31 -> 2024-07-01 | K2: ='1_KMA'!K31 -> 2025-07-01 | L2: ='1_KMA'!L31 -> 2026-07-01 | M2: ='1_KMA'!M31 -> 2027-07-01 | N2: ='1_KMA'!N31 -> 2028-07-01 | O2: ='1_KMA'!O31 -> 2029-07-01 | P2: ='1_KMA'!P31 -> 2030-07-01 | Q2: ='1_KMA'!Q31 -> 2031-07-01 | R2: ='1_KMA'!R31 -> 2032-07-01 | S2: ='1_KMA'!S31 -> 2033-07-01 | T2: ='1_KMA'!T31 -> 2034-07-01 | U2: ='1_KMA'!U31 -> 2035-07-01 | V2: ='1_KMA'!V31 -> 2036-07-01 | W2: ='1_KMA'!W31 -> 2037-07-01 | X2: ='1_KMA'!X31 -> 2038-07-01 | Y2: ='1_KMA'!Y31 -> 2039-07-01 | Z2: ='1_KMA'!Z31 -> 2040-07-01 | AA2: ='1_KMA'!AA31 -> 2041-07-01 | AB2: ='1_KMA'!AB31 -> 2042-07-01 | AC2: ='1_KMA'!AC31 -> 2043-07-01 | AD2: ='1_KMA'!AD31 -> 2044-07-01 | AE2: ='1_KMA'!AE31 -> 2045-07-01 | AF2: ='1_KMA'!AF31 -> 2046-07-01 | AG2: ='1_KMA'!AG31 -> 2047-07-01 | AH2: ='1_KMA'!AH31 -> 2048-07-01 | AI2: ='1_KMA'!AI31 -> 2049-07-01 | AJ2: ='1_KMA'!AJ31 -> 2050-07-01 | AK2: ='1_KMA'!AK31 -> 2051-07-01 | AL2: ='1_KMA'!AL31 -> 2052-07-01 | AM2: ='1_KMA'!AM31 -> 2053-07-01 | AN2: ='1_KMA'!AN31 -> 2054-07-01 | AO2: ='1_KMA'!AO31 -> 2055-07-01 | AP2: ='1_KMA'!AP31 -> 2056-07-01 | AQ2: ='1_KMA'!AQ31 -> 2057-07-01 | AR2: ='1_KMA'!AR31 -> 2058-07-01 | AS2: ='1_KMA'!AS31 -> 2059-07-01 | AT2: ='1_KMA'!AT31 -> 2060-07-01 | AU2: ='1_KMA'!AU31 -> 2061-07-01 | AV2: ='1_KMA'!AV31 -> 2062-07-01 | AW2: ='1_KMA'!AW31 -> 2063-07-01 | AX2: ='1_KMA'!AX31 -> 2064-07-01 | AY2: ='1_KMA'!AY31 -> 2065-07-01 | AZ2: ='1_KMA'!AZ31 -> 2066-07-01 | BA2: ='1_KMA'!BA31 -> 2067-07-01 | BB2: ='1_KMA'!BB31 -> 2068-07-01 | BC2: ='1_KMA'!BC31 -> 2069-07-01 | BD2: ='1_KMA'!BD31 -> 2070-07-01 | BE2: ='1_KMA'!BE31 -> 2071-07-01 | BF2: ='1_KMA'!BF31 -> 2072-07-01 | BG2: ='1_KMA'!BG31 -> 2073-07-01
B3: =Cover!$C$10 -> Business Case Evaluation | I3: Period End Date | J3: ='1_KMA'!J32 -> 2025-06-30 | K3: ='1_KMA'!K32 -> 2026-06-30 | L3: ='1_KMA'!L32 -> 2027-06-30 | M3: ='1_KMA'!M32 -> 2028-06-30 | N3: ='1_KMA'!N32 -> 2029-06-30 | O3: ='1_KMA'!O32 -> 2030-06-30 | P3: ='1_KMA'!P32 -> 2031-06-30 | Q3: ='1_KMA'!Q32 -> 2032-06-30 | R3: ='1_KMA'!R32 -> 2033-06-30 | S3: ='1_KMA'!S32 -> 2034-06-30 | T3: ='1_KMA'!T32 -> 2035-06-30 | U3: ='1_KMA'!U32 -> 2036-06-30 | V3: ='1_KMA'!V32 -> 2037-06-30 | W3: ='1_KMA'!W32 -> 2038-06-30 | X3: ='1_KMA'!X32 -> 2039-06-30 | Y3: ='1_KMA'!Y32 -> 2040-06-30 | Z3: ='1_KMA'!Z32 -> 2041-06-30 | AA3: ='1_KMA'!AA32 -> 2042-06-30 | AB3: ='1_KMA'!AB32 -> 2043-06-30 | AC3: ='1_KMA'!AC32 -> 2044-06-30 | AD3: ='1_KMA'!AD32 -> 2045-06-30 | AE3: ='1_KMA'!AE32 -> 2046-06-30 | AF3: ='1_KMA'!AF32 -> 2047-06-30 | AG3: ='1_KMA'!AG32 -> 2048-06-30 | AH3: ='1_KMA'!AH32 -> 2049-06-30 | AI3: ='1_KMA'!AI32 -> 2050-06-30 | AJ3: ='1_KMA'!AJ32 -> 2051-06-30 | AK3: ='1_KMA'!AK32 -> 2052-06-30 | AL3: ='1_KMA'!AL32 -> 2053-06-30 | AM3: ='1_KMA'!AM32 -> 2054-06-30 | AN3: ='1_KMA'!AN32 -> 2055-06-30 | AO3: ='1_KMA'!AO32 -> 2056-06-30 | AP3: ='1_KMA'!AP32 -> 2057-06-30 | AQ3: ='1_KMA'!AQ32 -> 2058-06-30 | AR3: ='1_KMA'!AR32 -> 2059-06-30 | AS3: ='1_KMA'!AS32 -> 2060-06-30 | AT3: ='1_KMA'!AT32 -> 2061-06-30 | AU3: ='1_KMA'!AU32 -> 2062-06-30 | AV3: ='1_KMA'!AV32 -> 2063-06-30 | AW3: ='1_KMA'!AW32 -> 2064-06-30 | AX3: ='1_KMA'!AX32 -> 2065-06-30 | AY3: ='1_KMA'!AY32 -> 2066-06-30 | AZ3: ='1_KMA'!AZ32 -> 2067-06-30 | BA3: ='1_KMA'!BA32 -> 2068-06-30 | BB3: ='1_KMA'!BB32 -> 2069-06-30 | BC3: ='1_KMA'!BC32 -> 2070-06-30 | BD3: ='1_KMA'!BD32 -> 2071-06-30 | BE3: ='1_KMA'!BE32 -> 2072-06-30 | BF3: ='1_KMA'!BF32 -> 2073-06-30 | BG3: ='1_KMA'!BG32 -> 2074-06-30
B4: =Cover!$C$11 -> Eastern Cranbourne 66kV loop augmentation | I4: Project Year | J4: ='1_KMA'!J33 -> 1 | K4: ='1_KMA'!K33 -> 2 | L4: ='1_KMA'!L33 -> 3 | M4: ='1_KMA'!M33 -> 4 | N4: ='1_KMA'!N33 -> 5 | O4: ='1_KMA'!O33 -> 6 | P4: ='1_KMA'!P33 -> 7 | Q4: ='1_KMA'!Q33 -> 8 | R4: ='1_KMA'!R33 -> 9 | S4: ='1_KMA'!S33 -> 10 | T4: ='1_KMA'!T33 -> 11 | U4: ='1_KMA'!U33 -> 12 | V4: ='1_KMA'!V33 -> 13 | W4: ='1_KMA'!W33 -> 14 | X4: ='1_KMA'!X33 -> 15 | Y4: ='1_KMA'!Y33 -> 16 | Z4: ='1_KMA'!Z33 -> 17 | AA4: ='1_KMA'!AA33 -> 18 | AB4: ='1_KMA'!AB33 -> 19 | AC4: ='1_KMA'!AC33 -> 20 | AD4: ='1_KMA'!AD33 -> 21 | AE4: ='1_KMA'!AE33 -> 22 | AF4: ='1_KMA'!AF33 -> 23 | AG4: ='1_KMA'!AG33 -> 24 | AH4: ='1_KMA'!AH33 -> 25 | AI4: ='1_KMA'!AI33 -> 26 | AJ4: ='1_KMA'!AJ33 -> 27 | AK4: ='1_KMA'!AK33 -> 28 | AL4: ='1_KMA'!AL33 -> 29 | AM4: ='1_KMA'!AM33 -> 30 | AN4: ='1_KMA'!AN33 -> 31 | AO4: ='1_KMA'!AO33 -> 32 | AP4: ='1_KMA'!AP33 -> 33 | AQ4: ='1_KMA'!AQ33 -> 34 | AR4: ='1_KMA'!AR33 -> 35 | AS4: ='1_KMA'!AS33 -> 36 | AT4: ='1_KMA'!AT33 -> 37 | AU4: ='1_KMA'!AU33 -> 38 | AV4: ='1_KMA'!AV33 -> 39 | AW4: ='1_KMA'!AW33 -> 40 | AX4: ='1_KMA'!AX33 -> 41 | AY4: ='1_KMA'!AY33 -> 42 | AZ4: ='1_KMA'!AZ33 -> 43 | BA4: ='1_KMA'!BA33 -> 44 | BB4: ='1_KMA'!BB33 -> 45 | BC4: ='1_KMA'!BC33 -> 46 | BD4: ='1_KMA'!BD33 -> 47 | BE4: ='1_KMA'!BE33 -> 48 | BF4: ='1_KMA'!BF33 -> 49 | BG4: ='1_KMA'!BG33 -> 50
I5: Financial Year | J5: ='1_KMA'!J34 -> 2025 | K5: ='1_KMA'!K34 -> 2026 | L5: ='1_KMA'!L34 -> 2027 | M5: ='1_KMA'!M34 -> 2028 | N5: ='1_KMA'!N34 -> 2029 | O5: ='1_KMA'!O34 -> 2030 | P5: ='1_KMA'!P34 -> 2031 | Q5: ='1_KMA'!Q34 -> 2032 | R5: ='1_KMA'!R34 -> 2033 | S5: ='1_KMA'!S34 -> 2034 | T5: ='1_KMA'!T34 -> 2035 | U5: ='1_KMA'!U34 -> 2036 | V5: ='1_KMA'!V34 -> 2037 | W5: ='1_KMA'!W34 -> 2038 | X5: ='1_KMA'!X34 -> 2039 | Y5: ='1_KMA'!Y34 -> 2040 | Z5: ='1_KMA'!Z34 -> 2041 | AA5: ='1_KMA'!AA34 -> 2042 | AB5: ='1_KMA'!AB34 -> 2043 | AC5: ='1_KMA'!AC34 -> 2044 | AD5: ='1_KMA'!AD34 -> 2045 | AE5: ='1_KMA'!AE34 -> 2046 | AF5: ='1_KMA'!AF34 -> 2047 | AG5: ='1_KMA'!AG34 -> 2048 | AH5: ='1_KMA'!AH34 -> 2049 | AI5: ='1_KMA'!AI34 -> 2050 | AJ5: ='1_KMA'!AJ34 -> 2051 | AK5: ='1_KMA'!AK34 -> 2052 | AL5: ='1_KMA'!AL34 -> 2053 | AM5: ='1_KMA'!AM34 -> 2054 | AN5: ='1_KMA'!AN34 -> 2055 | AO5: ='1_KMA'!AO34 -> 2056 | AP5: ='1_KMA'!AP34 -> 2057 | AQ5: ='1_KMA'!AQ34 -> 2058 | AR5: ='1_KMA'!AR34 -> 2059 | AS5: ='1_KMA'!AS34 -> 2060 | AT5: ='1_KMA'!AT34 -> 2061 | AU5: ='1_KMA'!AU34 -> 2062 | AV5: ='1_KMA'!AV34 -> 2063 | AW5: ='1_KMA'!AW34 -> 2064 | AX5: ='1_KMA'!AX34 -> 2065 | AY5: ='1_KMA'!AY34 -> 2066 | AZ5: ='1_KMA'!AZ34 -> 2067 | BA5: ='1_KMA'!BA34 -> 2068 | BB5: ='1_KMA'!BB34 -> 2069 | BC5: ='1_KMA'!BC34 -> 2070 | BD5: ='1_KMA'!BD34 -> 2071 | BE5: ='1_KMA'!BE34 -> 2072 | BF5: ='1_KMA'!BF34 -> 2073 | BG5: ='1_KMA'!BG34 -> 2074
B7: Summary
B9: Costs | G9: $ Basis Reminder | H9: $ Reminder
B10: Capex | G10: ='1_KMA'!$I$20 -> 2024-06-30 | H10: ='1_KMA'!$I$19 -> $millions | J10: =J47 -> 0 | K10: =K47 -> 0 | L10: 0 | M10: 0 | N10: 0 | O10: 0 | P10: 0 | Q10: 0 | R10: 0 | S10: 50 | T10: 50 | U10: 50 | V10: 0 | W10: 0 | X10: 0 | Y10: 0 | Z10: 0 | AA10: 0 | AB10: 0 | AC10: 0 | AD10: 0 | AE10: 0 | AF10: 0 | AG10: 0 | AH10: 0 | AI10: 0 | AJ10: 0 | AK10: 0 | AL10: 0 | AM10: 0 | AN10: 0 | AO10: 0 | AP10: 0 | AQ10: 0 | AR10: 0 | AS10: 0 | AT10: 0 | AU10: 0 | AV10: 0 | AW10: 0 | AX10: 0 | AY10: 0 | AZ10: 0 | BA10: 0 | BB10: 0 | BC10: 0 | BD10: 0 | BE10: 0 | BF10: 0 | BG10: 0
B11: Capex offset | G11: ='1_KMA'!$I$20 -> 2024-06-30 | H11: ='1_KMA'!$I$19 -> $millions | J11: =-J59 -> 0 | K11: =-K59 -> 0 | L11: 0 | M11: 0 | N11: 0 | O11: 0 | P11: 0 | Q11: 0 | R11: 0 | S11: 0 | T11: 0 | U11: 0 | V11: 0 | W11: 0 | X11: 0 | Y11: 0 | Z11: 0 | AA11: 0 | AB11: 0 | AC11: 0 | AD11: 0 | AE11: 0 | AF11: 0 | AG11: 0 | AH11: 0 | AI11: 0 | AJ11: 0 | AK11: 0 | AL11: 0 | AM11: 0 | AN11: 0 | AO11: 0 | AP11: 0 | AQ11: 0 | AR11: 0 | AS11: 0 | AT11: 0 | AU11: 0 | AV11: 0 | AW11: 0 | AX11: 0 | AY11: 0 | AZ11: 0 | BA11: 0 | BB11: 0 | BC11: 0 | BD11: 0 | BE11: 0 | BF11: 0 | BG11: 0
B12: Opex | G12: ='1_KMA'!$I$20 -> 2024-06-30 | H12: ='1_KMA'!$I$19 -> $millions | J12: =J82 -> 0 | K12: =K82 -> 0 | L12: 0 | M12: 0 | N12: 0 | O12: 0 | P12: 0 | Q12: 0 | R12: 0 | S12: 0 | T12: 0 | U12: 1.5 | V12: 1.5 | W12: 1.5 | X12: 1.5 | Y12: 1.5 | Z12: 1.5 | AA12: 1.5 | AB12: 1.5 | AC12: 1.5 | AD12: 1.5 | AE12: 1.5 | AF12: 1.5 | AG12: 1.5 | AH12: 1.5 | AI12: 1.5 | AJ12: 0 | AK12: 0 | AL12: 0 | AM12: 0 | AN12: 0 | AO12: 0 | AP12: 0 | AQ12: 0 | AR12: 0 | AS12: 0 | AT12: 0 | AU12: 0 | AV12: 0 | AW12: 0 | AX12: 0 | AY12: 0 | AZ12: 0 | BA12: 0 | BB12: 0 | BC12: 0 | BD12: 0 | BE12: 0 | BF12: 0 | BG12: 0
B13: Total | G13: ='1_KMA'!$I$20 -> 2024-06-30 | H13: ='1_KMA'!$I$19 -> $millions | J13: =SUM(J10:J12) -> 0 | K13: =SUM(K10:K12) -> 0 | L13: 0 | M13: 0 | N13: 0 | O13: 0 | P13: 0 | Q13: 0 | R13: 0 | S13: 50 | T13: 50 | U13: 51.5 | V13: 1.5 | W13: 1.5 | X13: 1.5 | Y13: 1.5 | Z13: 1.5 | AA13: 1.5 | AB13: 1.5 | AC13: 1.5 | AD13: 1.5 | AE13: 1.5 | AF13: 1.5 | AG13: 1.5 | AH13: 1.5 | AI13: 1.5 | AJ13: 0 | AK13: 0 | AL13: 0 | AM13: 0 | AN13: 0 | AO13: 0 | AP13: 0 | AQ13: 0 | AR13: 0 | AS13: 0 | AT13: 0 | AU13: 0 | AV13: 0 | AW13: 0 | AX13: 0 | AY13: 0 | AZ13: 0 | BA13: 0 | BB13: 0 | BC13: 0 | BD13: 0 | BE13: 0 | BF13: 0 | BG13: 0
B15: Benefits | G15: $ Basis Reminder | H15: $ Reminder
B16: Value of EUE | G16: ='1_KMA'!$I$20 -> 2024-06-30 | H16: ='1_KMA'!$I$19 -> $millions | J16: =-J93 -> 0 | K16: =-K93 -> 0 | L16: -0.1047 | M16: -1.0108 | N16: -2.858 | O16: -0.864 | P16: -2.2109 | Q16: -3.9971 | R16: -6.539 | S16: -10.1145 | T16: -14.9844 | U16: -8.162893301 | V16: -12.20345312 | W16: -17.57672992 | X16: -17.57672992 | Y16: -17.57672992 | Z16: -17.57672992 | AA16: -17.57672992 | AB16: -17.57672992 | AC16: -17.57672992 | AD16: -17.57672992 | AE16: -17.57672992 | AF16: -17.57672992 | AG16: -17.57672992 | AH16: -17.57672992 | AI16: -17.57672992 | AJ16: -39.9487 | AK16: -39.9487 | AL16: -39.9487 | AM16: -39.9487 | AN16: 0 | AO16: 0 | AP16: 0 | AQ16: 0 | AR16: 0 | AS16: 0 | AT16: 0 | AU16: 0 | AV16: 0 | AW16: 0 | AX16: 0 | AY16: 0 | AZ16: 0 | BA16: 0 | BB16: 0 | BC16: 0 | BD16: 0 | BE16: 0 | BF16: 0 | BG16: 0
B21: Total | G21: ='1_KMA'!$I$20 -> 2024-06-30 | H21: ='1_KMA'!$I$19 -> $millions | J21: =SUM(J16:J20) -> 0 | K21: =SUM(K16:K20) -> 0 | L21: -0.1047 | M21: -1.0108 | N21: -2.858 | O21: -0.864 | P21: -2.2109 | Q21: -3.9971 | R21: -6.539 | S21: -10.1145 | T21: -14.9844 | U21: -8.162893301 | V21: -12.20345312 | W21: -17.57672992 | X21: -17.57672992 | Y21: -17.57672992 | Z21: -17.57672992 | AA21: -17.57672992 | AB21: -17.57672992 | AC21: -17.57672992 | AD21: -17.57672992 | AE21: -17.57672992 | AF21: -17.57672992 | AG21: -17.57672992 | AH21: -17.57672992 | AI21: -17.57672992 | AJ21: -39.9487 | AK21: -39.9487 | AL21: -39.9487 | AM21: -39.9487 | AN21: 0 | AO21: 0 | AP21: 0 | AQ21: 0 | AR21: 0 | AS21: 0 | AT21: 0 | AU21: 0 | AV21: 0 | AW21: 0 | AX21: 0 | AY21: 0 | AZ21: 0 | BA21: 0 | BB21: 0 | BC21: 0 | BD21: 0 | BE21: 0 | BF21: 0 | BG21: 0
B24: Cost Inputs
B26: Capex Build Up
B28: Name | H28: Unit | J28: Unit Rate
B29: new 25MW/100MWh battery | J29: 150
B34: Name | H34: Unit | J34: Quantities
B35: =B29 -> new 25MW/100MWh battery | S35: =1/3 -> 0.3333333333 | T35: =1/3 -> 0.3333333333 | U35: =1/3 -> 0.3333333333
B40: Name | G40: $ Basis Reminder | H40: $ Reminder
B41: =B29 -> new 25MW/100MWh battery | G41: ='1_KMA'!$I$20 -> 2024-06-30 | H41: ='1_KMA'!$I$19 -> $millions | J41: =$J$29*J35 -> 0 | K41: =$J$29*K35 -> 0 | L41: =$J$29*L35 -> 0 | M41: =$J$29*M35 -> 0 | N41: 0 | O41: 0 | P41: 0 | Q41: 0 | R41: =$J$29*R35 -> 0 | S41: 50 | T41: =$J$29*T35 -> 50 | U41: 50 | V41: 0 | W41: 0 | X41: 0 | Y41: 0 | Z41: 0 | AA41: 0 | AB41: 0 | AC41: 0 | AD41: 0 | AE41: 0 | AF41: 0 | AG41: 0 | AH41: 0 | AI41: 0 | AJ41: 0 | AK41: 0 | AL41: 0 | AM41: 0 | AN41: 0 | AO41: 0 | AP41: 0 | AQ41: 0 | AR41: 0 | AS41: 0 | AT41: 0 | AU41: 0 | AV41: 0 | AW41: 0 | AX41: 0 | AY41: 0 | AZ41: 0 | BA41: 0 | BB41: 0 | BC41: 0 | BD41: 0 | BE41: 0 | BF41: 0 | BG41: 0
G42: ='1_KMA'!$I$20 -> 2024-06-30 | H42: ='1_KMA'!$I$19 -> $millions | J42: =$J$30*J36 -> 0 | K42: =$J$30*K36 -> 0 | L42: =$J$30*L36 -> 0 | M42: =$J$30*M36 -> 0 | N42: 0 | O42: 0 | P42: 0 | Q42: 0 | R42: 0 | S42: 0 | T42: 0 | U42: 0 | V42: 0 | W42: 0 | X42: 0 | Y42: 0 | Z42: 0 | AA42: 0 | AB42: 0 | AC42: 0 | AD42: 0 | AE42: 0 | AF42: 0 | AG42: 0 | AH42: 0 | AI42: 0 | AJ42: 0 | AK42: 0 | AL42: 0 | AM42: 0 | AN42: 0 | AO42: 0 | AP42: 0 | AQ42: 0 | AR42: 0 | AS42: 0 | AT42: 0 | AU42: 0 | AV42: 0 | AW42: 0 | AX42: 0 | AY42: 0 | AZ42: 0 | BA42: 0 | BB42: 0 | BC42: 0 | BD42: 0 | BE42: 0 | BF42: 0 | BG42: 0
G43: ='1_KMA'!$I$20 -> 2024-06-30 | H43: ='1_KMA'!$I$19 -> $millions | J43: =$J$31*J37 -> 0 | K43: =$J$31*K37 -> 0 | L43: =$J$31*L37 -> 0 | M43: 0 | N43: 0 | O43: 0 | P43: 0 | Q43: 0 | R43: 0 | S43: 0 | T43: 0 | U43: 0 | V43: 0 | W43: 0 | X43: 0 | Y43: 0 | Z43: 0 | AA43: 0 | AB43: 0 | AC43: 0 | AD43: 0 | AE43: 0 | AF43: 0 | AG43: 0 | AH43: 0 | AI43: 0 | AJ43: 0 | AK43: 0 | AL43: 0 | AM43: 0 | AN43: 0 | AO43: 0 | AP43: 0 | AQ43: 0 | AR43: 0 | AS43: 0 | AT43: 0 | AU43: 0 | AV43: 0 | AW43: 0 | AX43: 0 | AY43: 0 | AZ43: 0 | BA43: 0 | BB43: 0 | BC43: 0 | BD43: 0 | BE43: 0 | BF43: 0 | BG43: 0
G44: ='1_KMA'!$I$20 -> 2024-06-30 | H44: ='1_KMA'!$I$19 -> $millions | J44: =$J$32*J38 -> 0 | K44: =$J$32*K38 -> 0 | L44: =$J$32*L38 -> 0 | M44: 0 | N44: 0 | O44: 0 | P44: 0 | Q44: 0 | R44: 0 | S44: 0 | T44: 0 | U44: 0 | V44: 0 | W44: 0 | X44: 0 | Y44: 0 | Z44: 0 | AA44: 0 | AB44: 0 | AC44: 0 | AD44: 0 | AE44: 0 | AF44: 0 | AG44: 0 | AH44: 0 | AI44: 0 | AJ44: 0 | AK44: 0 | AL44: 0 | AM44: 0 | AN44: 0 | AO44: 0 | AP44: 0 | AQ44: 0 | AR44: 0 | AS44: 0 | AT44: 0 | AU44: 0 | AV44: 0 | AW44: 0 | AX44: 0 | AY44: 0 | AZ44: 0 | BA44: 0 | BB44: 0 | BC44: 0 | BD44: 0 | BE44: 0 | BF44: 0 | BG44: 0
G46: $ Basis Reminder | H46: $ Reminder
B47: Total | G47: ='1_KMA'!$I$20 -> 2024-06-30 | H47: ='1_KMA'!$I$19 -> $millions | J47: =SUM(J41:J44) -> 0 | K47: =SUM(K41:K44) -> 0 | L47: =SUM(L41:L44) -> 0 | M47: 0 | N47: 0 | O47: 0 | P47: 0 | Q47: 0 | R47: 0 | S47: 50 | T47: 50 | U47: 50 | V47: 0 | W47: 0 | X47: 0 | Y47: 0 | Z47: 0 | AA47: 0 | AB47: 0 | AC47: 0 | AD47: 0 | AE47: 0 | AF47: 0 | AG47: 0 | AH47: 0 | AI47: 0 | AJ47: 0 | AK47: 0 | AL47: 0 | AM47: 0 | AN47: 0 | AO47: 0 | AP47: 0 | AQ47: 0 | AR47: 0 | AS47: 0 | AT47: 0 | AU47: 0 | AV47: 0 | AW47: 0 | AX47: 0 | AY47: 0 | AZ47: 0 | BA47: 0 | BB47: 0 | BC47: 0 | BD47: 0 | BE47: 0 | BF47: 0 | BG47: =SUM(BG41:BG44) -> 0
B49: Capex Offset
B52: Name | G52: $ Basis Reminder | H52: $ Reminder
G53: ='1_KMA'!$I$20 -> 2024-06-30 | H53: ='1_KMA'!$I$19 -> $millions
G54: ='1_KMA'!$I$20 -> 2024-06-30 | H54: ='1_KMA'!$I$19 -> $millions
G55: ='1_KMA'!$I$20 -> 2024-06-30 | H55: ='1_KMA'!$I$19 -> $millions
G56: ='1_KMA'!$I$20 -> 2024-06-30 | H56: ='1_KMA'!$I$19 -> $millions
G58: $ Basis Reminder | H58: $ Reminder
B59: Total | G59: ='1_KMA'!$I$20 -> 2024-06-30 | H59: ='1_KMA'!$I$19 -> $millions | J59: =SUM(J53:J56) -> 0 | K59: =SUM(K53:K56) -> 0 | L59: =SUM(L53:L56) -> 0 | M59: 0 | N59: 0 | O59: 0 | P59: 0 | Q59: 0 | R59: 0 | S59: 0 | T59: 0 | U59: 0 | V59: 0 | W59: 0 | X59: 0 | Y59: 0 | Z59: 0 | AA59: 0 | AB59: 0 | AC59: 0 | AD59: 0 | AE59: 0 | AF59: 0 | AG59: 0 | AH59: 0 | AI59: 0 | AJ59: 0 | AK59: 0 | AL59: 0 | AM59: 0 | AN59: 0 | AO59: 0 | AP59: 0 | AQ59: 0 | AR59: 0 | AS59: 0 | AT59: 0 | AU59: 0 | AV59: 0 | AW59: 0 | AX59: 0 | AY59: 0 | AZ59: 0 | BA59: 0 | BB59: 0 | BC59: 0 | BD59: 0 | BE59: 0 | BF59: 0 | BG59: 0
B61: Opex Build Up
B63: Name | H63: Unit | J63: Value
B64: battery maintenance | J64: =0.01 * SUM(J29:J32) -> 1.5
B69: Name | H69: Unit | J69: Quantities
B70: =B64 -> battery maintenance | U70: 1 | V70: 1 | W70: 1 | X70: 1 | Y70: 1 | Z70: 1 | AA70: 1 | AB70: 1 | AC70: 1 | AD70: 1 | AE70: 1 | AF70: 1 | AG70: 1 | AH70: 1 | AI70: 1
B75: Name | G75: $ Basis Reminder | H75: $ Reminder
B76: =B64 -> battery maintenance | G76: ='1_KMA'!$I$20 -> 2024-06-30 | H76: ='1_KMA'!$I$19 -> $millions | J76: =$J$64*J70 -> 0 | K76: =$J$64*K70 -> 0 | L76: =$J$64*L70 -> 0 | M76: =$J$64*M70 -> 0 | N76: 0 | O76: 0 | P76: 0 | Q76: 0 | R76: 0 | S76: 0 | T76: 0 | U76: 1.5 | V76: 1.5 | W76: 1.5 | X76: 1.5 | Y76: 1.5 | Z76: 1.5 | AA76: 1.5 | AB76: 1.5 | AC76: 1.5 | AD76: 1.5 | AE76: 1.5 | AF76: 1.5 | AG76: 1.5 | AH76: 1.5 | AI76: 1.5 | AJ76: 0 | AK76: 0 | AL76: 0 | AM76: 0 | AN76: 0 | AO76: 0 | AP76: 0 | AQ76: 0 | AR76: 0 | AS76: 0 | AT76: 0 | AU76: 0 | AV76: 0 | AW76: 0 | AX76: 0 | AY76: 0 | AZ76: 0 | BA76: 0 | BB76: 0 | BC76: 0 | BD76: 0 | BE76: 0 | BF76: 0 | BG76: 0
G77: ='1_KMA'!$I$20 -> 2024-06-30 | H77: ='1_KMA'!$I$19 -> $millions | J77: =$J$65*J71 -> 0 | K77: =$J$65*K71 -> 0 | L77: =$J$65*L71 -> 0 | M77: =$J$65*M71 -> 0 | N77: 0 | O77: 0 | P77: 0 | Q77: 0 | R77: 0 | S77: 0 | T77: 0 | U77: 0 | V77: 0 | W77: 0 | X77: 0 | Y77: 0 | Z77: 0 | AA77: 0 | AB77: 0 | AC77: 0 | AD77: 0 | AE77: 0 | AF77: 0 | AG77: 0 | AH77: 0 | AI77: 0 | AJ77: 0 | AK77: 0 | AL77: 0 | AM77: 0 | AN77: 0 | AO77: 0 | AP77: 0 | AQ77: 0 | AR77: 0 | AS77: 0 | AT77: 0 | AU77: 0 | AV77: 0 | AW77: 0 | AX77: 0 | AY77: 0 | AZ77: 0 | BA77: 0 | BB77: 0 | BC77: 0 | BD77: 0 | BE77: 0 | BF77: 0 | BG77: 0
G78: ='1_KMA'!$I$20 -> 2024-06-30 | H78: ='1_KMA'!$I$19 -> $millions | J78: =$J$66*J72 -> 0 | K78: =$J$66*K72 -> 0 | L78: =$J$66*L72 -> 0 | M78: 0 | N78: 0 | O78: 0 | P78: 0 | Q78: 0 | R78: 0 | S78: 0 | T78: 0 | U78: 0 | V78: 0 | W78: 0 | X78: 0 | Y78: 0 | Z78: 0 | AA78: 0 | AB78: 0 | AC78: 0 | AD78: 0 | AE78: 0 | AF78: 0 | AG78: 0 | AH78: 0 | AI78: 0 | AJ78: 0 | AK78: 0 | AL78: 0 | AM78: 0 | AN78: 0 | AO78: 0 | AP78: 0 | AQ78: 0 | AR78: 0 | AS78: 0 | AT78: 0 | AU78: 0 | AV78: 0 | AW78: 0 | AX78: 0 | AY78: 0 | AZ78: 0 | BA78: 0 | BB78: 0 | BC78: 0 | BD78: 0 | BE78: 0 | BF78: 0 | BG78: 0
G79: ='1_KMA'!$I$20 -> 2024-06-30 | H79: ='1_KMA'!$I$19 -> $millions | J79: =$J$67*J73 -> 0 | K79: =$J$67*K73 -> 0 | L79: =$J$67*L73 -> 0 | M79: 0 | N79: 0 | O79: 0 | P79: 0 | Q79: 0 | R79: 0 | S79: 0 | T79: 0 | U79: 0 | V79: 0 | W79: 0 | X79: 0 | Y79: 0 | Z79: 0 | AA79: 0 | AB79: 0 | AC79: 0 | AD79: 0 | AE79: 0 | AF79: 0 | AG79: 0 | AH79: 0 | AI79: 0 | AJ79: 0 | AK79: 0 | AL79: 0 | AM79: 0 | AN79: 0 | AO79: 0 | AP79: 0 | AQ79: 0 | AR79: 0 | AS79: 0 | AT79: 0 | AU79: 0 | AV79: 0 | AW79: 0 | AX79: 0 | AY79: 0 | AZ79: 0 | BA79: 0 | BB79: 0 | BC79: 0 | BD79: 0 | BE79: 0 | BF79: 0 | BG79: 0
G81: $ Basis Reminder | H81: $ Reminder
B82: Total | G82: ='1_KMA'!$I$20 -> 2024-06-30 | H82: ='1_KMA'!$I$19 -> $millions | J82: =SUM(J76:J79) -> 0 | K82: =SUM(K76:K79) -> 0 | L82: =SUM(L76:L79) -> 0 | M82: 0 | N82: 0 | O82: 0 | P82: 0 | Q82: 0 | R82: 0 | S82: 0 | T82: 0 | U82: 1.5 | V82: 1.5 | W82: 1.5 | X82: 1.5 | Y82: 1.5 | Z82: 1.5 | AA82: 1.5 | AB82: 1.5 | AC82: 1.5 | AD82: 1.5 | AE82: 1.5 | AF82: 1.5 | AG82: 1.5 | AH82: 1.5 | AI82: 1.5 | AJ82: 0 | AK82: 0 | AL82: 0 | AM82: 0 | AN82: 0 | AO82: 0 | AP82: 0 | AQ82: 0 | AR82: 0 | AS82: 0 | AT82: 0 | AU82: 0 | AV82: 0 | AW82: 0 | AX82: 0 | AY82: 0 | AZ82: 0 | BA82: 0 | BB82: 0 | BC82: 0 | BD82: 0 | BE82: 0 | BF82: 0 | BG82: =SUM(BG76:BG79) -> 0
B84: Benefits Inputs
B86: Value of EUE
G89: $ Basis Reminder | H89: $ Reminder
B90: Value of Expected Unserved Energy (EUE) | G90: ='1_KMA'!$I$20 -> 2024-06-30 | H90: ='1_KMA'!$I$19 -> $millions | J90: 0 | K90: 0 | L90: 0.1047 | M90: 1.0108 | N90: 2.858 | O90: 0.864 | P90: 2.2109 | Q90: 3.9971 | R90: 6.539 | S90: 10.1145 | T90: 14.9844 | U90: 8.162893301 | V90: 12.20345312 | W90: 17.57672992 | X90: 17.57672992 | Y90: 17.57672992 | Z90: 17.57672992 | AA90: 17.57672992 | AB90: 17.57672992 | AC90: 17.57672992 | AD90: 17.57672992 | AE90: 17.57672992 | AF90: 17.57672992 | AG90: 17.57672992 | AH90: 17.57672992 | AI90: 17.57672992 | AJ90: 39.9487 | AK90: 39.9487 | AL90: 39.9487 | AM90: 39.9487
G92: $ Basis Reminder | H92: $ Reminder
B93: Total | G93: ='1_KMA'!$I$20 -> 2024-06-30 | H93: ='1_KMA'!$I$19 -> $millions | J93: =J90 -> 0 | K93: =K90 -> 0 | L93: 0.1047 | M93: 1.0108 | N93: =N90 -> 2.858 | O93: 0.864 | P93: 2.2109 | Q93: 3.9971 | R93: 6.539 | S93: 10.1145 | T93: 14.9844 | U93: 8.162893301 | V93: 12.20345312 | W93: 17.57672992 | X93: 17.57672992 | Y93: 17.57672992 | Z93: 17.57672992 | AA93: 17.57672992 | AB93: 17.57672992 | AC93: 17.57672992 | AD93: 17.57672992 | AE93: 17.57672992 | AF93: 17.57672992 | AG93: 17.57672992 | AH93: 17.57672992 | AI93: 17.57672992 | AJ93: 39.9487 | AK93: 39.9487 | AL93: 39.9487 | AM93: 39.9487 | AN93: 0 | AO93: 0 | AP93: 0 | AQ93: 0 | AR93: 0 | AS93: 0 | AT93: 0 | AU93: 0 | AV93: 0 | AW93: 0 | AX93: 0 | AY93: 0 | AZ93: 0 | BA93: 0 | BB93: 0 | BC93: 0 | BD93: 0 | BE93: 0 | BF93: 0 | BG93: 0

Sheet 3_Interim calcs-> (hidden)
C6: Interim calculations
C7: Section 3.
C9: =Cover!$C$9 -> AusNet Services
C10: =Cover!$C$10 -> Business Case Evaluation
C11: =Cover!$C$11 -> Eastern Cranbourne 66kV loop augmentation

Sheet 3_BC (hidden)
B1: Interim Calculations: Base Case | I1: Regulatory Period Indicator | J1: ='1_KMA'!J30 -> 0 | K1: ='1_KMA'!K30 -> 0 | L1: ='1_KMA'!L30 -> 1 | M1: ='1_KMA'!M30 -> 1 | N1: ='1_KMA'!N30 -> 1 | O1: ='1_KMA'!O30 -> 1 | P1: ='1_KMA'!P30 -> 1 | Q1: ='1_KMA'!Q30 -> 0 | R1: ='1_KMA'!R30 -> 0 | S1: ='1_KMA'!S30 -> 0 | T1: ='1_KMA'!T30 -> 0 | U1: ='1_KMA'!U30 -> 0 | V1: ='1_KMA'!V30 -> 0 | W1: ='1_KMA'!W30 -> 0 | X1: ='1_KMA'!X30 -> 0 | Y1: ='1_KMA'!Y30 -> 0 | Z1: ='1_KMA'!Z30 -> 0 | AA1: ='1_KMA'!AA30 -> 0 | AB1: ='1_KMA'!AB30 -> 0 | AC1: ='1_KMA'!AC30 -> 0 | AD1: ='1_KMA'!AD30 -> 0 | AE1: ='1_KMA'!AE30 -> 0 | AF1: ='1_KMA'!AF30 -> 0 | AG1: ='1_KMA'!AG30 -> 0 | AH1: ='1_KMA'!AH30 -> 0 | AI1: ='1_KMA'!AI30 -> 0 | AJ1: ='1_KMA'!AJ30 -> 0 | AK1: ='1_KMA'!AK30 -> 0 | AL1: ='1_KMA'!AL30 -> 0 | AM1: ='1_KMA'!AM30 -> 0 | AN1: ='1_KMA'!AN30 -> 0 | AO1: ='1_KMA'!AO30 -> 0 | AP1: ='1_KMA'!AP30 -> 0 | AQ1: ='1_KMA'!AQ30 -> 0 | AR1: ='1_KMA'!AR30 -> 0 | AS1: ='1_KMA'!AS30 -> 0 | AT1: ='1_KMA'!AT30 -> 0 | AU1: ='1_KMA'!AU30 -> 0 | AV1: ='1_KMA'!AV30 -> 0 | AW1: ='1_KMA'!AW30 -> 0 | AX1: ='1_KMA'!AX30 -> 0 | AY1: ='1_KMA'!AY30 -> 0 | AZ1: ='1_KMA'!AZ30 -> 0 | BA1: ='1_KMA'!BA30 -> 0 | BB1: ='1_KMA'!BB30 -> 0 | BC1: ='1_KMA'!BC30 -> 0 | BD1: ='1_KMA'!BD30 -> 0 | BE1: ='1_KMA'!BE30 -> 0 | BF1: ='1_KMA'!BF30 -> 0 | BG1: ='1_KMA'!BG30 -> 0
B2: =Cover!$C$9 -> AusNet Services | I2: Period Start Date | J2: ='1_KMA'!J31 -> 2024-07-01 | K2: ='1_KMA'!K31 -> 2025-07-01 | L2: ='1_KMA'!L31 -> 2026-07-01 | M2: ='1_KMA'!M31 -> 2027-07-01 | N2: ='1_KMA'!N31 -> 2028-07-01 | O2: ='1_KMA'!O31 -> 2029-07-01 | P2: ='1_KMA'!P31 -> 2030-07-01 | Q2: ='1_KMA'!Q31 -> 2031-07-01 | R2: ='1_KMA'!R31 -> 2032-07-01 | S2: ='1_KMA'!S31 -> 2033-07-01 | T2: ='1_KMA'!T31 -> 2034-07-01 | U2: ='1_KMA'!U31 -> 2035-07-01 | V2: ='1_KMA'!V31 -> 2036-07-01 | W2: ='1_KMA'!W31 -> 2037-07-01 | X2: ='1_KMA'!X31 -> 2038-07-01 | Y2: ='1_KMA'!Y31 -> 2039-07-01 | Z2: ='1_KMA'!Z31 -> 2040-07-01 | AA2: ='1_KMA'!AA31 -> 2041-07-01 | AB2: ='1_KMA'!AB31 -> 2042-07-01 | AC2: ='1_KMA'!AC31 -> 2043-07-01 | AD2: ='1_KMA'!AD31 -> 2044-07-01 | AE2: ='1_KMA'!AE31 -> 2045-07-01 | AF2: ='1_KMA'!AF31 -> 2046-07-01 | AG2: ='1_KMA'!AG31 -> 2047-07-01 | AH2: ='1_KMA'!AH31 -> 2048-07-01 | AI2: ='1_KMA'!AI31 -> 2049-07-01 | AJ2: ='1_KMA'!AJ31 -> 2050-07-01 | AK2: ='1_KMA'!AK31 -> 2051-07-01 | AL2: ='1_KMA'!AL31 -> 2052-07-01 | AM2: ='1_KMA'!AM31 -> 2053-07-01 | AN2: ='1_KMA'!AN31 -> 2054-07-01 | AO2: ='1_KMA'!AO31 -> 2055-07-01 | AP2: ='1_KMA'!AP31 -> 2056-07-01 | AQ2: ='1_KMA'!AQ31 -> 2057-07-01 | AR2: ='1_KMA'!AR31 -> 2058-07-01 | AS2: ='1_KMA'!AS31 -> 2059-07-01 | AT2: ='1_KMA'!AT31 -> 2060-07-01 | AU2: ='1_KMA'!AU31 -> 2061-07-01 | AV2: ='1_KMA'!AV31 -> 2062-07-01 | AW2: ='1_KMA'!AW31 -> 2063-07-01 | AX2: ='1_KMA'!AX31 -> 2064-07-01 | AY2: ='1_KMA'!AY31 -> 2065-07-01 | AZ2: ='1_KMA'!AZ31 -> 2066-07-01 | BA2: ='1_KMA'!BA31 -> 2067-07-01 | BB2: ='1_KMA'!BB31 -> 2068-07-01 | BC2: ='1_KMA'!BC31 -> 2069-07-01 | BD2: ='1_KMA'!BD31 -> 2070-07-01 | BE2: ='1_KMA'!BE31 -> 2071-07-01 | BF2: ='1_KMA'!BF31 -> 2072-07-01 | BG2: ='1_KMA'!BG31 -> 2073-07-01
B3: =Cover!$C$10 -> Business Case Evaluation | I3: Period End Date | J3: ='1_KMA'!J32 -> 2025-06-30 | K3: ='1_KMA'!K32 -> 2026-06-30 | L3: ='1_KMA'!L32 -> 2027-06-30 | M3: ='1_KMA'!M32 -> 2028-06-30 | N3: ='1_KMA'!N32 -> 2029-06-30 | O3: ='1_KMA'!O32 -> 2030-06-30 | P3: ='1_KMA'!P32 -> 2031-06-30 | Q3: ='1_KMA'!Q32 -> 2032-06-30 | R3: ='1_KMA'!R32 -> 2033-06-30 | S3: ='1_KMA'!S32 -> 2034-06-30 | T3: ='1_KMA'!T32 -> 2035-06-30 | U3: ='1_KMA'!U32 -> 2036-06-30 | V3: ='1_KMA'!V32 -> 2037-06-30 | W3: ='1_KMA'!W32 -> 2038-06-30 | X3: ='1_KMA'!X32 -> 2039-06-30 | Y3: ='1_KMA'!Y32 -> 2040-06-30 | Z3: ='1_KMA'!Z32 -> 2041-06-30 | AA3: ='1_KMA'!AA32 -> 2042-06-30 | AB3: ='1_KMA'!AB32 -> 2043-06-30 | AC3: ='1_KMA'!AC32 -> 2044-06-30 | AD3: ='1_KMA'!AD32 -> 2045-06-30 | AE3: ='1_KMA'!AE32 -> 2046-06-30 | AF3: ='1_KMA'!AF32 -> 2047-06-30 | AG3: ='1_KMA'!AG32 -> 2048-06-30 | AH3: ='1_KMA'!AH32 -> 2049-06-30 | AI3: ='1_KMA'!AI32 -> 2050-06-30 | AJ3: ='1_KMA'!AJ32 -> 2051-06-30 | AK3: ='1_KMA'!AK32 -> 2052-06-30 | AL3: ='1_KMA'!AL32 -> 2053-06-30 | AM3: ='1_KMA'!AM32 -> 2054-06-30 | AN3: ='1_KMA'!AN32 -> 2055-06-30 | AO3: ='1_KMA'!AO32 -> 2056-06-30 | AP3: ='1_KMA'!AP32 -> 2057-06-30 | AQ3: ='1_KMA'!AQ32 -> 2058-06-30 | AR3: ='1_KMA'!AR32 -> 2059-06-30 | AS3: ='1_KMA'!AS32 -> 2060-06-30 | AT3: ='1_KMA'!AT32 -> 2061-06-30 | AU3: ='1_KMA'!AU32 -> 2062-06-30 | AV3: ='1_KMA'!AV32 -> 2063-06-30 | AW3: ='1_KMA'!AW32 -> 2064-06-30 | AX3: ='1_KMA'!AX32 -> 2065-06-30 | AY3: ='1_KMA'!AY32 -> 2066-06-30 | AZ3: ='1_KMA'!AZ32 -> 2067-06-30 | BA3: ='1_KMA'!BA32 -> 2068-06-30 | BB3: ='1_KMA'!BB32 -> 2069-06-30 | BC3: ='1_KMA'!BC32 -> 2070-06-30 | BD3: ='1_KMA'!BD32 -> 2071-06-30 | BE3: ='1_KMA'!BE32 -> 2072-06-30 | BF3: ='1_KMA'!BF32 -> 2073-06-30 | BG3: ='1_KMA'!BG32 -> 2074-06-30
B4: =Cover!$C$11 -> Eastern Cranbourne 66kV loop augmentation | I4: Project Year | J4: ='1_KMA'!J33 -> 1 | K4: ='1_KMA'!K33 -> 2 | L4: ='1_KMA'!L33 -> 3 | M4: ='1_KMA'!M33 -> 4 | N4: ='1_KMA'!N33 -> 5 | O4: ='1_KMA'!O33 -> 6 | P4: ='1_KMA'!P33 -> 7 | Q4: ='1_KMA'!Q33 -> 8 | R4: ='1_KMA'!R33 -> 9 | S4: ='1_KMA'!S33 -> 10 | T4: ='1_KMA'!T33 -> 11 | U4: ='1_KMA'!U33 -> 12 | V4: ='1_KMA'!V33 -> 13 | W4: ='1_KMA'!W33 -> 14 | X4: ='1_KMA'!X33 -> 15 | Y4: ='1_KMA'!Y33 -> 16 | Z4: ='1_KMA'!Z33 -> 17 | AA4: ='1_KMA'!AA33 -> 18 | AB4: ='1_KMA'!AB33 -> 19 | AC4: ='1_KMA'!AC33 -> 20 | AD4: ='1_KMA'!AD33 -> 21 | AE4: ='1_KMA'!AE33 -> 22 | AF4: ='1_KMA'!AF33 -> 23 | AG4: ='1_KMA'!AG33 -> 24 | AH4: ='1_KMA'!AH33 -> 25 | AI4: ='1_KMA'!AI33 -> 26 | AJ4: ='1_KMA'!AJ33 -> 27 | AK4: ='1_KMA'!AK33 -> 28 | AL4: ='1_KMA'!AL33 -> 29 | AM4: ='1_KMA'!AM33 -> 30 | AN4: ='1_KMA'!AN33 -> 31 | AO4: ='1_KMA'!AO33 -> 32 | AP4: ='1_KMA'!AP33 -> 33 | AQ4: ='1_KMA'!AQ33 -> 34 | AR4: ='1_KMA'!AR33 -> 35 | AS4: ='1_KMA'!AS33 -> 36 | AT4: ='1_KMA'!AT33 -> 37 | AU4: ='1_KMA'!AU33 -> 38 | AV4: ='1_KMA'!AV33 -> 39 | AW4: ='1_KMA'!AW33 -> 40 | AX4: ='1_KMA'!AX33 -> 41 | AY4: ='1_KMA'!AY33 -> 42 | AZ4: ='1_KMA'!AZ33 -> 43 | BA4: ='1_KMA'!BA33 -> 44 | BB4: ='1_KMA'!BB33 -> 45 | BC4: ='1_KMA'!BC33 -> 46 | BD4: ='1_KMA'!BD33 -> 47 | BE4: ='1_KMA'!BE33 -> 48 | BF4: ='1_KMA'!BF33 -> 49 | BG4: ='1_KMA'!BG33 -> 50
I5: Financial Year | J5: ='1_KMA'!J34 -> 2025 | K5: ='1_KMA'!K34 -> 2026 | L5: ='1_KMA'!L34 -> 2027 | M5: ='1_KMA'!M34 -> 2028 | N5: ='1_KMA'!N34 -> 2029 | O5: ='1_KMA'!O34 -> 2030 | P5: ='1_KMA'!P34 -> 2031 | Q5: ='1_KMA'!Q34 -> 2032 | R5: ='1_KMA'!R34 -> 2033 | S5: ='1_KMA'!S34 -> 2034 | T5: ='1_KMA'!T34 -> 2035 | U5: ='1_KMA'!U34 -> 2036 | V5: ='1_KMA'!V34 -> 2037 | W5: ='1_KMA'!W34 -> 2038 | X5: ='1_KMA'!X34 -> 2039 | Y5: ='1_KMA'!Y34 -> 2040 | Z5: ='1_KMA'!Z34 -> 2041 | AA5: ='1_KMA'!AA34 -> 2042 | AB5: ='1_KMA'!AB34 -> 2043 | AC5: ='1_KMA'!AC34 -> 2044 | AD5: ='1_KMA'!AD34 -> 2045 | AE5: ='1_KMA'!AE34 -> 2046 | AF5: ='1_KMA'!AF34 -> 2047 | AG5: ='1_KMA'!AG34 -> 2048 | AH5: ='1_KMA'!AH34 -> 2049 | AI5: ='1_KMA'!AI34 -> 2050 | AJ5: ='1_KMA'!AJ34 -> 2051 | AK5: ='1_KMA'!AK34 -> 2052 | AL5: ='1_KMA'!AL34 -> 2053 | AM5: ='1_KMA'!AM34 -> 2054 | AN5: ='1_KMA'!AN34 -> 2055 | AO5: ='1_KMA'!AO34 -> 2056 | AP5: ='1_KMA'!AP34 -> 2057 | AQ5: ='1_KMA'!AQ34 -> 2058 | AR5: ='1_KMA'!AR34 -> 2059 | AS5: ='1_KMA'!AS34 -> 2060 | AT5: ='1_KMA'!AT34 -> 2061 | AU5: ='1_KMA'!AU34 -> 2062 | AV5: ='1_KMA'!AV34 -> 2063 | AW5: ='1_KMA'!AW34 -> 2064 | AX5: ='1_KMA'!AX34 -> 2065 | AY5: ='1_KMA'!AY34 -> 2066 | AZ5: ='1_KMA'!AZ34 -> 2067 | BA5: ='1_KMA'!BA34 -> 2068 | BB5: ='1_KMA'!BB34 -> 2069 | BC5: ='1_KMA'!BC34 -> 2070 | BD5: ='1_KMA'!BD34 -> 2071 | BE5: ='1_KMA'!BE34 -> 2072 | BF5: ='1_KMA'!BF34 -> 2073 | BG5: ='1_KMA'!BG34 -> 2074
I7: Escalation | J7: =IF(ISERROR(VLOOKUP('1_KMA'!$I$20&'1_KMA'!$I$21,CPI_Con_F!$C$63:$H$182,6,FALSE)),0,VLOOKUP('1_KMA'!$I$20&'1_KMA'!$I$21,CPI_Con_F!$C$63:$H$182,6,FALSE)) -> 1 | K7: =IF(ISERROR(VLOOKUP('1_KMA'!$I$20&'1_KMA'!$I$21,CPI_Con_F!$C$63:$H$182,6,FALSE)),0,VLOOKUP('1_KMA'!$I$20&'1_KMA'!$I$21,CPI_Con_F!$C$63:$H$182,6,FALSE)) -> 1 | L7: =IF(ISERROR(VLOOKUP('1_KMA'!$I$20&'1_KMA'!$I$21,CPI_Con_F!$C$63:$H$182,6,FALSE)),0,VLOOKUP('1_KMA'!$I$20&'1_KMA'!$I$21,CPI_Con_F!$C$63:$H$182,6,FALSE)) -> 1 | M7: =IF(ISERROR(VLOOKUP('1_KMA'!$I$20&'1_KMA'!$I$21,CPI_Con_F!$C$63:$H$182,6,FALSE)),0,VLOOKUP('1_KMA'!$I$20&'1_KMA'!$I$21,CPI_Con_F!$C$63:$H$182,6,FALSE)) -> 1 | N7: =IF(ISERROR(VLOOKUP('1_KMA'!$I$20&'1_KMA'!$I$21,CPI_Con_F!$C$63:$H$182,6,FALSE)),0,VLOOKUP('1_KMA'!$I$20&'1_KMA'!$I$21,CPI_Con_F!$C$63:$H$182,6,FALSE)) -> 1 | O7: =IF(ISERROR(VLOOKUP('1_KMA'!$I$20&'1_KMA'!$I$21,CPI_Con_F!$C$63:$H$182,6,FALSE)),0,VLOOKUP('1_KMA'!$I$20&'1_KMA'!$I$21,CPI_Con_F!$C$63:$H$182,6,FALSE)) -> 1 | P7: =IF(ISERROR(VLOOKUP('1_KMA'!$I$20&'1_KMA'!$I$21,CPI_Con_F!$C$63:$H$182,6,FALSE)),0,VLOOKUP('1_KMA'!$I$20&'1_KMA'!$I$21,CPI_Con_F!$C$63:$H$182,6,FALSE)) -> 1 | Q7: =IF(ISERROR(VLOOKUP('1_KMA'!$I$20&'1_KMA'!$I$21,CPI_Con_F!$C$63:$H$182,6,FALSE)),0,VLOOKUP('1_KMA'!$I$20&'1_KMA'!$I$21,CPI_Con_F!$C$63:$H$182,6,FALSE)) -> 1 | R7: =IF(ISERROR(VLOOKUP('1_KMA'!$I$20&'1_KMA'!$I$21,CPI_Con_F!$C$63:$H$182,6,FALSE)),0,VLOOKUP('1_KMA'!$I$20&'1_KMA'!$I$21,CPI_Con_F!$C$63:$H$182,6,FALSE)) -> 1 | S7: =IF(ISERROR(VLOOKUP('1_KMA'!$I$20&'1_KMA'!$I$21,CPI_Con_F!$C$63:$H$182,6,FALSE)),0,VLOOKUP('1_KMA'!$I$20&'1_KMA'!$I$21,CPI_Con_F!$C$63:$H$182,6,FALSE)) -> 1 | T7: =IF(ISERROR(VLOOKUP('1_KMA'!$I$20&'1_KMA'!$I$21,CPI_Con_F!$C$63:$H$182,6,FALSE)),0,VLOOKUP('1_KMA'!$I$20&'1_KMA'!$I$21,CPI_Con_F!$C$63:$H$182,6,FALSE)) -> 1 | U7: =IF(ISERROR(VLOOKUP('1_KMA'!$I$20&'1_KMA'!$I$21,CPI_Con_F!$C$63:$H$182,6,FALSE)),0,VLOOKUP('1_KMA'!$I$20&'1_KMA'!$I$21,CPI_Con_F!$C$63:$H$182,6,FALSE)) -> 1 | V7: =IF(ISERROR(VLOOKUP('1_KMA'!$I$20&'1_KMA'!$I$21,CPI_Con_F!$C$63:$H$182,6,FALSE)),0,VLOOKUP('1_KMA'!$I$20&'1_KMA'!$I$21,CPI_Con_F!$C$63:$H$182,6,FALSE)) -> 1 | W7: =IF(ISERROR(VLOOKUP('1_KMA'!$I$20&'1_KMA'!$I$21,CPI_Con_F!$C$63:$H$182,6,FALSE)),0,VLOOKUP('1_KMA'!$I$20&'1_KMA'!$I$21,CPI_Con_F!$C$63:$H$182,6,FALSE)) -> 1 | X7: =IF(ISERROR(VLOOKUP('1_KMA'!$I$20&'1_KMA'!$I$21,CPI_Con_F!$C$63:$H$182,6,FALSE)),0,VLOOKUP('1_KMA'!$I$20&'1_KMA'!$I$21,CPI_Con_F!$C$63:$H$182,6,FALSE)) -> 1 | Y7: =IF(ISERROR(VLOOKUP('1_KMA'!$I$20&'1_KMA'!$I$21,CPI_Con_F!$C$63:$H$182,6,FALSE)),0,VLOOKUP('1_KMA'!$I$20&'1_KMA'!$I$21,CPI_Con_F!$C$63:$H$182,6,FALSE)) -> 1 | Z7: =IF(ISERROR(VLOOKUP('1_KMA'!$I$20&'1_KMA'!$I$21,CPI_Con_F!$C$63:$H$182,6,FALSE)),0,VLOOKUP('1_KMA'!$I$20&'1_KMA'!$I$21,CPI_Con_F!$C$63:$H$182,6,FALSE)) -> 1 | AA7: =IF(ISERROR(VLOOKUP('1_KMA'!$I$20&'1_KMA'!$I$21,CPI_Con_F!$C$63:$H$182,6,FALSE)),0,VLOOKUP('1_KMA'!$I$20&'1_KMA'!$I$21,CPI_Con_F!$C$63:$H$182,6,FALSE)) -> 1 | AB7: =IF(ISERROR(VLOOKUP('1_KMA'!$I$20&'1_KMA'!$I$21,CPI_Con_F!$C$63:$H$182,6,FALSE)),0,VLOOKUP('1_KMA'!$I$20&'1_KMA'!$I$21,CPI_Con_F!$C$63:$H$182,6,FALSE)) -> 1 | AC7: =IF(ISERROR(VLOOKUP('1_KMA'!$I$20&'1_KMA'!$I$21,CPI_Con_F!$C$63:$H$182,6,FALSE)),0,VLOOKUP('1_KMA'!$I$20&'1_KMA'!$I$21,CPI_Con_F!$C$63:$H$182,6,FALSE)) -> 1 | AD7: =IF(ISERROR(VLOOKUP('1_KMA'!$I$20&'1_KMA'!$I$21,CPI_Con_F!$C$63:$H$182,6,FALSE)),0,VLOOKUP('1_KMA'!$I$20&'1_KMA'!$I$21,CPI_Con_F!$C$63:$H$182,6,FALSE)) -> 1 | AE7: =IF(ISERROR(VLOOKUP('1_KMA'!$I$20&'1_KMA'!$I$21,CPI_Con_F!$C$63:$H$182,6,FALSE)),0,VLOOKUP('1_KMA'!$I$20&'1_KMA'!$I$21,CPI_Con_F!$C$63:$H$182,6,FALSE)) -> 1 | AF7: =IF(ISERROR(VLOOKUP('1_KMA'!$I$20&'1_KMA'!$I$21,CPI_Con_F!$C$63:$H$182,6,FALSE)),0,VLOOKUP('1_KMA'!$I$20&'1_KMA'!$I$21,CPI_Con_F!$C$63:$H$182,6,FALSE)) -> 1 | AG7: =IF(ISERROR(VLOOKUP('1_KMA'!$I$20&'1_KMA'!$I$21,CPI_Con_F!$C$63:$H$182,6,FALSE)),0,VLOOKUP('1_KMA'!$I$20&'1_KMA'!$I$21,CPI_Con_F!$C$63:$H$182,6,FALSE)) -> 1 | AH7: =IF(ISERROR(VLOOKUP('1_KMA'!$I$20&'1_KMA'!$I$21,CPI_Con_F!$C$63:$H$182,6,FALSE)),0,VLOOKUP('1_KMA'!$I$20&'1_KMA'!$I$21,CPI_Con_F!$C$63:$H$182,6,FALSE)) -> 1 | AI7: =IF(ISERROR(VLOOKUP('1_KMA'!$I$20&'1_KMA'!$I$21,CPI_Con_F!$C$63:$H$182,6,FALSE)),0,VLOOKUP('1_KMA'!$I$20&'1_KMA'!$I$21,CPI_Con_F!$C$63:$H$182,6,FALSE)) -> 1 | AJ7: =IF(ISERROR(VLOOKUP('1_KMA'!$I$20&'1_KMA'!$I$21,CPI_Con_F!$C$63:$H$182,6,FALSE)),0,VLOOKUP('1_KMA'!$I$20&'1_KMA'!$I$21,CPI_Con_F!$C$63:$H$182,6,FALSE)) -> 1 | AK7: =IF(ISERROR(VLOOKUP('1_KMA'!$I$20&'1_KMA'!$I$21,CPI_Con_F!$C$63:$H$182,6,FALSE)),0,VLOOKUP('1_KMA'!$I$20&'1_KMA'!$I$21,CPI_Con_F!$C$63:$H$182,6,FALSE)) -> 1 | AL7: =IF(ISERROR(VLOOKUP('1_KMA'!$I$20&'1_KMA'!$I$21,CPI_Con_F!$C$63:$H$182,6,FALSE)),0,VLOOKUP('1_KMA'!$I$20&'1_KMA'!$I$21,CPI_Con_F!$C$63:$H$182,6,FALSE)) -> 1 | AM7: =IF(ISERROR(VLOOKUP('1_KMA'!$I$20&'1_KMA'!$I$21,CPI_Con_F!$C$63:$H$182,6,FALSE)),0,VLOOKUP('1_KMA'!$I$20&'1_KMA'!$I$21,CPI_Con_F!$C$63:$H$182,6,FALSE)) -> 1 | AN7: =IF(ISERROR(VLOOKUP('1_KMA'!$I$20&'1_KMA'!$I$21,CPI_Con_F!$C$63:$H$182,6,FALSE)),0,VLOOKUP('1_KMA'!$I$20&'1_KMA'!$I$21,CPI_Con_F!$C$63:$H$182,6,FALSE)) -> 1 | AO7: =IF(ISERROR(VLOOKUP('1_KMA'!$I$20&'1_KMA'!$I$21,CPI_Con_F!$C$63:$H$182,6,FALSE)),0,VLOOKUP('1_KMA'!$I$20&'1_KMA'!$I$21,CPI_Con_F!$C$63:$H$182,6,FALSE)) -> 1 | AP7: =IF(ISERROR(VLOOKUP('1_KMA'!$I$20&'1_KMA'!$I$21,CPI_Con_F!$C$63:$H$182,6,FALSE)),0,VLOOKUP('1_KMA'!$I$20&'1_KMA'!$I$21,CPI_Con_F!$C$63:$H$182,6,FALSE)) -> 1 | AQ7: =IF(ISERROR(VLOOKUP('1_KMA'!$I$20&'1_KMA'!$I$21,CPI_Con_F!$C$63:$H$182,6,FALSE)),0,VLOOKUP('1_KMA'!$I$20&'1_KMA'!$I$21,CPI_Con_F!$C$63:$H$182,6,FALSE)) -> 1 | AR7: =IF(ISERROR(VLOOKUP('1_KMA'!$I$20&'1_KMA'!$I$21,CPI_Con_F!$C$63:$H$182,6,FALSE)),0,VLOOKUP('1_KMA'!$I$20&'1_KMA'!$I$21,CPI_Con_F!$C$63:$H$182,6,FALSE)) -> 1 | AS7: =IF(ISERROR(VLOOKUP('1_KMA'!$I$20&'1_KMA'!$I$21,CPI_Con_F!$C$63:$H$182,6,FALSE)),0,VLOOKUP('1_KMA'!$I$20&'1_KMA'!$I$21,CPI_Con_F!$C$63:$H$182,6,FALSE)) -> 1 | AT7: =IF(ISERROR(VLOOKUP('1_KMA'!$I$20&'1_KMA'!$I$21,CPI_Con_F!$C$63:$H$182,6,FALSE)),0,VLOOKUP('1_KMA'!$I$20&'1_KMA'!$I$21,CPI_Con_F!$C$63:$H$182,6,FALSE)) -> 1 | AU7: =IF(ISERROR(VLOOKUP('1_KMA'!$I$20&'1_KMA'!$I$21,CPI_Con_F!$C$63:$H$182,6,FALSE)),0,VLOOKUP('1_KMA'!$I$20&'1_KMA'!$I$21,CPI_Con_F!$C$63:$H$182,6,FALSE)) -> 1 | AV7: =IF(ISERROR(VLOOKUP('1_KMA'!$I$20&'1_KMA'!$I$21,CPI_Con_F!$C$63:$H$182,6,FALSE)),0,VLOOKUP('1_KMA'!$I$20&'1_KMA'!$I$21,CPI_Con_F!$C$63:$H$182,6,FALSE)) -> 1 | AW7: =IF(ISERROR(VLOOKUP('1_KMA'!$I$20&'1_KMA'!$I$21,CPI_Con_F!$C$63:$H$182,6,FALSE)),0,VLOOKUP('1_KMA'!$I$20&'1_KMA'!$I$21,CPI_Con_F!$C$63:$H$182,6,FALSE)) -> 1 | AX7: =IF(ISERROR(VLOOKUP('1_KMA'!$I$20&'1_KMA'!$I$21,CPI_Con_F!$C$63:$H$182,6,FALSE)),0,VLOOKUP('1_KMA'!$I$20&'1_KMA'!$I$21,CPI_Con_F!$C$63:$H$182,6,FALSE)) -> 1 | AY7: =IF(ISERROR(VLOOKUP('1_KMA'!$I$20&'1_KMA'!$I$21,CPI_Con_F!$C$63:$H$182,6,FALSE)),0,VLOOKUP('1_KMA'!$I$20&'1_KMA'!$I$21,CPI_Con_F!$C$63:$H$182,6,FALSE)) -> 1 | AZ7: =IF(ISERROR(VLOOKUP('1_KMA'!$I$20&'1_KMA'!$I$21,CPI_Con_F!$C$63:$H$182,6,FALSE)),0,VLOOKUP('1_KMA'!$I$20&'1_KMA'!$I$21,CPI_Con_F!$C$63:$H$182,6,FALSE)) -> 1 | BA7: =IF(ISERROR(VLOOKUP('1_KMA'!$I$20&'1_KMA'!$I$21,CPI_Con_F!$C$63:$H$182,6,FALSE)),0,VLOOKUP('1_KMA'!$I$20&'1_KMA'!$I$21,CPI_Con_F!$C$63:$H$182,6,FALSE)) -> 1 | BB7: =IF(ISERROR(VLOOKUP('1_KMA'!$I$20&'1_KMA'!$I$21,CPI_Con_F!$C$63:$H$182,6,FALSE)),0,VLOOKUP('1_KMA'!$I$20&'1_KMA'!$I$21,CPI_Con_F!$C$63:$H$182,6,FALSE)) -> 1 | BC7: =IF(ISERROR(VLOOKUP('1_KMA'!$I$20&'1_KMA'!$I$21,CPI_Con_F!$C$63:$H$182,6,FALSE)),0,VLOOKUP('1_KMA'!$I$20&'1_KMA'!$I$21,CPI_Con_F!$C$63:$H$182,6,FALSE)) -> 1 | BD7: =IF(ISERROR(VLOOKUP('1_KMA'!$I$20&'1_KMA'!$I$21,CPI_Con_F!$C$63:$H$182,6,FALSE)),0,VLOOKUP('1_KMA'!$I$20&'1_KMA'!$I$21,CPI_Con_F!$C$63:$H$182,6,FALSE)) -> 1 | BE7: =IF(ISERROR(VLOOKUP('1_KMA'!$I$20&'1_KMA'!$I$21,CPI_Con_F!$C$63:$H$182,6,FALSE)),0,VLOOKUP('1_KMA'!$I$20&'1_KMA'!$I$21,CPI_Con_F!$C$63:$H$182,6,FALSE)) -> 1 | BF7: =IF(ISERROR(VLOOKUP('1_KMA'!$I$20&'1_KMA'!$I$21,CPI_Con_F!$C$63:$H$182,6,FALSE)),0,VLOOKUP('1_KMA'!$I$20&'1_KMA'!$I$21,CPI_Con_F!$C$63:$H$182,6,FALSE)) -> 1 | BG7: =IF(ISERROR(VLOOKUP('1_KMA'!$I$20&'1_KMA'!$I$21,CPI_Con_F!$C$63:$H$182,6,FALSE)),0,VLOOKUP('1_KMA'!$I$20&'1_KMA'!$I$21,CPI_Con_F!$C$63:$H$182,6,FALSE)) -> 1
I8: Evaluation Period Indicator | J8: =IF(J4<='1_KMA'!$I$23,1,0) -> 1 | K8: =IF(K4<='1_KMA'!$I$23,1,0) -> 1 | L8: =IF(L4<='1_KMA'!$I$23,1,0) -> 1 | M8: =IF(M4<='1_KMA'!$I$23,1,0) -> 1 | N8: =IF(N4<='1_KMA'!$I$23,1,0) -> 1 | O8: =IF(O4<='1_KMA'!$I$23,1,0) -> 1 | P8: =IF(P4<='1_KMA'!$I$23,1,0) -> 1 | Q8: =IF(Q4<='1_KMA'!$I$23,1,0) -> 1 | R8: =IF(R4<='1_KMA'!$I$23,1,0) -> 1 | S8: =IF(S4<='1_KMA'!$I$23,1,0) -> 1 | T8: =IF(T4<='1_KMA'!$I$23,1,0) -> 1 | U8: =IF(U4<='1_KMA'!$I$23,1,0) -> 1 | V8: =IF(V4<='1_KMA'!$I$23,1,0) -> 1 | W8: =IF(W4<='1_KMA'!$I$23,1,0) -> 1 | X8: =IF(X4<='1_KMA'!$I$23,1,0) -> 1 | Y8: =IF(Y4<='1_KMA'!$I$23,1,0) -> 1 | Z8: =IF(Z4<='1_KMA'!$I$23,1,0) -> 1 | AA8: =IF(AA4<='1_KMA'!$I$23,1,0) -> 1 | AB8: =IF(AB4<='1_KMA'!$I$23,1,0) -> 1 | AC8: =IF(AC4<='1_KMA'!$I$23,1,0) -> 1 | AD8: =IF(AD4<='1_KMA'!$I$23,1,0) -> 1 | AE8: =IF(AE4<='1_KMA'!$I$23,1,0) -> 1 | AF8: =IF(AF4<='1_KMA'!$I$23,1,0) -> 1 | AG8: =IF(AG4<='1_KMA'!$I$23,1,0) -> 1 | AH8: =IF(AH4<='1_KMA'!$I$23,1,0) -> 1 | AI8: =IF(AI4<='1_KMA'!$I$23,1,0) -> 1 | AJ8: =IF(AJ4<='1_KMA'!$I$23,1,0) -> 1 | AK8: =IF(AK4<='1_KMA'!$I$23,1,0) -> 1 | AL8: =IF(AL4<='1_KMA'!$I$23,1,0) -> 1 | AM8: =IF(AM4<='1_KMA'!$I$23,1,0) -> 1 | AN8: =IF(AN4<='1_KMA'!$I$23,1,0) -> 0 | AO8: =IF(AO4<='1_KMA'!$I$23,1,0) -> 0 | AP8: =IF(AP4<='1_KMA'!$I$23,1,0) -> 0 | AQ8: =IF(AQ4<='1_KMA'!$I$23,1,0) -> 0 | AR8: =IF(AR4<='1_KMA'!$I$23,1,0) -> 0 | AS8: =IF(AS4<='1_KMA'!$I$23,1,0) -> 0 | AT8: =IF(AT4<='1_KMA'!$I$23,1,0) -> 0 | AU8: =IF(AU4<='1_KMA'!$I$23,1,0) -> 0 | AV8: =IF(AV4<='1_KMA'!$I$23,1,0) -> 0 | AW8: =IF(AW4<='1_KMA'!$I$23,1,0) -> 0 | AX8: =IF(AX4<='1_KMA'!$I$23,1,0) -> 0 | AY8: =IF(AY4<='1_KMA'!$I$23,1,0) -> 0 | AZ8: =IF(AZ4<='1_KMA'!$I$23,1,0) -> 0 | BA8: =IF(BA4<='1_KMA'!$I$23,1,0) -> 0 | BB8: =IF(BB4<='1_KMA'!$I$23,1,0) -> 0 | BC8: =IF(BC4<='1_KMA'!$I$23,1,0) -> 0 | BD8: =IF(BD4<='1_KMA'!$I$23,1,0) -> 0 | BE8: =IF(BE4<='1_KMA'!$I$23,1,0) -> 0 | BF8: =IF(BF4<='1_KMA'!$I$23,1,0) -> 0 | BG8: =IF(BG4<='1_KMA'!$I$23,1,0) -> 0
B10: Summary for Central Assumptions
B12: WACC | J12: ='1_KMA'!$I$28 -> 0.05555 | K12: ='1_KMA'!$I$28 -> 0.05555 | L12: ='1_KMA'!$I$28 -> 0.05555 | M12: ='1_KMA'!$I$28 -> 0.05555 | N12: ='1_KMA'!$I$28 -> 0.05555 | O12: ='1_KMA'!$I$28 -> 0.05555 | P12: ='1_KMA'!$I$28 -> 0.05555 | Q12: ='1_KMA'!$I$28 -> 0.05555 | R12: ='1_KMA'!$I$28 -> 0.05555 | S12: ='1_KMA'!$I$28 -> 0.05555 | T12: ='1_KMA'!$I$28 -> 0.05555 | U12: ='1_KMA'!$I$28 -> 0.05555 | V12: ='1_KMA'!$I$28 -> 0.05555 | W12: ='1_KMA'!$I$28 -> 0.05555 | X12: ='1_KMA'!$I$28 -> 0.05555 | Y12: ='1_KMA'!$I$28 -> 0.05555 | Z12: ='1_KMA'!$I$28 -> 0.05555 | AA12: ='1_KMA'!$I$28 -> 0.05555 | AB12: ='1_KMA'!$I$28 -> 0.05555 | AC12: ='1_KMA'!$I$28 -> 0.05555 | AD12: ='1_KMA'!$I$28 -> 0.05555 | AE12: ='1_KMA'!$I$28 -> 0.05555 | AF12: ='1_KMA'!$I$28 -> 0.05555 | AG12: ='1_KMA'!$I$28 -> 0.05555 | AH12: ='1_KMA'!$I$28 -> 0.05555 | AI12: ='1_KMA'!$I$28 -> 0.05555 | AJ12: ='1_KMA'!$I$28 -> 0.05555 | AK12: ='1_KMA'!$I$28 -> 0.05555 | AL12: ='1_KMA'!$I$28 -> 0.05555 | AM12: ='1_KMA'!$I$28 -> 0.05555 | AN12: ='1_KMA'!$I$28 -> 0.05555 | AO12: ='1_KMA'!$I$28 -> 0.05555 | AP12: ='1_KMA'!$I$28 -> 0.05555 | AQ12: ='1_KMA'!$I$28 -> 0.05555 | AR12: ='1_KMA'!$I$28 -> 0.05555 | AS12: ='1_KMA'!$I$28 -> 0.05555 | AT12: ='1_KMA'!$I$28 -> 0.05555 | AU12: ='1_KMA'!$I$28 -> 0.05555 | AV12: ='1_KMA'!$I$28 -> 0.05555 | AW12: ='1_KMA'!$I$28 -> 0.05555 | AX12: ='1_KMA'!$I$28 -> 0.05555 | AY12: ='1_KMA'!$I$28 -> 0.05555 | AZ12: ='1_KMA'!$I$28 -> 0.05555 | BA12: ='1_KMA'!$I$28 -> 0.05555 | BB12: ='1_KMA'!$I$28 -> 0.05555 | BC12: ='1_KMA'!$I$28 -> 0.05555 | BD12: ='1_KMA'!$I$28 -> 0.05555 | BE12: ='1_KMA'!$I$28 -> 0.05555 | BF12: ='1_KMA'!$I$28 -> 0.05555 | BG12: ='1_KMA'!$I$28 -> 0.05555
B13: Deflator (interim calculation) | J13: 1 | K13: =J13*(1+K12) -> 1.05555 | L13: =K13*(1+L12) -> 1.114185802 | M13: =L13*(1+M12) -> 1.176078824 | N13: 1.241410002 | O13: 1.310370328 | P13: 1.3831614 | Q13: 1.459996016 | R13: 1.541098794 | S13: 1.626706832 | T13: 1.717070397 | U13: 1.812453657 | V13: 1.913135458 | W13: 2.019410133 | X13: 2.131588366 | Y13: 2.249998099 | Z13: 2.374985494 | AA13: 2.506915938 | AB13: 2.646175118 | AC13: 2.793170146 | AD13: 2.948330748 | AE13: 3.112110521 | AF13: 3.28498826 | AG13: 3.467469358 | AH13: 3.660087281 | AI13: 3.863405129 | AJ13: 4.078017284 | AK13: 4.304551144 | AL13: 4.54366896 | AM13: 4.796069771 | AN13: 5.062491447 | AO13: 5.343712847 | AP13: 5.640556096 | AQ13: 5.953888987 | AR13: 6.28462752 | AS13: 6.633738579 | AT13: 7.002242757 | AU13: 7.391217342 | AV13: 7.801799465 | AW13: 8.235189425 | AX13: 8.692654198 | AY13: 9.175531139 | AZ13: 9.685231893 | BA13: 10.22324653 | BB13: 10.79114787 | BC13: 11.39059613 | BD13: 12.02334375 | BE13: 12.69124049 | BF13: 13.3962389 | BG13: 14.14039997
B14: Deflator | J14: =1/J13 -> 1 | K14: =1/K13 -> 0.9473734072 | L14: =1/L13 -> 0.8975163727 | M14: 0.8502831441 | N14: =1/N13 -> 0.8055356393 | O14: 0.7631430433 | P14: 0.7229814251 | Q14: 0.6849333761 | R14: 0.6488876662 | S14: 0.6147389192 | T14: 0.5823873045 | U14: 0.551738245 | V14: 0.522702141 | W14: 0.4951941083 | X14: 0.4691337296 | Y14: 0.4444448199 | Z14: 0.4210552033 | AA14: 0.3988965026 | AB14: 0.3779039388 | AC14: 0.3580161421 | AD14: 0.3391749724 | AE14: 0.3213253493 | AF14: 0.304415091 | AG14: 0.2883947619 | AH14: 0.2732175282 | AI14: 0.2588390206 | AJ14: 0.2452172049 | AK14: 0.2323122589 | AL14: 0.2200864563 | AM14: 0.208504056 | AN14: 0.1975311979 | AO14: 0.187135804 | AP14: 0.1772874843 | AQ14: 0.167957448 | AR14: 0.1591184198 | AS14: 0.1507445595 | AT14: 0.142811387 | AU14: 0.1352957103 | AV14: 0.128175558 | AW14: 0.1214301151 | AX14: 0.1150396619 | AY14: 0.1089855165 | AZ14: 0.1032499801 | BA14: 0.09781628542 | BB14: 0.0926685476 | BC14: 0.08779171768 | BD14: 0.08317153871 | BE14: 0.07879450401 | BF14: 0.07464781773 | BG14: 0.07071935743
B16: Totex sought for EDPR FY27-31 (undiscounted) | G16: ="("&TEXT('1_KMA'!$I$21,"dd-mmm-yy")&" Dollars)" -> (30-Jun-24 Dollars)
C17: Net Capital Expenditure | G17: =SUM(J17:BG17) -> 0 | J17: =-J33*J$1*J$8 -> 0 | K17: =-K33*K$1*K$8 -> 0 | L17: 0 | M17: 0 | N17: 0 | O17: 0 | P17: 0 | Q17: 0 | R17: 0 | S17: 0 | T17: 0 | U17: 0 | V17: 0 | W17: 0 | X17: 0 | Y17: 0 | Z17: 0 | AA17: 0 | AB17: 0 | AC17: 0 | AD17: 0 | AE17: 0 | AF17: 0 | AG17: 0 | AH17: 0 | AI17: 0 | AJ17: 0 | AK17: 0 | AL17: 0 | AM17: 0 | AN17: 0 | AO17: 0 | AP17: 0 | AQ17: 0 | AR17: 0 | AS17: 0 | AT17: 0 | AU17: 0 | AV17: 0 | AW17: 0 | AX17: 0 | AY17: 0 | AZ17: 0 | BA17: 0 | BB17: 0 | BC17: 0 | BD17: 0 | BE17: 0 | BF17: 0 | BG17: 0
C18: Operating Expenditure | G18: =SUM(J18:BG18) -> 0 | J18: =-J34*J$1*J$8 -> 0 | K18: =-K34*K$1*K$8 -> 0 | L18: 0 | M18: 0 | N18: 0 | O18: 0 | P18: 0 | Q18: 0 | R18: 0 | S18: 0 | T18: 0 | U18: 0 | V18: 0 | W18: 0 | X18: 0 | Y18: 0 | Z18: 0 | AA18: 0 | AB18: 0 | AC18: 0 | AD18: 0 | AE18: 0 | AF18: 0 | AG18: 0 | AH18: 0 | AI18: 0 | AJ18: 0 | AK18: 0 | AL18: 0 | AM18: 0 | AN18: 0 | AO18: 0 | AP18: 0 | AQ18: 0 | AR18: 0 | AS18: 0 | AT18: 0 | AU18: 0 | AV18: 0 | AW18: 0 | AX18: 0 | AY18: 0 | AZ18: 0 | BA18: 0 | BB18: 0 | BC18: 0 | BD18: 0 | BE18: 0 | BF18: 0 | BG18: 0
C19: Totex | G19: =SUM(G17:G18) -> 0 | J19: =SUM(J17:J18) -> 0 | K19: =SUM(K17:K18) -> 0 | L19: =SUM(L17:L18) -> 0 | M19: 0 | N19: 0 | O19: 0 | P19: 0 | Q19: 0 | R19: 0 | S19: 0 | T19: 0 | U19: 0 | V19: 0 | W19: 0 | X19: 0 | Y19: 0 | Z19: 0 | AA19: 0 | AB19: 0 | AC19: 0 | AD19: 0 | AE19: 0 | AF19: 0 | AG19: 0 | AH19: 0 | AI19: 0 | AJ19: 0 | AK19: 0 | AL19: 0 | AM19: 0 | AN19: 0 | AO19: 0 | AP19: 0 | AQ19: 0 | AR19: 0 | AS19: 0 | AT19: 0 | AU19: 0 | AV19: 0 | AW19: 0 | AX19: 0 | AY19: 0 | AZ19: 0 | BA19: 0 | BB19: 0 | BC19: 0 | BD19: 0 | BE19: 0 | BF19: 0 | BG19: 0
B21: PV over full assessment period to establish the preferred option (discounted) | G21: ="("&TEXT('1_KMA'!$I$21,"dd-mmm-yy")&" Dollars)" -> (30-Jun-24 Dollars)
C22: Net Capital Expenditure | G22: =SUM(J22:BG22) -> 0 | J22: =-(J33)*J$14*J$8 -> 0 | K22: =-(K33)*K$14*K$8 -> 0 | L22: 0 | M22: 0 | N22: 0 | O22: 0 | P22: 0 | Q22: 0 | R22: 0 | S22: 0 | T22: 0 | U22: 0 | V22: 0 | W22: 0 | X22: 0 | Y22: 0 | Z22: 0 | AA22: 0 | AB22: 0 | AC22: 0 | AD22: 0 | AE22: 0 | AF22: 0 | AG22: 0 | AH22: 0 | AI22: 0 | AJ22: 0 | AK22: 0 | AL22: 0 | AM22: 0 | AN22: 0 | AO22: 0 | AP22: 0 | AQ22: 0 | AR22: 0 | AS22: 0 | AT22: 0 | AU22: 0 | AV22: 0 | AW22: 0 | AX22: 0 | AY22: 0 | AZ22: 0 | BA22: 0 | BB22: 0 | BC22: 0 | BD22: 0 | BE22: 0 | BF22: 0 | BG22: 0
C23: Operating Expenditure | G23: =SUM(J23:BG23) -> 0 | J23: =-(J34)*J$14*J$8 -> 0 | K23: =-(K34)*K$14*K$8 -> 0 | L23: 0 | M23: 0 | N23: 0 | O23: 0 | P23: 0 | Q23: 0 | R23: 0 | S23: 0 | T23: 0 | U23: 0 | V23: 0 | W23: 0 | X23: 0 | Y23: 0 | Z23: 0 | AA23: 0 | AB23: 0 | AC23: 0 | AD23: 0 | AE23: 0 | AF23: 0 | AG23: 0 | AH23: 0 | AI23: =-(AI34)*AI$14*AI$8 -> 0 | AJ23: 0 | AK23: 0 | AL23: 0 | AM23: 0 | AN23: 0 | AO23: 0 | AP23: 0 | AQ23: 0 | AR23: 0 | AS23: 0 | AT23: 0 | AU23: 0 | AV23: 0 | AW23: 0 | AX23: 0 | AY23: 0 | AZ23: 0 | BA23: 0 | BB23: 0 | BC23: 0 | BD23: 0 | BE23: 0 | BF23: 0 | BG23: 0
C24: Net Benefits | G24: =SUM(J24:BG24) -> -280.5134211 | J24: =(J45)*J$14*J$8 -> 0 | K24: =(K45)*K$14*K$8 -> 0 | L24: -0.09396996422 | M24: -0.859466202 | N24: -2.302220857 | O24: -0.6593555894 | P24: -1.598439633 | Q24: -2.737747197 | R24: -4.243076449 | S24: -6.217776799 | T24: -8.726724325 | U24: -11.71103047 | V24: -15.40852733 | W24: -19.78236087 | X24: -18.74128262 | Y24: -17.75499278 | Z24: -16.820608 | AA24: -15.93539671 | AB24: -15.09677108 | AC24: -14.30227946 | AD24: -13.54959922 | AE24: -12.83652998 | AF24: -12.16098714 | AG24: -11.52099583 | AH24: -10.91468507 | AI24: =(AI45)*AI$14*AI$8 -> -10.34028238 | AJ24: -9.796108554 | AK24: -9.280572738 | AL24: -8.792167816 | AM24: -8.329465981 | AN24: 0 | AO24: 0 | AP24: 0 | AQ24: 0 | AR24: 0 | AS24: 0 | AT24: 0 | AU24: 0 | AV24: 0 | AW24: =(AW45)*AW$14*AW$8 -> 0 | AX24: 0 | AY24: 0 | AZ24: 0 | BA24: 0 | BB24: 0 | BC24: 0 | BD24: 0 | BE24: 0 | BF24: 0 | BG24: 0
B25: Total Present Value | G25: =SUM(J25:BG25) -> -280.5134211 | J25: =SUM(J22:J24) -> 0 | K25: =SUM(K22:K24) -> 0 | L25: -0.09396996422 | M25: -0.859466202 | N25: -2.302220857 | O25: -0.6593555894 | P25: -1.598439633 | Q25: -2.737747197 | R25: -4.243076449 | S25: -6.217776799 | T25: -8.726724325 | U25: -11.71103047 | V25: -15.40852733 | W25: -19.78236087 | X25: -18.74128262 | Y25: -17.75499278 | Z25: -16.820608 | AA25: -15.93539671 | AB25: -15.09677108 | AC25: -14.30227946 | AD25: -13.54959922 | AE25: -12.83652998 | AF25: -12.16098714 | AG25: -11.52099583 | AH25: -10.91468507 | AI25: -10.34028238 | AJ25: -9.796108554 | AK25: -9.280572738 | AL25: -8.792167816 | AM25: -8.329465981 | AN25: 0 | AO25: 0 | AP25: 0 | AQ25: 0 | AR25: 0 | AS25: 0 | AT25: 0 | AU25: 0 | AV25: 0 | AW25: 0 | AX25: 0 | AY25: 0 | AZ25: 0 | BA25: 0 | BB25: 0 | BC25: 0 | BD25: 0 | BE25: 0 | BF25: 0 | BG25: 0
B27: Details for Central Assumptions
B28: Undiscounted | D28: ="("&TEXT('1_KMA'!$I$21,"dd-mmm-yy")&" dollars)" -> (30-Jun-24 dollars)
B30: Costs
G32: $ Basis Reminder | H32: $ Reminder
B33: Net Capex | G33: ='1_KMA'!$I$21 -> 2024-06-30 | H33: ='1_KMA'!$I$19 -> $millions | J33: =J52*J$7 -> 0 | K33: 0 | L33: 0 | M33: 0 | N33: 0 | O33: 0 | P33: 0 | Q33: 0 | R33: 0 | S33: 0 | T33: 0 | U33: 0 | V33: 0 | W33: 0 | X33: 0 | Y33: 0 | Z33: 0 | AA33: 0 | AB33: 0 | AC33: 0 | AD33: 0 | AE33: 0 | AF33: 0 | AG33: 0 | AH33: 0 | AI33: 0 | AJ33: 0 | AK33: 0 | AL33: 0 | AM33: 0 | AN33: 0 | AO33: 0 | AP33: =AP52*AP$7 -> 0 | AQ33: 0 | AR33: 0 | AS33: 0 | AT33: 0 | AU33: 0 | AV33: 0 | AW33: 0 | AX33: 0 | AY33: 0 | AZ33: 0 | BA33: 0 | BB33: 0 | BC33: 0 | BD33: 0 | BE33: 0 | BF33: 0 | BG33: 0
B34: Opex | G34: ='1_KMA'!$I$21 -> 2024-06-30 | H34: ='1_KMA'!$I$19 -> $millions | J34: =J53*J$7 -> 0 | K34: 0 | L34: 0 | M34: 0 | N34: 0 | O34: 0 | P34: 0 | Q34: 0 | R34: 0 | S34: 0 | T34: 0 | U34: 0 | V34: 0 | W34: 0 | X34: 0 | Y34: 0 | Z34: 0 | AA34: 0 | AB34: 0 | AC34: 0 | AD34: 0 | AE34: 0 | AF34: 0 | AG34: 0 | AH34: 0 | AI34: 0 | AJ34: 0 | AK34: 0 | AL34: 0 | AM34: 0 | AN34: 0 | AO34: 0 | AP34: =AP53*AP$7 -> 0 | AQ34: 0 | AR34: 0 | AS34: 0 | AT34: 0 | AU34: 0 | AV34: 0 | AW34: 0 | AX34: 0 | AY34: 0 | AZ34: 0 | BA34: 0 | BB34: 0 | BC34: 0 | BD34: 0 | BE34: 0 | BF34: 0 | BG34: 0
B35: Total | G35: ='1_KMA'!$I$21 -> 2024-06-30 | H35: ='1_KMA'!$I$19 -> $millions | J35: =J54*J$7 -> 0 | K35: 0 | L35: 0 | M35: 0 | N35: 0 | O35: 0 | P35: 0 | Q35: 0 | R35: 0 | S35: 0 | T35: 0 | U35: 0 | V35: 0 | W35: 0 | X35: 0 | Y35: 0 | Z35: 0 | AA35: 0 | AB35: 0 | AC35: 0 | AD35: 0 | AE35: 0 | AF35: 0 | AG35: 0 | AH35: 0 | AI35: 0 | AJ35: 0 | AK35: 0 | AL35: 0 | AM35: 0 | AN35: 0 | AO35: 0 | AP35: =AP54*AP$7 -> 0 | AQ35: 0 | AR35: 0 | AS35: 0 | AT35: 0 | AU35: 0 | AV35: 0 | AW35: 0 | AX35: 0 | AY35: 0 | AZ35: 0 | BA35: 0 | BB35: 0 | BC35: 0 | BD35: 0 | BE35: 0 | BF35: 0 | BG35: 0
B37: Benefits
G39: $ Basis Reminder | H39: $ Reminder
B40: =B59 -> Value of EUE | G40: ='1_KMA'!$I$21 -> 2024-06-30 | H40: ='1_KMA'!$I$19 -> $millions | J40: =J59*J$7 -> 0 | K40: 0 | L40: -0.1047 | M40: -1.0108 | N40: -2.858 | O40: -0.864 | P40: -2.2109 | Q40: -3.9971 | R40: -6.539 | S40: -10.1145 | T40: -14.9844 | U40: -21.2257 | V40: -29.4786 | W40: -39.9487 | X40: -39.9487 | Y40: -39.9487 | Z40: -39.9487 | AA40: -39.9487 | AB40: -39.9487 | AC40: -39.9487 | AD40: -39.9487 | AE40: -39.9487 | AF40: -39.9487 | AG40: -39.9487 | AH40: -39.9487 | AI40: -39.9487 | AJ40: -39.9487 | AK40: -39.9487 | AL40: -39.9487 | AM40: -39.9487 | AN40: 0 | AO40: 0 | AP40: =AP59*AP$7 -> 0 | AQ40: 0 | AR40: 0 | AS40: 0 | AT40: 0 | AU40: 0 | AV40: 0 | AW40: 0 | AX40: 0 | AY40: 0 | AZ40: 0 | BA40: 0 | BB40: 0 | BC40: 0 | BD40: 0 | BE40: 0 | BF40: 0 | BG40: =BG59*BG$7 -> 0
B41: =B60 -> 0 | G41: ='1_KMA'!$I$21 -> 2024-06-30 | H41: ='1_KMA'!$I$19 -> $millions | J41: =J60*J$7 -> 0 | K41: 0 | L41: 0 | M41: 0 | N41: 0 | O41: 0 | P41: 0 | Q41: 0 | R41: 0 | S41: 0 | T41: 0 | U41: 0 | V41: 0 | W41: 0 | X41: 0 | Y41: 0 | Z41: 0 | AA41: 0 | AB41: 0 | AC41: 0 | AD41: 0 | AE41: 0 | AF41: 0 | AG41: 0 | AH41: 0 | AI41: 0 | AJ41: 0 | AK41: 0 | AL41: 0 | AM41: 0 | AN41: 0 | AO41: 0 | AP41: =AP60*AP$7 -> 0 | AQ41: 0 | AR41: 0 | AS41: 0 | AT41: 0 | AU41: 0 | AV41: 0 | AW41: 0 | AX41: 0 | AY41: 0 | AZ41: 0 | BA41: 0 | BB41: 0 | BC41: 0 | BD41: 0 | BE41: 0 | BF41: 0 | BG41: 0
B42: 0 | G42: ='1_KMA'!$I$21 -> 2024-06-30 | H42: ='1_KMA'!$I$19 -> $millions | J42: =J61*J$7 -> 0 | K42: 0 | L42: 0 | M42: 0 | N42: 0 | O42: 0 | P42: 0 | Q42: 0 | R42: 0 | S42: 0 | T42: 0 | U42: 0 | V42: 0 | W42: 0 | X42: 0 | Y42: 0 | Z42: 0 | AA42: 0 | AB42: 0 | AC42: 0 | AD42: 0 | AE42: 0 | AF42: 0 | AG42: 0 | AH42: 0 | AI42: 0 | AJ42: 0 | AK42: 0 | AL42: 0 | AM42: 0 | AN42: 0 | AO42: 0 | AP42: =AP61*AP$7 -> 0 | AQ42: 0 | AR42: 0 | AS42: 0 | AT42: 0 | AU42: 0 | AV42: 0 | AW42: 0 | AX42: 0 | AY42: 0 | AZ42: 0 | BA42: 0 | BB42: 0 | BC42: 0 | BD42: 0 | BE42: 0 | BF42: 0 | BG42: 0
B43: 0 | G43: ='1_KMA'!$I$21 -> 2024-06-30 | H43: ='1_KMA'!$I$19 -> $millions | J43: =J62*J$7 -> 0 | K43: 0 | L43: 0 | M43: 0 | N43: 0 | O43: 0 | P43: 0 | Q43: 0 | R43: 0 | S43: 0 | T43: 0 | U43: 0 | V43: 0 | W43: 0 | X43: 0 | Y43: 0 | Z43: 0 | AA43: 0 | AB43: 0 | AC43: 0 | AD43: 0 | AE43: 0 | AF43: 0 | AG43: 0 | AH43: 0 | AI43: 0 | AJ43: 0 | AK43: 0 | AL43: 0 | AM43: 0 | AN43: 0 | AO43: 0 | AP43: =AP62*AP$7 -> 0 | AQ43: 0 | AR43: 0 | AS43: 0 | AT43: 0 | AU43: 0 | AV43: 0 | AW43: 0 | AX43: 0 | AY43: 0 | AZ43: 0 | BA43: 0 | BB43: 0 | BC43: 0 | BD43: 0 | BE43: 0 | BF43: 0 | BG43: 0
B44: 0 | G44: ='1_KMA'!$I$21 -> 2024-06-30 | H44: ='1_KMA'!$I$19 -> $millions | J44: =J63*J$7 -> 0 | K44: 0 | L44: 0 | M44: 0 | N44: 0 | O44: 0 | P44: 0 | Q44: 0 | R44: 0 | S44: 0 | T44: 0 | U44: 0 | V44: 0 | W44: 0 | X44: 0 | Y44: 0 | Z44: 0 | AA44: 0 | AB44: 0 | AC44: 0 | AD44: 0 | AE44: 0 | AF44: 0 | AG44: 0 | AH44: 0 | AI44: 0 | AJ44: 0 | AK44: 0 | AL44: 0 | AM44: 0 | AN44: 0 | AO44: 0 | AP44: =AP63*AP$7 -> 0 | AQ44: 0 | AR44: 0 | AS44: 0 | AT44: 0 | AU44: 0 | AV44: 0 | AW44: 0 | AX44: 0 | AY44: 0 | AZ44: 0 | BA44: 0 | BB44: 0 | BC44: 0 | BD44: 0 | BE44: 0 | BF44: 0 | BG44: 0
B45: ='3_BC'!B64 -> Total | G45: ='1_KMA'!$I$21 -> 2024-06-30 | H45: ='1_KMA'!$I$19 -> $millions | J45: =J64*J$7 -> 0 | K45: 0 | L45: -0.1047 | M45: -1.0108 | N45: -2.858 | O45: -0.864 | P45: -2.2109 | Q45: -3.9971 | R45: -6.539 | S45: -10.1145 | T45: -14.9844 | U45: -21.2257 | V45: -29.4786 | W45: -39.9487 | X45: -39.9487 | Y45: -39.9487 | Z45: -39.9487 | AA45: -39.9487 | AB45: -39.9487 | AC45: -39.9487 | AD45: -39.9487 | AE45: -39.9487 | AF45: -39.9487 | AG45: -39.9487 | AH45: -39.9487 | AI45: -39.9487 | AJ45: -39.9487 | AK45: -39.9487 | AL45: -39.9487 | AM45: -39.9487 | AN45: 0 | AO45: 0 | AP45: =AP64*AP$7 -> 0 | AQ45: 0 | AR45: 0 | AS45: 0 | AT45: 0 | AU45: 0 | AV45: 0 | AW45: 0 | AX45: 0 | AY45: 0 | AZ45: 0 | BA45: 0 | BB45: 0 | BC45: 0 | BD45: 0 | BE45: 0 | BF45: 0 | BG45: 0
B47: Undiscounted | D47: ="("&TEXT('1_KMA'!$I$20,"dd-mmm-yy")&" dollars)" -> (30-Jun-24 dollars)
B49: Costs
G51: $ Basis Reminder | H51: $ Reminder
B52: Net Capex | G52: ='1_KMA'!$I$20 -> 2024-06-30 | H52: ='1_KMA'!$I$19 -> $millions | J52: ='2.1_BC'!J10+'2.1_BC'!J11 -> 0 | K52: ='2.1_BC'!K10+'2.1_BC'!K11 -> 0 | L52: ='2.1_BC'!L10+'2.1_BC'!L11 -> 0 | M52: ='2.1_BC'!M10+'2.1_BC'!M11 -> 0 | N52: ='2.1_BC'!N10+'2.1_BC'!N11 -> 0 | O52: ='2.1_BC'!O10+'2.1_BC'!O11 -> 0 | P52: ='2.1_BC'!P10+'2.1_BC'!P11 -> 0 | Q52: ='2.1_BC'!Q10+'2.1_BC'!Q11 -> 0 | R52: ='2.1_BC'!R10+'2.1_BC'!R11 -> 0 | S52: ='2.1_BC'!S10+'2.1_BC'!S11 -> 0 | T52: ='2.1_BC'!T10+'2.1_BC'!T11 -> 0 | U52: ='2.1_BC'!U10+'2.1_BC'!U11 -> 0 | V52: ='2.1_BC'!V10+'2.1_BC'!V11 -> 0 | W52: ='2.1_BC'!W10+'2.1_BC'!W11 -> 0 | X52: ='2.1_BC'!X10+'2.1_BC'!X11 -> 0 | Y52: ='2.1_BC'!Y10+'2.1_BC'!Y11 -> 0 | Z52: ='2.1_BC'!Z10+'2.1_BC'!Z11 -> 0 | AA52: ='2.1_BC'!AA10+'2.1_BC'!AA11 -> 0 | AB52: ='2.1_BC'!AB10+'2.1_BC'!AB11 -> 0 | AC52: ='2.1_BC'!AC10+'2.1_BC'!AC11 -> 0 | AD52: ='2.1_BC'!AD10+'2.1_BC'!AD11 -> 0 | AE52: ='2.1_BC'!AE10+'2.1_BC'!AE11 -> 0 | AF52: ='2.1_BC'!AF10+'2.1_BC'!AF11 -> 0 | AG52: ='2.1_BC'!AG10+'2.1_BC'!AG11 -> 0 | AH52: ='2.1_BC'!AH10+'2.1_BC'!AH11 -> 0 | AI52: ='2.1_BC'!AI10+'2.1_BC'!AI11 -> 0 | AJ52: ='2.1_BC'!AJ10+'2.1_BC'!AJ11 -> 0 | AK52: ='2.1_BC'!AK10+'2.1_BC'!AK11 -> 0 | AL52: ='2.1_BC'!AL10+'2.1_BC'!AL11 -> 0 | AM52: ='2.1_BC'!AM10+'2.1_BC'!AM11 -> 0 | AN52: ='2.1_BC'!AN10+'2.1_BC'!AN11 -> 0 | AO52: ='2.1_BC'!AO10+'2.1_BC'!AO11 -> 0 | AP52: ='2.1_BC'!AP10+'2.1_BC'!AP11 -> 0 | AQ52: ='2.1_BC'!AQ10+'2.1_BC'!AQ11 -> 0 | AR52: ='2.1_BC'!AR10+'2.1_BC'!AR11 -> 0 | AS52: ='2.1_BC'!AS10+'2.1_BC'!AS11 -> 0 | AT52: ='2.1_BC'!AT10+'2.1_BC'!AT11 -> 0 | AU52: ='2.1_BC'!AU10+'2.1_BC'!AU11 -> 0 | AV52: ='2.1_BC'!AV10+'2.1_BC'!AV11 -> 0 | AW52: ='2.1_BC'!AW10+'2.1_BC'!AW11 -> 0 | AX52: ='2.1_BC'!AX10+'2.1_BC'!AX11 -> 0 | AY52: ='2.1_BC'!AY10+'2.1_BC'!AY11 -> 0 | AZ52: ='2.1_BC'!AZ10+'2.1_BC'!AZ11 -> 0 | BA52: ='2.1_BC'!BA10+'2.1_BC'!BA11 -> 0 | BB52: ='2.1_BC'!BB10+'2.1_BC'!BB11 -> 0 | BC52: ='2.1_BC'!BC10+'2.1_BC'!BC11 -> 0 | BD52: ='2.1_BC'!BD10+'2.1_BC'!BD11 -> 0 | BE52: ='2.1_BC'!BE10+'2.1_BC'!BE11 -> 0 | BF52: ='2.1_BC'!BF10+'2.1_BC'!BF11 -> 0 | BG52: ='2.1_BC'!BG10+'2.1_BC'!BG11 -> 0
B53: Opex | G53: ='1_KMA'!$I$20 -> 2024-06-30 | H53: ='1_KMA'!$I$19 -> $millions | J53: ='2.1_BC'!J12 -> 0 | K53: ='2.1_BC'!K12 -> 0 | L53: ='2.1_BC'!L12 -> 0 | M53: ='2.1_BC'!M12 -> 0 | N53: ='2.1_BC'!N12 -> 0 | O53: ='2.1_BC'!O12 -> 0 | P53: ='2.1_BC'!P12 -> 0 | Q53: ='2.1_BC'!Q12 -> 0 | R53: ='2.1_BC'!R12 -> 0 | S53: ='2.1_BC'!S12 -> 0 | T53: ='2.1_BC'!T12 -> 0 | U53: ='2.1_BC'!U12 -> 0 | V53: ='2.1_BC'!V12 -> 0 | W53: ='2.1_BC'!W12 -> 0 | X53: ='2.1_BC'!X12 -> 0 | Y53: ='2.1_BC'!Y12 -> 0 | Z53: ='2.1_BC'!Z12 -> 0 | AA53: ='2.1_BC'!AA12 -> 0 | AB53: ='2.1_BC'!AB12 -> 0 | AC53: ='2.1_BC'!AC12 -> 0 | AD53: ='2.1_BC'!AD12 -> 0 | AE53: ='2.1_BC'!AE12 -> 0 | AF53: ='2.1_BC'!AF12 -> 0 | AG53: ='2.1_BC'!AG12 -> 0 | AH53: ='2.1_BC'!AH12 -> 0 | AI53: ='2.1_BC'!AI12 -> 0 | AJ53: ='2.1_BC'!AJ12 -> 0 | AK53: ='2.1_BC'!AK12 -> 0 | AL53: ='2.1_BC'!AL12 -> 0 | AM53: ='2.1_BC'!AM12 -> 0 | AN53: ='2.1_BC'!AN12 -> 0 | AO53: ='2.1_BC'!AO12 -> 0 | AP53: ='2.1_BC'!AP12 -> 0 | AQ53: ='2.1_BC'!AQ12 -> 0 | AR53: ='2.1_BC'!AR12 -> 0 | AS53: ='2.1_BC'!AS12 -> 0 | AT53: ='2.1_BC'!AT12 -> 0 | AU53: ='2.1_BC'!AU12 -> 0 | AV53: ='2.1_BC'!AV12 -> 0 | AW53: ='2.1_BC'!AW12 -> 0 | AX53: ='2.1_BC'!AX12 -> 0 | AY53: ='2.1_BC'!AY12 -> 0 | AZ53: ='2.1_BC'!AZ12 -> 0 | BA53: ='2.1_BC'!BA12 -> 0 | BB53: ='2.1_BC'!BB12 -> 0 | BC53: ='2.1_BC'!BC12 -> 0 | BD53: ='2.1_BC'!BD12 -> 0 | BE53: ='2.1_BC'!BE12 -> 0 | BF53: ='2.1_BC'!BF12 -> 0 | BG53: ='2.1_BC'!BG12 -> 0
B54: Total | G54: ='1_KMA'!$I$20 -> 2024-06-30 | H54: ='1_KMA'!$I$19 -> $millions | J54: =SUM(J52:J53) -> 0 | K54: =SUM(K52:K53) -> 0 | L54: 0 | M54: 0 | N54: 0 | O54: 0 | P54: 0 | Q54: 0 | R54: 0 | S54: 0 | T54: 0 | U54: 0 | V54: 0 | W54: 0 | X54: 0 | Y54: 0 | Z54: 0 | AA54: 0 | AB54: 0 | AC54: 0 | AD54: 0 | AE54: 0 | AF54: 0 | AG54: 0 | AH54: 0 | AI54: 0 | AJ54: 0 | AK54: 0 | AL54: 0 | AM54: 0 | AN54: 0 | AO54: 0 | AP54: 0 | AQ54: 0 | AR54: 0 | AS54: 0 | AT54: 0 | AU54: 0 | AV54: 0 | AW54: 0 | AX54: 0 | AY54: 0 | AZ54: 0 | BA54: 0 | BB54: 0 | BC54: 0 | BD54: 0 | BE54: 0 | BF54: 0 | BG54: 0
B56: Benefits
G58: $ Basis Reminder | H58: $ Reminder
B59: ='2.1_BC'!$B$16 -> Value of EUE | G59: ='1_KMA'!$I$20 -> 2024-06-30 | H59: ='1_KMA'!$I$19 -> $millions | J59: ='2.1_BC'!J16 -> 0 | K59: ='2.1_BC'!K16 -> 0 | L59: ='2.1_BC'!L16 -> -0.1047 | M59: ='2.1_BC'!M16 -> -1.0108 | N59: ='2.1_BC'!N16 -> -2.858 | O59: ='2.1_BC'!O16 -> -0.864 | P59: ='2.1_BC'!P16 -> -2.2109 | Q59: ='2.1_BC'!Q16 -> -3.9971 | R59: ='2.1_BC'!R16 -> -6.539 | S59: ='2.1_BC'!S16 -> -10.1145 | T59: ='2.1_BC'!T16 -> -14.9844 | U59: ='2.1_BC'!U16 -> -21.2257 | V59: ='2.1_BC'!V16 -> -29.4786 | W59: ='2.1_BC'!W16 -> -39.9487 | X59: ='2.1_BC'!X16 -> -39.9487 | Y59: ='2.1_BC'!Y16 -> -39.9487 | Z59: ='2.1_BC'!Z16 -> -39.9487 | AA59: ='2.1_BC'!AA16 -> -39.9487 | AB59: ='2.1_BC'!AB16 -> -39.9487 | AC59: ='2.1_BC'!AC16 -> -39.9487 | AD59: ='2.1_BC'!AD16 -> -39.9487 | AE59: ='2.1_BC'!AE16 -> -39.9487 | AF59: ='2.1_BC'!AF16 -> -39.9487 | AG59: ='2.1_BC'!AG16 -> -39.9487 | AH59: ='2.1_BC'!AH16 -> -39.9487 | AI59: ='2.1_BC'!AI16 -> -39.9487 | AJ59: ='2.1_BC'!AJ16 -> -39.9487 | AK59: ='2.1_BC'!AK16 -> -39.9487 | AL59: ='2.1_BC'!AL16 -> -39.9487 | AM59: ='2.1_BC'!AM16 -> -39.9487 | AN59: ='2.1_BC'!AN16 -> 0 | AO59: ='2.1_BC'!AO16 -> 0 | AP59: ='2.1_BC'!AP16 -> 0 | AQ59: ='2.1_BC'!AQ16 -> 0 | AR59: ='2.1_BC'!AR16 -> 0 | AS59: ='2.1_BC'!AS16 -> 0 | AT59: ='2.1_BC'!AT16 -> 0 | AU59: ='2.1_BC'!AU16 -> 0 | AV59: ='2.1_BC'!AV16 -> 0 | AW59: ='2.1_BC'!AW16 -> 0 | AX59: ='2.1_BC'!AX16 -> 0 | AY59: ='2.1_BC'!AY16 -> 0 | AZ59: ='2.1_BC'!AZ16 -> 0 | BA59: ='2.1_BC'!BA16 -> 0 | BB59: ='2.1_BC'!BB16 -> 0 | BC59: ='2.1_BC'!BC16 -> 0 | BD59: ='2.1_BC'!BD16 -> 0 | BE59: ='2.1_BC'!BE16 -> 0 | BF59: ='2.1_BC'!BF16 -> 0 | BG59: ='2.1_BC'!BG16 -> 0
B60: ='2.1_BC'!$B$17 -> 0 | G60: ='1_KMA'!$I$20 -> 2024-06-30 | H60: ='1_KMA'!$I$19 -> $millions | J60: ='2.1_BC'!J17 -> 0 | K60: ='2.1_BC'!K17 -> 0 | L60: ='2.1_BC'!L17 -> 0 | M60: ='2.1_BC'!M17 -> 0 | N60: ='2.1_BC'!N17 -> 0 | O60: ='2.1_BC'!O17 -> 0 | P60: ='2.1_BC'!P17 -> 0 | Q60: ='2.1_BC'!Q17 -> 0 | R60: ='2.1_BC'!R17 -> 0 | S60: ='2.1_BC'!S17 -> 0 | T60: ='2.1_BC'!T17 -> 0 | U60: ='2.1_BC'!U17 -> 0 | V60: ='2.1_BC'!V17 -> 0 | W60: ='2.1_BC'!W17 -> 0 | X60: ='2.1_BC'!X17 -> 0 | Y60: ='2.1_BC'!Y17 -> 0 | Z60: ='2.1_BC'!Z17 -> 0 | AA60: ='2.1_BC'!AA17 -> 0 | AB60: ='2.1_BC'!AB17 -> 0 | AC60: ='2.1_BC'!AC17 -> 0 | AD60: ='2.1_BC'!AD17 -> 0 | AE60: ='2.1_BC'!AE17 -> 0 | AF60: ='2.1_BC'!AF17 -> 0 | AG60: ='2.1_BC'!AG17 -> 0 | AH60: ='2.1_BC'!AH17 -> 0 | AI60: ='2.1_BC'!AI17 -> 0 | AJ60: ='2.1_BC'!AJ17 -> 0 | AK60: ='2.1_BC'!AK17 -> 0 | AL60: ='2.1_BC'!AL17 -> 0 | AM60: ='2.1_BC'!AM17 -> 0 | AN60: ='2.1_BC'!AN17 -> 0 | AO60: ='2.1_BC'!AO17 -> 0 | AP60: ='2.1_BC'!AP17 -> 0 | AQ60: ='2.1_BC'!AQ17 -> 0 | AR60: ='2.1_BC'!AR17 -> 0 | AS60: ='2.1_BC'!AS17 -> 0 | AT60: ='2.1_BC'!AT17 -> 0 | AU60: ='2.1_BC'!AU17 -> 0 | AV60: ='2.1_BC'!AV17 -> 0 | AW60: ='2.1_BC'!AW17 -> 0 | AX60: ='2.1_BC'!AX17 -> 0 | AY60: ='2.1_BC'!AY17 -> 0 | AZ60: ='2.1_BC'!AZ17 -> 0 | BA60: ='2.1_BC'!BA17 -> 0 | BB60: ='2.1_BC'!BB17 -> 0 | BC60: ='2.1_BC'!BC17 -> 0 | BD60: ='2.1_BC'!BD17 -> 0 | BE60: ='2.1_BC'!BE17 -> 0 | BF60: ='2.1_BC'!BF17 -> 0 | BG60: ='2.1_BC'!BG17 -> 0
B61: ='2.1_BC'!$B$18 -> 0 | G61: ='1_KMA'!$I$20 -> 2024-06-30 | H61: ='1_KMA'!$I$19 -> $millions | J61: ='2.1_BC'!J18 -> 0 | K61: ='2.1_BC'!K18 -> 0 | L61: ='2.1_BC'!L18 -> 0 | M61: ='2.1_BC'!M18 -> 0 | N61: ='2.1_BC'!N18 -> 0 | O61: ='2.1_BC'!O18 -> 0 | P61: ='2.1_BC'!P18 -> 0 | Q61: ='2.1_BC'!Q18 -> 0 | R61: ='2.1_BC'!R18 -> 0 | S61: ='2.1_BC'!S18 -> 0 | T61: ='2.1_BC'!T18 -> 0 | U61: ='2.1_BC'!U18 -> 0 | V61: ='2.1_BC'!V18 -> 0 | W61: ='2.1_BC'!W18 -> 0 | X61: ='2.1_BC'!X18 -> 0 | Y61: ='2.1_BC'!Y18 -> 0 | Z61: ='2.1_BC'!Z18 -> 0 | AA61: ='2.1_BC'!AA18 -> 0 | AB61: ='2.1_BC'!AB18 -> 0 | AC61: ='2.1_BC'!AC18 -> 0 | AD61: ='2.1_BC'!AD18 -> 0 | AE61: ='2.1_BC'!AE18 -> 0 | AF61: ='2.1_BC'!AF18 -> 0 | AG61: ='2.1_BC'!AG18 -> 0 | AH61: ='2.1_BC'!AH18 -> 0 | AI61: ='2.1_BC'!AI18 -> 0 | AJ61: ='2.1_BC'!AJ18 -> 0 | AK61: ='2.1_BC'!AK18 -> 0 | AL61: ='2.1_BC'!AL18 -> 0 | AM61: ='2.1_BC'!AM18 -> 0 | AN61: ='2.1_BC'!AN18 -> 0 | AO61: ='2.1_BC'!AO18 -> 0 | AP61: ='2.1_BC'!AP18 -> 0 | AQ61: ='2.1_BC'!AQ18 -> 0 | AR61: ='2.1_BC'!AR18 -> 0 | AS61: ='2.1_BC'!AS18 -> 0 | AT61: ='2.1_BC'!AT18 -> 0 | AU61: ='2.1_BC'!AU18 -> 0 | AV61: ='2.1_BC'!AV18 -> 0 | AW61: ='2.1_BC'!AW18 -> 0 | AX61: ='2.1_BC'!AX18 -> 0 | AY61: ='2.1_BC'!AY18 -> 0 | AZ61: ='2.1_BC'!AZ18 -> 0 | BA61: ='2.1_BC'!BA18 -> 0 | BB61: ='2.1_BC'!BB18 -> 0 | BC61: ='2.1_BC'!BC18 -> 0 | BD61: ='2.1_BC'!BD18 -> 0 | BE61: ='2.1_BC'!BE18 -> 0 | BF61: ='2.1_BC'!BF18 -> 0 | BG61: ='2.1_BC'!BG18 -> 0
B62: ='2.1_BC'!$B$19 -> 0 | G62: ='1_KMA'!$I$20 -> 2024-06-30 | H62: ='1_KMA'!$I$19 -> $millions | J62: ='2.1_BC'!J19 -> 0 | K62: ='2.1_BC'!K19 -> 0 | L62: ='2.1_BC'!L19 -> 0 | M62: ='2.1_BC'!M19 -> 0 | N62: ='2.1_BC'!N19 -> 0 | O62: ='2.1_BC'!O19 -> 0 | P62: ='2.1_BC'!P19 -> 0 | Q62: ='2.1_BC'!Q19 -> 0 | R62: ='2.1_BC'!R19 -> 0 | S62: ='2.1_BC'!S19 -> 0 | T62: ='2.1_BC'!T19 -> 0 | U62: ='2.1_BC'!U19 -> 0 | V62: ='2.1_BC'!V19 -> 0 | W62: ='2.1_BC'!W19 -> 0 | X62: ='2.1_BC'!X19 -> 0 | Y62: ='2.1_BC'!Y19 -> 0 | Z62: ='2.1_BC'!Z19 -> 0 | AA62: ='2.1_BC'!AA19 -> 0 | AB62: ='2.1_BC'!AB19 -> 0 | AC62: ='2.1_BC'!AC19 -> 0 | AD62: ='2.1_BC'!AD19 -> 0 | AE62: ='2.1_BC'!AE19 -> 0 | AF62: ='2.1_BC'!AF19 -> 0 | AG62: ='2.1_BC'!AG19 -> 0 | AH62: ='2.1_BC'!AH19 -> 0 | AI62: ='2.1_BC'!AI19 -> 0 | AJ62: ='2.1_BC'!AJ19 -> 0 | AK62: ='2.1_BC'!AK19 -> 0 | AL62: ='2.1_BC'!AL19 -> 0 | AM62: ='2.1_BC'!AM19 -> 0 | AN62: ='2.1_BC'!AN19 -> 0 | AO62: ='2.1_BC'!AO19 -> 0 | AP62: ='2.1_BC'!AP19 -> 0 | AQ62: ='2.1_BC'!AQ19 -> 0 | AR62: ='2.1_BC'!AR19 -> 0 | AS62: ='2.1_BC'!AS19 -> 0 | AT62: ='2.1_BC'!AT19 -> 0 | AU62: ='2.1_BC'!AU19 -> 0 | AV62: ='2.1_BC'!AV19 -> 0 | AW62: ='2.1_BC'!AW19 -> 0 | AX62: ='2.1_BC'!AX19 -> 0 | AY62: ='2.1_BC'!AY19 -> 0 | AZ62: ='2.1_BC'!AZ19 -> 0 | BA62: ='2.1_BC'!BA19 -> 0 | BB62: ='2.1_BC'!BB19 -> 0 | BC62: ='2.1_BC'!BC19 -> 0 | BD62: ='2.1_BC'!BD19 -> 0 | BE62: ='2.1_BC'!BE19 -> 0 | BF62: ='2.1_BC'!BF19 -> 0 | BG62: ='2.1_BC'!BG19 -> 0
B63: ='2.1_BC'!$B$20 -> 0 | G63: ='1_KMA'!$I$20 -> 2024-06-30 | H63: ='1_KMA'!$I$19 -> $millions | J63: ='2.1_BC'!J20 -> 0 | K63: ='2.1_BC'!K20 -> 0 | L63: ='2.1_BC'!L20 -> 0 | M63: ='2.1_BC'!M20 -> 0 | N63: ='2.1_BC'!N20 -> 0 | O63: ='2.1_BC'!O20 -> 0 | P63: ='2.1_BC'!P20 -> 0 | Q63: ='2.1_BC'!Q20 -> 0 | R63: ='2.1_BC'!R20 -> 0 | S63: ='2.1_BC'!S20 -> 0 | T63: ='2.1_BC'!T20 -> 0 | U63: ='2.1_BC'!U20 -> 0 | V63: ='2.1_BC'!V20 -> 0 | W63: ='2.1_BC'!W20 -> 0 | X63: ='2.1_BC'!X20 -> 0 | Y63: ='2.1_BC'!Y20 -> 0 | Z63: ='2.1_BC'!Z20 -> 0 | AA63: ='2.1_BC'!AA20 -> 0 | AB63: ='2.1_BC'!AB20 -> 0 | AC63: ='2.1_BC'!AC20 -> 0 | AD63: ='2.1_BC'!AD20 -> 0 | AE63: ='2.1_BC'!AE20 -> 0 | AF63: ='2.1_BC'!AF20 -> 0 | AG63: ='2.1_BC'!AG20 -> 0 | AH63: ='2.1_BC'!AH20 -> 0 | AI63: ='2.1_BC'!AI20 -> 0 | AJ63: ='2.1_BC'!AJ20 -> 0 | AK63: ='2.1_BC'!AK20 -> 0 | AL63: ='2.1_BC'!AL20 -> 0 | AM63: ='2.1_BC'!AM20 -> 0 | AN63: ='2.1_BC'!AN20 -> 0 | AO63: ='2.1_BC'!AO20 -> 0 | AP63: ='2.1_BC'!AP20 -> 0 | AQ63: ='2.1_BC'!AQ20 -> 0 | AR63: ='2.1_BC'!AR20 -> 0 | AS63: ='2.1_BC'!AS20 -> 0 | AT63: ='2.1_BC'!AT20 -> 0 | AU63: ='2.1_BC'!AU20 -> 0 | AV63: ='2.1_BC'!AV20 -> 0 | AW63: ='2.1_BC'!AW20 -> 0 | AX63: ='2.1_BC'!AX20 -> 0 | AY63: ='2.1_BC'!AY20 -> 0 | AZ63: ='2.1_BC'!AZ20 -> 0 | BA63: ='2.1_BC'!BA20 -> 0 | BB63: ='2.1_BC'!BB20 -> 0 | BC63: ='2.1_BC'!BC20 -> 0 | BD63: ='2.1_BC'!BD20 -> 0 | BE63: ='2.1_BC'!BE20 -> 0 | BF63: ='2.1_BC'!BF20 -> 0 | BG63: ='2.1_BC'!BG20 -> 0
B64: Total | G64: ='1_KMA'!$I$20 -> 2024-06-30 | H64: ='1_KMA'!$I$19 -> $millions | J64: =SUM(J59:J63) -> 0 | K64: =SUM(K59:K63) -> 0 | L64: -0.1047 | M64: =SUM(M59:M63) -> -1.0108 | N64: -2.858 | O64: -0.864 | P64: -2.2109 | Q64: -3.9971 | R64: -6.539 | S64: -10.1145 | T64: -14.9844 | U64: -21.2257 | V64: -29.4786 | W64: -39.9487 | X64: -39.9487 | Y64: -39.9487 | Z64: -39.9487 | AA64: -39.9487 | AB64: -39.9487 | AC64: -39.9487 | AD64: -39.9487 | AE64: -39.9487 | AF64: -39.9487 | AG64: -39.9487 | AH64: -39.9487 | AI64: -39.9487 | AJ64: -39.9487 | AK64: -39.9487 | AL64: -39.9487 | AM64: -39.9487 | AN64: 0 | AO64: 0 | AP64: 0 | AQ64: 0 | AR64: 0 | AS64: 0 | AT64: 0 | AU64: 0 | AV64: 0 | AW64: 0 | AX64: 0 | AY64: 0 | AZ64: 0 | BA64: 0 | BB64: 0 | BC64: 0 | BD64: 0 | BE64: 0 | BF64: 0 | BG64: 0
B66: =Controls!$B$22&" "&Controls!$C$22&" ("&TEXT(Controls!$E$22,"0.00%")&")" -> Sensitivity Scenario 1 Higher Discount rate (7.00%)
B67: Summary
B69: WACC | J69: =Controls!$E$22 -> 0.07 | K69: =Controls!$E$22 -> 0.07 | L69: =Controls!$E$22 -> 0.07 | M69: =Controls!$E$22 -> 0.07 | N69: =Controls!$E$22 -> 0.07 | O69: =Controls!$E$22 -> 0.07 | P69: =Controls!$E$22 -> 0.07 | Q69: =Controls!$E$22 -> 0.07 | R69: =Controls!$E$22 -> 0.07 | S69: =Controls!$E$22 -> 0.07 | T69: =Controls!$E$22 -> 0.07 | U69: =Controls!$E$22 -> 0.07 | V69: =Controls!$E$22 -> 0.07 | W69: =Controls!$E$22 -> 0.07 | X69: =Controls!$E$22 -> 0.07 | Y69: =Controls!$E$22 -> 0.07 | Z69: =Controls!$E$22 -> 0.07 | AA69: =Controls!$E$22 -> 0.07 | AB69: =Controls!$E$22 -> 0.07 | AC69: =Controls!$E$22 -> 0.07 | AD69: =Controls!$E$22 -> 0.07 | AE69: =Controls!$E$22 -> 0.07 | AF69: =Controls!$E$22 -> 0.07 | AG69: =Controls!$E$22 -> 0.07 | AH69: =Controls!$E$22 -> 0.07 | AI69: =Controls!$E$22 -> 0.07 | AJ69: =Controls!$E$22 -> 0.07 | AK69: =Controls!$E$22 -> 0.07 | AL69: =Controls!$E$22 -> 0.07 | AM69: =Controls!$E$22 -> 0.07 | AN69: =Controls!$E$22 -> 0.07 | AO69: =Controls!$E$22 -> 0.07 | AP69: =Controls!$E$22 -> 0.07 | AQ69: =Controls!$E$22 -> 0.07 | AR69: =Controls!$E$22 -> 0.07 | AS69: =Controls!$E$22 -> 0.07 | AT69: =Controls!$E$22 -> 0.07 | AU69: =Controls!$E$22 -> 0.07 | AV69: =Controls!$E$22 -> 0.07 | AW69: =Controls!$E$22 -> 0.07 | AX69: =Controls!$E$22 -> 0.07 | AY69: =Controls!$E$22 -> 0.07 | AZ69: =Controls!$E$22 -> 0.07 | BA69: =Controls!$E$22 -> 0.07 | BB69: =Controls!$E$22 -> 0.07 | BC69: =Controls!$E$22 -> 0.07 | BD69: =Controls!$E$22 -> 0.07 | BE69: =Controls!$E$22 -> 0.07 | BF69: =Controls!$E$22 -> 0.07 | BG69: =Controls!$E$22 -> 0.07
B70: Deflator (interim calculation) | J70: 1 | K70: =J70*(1+K69) -> 1.07 | L70: =K70*(1+L69) -> 1.1449 | M70: =L70*(1+M69) -> 1.225043 | N70: =M70*(1+N69) -> 1.31079601 | O70: =N70*(1+O69) -> 1.402551731 | P70: =O70*(1+P69) -> 1.500730352 | Q70: =P70*(1+Q69) -> 1.605781476 | R70: =Q70*(1+R69) -> 1.71818618 | S70: =R70*(1+S69) -> 1.838459212 | T70: =S70*(1+T69) -> 1.967151357 | U70: =T70*(1+U69) -> 2.104851952 | V70: =U70*(1+V69) -> 2.252191589 | W70: =V70*(1+W69) -> 2.409845 | X70: =W70*(1+X69) -> 2.57853415 | Y70: =X70*(1+Y69) -> 2.759031541 | Z70: =Y70*(1+Z69) -> 2.952163749 | AA70: =Z70*(1+AA69) -> 3.158815211 | AB70: =AA70*(1+AB69) -> 3.379932276 | AC70: =AB70*(1+AC69) -> 3.616527535 | AD70: =AC70*(1+AD69) -> 3.869684462 | AE70: =AD70*(1+AE69) -> 4.140562375 | AF70: =AE70*(1+AF69) -> 4.430401741 | AG70: =AF70*(1+AG69) -> 4.740529863 | AH70: =AG70*(1+AH69) -> 5.072366953 | AI70: =AH70*(1+AI69) -> 5.42743264 | AJ70: =AI70*(1+AJ69) -> 5.807352925 | AK70: =AJ70*(1+AK69) -> 6.21386763 | AL70: =AK70*(1+AL69) -> 6.648838364 | AM70: =AL70*(1+AM69) -> 7.114257049 | AN70: =AM70*(1+AN69) -> 7.612255043 | AO70: =AN70*(1+AO69) -> 8.145112896 | AP70: =AO70*(1+AP69) -> 8.715270798 | AQ70: =AP70*(1+AQ69) -> 9.325339754 | AR70: =AQ70*(1+AR69) -> 9.978113537 | AS70: =AR70*(1+AS69) -> 10.67658148 | AT70: =AS70*(1+AT69) -> 11.42394219 | AU70: =AT70*(1+AU69) -> 12.22361814 | AV70: =AU70*(1+AV69) -> 13.07927141 | AW70: =AV70*(1+AW69) -> 13.99482041 | AX70: =AW70*(1+AX69) -> 14.97445784 | AY70: =AX70*(1+AY69) -> 16.02266989 | AZ70: =AY70*(1+AZ69) -> 17.14425678 | BA70: =AZ70*(1+BA69) -> 18.34435475 | BB70: =BA70*(1+BB69) -> 19.62845959 | BC70: =BB70*(1+BC69) -> 21.00245176 | BD70: =BC70*(1+BD69) -> 22.47262338 | BE70: =BD70*(1+BE69) -> 24.04570702 | BF70: =BE70*(1+BF69) -> 25.72890651 | BG70: =BF70*(1+BG69) -> 27.52992997
B71: Deflator | J71: =1/J70 -> 1 | K71: =1/K70 -> 0.9345794393 | L71: =1/L70 -> 0.8734387283 | M71: =1/M70 -> 0.8162978769 | N71: =1/N70 -> 0.762895212 | O71: =1/O70 -> 0.7129861795 | P71: 0.6663422238 | Q71: 0.6227497419 | R71: 0.5820091046 | S71: 0.5439337426 | T71: 0.5083492921 | U71: 0.4750927964 | V71: 0.4440119592 | W71: 0.4149644479 | X71: 0.387817241 | Y71: 0.3624460196 | Z71: 0.3387345978 | AA71: 0.3165743905 | AB71: 0.2958639163 | AC71: 0.276508333 | AD71: 0.2584190028 | AE71: 0.2415130867 | AF71: 0.2257131652 | AG71: 0.2109468833 | AH71: 0.1971466199 | AI71: 0.1842491775 | AJ71: 0.172195493 | AK71: 0.1609303673 | AL71: 0.1504022124 | AM71: 0.1405628154 | AN71: 0.1313671172 | AO71: 0.1227730067 | AP71: 0.1147411277 | AQ71: 0.1072346988 | AR71: 0.1002193447 | AS71: 0.09366293897 | AT71: 0.08753545698 | AU71: 0.0818088383 | AV71: 0.07645685822 | AW71: 0.07145500769 | AX71: 0.06678038102 | AY71: 0.06241157104 | AZ71: 0.05832857107 | BA71: 0.05451268324 | BB71: 0.05094643294 | BC71: 0.04761348872 | BD71: 0.04449858759 | BE71: 0.04158746504 | BF71: 0.03886678976 | BG71: 0.03632410258
B73: Totex sought for EDPR FY27-31 (undiscounted) | G73: ="("&TEXT('1_KMA'!$I$21,"dd-mmm-yy")&" Dollars)" -> (30-Jun-24 Dollars)
C74: Net Capital Expenditure | G74: =SUM(J74:BG74) -> 0 | J74: =-J89*J$1*J$8 -> 0 | K74: =-K89*K$1*K$8 -> 0 | L74: 0 | M74: 0 | N74: 0 | O74: 0 | P74: 0 | Q74: 0 | R74: 0 | S74: 0 | T74: 0 | U74: 0 | V74: 0 | W74: 0 | X74: 0 | Y74: 0 | Z74: 0 | AA74: 0 | AB74: 0 | AC74: 0 | AD74: 0 | AE74: 0 | AF74: 0 | AG74: 0 | AH74: 0 | AI74: 0 | AJ74: 0 | AK74: 0 | AL74: 0 | AM74: 0 | AN74: 0 | AO74: 0 | AP74: 0 | AQ74: 0 | AR74: 0 | AS74: 0 | AT74: 0 | AU74: 0 | AV74: 0 | AW74: 0 | AX74: 0 | AY74: 0 | AZ74: 0 | BA74: 0 | BB74: 0 | BC74: 0 | BD74: 0 | BE74: 0 | BF74: 0 | BG74: 0
C75: Operating Expenditure | G75: =SUM(J75:BG75) -> 0 | J75: =-J90*J$1*J$8 -> 0 | K75: =-K90*K$1*K$8 -> 0 | L75: 0 | M75: 0 | N75: 0 | O75: 0 | P75: 0 | Q75: 0 | R75: 0 | S75: 0 | T75: 0 | U75: 0 | V75: 0 | W75: 0 | X75: 0 | Y75: 0 | Z75: 0 | AA75: 0 | AB75: 0 | AC75: 0 | AD75: 0 | AE75: 0 | AF75: 0 | AG75: 0 | AH75: 0 | AI75: 0 | AJ75: 0 | AK75: 0 | AL75: 0 | AM75: 0 | AN75: 0 | AO75: 0 | AP75: 0 | AQ75: 0 | AR75: 0 | AS75: 0 | AT75: 0 | AU75: 0 | AV75: 0 | AW75: 0 | AX75: 0 | AY75: 0 | AZ75: 0 | BA75: 0 | BB75: 0 | BC75: 0 | BD75: 0 | BE75: 0 | BF75: 0 | BG75: 0
C76: Totex | G76: =SUM(G74:G75) -> 0 | J76: =SUM(J74:J75) -> 0 | K76: =SUM(K74:K75) -> 0 | L76: =SUM(L74:L75) -> 0 | M76: 0 | N76: 0 | O76: 0 | P76: 0 | Q76: 0 | R76: 0 | S76: 0 | T76: 0 | U76: 0 | V76: 0 | W76: 0 | X76: 0 | Y76: 0 | Z76: 0 | AA76: 0 | AB76: 0 | AC76: 0 | AD76: 0 | AE76: 0 | AF76: 0 | AG76: 0 | AH76: 0 | AI76: 0 | AJ76: 0 | AK76: 0 | AL76: 0 | AM76: 0 | AN76: 0 | AO76: 0 | AP76: 0 | AQ76: 0 | AR76: 0 | AS76: 0 | AT76: 0 | AU76: 0 | AV76: 0 | AW76: 0 | AX76: 0 | AY76: 0 | AZ76: 0 | BA76: 0 | BB76: 0 | BC76: 0 | BD76: 0 | BE76: 0 | BF76: 0 | BG76: 0
B78: PV over full assessment period to establish the preferred option (discounted) | G78: ="("&TEXT('1_KMA'!$I$21,"dd-mmm-yy")&" Dollars)" -> (30-Jun-24 Dollars)
C79: Net Capital Expenditure | G79: =SUM(J79:BG79) -> 0 | J79: =-(J89)*J$71*J$8 -> 0 | K79: =-(K89)*K$71*K$8 -> 0 | L79: 0 | M79: 0 | N79: 0 | O79: 0 | P79: 0 | Q79: 0 | R79: 0 | S79: 0 | T79: 0 | U79: 0 | V79: 0 | W79: 0 | X79: 0 | Y79: 0 | Z79: 0 | AA79: 0 | AB79: 0 | AC79: 0 | AD79: 0 | AE79: 0 | AF79: 0 | AG79: 0 | AH79: 0 | AI79: 0 | AJ79: 0 | AK79: 0 | AL79: 0 | AM79: 0 | AN79: 0 | AO79: 0 | AP79: 0 | AQ79: 0 | AR79: 0 | AS79: 0 | AT79: 0 | AU79: 0 | AV79: 0 | AW79: 0 | AX79: 0 | AY79: 0 | AZ79: 0 | BA79: 0 | BB79: 0 | BC79: 0 | BD79: 0 | BE79: 0 | BF79: 0 | BG79: 0
C80: Operating Expenditure | G80: =SUM(J80:BG80) -> 0 | J80: =-(J90)*J$71*J$8 -> 0 | K80: =-(K90)*K$71*K$8 -> 0 | L80: 0 | M80: 0 | N80: 0 | O80: 0 | P80: 0 | Q80: 0 | R80: 0 | S80: 0 | T80: 0 | U80: 0 | V80: 0 | W80: 0 | X80: 0 | Y80: 0 | Z80: 0 | AA80: 0 | AB80: 0 | AC80: 0 | AD80: 0 | AE80: 0 | AF80: 0 | AG80: 0 | AH80: 0 | AI80: 0 | AJ80: 0 | AK80: 0 | AL80: 0 | AM80: 0 | AN80: 0 | AO80: 0 | AP80: 0 | AQ80: 0 | AR80: 0 | AS80: 0 | AT80: 0 | AU80: 0 | AV80: 0 | AW80: 0 | AX80: 0 | AY80: 0 | AZ80: 0 | BA80: 0 | BB80: 0 | BC80: 0 | BD80: 0 | BE80: 0 | BF80: 0 | BG80: 0
C81: Net Benefits | G81: =SUM(J81:BG81) -> -220.9501851 | J81: =(J101)*J$71*J$8 -> 0 | K81: =(K101)*K$71*K$8 -> 0 | L81: -0.09144903485 | M81: -0.825113894 | N81: -2.180354516 | O81: -0.6160200591 | P81: -1.473216023 | Q81: -2.489192993 | R81: -3.805757535 | S81: -5.501617839 | T81: -7.617309133 | U81: -10.08417717 | V81: -13.08885094 | W81: -16.57729024 | X81: -15.49279462 | Y81: -14.4792473 | Z81: -13.53200683 | AA81: -12.64673535 | AB81: -11.81937883 | AC81: -11.04614844 | AD81: -10.32350322 | AE81: -9.648133848 | AF81: -9.016947522 | AG81: -8.427053759 | AH81: -7.875751176 | AI81: -7.360515118 | AJ81: -6.878986092 | AK81: -6.428958964 | AL81: -6.008372864 | AM81: -5.615301742 | AN81: 0 | AO81: 0 | AP81: 0 | AQ81: 0 | AR81: 0 | AS81: 0 | AT81: 0 | AU81: 0 | AV81: 0 | AW81: 0 | AX81: 0 | AY81: 0 | AZ81: 0 | BA81: 0 | BB81: 0 | BC81: 0 | BD81: 0 | BE81: 0 | BF81: 0 | BG81: 0
B82: Total Present Value | G82: =SUM(J82:BG82) -> -220.9501851 | J82: =SUM(J79:J81) -> 0 | K82: =SUM(K79:K81) -> 0 | L82: -0.09144903485 | M82: -0.825113894 | N82: -2.180354516 | O82: -0.6160200591 | P82: -1.473216023 | Q82: -2.489192993 | R82: -3.805757535 | S82: -5.501617839 | T82: -7.617309133 | U82: -10.08417717 | V82: -13.08885094 | W82: -16.57729024 | X82: -15.49279462 | Y82: -14.4792473 | Z82: -13.53200683 | AA82: -12.64673535 | AB82: -11.81937883 | AC82: -11.04614844 | AD82: -10.32350322 | AE82: -9.648133848 | AF82: -9.016947522 | AG82: -8.427053759 | AH82: -7.875751176 | AI82: -7.360515118 | AJ82: -6.878986092 | AK82: -6.428958964 | AL82: -6.008372864 | AM82: -5.615301742 | AN82: 0 | AO82: 0 | AP82: 0 | AQ82: 0 | AR82: 0 | AS82: 0 | AT82: 0 | AU82: 0 | AV82: 0 | AW82: 0 | AX82: 0 | AY82: 0 | AZ82: 0 | BA82: 0 | BB82: 0 | BC82: 0 | BD82: 0 | BE82: 0 | BF82: 0 | BG82: 0
B84: Undiscounted | D84: ="("&TEXT('1_KMA'!$I$21,"dd-mmm-yy")&" dollars)" -> (30-Jun-24 dollars)
B86: Costs
G88: $ Basis Reminder | H88: $ Reminder
B89: Net Capex | G89: ='1_KMA'!$I$21 -> 2024-06-30 | H89: ='1_KMA'!$I$19 -> $millions | J89: =J108*J$7 -> 0 | K89: 0 | L89: 0 | M89: 0 | N89: 0 | O89: 0 | P89: 0 | Q89: 0 | R89: 0 | S89: 0 | T89: 0 | U89: 0 | V89: 0 | W89: 0 | X89: 0 | Y89: 0 | Z89: 0 | AA89: 0 | AB89: 0 | AC89: 0 | AD89: 0 | AE89: 0 | AF89: 0 | AG89: 0 | AH89: 0 | AI89: 0 | AJ89: 0 | AK89: 0 | AL89: 0 | AM89: 0 | AN89: 0 | AO89: 0 | AP89: =AP108*AP$7 -> 0 | AQ89: 0 | AR89: 0 | AS89: 0 | AT89: 0 | AU89: 0 | AV89: 0 | AW89: 0 | AX89: 0 | AY89: 0 | AZ89: 0 | BA89: 0 | BB89: 0 | BC89: 0 | BD89: 0 | BE89: 0 | BF89: 0 | BG89: 0
B90: Opex | G90: ='1_KMA'!$I$21 -> 2024-06-30 | H90: ='1_KMA'!$I$19 -> $millions | J90: =J109*J$7 -> 0 | K90: 0 | L90: 0 | M90: 0 | N90: 0 | O90: 0 | P90: 0 | Q90: 0 | R90: 0 | S90: 0 | T90: 0 | U90: 0 | V90: 0 | W90: 0 | X90: 0 | Y90: 0 | Z90: 0 | AA90: 0 | AB90: 0 | AC90: 0 | AD90: 0 | AE90: 0 | AF90: 0 | AG90: 0 | AH90: 0 | AI90: 0 | AJ90: 0 | AK90: 0 | AL90: 0 | AM90: 0 | AN90: 0 | AO90: 0 | AP90: =AP109*AP$7 -> 0 | AQ90: 0 | AR90: 0 | AS90: 0 | AT90: 0 | AU90: 0 | AV90: 0 | AW90: 0 | AX90: 0 | AY90: 0 | AZ90: 0 | BA90: 0 | BB90: 0 | BC90: 0 | BD90: 0 | BE90: 0 | BF90: 0 | BG90: 0
B91: Total | G91: ='1_KMA'!$I$21 -> 2024-06-30 | H91: ='1_KMA'!$I$19 -> $millions | J91: =J110*J$7 -> 0 | K91: 0 | L91: 0 | M91: 0 | N91: 0 | O91: 0 | P91: 0 | Q91: 0 | R91: 0 | S91: 0 | T91: 0 | U91: 0 | V91: 0 | W91: 0 | X91: 0 | Y91: 0 | Z91: 0 | AA91: 0 | AB91: 0 | AC91: 0 | AD91: 0 | AE91: 0 | AF91: 0 | AG91: 0 | AH91: 0 | AI91: 0 | AJ91: 0 | AK91: 0 | AL91: 0 | AM91: 0 | AN91: 0 | AO91: 0 | AP91: =AP110*AP$7 -> 0 | AQ91: 0 | AR91: 0 | AS91: 0 | AT91: 0 | AU91: 0 | AV91: 0 | AW91: 0 | AX91: 0 | AY91: 0 | AZ91: 0 | BA91: 0 | BB91: 0 | BC91: 0 | BD91: 0 | BE91: 0 | BF91: 0 | BG91: 0
B93: Benefits
G95: $ Basis Reminder | H95: $ Reminder
B96: =B115 -> Value of EUE | G96: ='1_KMA'!$I$21 -> 2024-06-30 | H96: ='1_KMA'!$I$19 -> $millions | J96: =J115*J$7 -> 0 | K96: 0 | L96: -0.1047 | M96: -1.0108 | N96: -2.858 | O96: -0.864 | P96: -2.2109 | Q96: -3.9971 | R96: -6.539 | S96: -10.1145 | T96: -14.9844 | U96: -21.2257 | V96: -29.4786 | W96: -39.9487 | X96: -39.9487 | Y96: -39.9487 | Z96: -39.9487 | AA96: -39.9487 | AB96: -39.9487 | AC96: -39.9487 | AD96: -39.9487 | AE96: -39.9487 | AF96: -39.9487 | AG96: -39.9487 | AH96: -39.9487 | AI96: -39.9487 | AJ96: -39.9487 | AK96: -39.9487 | AL96: -39.9487 | AM96: -39.9487 | AN96: 0 | AO96: 0 | AP96: =AP115*AP$7 -> 0 | AQ96: 0 | AR96: 0 | AS96: 0 | AT96: 0 | AU96: 0 | AV96: 0 | AW96: 0 | AX96: 0 | AY96: 0 | AZ96: 0 | BA96: 0 | BB96: 0 | BC96: 0 | BD96: 0 | BE96: 0 | BF96: 0 | BG96: 0
B97: =B116 -> 0 | G97: ='1_KMA'!$I$21 -> 2024-06-30 | H97: ='1_KMA'!$I$19 -> $millions | J97: =J116*J$7 -> 0 | K97: 0 | L97: 0 | M97: 0 | N97: 0 | O97: 0 | P97: 0 | Q97: 0 | R97: 0 | S97: 0 | T97: 0 | U97: 0 | V97: 0 | W97: 0 | X97: 0 | Y97: 0 | Z97: 0 | AA97: 0 | AB97: 0 | AC97: 0 | AD97: 0 | AE97: 0 | AF97: 0 | AG97: 0 | AH97: 0 | AI97: 0 | AJ97: 0 | AK97: 0 | AL97: 0 | AM97: 0 | AN97: 0 | AO97: 0 | AP97: =AP116*AP$7 -> 0 | AQ97: 0 | AR97: 0 | AS97: 0 | AT97: 0 | AU97: 0 | AV97: 0 | AW97: 0 | AX97: 0 | AY97: 0 | AZ97: 0 | BA97: 0 | BB97: 0 | BC97: 0 | BD97: 0 | BE97: 0 | BF97: 0 | BG97: 0
B98: 0 | G98: ='1_KMA'!$I$21 -> 2024-06-30 | H98: ='1_KMA'!$I$19 -> $millions | J98: =J117*J$7 -> 0 | K98: 0 | L98: 0 | M98: 0 | N98: 0 | O98: 0 | P98: 0 | Q98: 0 | R98: 0 | S98: 0 | T98: 0 | U98: 0 | V98: 0 | W98: 0 | X98: 0 | Y98: 0 | Z98: 0 | AA98: 0 | AB98: 0 | AC98: 0 | AD98: 0 | AE98: 0 | AF98: 0 | AG98: 0 | AH98: 0 | AI98: 0 | AJ98: 0 | AK98: 0 | AL98: 0 | AM98: 0 | AN98: 0 | AO98: 0 | AP98: =AP117*AP$7 -> 0 | AQ98: 0 | AR98: 0 | AS98: 0 | AT98: 0 | AU98: 0 | AV98: 0 | AW98: 0 | AX98: 0 | AY98: 0 | AZ98: 0 | BA98: 0 | BB98: 0 | BC98: 0 | BD98: 0 | BE98: 0 | BF98: 0 | BG98: 0
B99: 0 | G99: ='1_KMA'!$I$21 -> 2024-06-30 | H99: ='1_KMA'!$I$19 -> $millions | J99: =J118*J$7 -> 0 | K99: 0 | L99: 0 | M99: 0 | N99: 0 | O99: 0 | P99: 0 | Q99: 0 | R99: 0 | S99: 0 | T99: 0 | U99: 0 | V99: 0 | W99: 0 | X99: 0 | Y99: 0 | Z99: 0 | AA99: 0 | AB99: 0 | AC99: 0 | AD99: 0 | AE99: 0 | AF99: 0 | AG99: 0 | AH99: 0 | AI99: 0 | AJ99: 0 | AK99: 0 | AL99: 0 | AM99: 0 | AN99: 0 | AO99: 0 | AP99: =AP118*AP$7 -> 0 | AQ99: 0 | AR99: 0 | AS99: 0 | AT99: 0 | AU99: 0 | AV99: 0 | AW99: 0 | AX99: 0 | AY99: 0 | AZ99: 0 | BA99: 0 | BB99: 0 | BC99: 0 | BD99: 0 | BE99: 0 | BF99: 0 | BG99: 0
B100: 0 | G100: ='1_KMA'!$I$21 -> 2024-06-30 | H100: ='1_KMA'!$I$19 -> $millions | J100: =J119*J$7 -> 0 | K100: 0 | L100: 0 | M100: 0 | N100: 0 | O100: 0 | P100: 0 | Q100: 0 | R100: 0 | S100: 0 | T100: 0 | U100: 0 | V100: 0 | W100: 0 | X100: 0 | Y100: 0 | Z100: 0 | AA100: 0 | AB100: 0 | AC100: 0 | AD100: 0 | AE100: 0 | AF100: 0 | AG100: 0 | AH100: 0 | AI100: 0 | AJ100: 0 | AK100: 0 | AL100: 0 | AM100: 0 | AN100: 0 | AO100: 0 | AP100: =AP119*AP$7 -> 0 | AQ100: 0 | AR100: 0 | AS100: 0 | AT100: 0 | AU100: 0 | AV100: 0 | AW100: 0 | AX100: 0 | AY100: 0 | AZ100: 0 | BA100: 0 | BB100: 0 | BC100: 0 | BD100: 0 | BE100: 0 | BF100: 0 | BG100: 0
B101: ='3_BC'!B120 -> Total | G101: ='1_KMA'!$I$21 -> 2024-06-30 | H101: ='1_KMA'!$I$19 -> $millions | J101: =J120*J$7 -> 0 | K101: 0 | L101: -0.1047 | M101: -1.0108 | N101: -2.858 | O101: -0.864 | P101: -2.2109 | Q101: -3.9971 | R101: -6.539 | S101: -10.1145 | T101: -14.9844 | U101: -21.2257 | V101: -29.4786 | W101: -39.9487 | X101: -39.9487 | Y101: -39.9487 | Z101: -39.9487 | AA101: -39.9487 | AB101: -39.9487 | AC101: -39.9487 | AD101: -39.9487 | AE101: -39.9487 | AF101: -39.9487 | AG101: -39.9487 | AH101: -39.9487 | AI101: -39.9487 | AJ101: -39.9487 | AK101: -39.9487 | AL101: -39.9487 | AM101: -39.9487 | AN101: 0 | AO101: 0 | AP101: =AP120*AP$7 -> 0 | AQ101: 0 | AR101: 0 | AS101: 0 | AT101: 0 | AU101: 0 | AV101: 0 | AW101: 0 | AX101: 0 | AY101: 0 | AZ101: 0 | BA101: 0 | BB101: 0 | BC101: 0 | BD101: 0 | BE101: 0 | BF101: 0 | BG101: 0
B103: Undiscounted | D103: ="("&TEXT('1_KMA'!$I$20,"dd-mmm-yy")&" dollars)" -> (30-Jun-24 dollars)
B105: Costs
G107: $ Basis Reminder | H107: $ Reminder
B108: Net Capex | G108: ='1_KMA'!$I$20 -> 2024-06-30 | H108: ='1_KMA'!$I$19 -> $millions | J108: =J52*Controls!$F$22 -> 0 | K108: =K52*Controls!$F$22 -> 0 | L108: =L52*Controls!$F$22 -> 0 | M108: =M52*Controls!$F$22 -> 0 | N108: =N52*Controls!$F$22 -> 0 | O108: =O52*Controls!$F$22 -> 0 | P108: =P52*Controls!$F$22 -> 0 | Q108: =Q52*Controls!$F$22 -> 0 | R108: =R52*Controls!$F$22 -> 0 | S108: =S52*Controls!$F$22 -> 0 | T108: =T52*Controls!$F$22 -> 0 | U108: =U52*Controls!$F$22 -> 0 | V108: =V52*Controls!$F$22 -> 0 | W108: =W52*Controls!$F$22 -> 0 | X108: =X52*Controls!$F$22 -> 0 | Y108: =Y52*Controls!$F$22 -> 0 | Z108: =Z52*Controls!$F$22 -> 0 | AA108: =AA52*Controls!$F$22 -> 0 | AB108: =AB52*Controls!$F$22 -> 0 | AC108: =AC52*Controls!$F$22 -> 0 | AD108: =AD52*Controls!$F$22 -> 0 | AE108: =AE52*Controls!$F$22 -> 0 | AF108: =AF52*Controls!$F$22 -> 0 | AG108: =AG52*Controls!$F$22 -> 0 | AH108: =AH52*Controls!$F$22 -> 0 | AI108: =AI52*Controls!$F$22 -> 0 | AJ108: =AJ52*Controls!$F$22 -> 0 | AK108: =AK52*Controls!$F$22 -> 0 | AL108: =AL52*Controls!$F$22 -> 0 | AM108: =AM52*Controls!$F$22 -> 0 | AN108: =AN52*Controls!$F$22 -> 0 | AO108: =AO52*Controls!$F$22 -> 0 | AP108: =AP52*Controls!$F$22 -> 0 | AQ108: =AQ52*Controls!$F$22 -> 0 | AR108: =AR52*Controls!$F$22 -> 0 | AS108: =AS52*Controls!$F$22 -> 0 | AT108: =AT52*Controls!$F$22 -> 0 | AU108: =AU52*Controls!$F$22 -> 0 | AV108: =AV52*Controls!$F$22 -> 0 | AW108: =AW52*Controls!$F$22 -> 0 | AX108: =AX52*Controls!$F$22 -> 0 | AY108: =AY52*Controls!$F$22 -> 0 | AZ108: =AZ52*Controls!$F$22 -> 0 | BA108: =BA52*Controls!$F$22 -> 0 | BB108: =BB52*Controls!$F$22 -> 0 | BC108: =BC52*Controls!$F$22 -> 0 | BD108: =BD52*Controls!$F$22 -> 0 | BE108: =BE52*Controls!$F$22 -> 0 | BF108: =BF52*Controls!$F$22 -> 0 | BG108: =BG52*Controls!$F$22 -> 0
B109: Opex | G109: ='1_KMA'!$I$20 -> 2024-06-30 | H109: ='1_KMA'!$I$19 -> $millions | J109: =J53*Controls!$F$22 -> 0 | K109: =K53*Controls!$F$22 -> 0 | L109: =L53*Controls!$F$22 -> 0 | M109: =M53*Controls!$F$22 -> 0 | N109: =N53*Controls!$F$22 -> 0 | O109: =O53*Controls!$F$22 -> 0 | P109: =P53*Controls!$F$22 -> 0 | Q109: =Q53*Controls!$F$22 -> 0 | R109: =R53*Controls!$F$22 -> 0 | S109: =S53*Controls!$F$22 -> 0 | T109: =T53*Controls!$F$22 -> 0 | U109: =U53*Controls!$F$22 -> 0 | V109: =V53*Controls!$F$22 -> 0 | W109: =W53*Controls!$F$22 -> 0 | X109: =X53*Controls!$F$22 -> 0 | Y109: =Y53*Controls!$F$22 -> 0 | Z109: =Z53*Controls!$F$22 -> 0 | AA109: =AA53*Controls!$F$22 -> 0 | AB109: =AB53*Controls!$F$22 -> 0 | AC109: =AC53*Controls!$F$22 -> 0 | AD109: =AD53*Controls!$F$22 -> 0 | AE109: =AE53*Controls!$F$22 -> 0 | AF109: =AF53*Controls!$F$22 -> 0 | AG109: =AG53*Controls!$F$22 -> 0 | AH109: =AH53*Controls!$F$22 -> 0 | AI109: =AI53*Controls!$F$22 -> 0 | AJ109: =AJ53*Controls!$F$22 -> 0 | AK109: =AK53*Controls!$F$22 -> 0 | AL109: =AL53*Controls!$F$22 -> 0 | AM109: =AM53*Controls!$F$22 -> 0 | AN109: =AN53*Controls!$F$22 -> 0 | AO109: =AO53*Controls!$F$22 -> 0 | AP109: =AP53*Controls!$F$22 -> 0 | AQ109: =AQ53*Controls!$F$22 -> 0 | AR109: =AR53*Controls!$F$22 -> 0 | AS109: =AS53*Controls!$F$22 -> 0 | AT109: =AT53*Controls!$F$22 -> 0 | AU109: =AU53*Controls!$F$22 -> 0 | AV109: =AV53*Controls!$F$22 -> 0 | AW109: =AW53*Controls!$F$22 -> 0 | AX109: =AX53*Controls!$F$22 -> 0 | AY109: =AY53*Controls!$F$22 -> 0 | AZ109: =AZ53*Controls!$F$22 -> 0 | BA109: =BA53*Controls!$F$22 -> 0 | BB109: =BB53*Controls!$F$22 -> 0 | BC109: =BC53*Controls!$F$22 -> 0 | BD109: =BD53*Controls!$F$22 -> 0 | BE109: =BE53*Controls!$F$22 -> 0 | BF109: =BF53*Controls!$F$22 -> 0 | BG109: =BG53*Controls!$F$22 -> 0
B110: Total | G110: ='1_KMA'!$I$20 -> 2024-06-30 | H110: ='1_KMA'!$I$19 -> $millions | J110: =SUM(J108:J109) -> 0 | K110: =SUM(K108:K109) -> 0 | L110: 0 | M110: 0 | N110: 0 | O110: 0 | P110: 0 | Q110: 0 | R110: 0 | S110: 0 | T110: 0 | U110: 0 | V110: 0 | W110: 0 | X110: 0 | Y110: 0 | Z110: 0 | AA110: 0 | AB110: 0 | AC110: 0 | AD110: 0 | AE110: 0 | AF110: 0 | AG110: 0 | AH110: 0 | AI110: 0 | AJ110: 0 | AK110: 0 | AL110: 0 | AM110: 0 | AN110: 0 | AO110: 0 | AP110: 0 | AQ110: 0 | AR110: 0 | AS110: 0 | AT110: 0 | AU110: 0 | AV110: 0 | AW110: 0 | AX110: 0 | AY110: 0 | AZ110: 0 | BA110: 0 | BB110: 0 | BC110: 0 | BD110: 0 | BE110: 0 | BF110: 0 | BG110: 0
B112: Benefits
G114: $ Basis Reminder | H114: $ Reminder
B115: ='2.1_BC'!$B$16 -> Value of EUE | G115: ='1_KMA'!$I$20 -> 2024-06-30 | H115: ='1_KMA'!$I$19 -> $millions | J115: =J59 -> 0 | K115: =K59 -> 0 | L115: -0.1047 | M115: -1.0108 | N115: -2.858 | O115: -0.864 | P115: -2.2109 | Q115: -3.9971 | R115: -6.539 | S115: -10.1145 | T115: -14.9844 | U115: -21.2257 | V115: -29.4786 | W115: -39.9487 | X115: -39.9487 | Y115: -39.9487 | Z115: -39.9487 | AA115: -39.9487 | AB115: -39.9487 | AC115: -39.9487 | AD115: -39.9487 | AE115: -39.9487 | AF115: -39.9487 | AG115: -39.9487 | AH115: -39.9487 | AI115: -39.9487 | AJ115: -39.9487 | AK115: -39.9487 | AL115: -39.9487 | AM115: -39.9487 | AN115: 0 | AO115: 0 | AP115: 0 | AQ115: 0 | AR115: 0 | AS115: 0 | AT115: 0 | AU115: 0 | AV115: 0 | AW115: 0 | AX115: 0 | AY115: 0 | AZ115: 0 | BA115: 0 | BB115: 0 | BC115: 0 | BD115: 0 | BE115: 0 | BF115: 0 | BG115: 0
B116: ='2.1_BC'!$B$17 -> 0 | G116: ='1_KMA'!$I$20 -> 2024-06-30 | H116: ='1_KMA'!$I$19 -> $millions | J116: =J60 -> 0 | K116: =K60 -> 0 | L116: 0 | M116: 0 | N116: 0 | O116: 0 | P116: 0 | Q116: 0 | R116: 0 | S116: 0 | T116: 0 | U116: 0 | V116: 0 | W116: 0 | X116: 0 | Y116: 0 | Z116: 0 | AA116: 0 | AB116: 0 | AC116: 0 | AD116: 0 | AE116: 0 | AF116: 0 | AG116: 0 | AH116: 0 | AI116: 0 | AJ116: 0 | AK116: 0 | AL116: 0 | AM116: 0 | AN116: 0 | AO116: 0 | AP116: 0 | AQ116: 0 | AR116: 0 | AS116: 0 | AT116: 0 | AU116: 0 | AV116: 0 | AW116: 0 | AX116: 0 | AY116: 0 | AZ116: 0 | BA116: 0 | BB116: 0 | BC116: 0 | BD116: 0 | BE116: 0 | BF116: 0 | BG116: 0
B117: ='2.1_BC'!$B$18 -> 0 | G117: ='1_KMA'!$I$20 -> 2024-06-30 | H117: ='1_KMA'!$I$19 -> $millions | J117: =J61 -> 0 | K117: =K61 -> 0 | L117: 0 | M117: 0 | N117: 0 | O117: 0 | P117: 0 | Q117: 0 | R117: 0 | S117: 0 | T117: 0 | U117: 0 | V117: 0 | W117: 0 | X117: 0 | Y117: 0 | Z117: 0 | AA117: 0 | AB117: 0 | AC117: 0 | AD117: 0 | AE117: 0 | AF117: 0 | AG117: 0 | AH117: 0 | AI117: 0 | AJ117: 0 | AK117: 0 | AL117: 0 | AM117: 0 | AN117: 0 | AO117: 0 | AP117: 0 | AQ117: 0 | AR117: 0 | AS117: 0 | AT117: 0 | AU117: 0 | AV117: 0 | AW117: 0 | AX117: 0 | AY117: 0 | AZ117: 0 | BA117: 0 | BB117: 0 | BC117: 0 | BD117: 0 | BE117: 0 | BF117: 0 | BG117: 0
B118: ='2.1_BC'!$B$19 -> 0 | G118: ='1_KMA'!$I$20 -> 2024-06-30 | H118: ='1_KMA'!$I$19 -> $millions | J118: =J62 -> 0 | K118: =K62 -> 0 | L118: 0 | M118: 0 | N118: 0 | O118: 0 | P118: 0 | Q118: 0 | R118: 0 | S118: 0 | T118: 0 | U118: 0 | V118: 0 | W118: 0 | X118: 0 | Y118: 0 | Z118: 0 | AA118: 0 | AB118: 0 | AC118: 0 | AD118: 0 | AE118: 0 | AF118: 0 | AG118: 0 | AH118: 0 | AI118: 0 | AJ118: 0 | AK118: 0 | AL118: 0 | AM118: 0 | AN118: 0 | AO118: 0 | AP118: 0 | AQ118: 0 | AR118: 0 | AS118: 0 | AT118: 0 | AU118: 0 | AV118: 0 | AW118: 0 | AX118: 0 | AY118: 0 | AZ118: 0 | BA118: 0 | BB118: 0 | BC118: 0 | BD118: 0 | BE118: 0 | BF118: 0 | BG118: 0
B119: ='2.1_BC'!$B$20 -> 0 | G119: ='1_KMA'!$I$20 -> 2024-06-30 | H119: ='1_KMA'!$I$19 -> $millions | J119: =J63 -> 0 | K119: =K63 -> 0 | L119: 0 | M119: 0 | N119: 0 | O119: 0 | P119: 0 | Q119: 0 | R119: 0 | S119: 0 | T119: 0 | U119: 0 | V119: 0 | W119: 0 | X119: 0 | Y119: 0 | Z119: 0 | AA119: 0 | AB119: 0 | AC119: 0 | AD119: 0 | AE119: 0 | AF119: 0 | AG119: 0 | AH119: 0 | AI119: 0 | AJ119: 0 | AK119: 0 | AL119: 0 | AM119: 0 | AN119: 0 | AO119: 0 | AP119: 0 | AQ119: 0 | AR119: 0 | AS119: 0 | AT119: 0 | AU119: 0 | AV119: 0 | AW119: 0 | AX119: 0 | AY119: 0 | AZ119: 0 | BA119: 0 | BB119: 0 | BC119: 0 | BD119: 0 | BE119: 0 | BF119: 0 | BG119: 0
B120: Total | G120: ='1_KMA'!$I$20 -> 2024-06-30 | H120: ='1_KMA'!$I$19 -> $millions | J120: =SUM(J115:J119) -> 0 | K120: =SUM(K115:K119) -> 0 | L120: -0.1047 | M120: -1.0108 | N120: -2.858 | O120: -0.864 | P120: -2.2109 | Q120: -3.9971 | R120: -6.539 | S120: -10.1145 | T120: -14.9844 | U120: -21.2257 | V120: -29.4786 | W120: -39.9487 | X120: -39.9487 | Y120: -39.9487 | Z120: -39.9487 | AA120: -39.9487 | AB120: -39.9487 | AC120: -39.9487 | AD120: -39.9487 | AE120: -39.9487 | AF120: -39.9487 | AG120: -39.9487 | AH120: -39.9487 | AI120: -39.9487 | AJ120: -39.9487 | AK120: -39.9487 | AL120: -39.9487 | AM120: -39.9487 | AN120: 0 | AO120: 0 | AP120: 0 | AQ120: 0 | AR120: 0 | AS120: 0 | AT120: 0 | AU120: 0 | AV120: 0 | AW120: 0 | AX120: 0 | AY120: 0 | AZ120: 0 | BA120: 0 | BB120: 0 | BC120: 0 | BD120: 0 | BE120: 0 | BF120: 0 | BG120: 0
B122: =Controls!$B$23&" "&Controls!$C$23&" ("&TEXT(Controls!$E$23,"0.00%")&")" -> Sensitivity Scenario 2 Lower Discount Rate (4.11%)
B123: Summary
B125: WACC | J125: =Controls!$E$23 -> 0.0411 | K125: =Controls!$E$23 -> 0.0411 | L125: =Controls!$E$23 -> 0.0411 | M125: =Controls!$E$23 -> 0.0411 | N125: =Controls!$E$23 -> 0.0411 | O125: =Controls!$E$23 -> 0.0411 | P125: =Controls!$E$23 -> 0.0411 | Q125: =Controls!$E$23 -> 0.0411 | R125: =Controls!$E$23 -> 0.0411 | S125: =Controls!$E$23 -> 0.0411 | T125: =Controls!$E$23 -> 0.0411 | U125: =Controls!$E$23 -> 0.0411 | V125: =Controls!$E$23 -> 0.0411 | W125: =Controls!$E$23 -> 0.0411 | X125: =Controls!$E$23 -> 0.0411 | Y125: =Controls!$E$23 -> 0.0411 | Z125: =Controls!$E$23 -> 0.0411 | AA125: =Controls!$E$23 -> 0.0411 | AB125: =Controls!$E$23 -> 0.0411 | AC125: =Controls!$E$23 -> 0.0411 | AD125: =Controls!$E$23 -> 0.0411 | AE125: =Controls!$E$23 -> 0.0411 | AF125: =Controls!$E$23 -> 0.0411 | AG125: =Controls!$E$23 -> 0.0411 | AH125: =Controls!$E$23 -> 0.0411 | AI125: =Controls!$E$23 -> 0.0411 | AJ125: =Controls!$E$23 -> 0.0411 | AK125: =Controls!$E$23 -> 0.0411 | AL125: =Controls!$E$23 -> 0.0411 | AM125: =Controls!$E$23 -> 0.0411 | AN125: =Controls!$E$23 -> 0.0411 | AO125: =Controls!$E$23 -> 0.0411 | AP125: =Controls!$E$23 -> 0.0411 | AQ125: =Controls!$E$23 -> 0.0411 | AR125: =Controls!$E$23 -> 0.0411 | AS125: =Controls!$E$23 -> 0.0411 | AT125: =Controls!$E$23 -> 0.0411 | AU125: =Controls!$E$23 -> 0.0411 | AV125: =Controls!$E$23 -> 0.0411 | AW125: =Controls!$E$23 -> 0.0411 | AX125: =Controls!$E$23 -> 0.0411 | AY125: =Controls!$E$23 -> 0.0411 | AZ125: =Controls!$E$23 -> 0.0411 | BA125: =Controls!$E$23 -> 0.0411 | BB125: =Controls!$E$23 -> 0.0411 | BC125: =Controls!$E$23 -> 0.0411 | BD125: =Controls!$E$23 -> 0.0411 | BE125: =Controls!$E$23 -> 0.0411 | BF125: =Controls!$E$23 -> 0.0411 | BG125: =Controls!$E$23 -> 0.0411
B126: Deflator (interim calculation) | J126: 1 | K126: =J126*(1+K125) -> 1.0411 | L126: =K126*(1+L125) -> 1.08388921 | M126: =L126*(1+M125) -> 1.128437057 | N126: =M126*(1+N125) -> 1.17481582 | O126: =N126*(1+O125) -> 1.22310075 | P126: =O126*(1+P125) -> 1.273370191 | Q126: =P126*(1+Q125) -> 1.325705705 | R126: =Q126*(1+R125) -> 1.38019221 | S126: =R126*(1+S125) -> 1.43691811 | T126: =S126*(1+T125) -> 1.495975444 | U126: =T126*(1+U125) -> 1.557460035 | V126: =U126*(1+V125) -> 1.621471642 | W126: =V126*(1+W125) -> 1.688114127 | X126: =W126*(1+X125) -> 1.757495617 | Y126: =X126*(1+Y125) -> 1.829728687 | Z126: =Y126*(1+Z125) -> 1.904930536 | AA126: =Z126*(1+AA125) -> 1.983223181 | AB126: =AA126*(1+AB125) -> 2.064733654 | AC126: =AB126*(1+AC125) -> 2.149594207 | AD126: =AC126*(1+AD125) -> 2.237942529 | AE126: =AD126*(1+AE125) -> 2.329921967 | AF126: =AE126*(1+AF125) -> 2.42568176 | AG126: =AF126*(1+AG125) -> 2.52537728 | AH126: =AG126*(1+AH125) -> 2.629170286 | AI126: =AH126*(1+AI125) -> 2.737229185 | AJ126: =AI126*(1+AJ125) -> 2.849729305 | AK126: =AJ126*(1+AK125) -> 2.966853179 | AL126: =AK126*(1+AL125) -> 3.088790845 | AM126: =AL126*(1+AM125) -> 3.215740149 | AN126: =AM126*(1+AN125) -> 3.347907069 | AO126: =AN126*(1+AO125) -> 3.485506049 | AP126: =AO126*(1+AP125) -> 3.628760348 | AQ126: =AP126*(1+AQ125) -> 3.777902398 | AR126: =AQ126*(1+AR125) -> 3.933174187 | AS126: =AR126*(1+AS125) -> 4.094827646 | AT126: =AS126*(1+AT125) -> 4.263125062 | AU126: =AT126*(1+AU125) -> 4.438339502 | AV126: =AU126*(1+AV125) -> 4.620755255 | AW126: =AV126*(1+AW125) -> 4.810668296 | AX126: =AW126*(1+AX125) -> 5.008386763 | AY126: =AX126*(1+AY125) -> 5.214231459 | AZ126: =AY126*(1+AZ125) -> 5.428536372 | BA126: =AZ126*(1+BA125) -> 5.651649217 | BB126: =BA126*(1+BB125) -> 5.883932 | BC126: =BB126*(1+BC125) -> 6.125761605 | BD126: =BC126*(1+BD125) -> 6.377530407 | BE126: =BD126*(1+BE125) -> 6.639646907 | BF126: =BE126*(1+BF125) -> 6.912536395 | BG126: =BF126*(1+BG125) -> 7.196641641
B127: Deflator | J127: =1/J126 -> 1 | K127: =1/K126 -> 0.9605225243 | L127: =1/L126 -> 0.9226035196 | M127: =1/M126 -> 0.8861814615 | N127: =1/N126 -> 0.8511972544 | O127: =1/O126 -> 0.8175941354 | P127: 0.7853175828 | Q127: 0.7543152269 | R127: 0.7245367659 | S127: 0.6959338833 | T127: 0.6684601703 | U127: 0.6420710501 | V127: 0.6167237058 | W127: 0.5923770107 | X127: 0.5689914616 | Y127: 0.546529115 | Z127: 0.5249535251 | AA127: 0.504229685 | AB127: 0.4843239699 | AC127: 0.4652040821 | AD127: 0.4468389992 | AE127: 0.4291989235 | AF127: 0.4122552334 | AG127: 0.3959804374 | AH127: 0.3803481293 | AI127: 0.3653329452 | AJ127: 0.3509105227 | AK127: 0.3370574611 | AL127: 0.3237512834 | AM127: 0.3109703999 | AN127: 0.2986940735 | AO127: 0.2869023855 | AP127: 0.2755762035 | AQ127: 0.2646971506 | AR127: 0.2542475753 | AS127: 0.2442105228 | AT127: 0.2345697078 | AU127: 0.2253094878 | AV127: 0.216414838 | AW127: 0.2078713265 | AX127: 0.1996650912 | AY127: 0.1917828174 | AZ127: 0.1842117159 | BA127: 0.1769395024 | BB127: 0.1699543774 | BC127: 0.1632450076 | BD127: 0.1568005068 | BE127: 0.1506104186 | BF127: 0.1446646994 | BG127: 0.1389537023
B129: Totex sought for EDPR FY27-31 (undiscounted) | G129: ="("&TEXT('1_KMA'!$I$21,"dd-mmm-yy")&" Dollars)" -> (30-Jun-24 Dollars)
C130: Net Capital Expenditure | G130: =SUM(J130:BG130) -> 0 | J130: =-J145*J$1*J$8 -> 0 | K130: =-K145*K$1*K$8 -> 0 | L130: 0 | M130: 0 | N130: =-N145*N$1*N$8 -> 0 | O130: 0 | P130: 0 | Q130: 0 | R130: 0 | S130: 0 | T130: 0 | U130: 0 | V130: 0 | W130: 0 | X130: 0 | Y130: 0 | Z130: 0 | AA130: 0 | AB130: 0 | AC130: 0 | AD130: 0 | AE130: 0 | AF130: 0 | AG130: 0 | AH130: 0 | AI130: 0 | AJ130: 0 | AK130: 0 | AL130: 0 | AM130: 0 | AN130: 0 | AO130: 0 | AP130: 0 | AQ130: 0 | AR130: 0 | AS130: 0 | AT130: 0 | AU130: 0 | AV130: 0 | AW130: 0 | AX130: 0 | AY130: 0 | AZ130: 0 | BA130: 0 | BB130: 0 | BC130: 0 | BD130: 0 | BE130: 0 | BF130: 0 | BG130: 0
C131: Operating Expenditure | G131: =SUM(J131:BG131) -> 0 | J131: =-J146*J$1*J$8 -> 0 | K131: =-K146*K$1*K$8 -> 0 | L131: 0 | M131: 0 | N131: =-N146*N$1*N$8 -> 0 | O131: 0 | P131: 0 | Q131: 0 | R131: 0 | S131: 0 | T131: 0 | U131: 0 | V131: 0 | W131: 0 | X131: 0 | Y131: 0 | Z131: 0 | AA131: 0 | AB131: 0 | AC131: 0 | AD131: 0 | AE131: 0 | AF131: 0 | AG131: 0 | AH131: 0 | AI131: 0 | AJ131: 0 | AK131: 0 | AL131: 0 | AM131: 0 | AN131: 0 | AO131: 0 | AP131: 0 | AQ131: 0 | AR131: 0 | AS131: 0 | AT131: 0 | AU131: 0 | AV131: 0 | AW131: 0 | AX131: 0 | AY131: 0 | AZ131: 0 | BA131: 0 | BB131: 0 | BC131: 0 | BD131: 0 | BE131: 0 | BF131: 0 | BG131: 0
C132: Totex | G132: =SUM(G130:G131) -> 0 | J132: =SUM(J130:J131) -> 0 | K132: =SUM(K130:K131) -> 0 | L132: =SUM(L130:L131) -> 0 | M132: 0 | N132: 0 | O132: 0 | P132: 0 | Q132: 0 | R132: 0 | S132: 0 | T132: 0 | U132: 0 | V132: 0 | W132: 0 | X132: 0 | Y132: 0 | Z132: 0 | AA132: 0 | AB132: 0 | AC132: 0 | AD132: 0 | AE132: 0 | AF132: 0 | AG132: 0 | AH132: 0 | AI132: 0 | AJ132: 0 | AK132: 0 | AL132: 0 | AM132: 0 | AN132: 0 | AO132: 0 | AP132: 0 | AQ132: 0 | AR132: 0 | AS132: 0 | AT132: 0 | AU132: 0 | AV132: 0 | AW132: 0 | AX132: 0 | AY132: 0 | AZ132: 0 | BA132: 0 | BB132: 0 | BC132: 0 | BD132: 0 | BE132: 0 | BF132: 0 | BG132: 0
B134: PV over full assessment period to establish the preferred option (discounted) | G134: ="("&TEXT('1_KMA'!$I$21,"dd-mmm-yy")&" Dollars)" -> (30-Jun-24 Dollars)
C135: Net Capital Expenditure | G135: =SUM(J135:BG135) -> 0 | J135: =-(J145)*J$127*J$8 -> 0 | K135: =-(K145)*K$127*K$8 -> 0 | L135: 0 | M135: 0 | N135: 0 | O135: 0 | P135: 0 | Q135: 0 | R135: 0 | S135: 0 | T135: 0 | U135: 0 | V135: 0 | W135: 0 | X135: 0 | Y135: 0 | Z135: 0 | AA135: 0 | AB135: 0 | AC135: 0 | AD135: 0 | AE135: 0 | AF135: 0 | AG135: 0 | AH135: 0 | AI135: 0 | AJ135: 0 | AK135: 0 | AL135: 0 | AM135: 0 | AN135: 0 | AO135: 0 | AP135: 0 | AQ135: 0 | AR135: 0 | AS135: 0 | AT135: 0 | AU135: 0 | AV135: 0 | AW135: 0 | AX135: 0 | AY135: 0 | AZ135: 0 | BA135: 0 | BB135: 0 | BC135: 0 | BD135: 0 | BE135: 0 | BF135: 0 | BG135: =-(BG145)*BG$127*BG$8 -> 0
C136: Operating Expenditure | G136: =SUM(J136:BG136) -> 0 | J136: =-(J146)*J$127*J$8 -> 0 | K136: =-(K146)*K$127*K$8 -> 0 | L136: 0 | M136: 0 | N136: 0 | O136: 0 | P136: 0 | Q136: 0 | R136: 0 | S136: 0 | T136: 0 | U136: 0 | V136: 0 | W136: 0 | X136: 0 | Y136: 0 | Z136: 0 | AA136: 0 | AB136: 0 | AC136: 0 | AD136: 0 | AE136: 0 | AF136: 0 | AG136: 0 | AH136: 0 | AI136: 0 | AJ136: 0 | AK136: 0 | AL136: 0 | AM136: 0 | AN136: 0 | AO136: 0 | AP136: 0 | AQ136: 0 | AR136: 0 | AS136: 0 | AT136: 0 | AU136: 0 | AV136: 0 | AW136: 0 | AX136: 0 | AY136: 0 | AZ136: 0 | BA136: 0 | BB136: 0 | BC136: 0 | BD136: 0 | BE136: 0 | BF136: 0 | BG136: =-(BG146)*BG$127*BG$8 -> 0
C137: Net Benefits | G137: =SUM(J137:BG137) -> -359.6731003 | J137: =(J157)*J$127*J$8 -> 0 | K137: =(K157)*K$127*K$8 -> 0 | L137: -0.0965965885 | M137: -0.8957522213 | N137: -2.432721753 | O137: -0.706401333 | P137: -1.736258644 | Q137: -3.015073394 | R137: -4.737745912 | S137: -7.039023262 | T137: -10.01647458 | U137: -13.62840749 | V137: -18.18015143 | W137: -23.66469149 | X137: -22.7304692 | Y137: -21.83312765 | Z137: -20.97121089 | AA137: -20.14332042 | AB137: -19.34811297 | AC137: -18.58429831 | AD137: -17.85063713 | AE137: -17.14593903 | AF137: -16.46906064 | AG137: -15.8189037 | AH137: -15.19441331 | AI137: -14.59457623 | AJ137: -14.0184192 | AK137: -13.4650074 | AL137: -12.93344289 | AM137: -12.42286322 | AN137: 0 | AO137: 0 | AP137: 0 | AQ137: 0 | AR137: 0 | AS137: 0 | AT137: 0 | AU137: 0 | AV137: 0 | AW137: 0 | AX137: 0 | AY137: 0 | AZ137: 0 | BA137: 0 | BB137: 0 | BC137: 0 | BD137: 0 | BE137: 0 | BF137: 0 | BG137: =(BG157)*BG$127*BG$8 -> 0
B138: Total Present Value | G138: =SUM(J138:BG138) -> -359.6731003 | J138: =SUM(J135:J137) -> 0 | K138: =SUM(K135:K137) -> 0 | L138: -0.0965965885 | M138: -0.8957522213 | N138: -2.432721753 | O138: -0.706401333 | P138: -1.736258644 | Q138: -3.015073394 | R138: -4.737745912 | S138: -7.039023262 | T138: -10.01647458 | U138: -13.62840749 | V138: -18.18015143 | W138: -23.66469149 | X138: -22.7304692 | Y138: -21.83312765 | Z138: -20.97121089 | AA138: -20.14332042 | AB138: -19.34811297 | AC138: -18.58429831 | AD138: -17.85063713 | AE138: -17.14593903 | AF138: -16.46906064 | AG138: -15.8189037 | AH138: -15.19441331 | AI138: -14.59457623 | AJ138: -14.0184192 | AK138: -13.4650074 | AL138: -12.93344289 | AM138: -12.42286322 | AN138: 0 | AO138: 0 | AP138: 0 | AQ138: 0 | AR138: 0 | AS138: 0 | AT138: 0 | AU138: 0 | AV138: 0 | AW138: 0 | AX138: 0 | AY138: 0 | AZ138: 0 | BA138: 0 | BB138: 0 | BC138: 0 | BD138: 0 | BE138: 0 | BF138: 0 | BG138: 0
B140: Undiscounted | D140: ="("&TEXT('1_KMA'!$I$21,"dd-mmm-yy")&" dollars)" -> (30-Jun-24 dollars)
B142: Costs
G144: $ Basis Reminder | H144: $ Reminder
B145: Net Capex | G145: ='1_KMA'!$I$21 -> 2024-06-30 | H145: ='1_KMA'!$I$19 -> $millions | J145: =J164*J$7 -> 0 | K145: 0 | L145: 0 | M145: 0 | N145: 0 | O145: 0 | P145: 0 | Q145: 0 | R145: 0 | S145: 0 | T145: 0 | U145: 0 | V145: 0 | W145: 0 | X145: 0 | Y145: 0 | Z145: 0 | AA145: 0 | AB145: 0 | AC145: 0 | AD145: 0 | AE145: 0 | AF145: 0 | AG145: 0 | AH145: 0 | AI145: 0 | AJ145: 0 | AK145: 0 | AL145: 0 | AM145: 0 | AN145: 0 | AO145: 0 | AP145: =AP164*AP$7 -> 0 | AQ145: 0 | AR145: 0 | AS145: 0 | AT145: 0 | AU145: 0 | AV145: 0 | AW145: 0 | AX145: 0 | AY145: 0 | AZ145: 0 | BA145: 0 | BB145: 0 | BC145: 0 | BD145: 0 | BE145: 0 | BF145: 0 | BG145: 0
B146: Opex | G146: ='1_KMA'!$I$21 -> 2024-06-30 | H146: ='1_KMA'!$I$19 -> $millions | J146: =J165*J$7 -> 0 | K146: 0 | L146: 0 | M146: 0 | N146: 0 | O146: 0 | P146: 0 | Q146: 0 | R146: 0 | S146: 0 | T146: 0 | U146: 0 | V146: 0 | W146: 0 | X146: 0 | Y146: 0 | Z146: 0 | AA146: 0 | AB146: 0 | AC146: 0 | AD146: 0 | AE146: 0 | AF146: 0 | AG146: 0 | AH146: 0 | AI146: 0 | AJ146: 0 | AK146: 0 | AL146: 0 | AM146: 0 | AN146: 0 | AO146: 0 | AP146: =AP165*AP$7 -> 0 | AQ146: 0 | AR146: 0 | AS146: 0 | AT146: 0 | AU146: 0 | AV146: 0 | AW146: 0 | AX146: 0 | AY146: 0 | AZ146: 0 | BA146: 0 | BB146: 0 | BC146: 0 | BD146: 0 | BE146: 0 | BF146: 0 | BG146: 0
B147: Total | G147: ='1_KMA'!$I$21 -> 2024-06-30 | H147: ='1_KMA'!$I$19 -> $millions | J147: =J166*J$7 -> 0 | K147: 0 | L147: 0 | M147: 0 | N147: 0 | O147: 0 | P147: 0 | Q147: 0 | R147: 0 | S147: 0 | T147: 0 | U147: 0 | V147: 0 | W147: 0 | X147: 0 | Y147: 0 | Z147: 0 | AA147: 0 | AB147: 0 | AC147: 0 | AD147: 0 | AE147: 0 | AF147: 0 | AG147: 0 | AH147: 0 | AI147: 0 | AJ147: 0 | AK147: 0 | AL147: 0 | AM147: 0 | AN147: 0 | AO147: 0 | AP147: =AP166*AP$7 -> 0 | AQ147: 0 | AR147: 0 | AS147: 0 | AT147: 0 | AU147: 0 | AV147: 0 | AW147: 0 | AX147: 0 | AY147: 0 | AZ147: 0 | BA147: 0 | BB147: 0 | BC147: 0 | BD147: 0 | BE147: 0 | BF147: 0 | BG147: 0
B149: Benefits
G151: $ Basis Reminder | H151: $ Reminder
B152: =B171 -> Value of EUE | G152: ='1_KMA'!$I$21 -> 2024-06-30 | H152: ='1_KMA'!$I$19 -> $millions | J152: =J171*J$7 -> 0 | K152: 0 | L152: -0.1047 | M152: -1.0108 | N152: -2.858 | O152: -0.864 | P152: -2.2109 | Q152: -3.9971 | R152: -6.539 | S152: -10.1145 | T152: -14.9844 | U152: -21.2257 | V152: -29.4786 | W152: -39.9487 | X152: -39.9487 | Y152: -39.9487 | Z152: -39.9487 | AA152: -39.9487 | AB152: -39.9487 | AC152: -39.9487 | AD152: -39.9487 | AE152: -39.9487 | AF152: -39.9487 | AG152: -39.9487 | AH152: -39.9487 | AI152: -39.9487 | AJ152: -39.9487 | AK152: -39.9487 | AL152: -39.9487 | AM152: -39.9487 | AN152: 0 | AO152: 0 | AP152: =AP171*AP$7 -> 0 | AQ152: 0 | AR152: 0 | AS152: 0 | AT152: 0 | AU152: 0 | AV152: 0 | AW152: 0 | AX152: 0 | AY152: 0 | AZ152: 0 | BA152: 0 | BB152: 0 | BC152: 0 | BD152: 0 | BE152: 0 | BF152: 0 | BG152: 0
B153: =B172 -> 0 | G153: ='1_KMA'!$I$21 -> 2024-06-30 | H153: ='1_KMA'!$I$19 -> $millions | J153: =J172*J$7 -> 0 | K153: 0 | L153: 0 | M153: 0 | N153: 0 | O153: 0 | P153: 0 | Q153: 0 | R153: 0 | S153: 0 | T153: 0 | U153: 0 | V153: 0 | W153: 0 | X153: 0 | Y153: 0 | Z153: 0 | AA153: 0 | AB153: 0 | AC153: 0 | AD153: 0 | AE153: 0 | AF153: 0 | AG153: 0 | AH153: 0 | AI153: 0 | AJ153: 0 | AK153: 0 | AL153: 0 | AM153: 0 | AN153: 0 | AO153: 0 | AP153: =AP172*AP$7 -> 0 | AQ153: 0 | AR153: 0 | AS153: 0 | AT153: 0 | AU153: 0 | AV153: 0 | AW153: 0 | AX153: 0 | AY153: 0 | AZ153: 0 | BA153: 0 | BB153: 0 | BC153: 0 | BD153: 0 | BE153: 0 | BF153: 0 | BG153: 0
B154: 0 | G154: ='1_KMA'!$I$21 -> 2024-06-30 | H154: ='1_KMA'!$I$19 -> $millions | J154: =J173*J$7 -> 0 | K154: 0 | L154: 0 | M154: 0 | N154: 0 | O154: 0 | P154: 0 | Q154: 0 | R154: 0 | S154: 0 | T154: 0 | U154: 0 | V154: 0 | W154: 0 | X154: 0 | Y154: 0 | Z154: 0 | AA154: 0 | AB154: 0 | AC154: 0 | AD154: 0 | AE154: 0 | AF154: 0 | AG154: 0 | AH154: 0 | AI154: 0 | AJ154: 0 | AK154: 0 | AL154: 0 | AM154: 0 | AN154: 0 | AO154: 0 | AP154: =AP173*AP$7 -> 0 | AQ154: 0 | AR154: 0 | AS154: 0 | AT154: 0 | AU154: 0 | AV154: 0 | AW154: 0 | AX154: 0 | AY154: 0 | AZ154: 0 | BA154: 0 | BB154: 0 | BC154: 0 | BD154: 0 | BE154: 0 | BF154: 0 | BG154: 0
B155: 0 | G155: ='1_KMA'!$I$21 -> 2024-06-30 | H155: ='1_KMA'!$I$19 -> $millions | J155: =J174*J$7 -> 0 | K155: 0 | L155: 0 | M155: 0 | N155: 0 | O155: 0 | P155: 0 | Q155: 0 | R155: 0 | S155: 0 | T155: 0 | U155: 0 | V155: 0 | W155: 0 | X155: 0 | Y155: 0 | Z155: 0 | AA155: 0 | AB155: 0 | AC155: 0 | AD155: 0 | AE155: 0 | AF155: 0 | AG155: 0 | AH155: 0 | AI155: 0 | AJ155: 0 | AK155: 0 | AL155: 0 | AM155: 0 | AN155: 0 | AO155: 0 | AP155: =AP174*AP$7 -> 0 | AQ155: 0 | AR155: 0 | AS155: 0 | AT155: 0 | AU155: 0 | AV155: 0 | AW155: 0 | AX155: 0 | AY155: 0 | AZ155: 0 | BA155: 0 | BB155: 0 | BC155: 0 | BD155: 0 | BE155: 0 | BF155: 0 | BG155: 0
B156: =B175 -> 0 | G156: ='1_KMA'!$I$21 -> 2024-06-30 | H156: ='1_KMA'!$I$19 -> $millions | J156: =J175*J$7 -> 0 | K156: 0 | L156: 0 | M156: 0 | N156: 0 | O156: 0 | P156: 0 | Q156: 0 | R156: 0 | S156: 0 | T156: 0 | U156: 0 | V156: 0 | W156: 0 | X156: 0 | Y156: 0 | Z156: 0 | AA156: 0 | AB156: 0 | AC156: 0 | AD156: 0 | AE156: 0 | AF156: 0 | AG156: 0 | AH156: 0 | AI156: 0 | AJ156: 0 | AK156: 0 | AL156: 0 | AM156: 0 | AN156: 0 | AO156: 0 | AP156: =AP175*AP$7 -> 0 | AQ156: 0 | AR156: 0 | AS156: 0 | AT156: 0 | AU156: 0 | AV156: 0 | AW156: 0 | AX156: 0 | AY156: 0 | AZ156: 0 | BA156: 0 | BB156: 0 | BC156: 0 | BD156: 0 | BE156: 0 | BF156: 0 | BG156: 0
B157: ='3_BC'!B176 -> Total | G157: ='1_KMA'!$I$21 -> 2024-06-30 | H157: ='1_KMA'!$I$19 -> $millions | J157: =J176*J$7 -> 0 | K157: 0 | L157: -0.1047 | M157: -1.0108 | N157: -2.858 | O157: -0.864 | P157: -2.2109 | Q157: -3.9971 | R157: -6.539 | S157: -10.1145 | T157: -14.9844 | U157: -21.2257 | V157: -29.4786 | W157: -39.9487 | X157: -39.9487 | Y157: -39.9487 | Z157: -39.9487 | AA157: -39.9487 | AB157: -39.9487 | AC157: -39.9487 | AD157: -39.9487 | AE157: -39.9487 | AF157: -39.9487 | AG157: -39.9487 | AH157: -39.9487 | AI157: -39.9487 | AJ157: -39.9487 | AK157: -39.9487 | AL157: -39.9487 | AM157: -39.9487 | AN157: 0 | AO157: 0 | AP157: =AP176*AP$7 -> 0 | AQ157: 0 | AR157: 0 | AS157: 0 | AT157: 0 | AU157: 0 | AV157: 0 | AW157: 0 | AX157: 0 | AY157: 0 | AZ157: 0 | BA157: 0 | BB157: 0 | BC157: 0 | BD157: 0 | BE157: 0 | BF157: 0 | BG157: 0
B159: Undiscounted | D159: ="("&TEXT('1_KMA'!$I$20,"dd-mmm-yy")&" dollars)" -> (30-Jun-24 dollars)
B161: Costs
G163: $ Basis Reminder | H163: $ Reminder
B164: Net Capex | G164: ='1_KMA'!$I$20 -> 2024-06-30 | H164: ='1_KMA'!$I$19 -> $millions | J164: =J52*Controls!$F$23 -> 0 | K164: =K52*Controls!$F$23 -> 0 | L164: =L52*Controls!$F$23 -> 0 | M164: =M52*Controls!$F$23 -> 0 | N164: =N52*Controls!$F$23 -> 0 | O164: =O52*Controls!$F$23 -> 0 | P164: =P52*Controls!$F$23 -> 0 | Q164: =Q52*Controls!$F$23 -> 0 | R164: =R52*Controls!$F$23 -> 0 | S164: =S52*Controls!$F$23 -> 0 | T164: =T52*Controls!$F$23 -> 0 | U164: =U52*Controls!$F$23 -> 0 | V164: =V52*Controls!$F$23 -> 0 | W164: =W52*Controls!$F$23 -> 0 | X164: =X52*Controls!$F$23 -> 0 | Y164: =Y52*Controls!$F$23 -> 0 | Z164: =Z52*Controls!$F$23 -> 0 | AA164: =AA52*Controls!$F$23 -> 0 | AB164: =AB52*Controls!$F$23 -> 0 | AC164: =AC52*Controls!$F$23 -> 0 | AD164: =AD52*Controls!$F$23 -> 0 | AE164: =AE52*Controls!$F$23 -> 0 | AF164: =AF52*Controls!$F$23 -> 0 | AG164: =AG52*Controls!$F$23 -> 0 | AH164: =AH52*Controls!$F$23 -> 0 | AI164: =AI52*Controls!$F$23 -> 0 | AJ164: =AJ52*Controls!$F$23 -> 0 | AK164: =AK52*Controls!$F$23 -> 0 | AL164: =AL52*Controls!$F$23 -> 0 | AM164: =AM52*Controls!$F$23 -> 0 | AN164: =AN52*Controls!$F$23 -> 0 | AO164: =AO52*Controls!$F$23 -> 0 | AP164: =AP52*Controls!$F$23 -> 0 | AQ164: =AQ52*Controls!$F$23 -> 0 | AR164: =AR52*Controls!$F$23 -> 0 | AS164: =AS52*Controls!$F$23 -> 0 | AT164: =AT52*Controls!$F$23 -> 0 | AU164: =AU52*Controls!$F$23 -> 0 | AV164: =AV52*Controls!$F$23 -> 0 | AW164: =AW52*Controls!$F$23 -> 0 | AX164: =AX52*Controls!$F$23 -> 0 | AY164: =AY52*Controls!$F$23 -> 0 | AZ164: =AZ52*Controls!$F$23 -> 0 | BA164: =BA52*Controls!$F$23 -> 0 | BB164: =BB52*Controls!$F$23 -> 0 | BC164: =BC52*Controls!$F$23 -> 0 | BD164: =BD52*Controls!$F$23 -> 0 | BE164: =BE52*Controls!$F$23 -> 0 | BF164: =BF52*Controls!$F$23 -> 0 | BG164: =BG52*Controls!$F$23 -> 0
B165: Opex | G165: ='1_KMA'!$I$20 -> 2024-06-30 | H165: ='1_KMA'!$I$19 -> $millions | J165: =J53*Controls!$F$23 -> 0 | K165: =K53*Controls!$F$23 -> 0 | L165: =L53*Controls!$F$23 -> 0 | M165: =M53*Controls!$F$23 -> 0 | N165: =N53*Controls!$F$23 -> 0 | O165: =O53*Controls!$F$23 -> 0 | P165: =P53*Controls!$F$23 -> 0 | Q165: =Q53*Controls!$F$23 -> 0 | R165: =R53*Controls!$F$23 -> 0 | S165: =S53*Controls!$F$23 -> 0 | T165: =T53*Controls!$F$23 -> 0 | U165: =U53*Controls!$F$23 -> 0 | V165: =V53*Controls!$F$23 -> 0 | W165: =W53*Controls!$F$23 -> 0 | X165: =X53*Controls!$F$23 -> 0 | Y165: =Y53*Controls!$F$23 -> 0 | Z165: =Z53*Controls!$F$23 -> 0 | AA165: =AA53*Controls!$F$23 -> 0 | AB165: =AB53*Controls!$F$23 -> 0 | AC165: =AC53*Controls!$F$23 -> 0 | AD165: =AD53*Controls!$F$23 -> 0 | AE165: =AE53*Controls!$F$23 -> 0 | AF165: =AF53*Controls!$F$23 -> 0 | AG165: =AG53*Controls!$F$23 -> 0 | AH165: =AH53*Controls!$F$23 -> 0 | AI165: =AI53*Controls!$F$23 -> 0 | AJ165: =AJ53*Controls!$F$23 -> 0 | AK165: =AK53*Controls!$F$23 -> 0 | AL165: =AL53*Controls!$F$23 -> 0 | AM165: =AM53*Controls!$F$23 -> 0 | AN165: =AN53*Controls!$F$23 -> 0 | AO165: =AO53*Controls!$F$23 -> 0 | AP165: =AP53*Controls!$F$23 -> 0 | AQ165: =AQ53*Controls!$F$23 -> 0 | AR165: =AR53*Controls!$F$23 -> 0 | AS165: =AS53*Controls!$F$23 -> 0 | AT165: =AT53*Controls!$F$23 -> 0 | AU165: =AU53*Controls!$F$23 -> 0 | AV165: =AV53*Controls!$F$23 -> 0 | AW165: =AW53*Controls!$F$23 -> 0 | AX165: =AX53*Controls!$F$23 -> 0 | AY165: =AY53*Controls!$F$23 -> 0 | AZ165: =AZ53*Controls!$F$23 -> 0 | BA165: =BA53*Controls!$F$23 -> 0 | BB165: =BB53*Controls!$F$23 -> 0 | BC165: =BC53*Controls!$F$23 -> 0 | BD165: =BD53*Controls!$F$23 -> 0 | BE165: =BE53*Controls!$F$23 -> 0 | BF165: =BF53*Controls!$F$23 -> 0 | BG165: =BG53*Controls!$F$23 -> 0
B166: Total | G166: ='1_KMA'!$I$20 -> 2024-06-30 | H166: ='1_KMA'!$I$19 -> $millions | J166: =SUM(J164:J165) -> 0 | K166: =SUM(K164:K165) -> 0 | L166: 0 | M166: 0 | N166: 0 | O166: 0 | P166: 0 | Q166: 0 | R166: 0 | S166: 0 | T166: 0 | U166: 0 | V166: 0 | W166: 0 | X166: 0 | Y166: 0 | Z166: 0 | AA166: 0 | AB166: 0 | AC166: 0 | AD166: 0 | AE166: 0 | AF166: 0 | AG166: 0 | AH166: 0 | AI166: 0 | AJ166: 0 | AK166: 0 | AL166: 0 | AM166: 0 | AN166: 0 | AO166: 0 | AP166: 0 | AQ166: 0 | AR166: 0 | AS166: 0 | AT166: 0 | AU166: 0 | AV166: 0 | AW166: 0 | AX166: 0 | AY166: 0 | AZ166: 0 | BA166: 0 | BB166: 0 | BC166: 0 | BD166: 0 | BE166: 0 | BF166: 0 | BG166: 0
B168: Benefits
G170: $ Basis Reminder | H170: $ Reminder
B171: ='2.1_BC'!$B$16 -> Value of EUE | G171: ='1_KMA'!$I$20 -> 2024-06-30 | H171: ='1_KMA'!$I$19 -> $millions | J171: =J59 -> 0 | K171: =K59 -> 0 | L171: -0.1047 | M171: -1.0108 | N171: =N59 -> -2.858 | O171: -0.864 | P171: -2.2109 | Q171: -3.9971 | R171: -6.539 | S171: -10.1145 | T171: -14.9844 | U171: -21.2257 | V171: -29.4786 | W171: -39.9487 | X171: -39.9487 | Y171: -39.9487 | Z171: -39.9487 | AA171: -39.9487 | AB171: -39.9487 | AC171: -39.9487 | AD171: -39.9487 | AE171: -39.9487 | AF171: -39.9487 | AG171: -39.9487 | AH171: -39.9487 | AI171: -39.9487 | AJ171: -39.9487 | AK171: -39.9487 | AL171: -39.9487 | AM171: -39.9487 | AN171: 0 | AO171: 0 | AP171: 0 | AQ171: 0 | AR171: 0 | AS171: 0 | AT171: 0 | AU171: 0 | AV171: 0 | AW171: 0 | AX171: 0 | AY171: 0 | AZ171: 0 | BA171: 0 | BB171: 0 | BC171: 0 | BD171: 0 | BE171: 0 | BF171: 0 | BG171: 0
B172: ='2.1_BC'!$B$17 -> 0 | G172: ='1_KMA'!$I$20 -> 2024-06-30 | H172: ='1_KMA'!$I$19 -> $millions | J172: =J60 -> 0 | K172: =K60 -> 0 | L172: 0 | M172: 0 | N172: =N60 -> 0 | O172: 0 | P172: 0 | Q172: 0 | R172: 0 | S172: 0 | T172: 0 | U172: 0 | V172: 0 | W172: 0 | X172: 0 | Y172: 0 | Z172: 0 | AA172: 0 | AB172: 0 | AC172: 0 | AD172: 0 | AE172: 0 | AF172: 0 | AG172: 0 | AH172: 0 | AI172: 0 | AJ172: 0 | AK172: 0 | AL172: 0 | AM172: 0 | AN172: 0 | AO172: 0 | AP172: 0 | AQ172: 0 | AR172: 0 | AS172: 0 | AT172: 0 | AU172: 0 | AV172: 0 | AW172: 0 | AX172: 0 | AY172: 0 | AZ172: 0 | BA172: 0 | BB172: 0 | BC172: 0 | BD172: 0 | BE172: 0 | BF172: 0 | BG172: 0
B173: ='2.1_BC'!$B$18 -> 0 | G173: ='1_KMA'!$I$20 -> 2024-06-30 | H173: ='1_KMA'!$I$19 -> $millions | J173: =J61 -> 0 | K173: =K61 -> 0 | L173: 0 | M173: 0 | N173: 0 | O173: 0 | P173: 0 | Q173: 0 | R173: 0 | S173: 0 | T173: 0 | U173: 0 | V173: 0 | W173: 0 | X173: 0 | Y173: 0 | Z173: 0 | AA173: 0 | AB173: 0 | AC173: 0 | AD173: 0 | AE173: 0 | AF173: 0 | AG173: 0 | AH173: 0 | AI173: 0 | AJ173: 0 | AK173: 0 | AL173: 0 | AM173: 0 | AN173: 0 | AO173: 0 | AP173: 0 | AQ173: 0 | AR173: 0 | AS173: 0 | AT173: 0 | AU173: 0 | AV173: 0 | AW173: 0 | AX173: 0 | AY173: 0 | AZ173: 0 | BA173: 0 | BB173: 0 | BC173: 0 | BD173: 0 | BE173: 0 | BF173: 0 | BG173: 0
B174: ='2.1_BC'!$B$19 -> 0 | G174: ='1_KMA'!$I$20 -> 2024-06-30 | H174: ='1_KMA'!$I$19 -> $millions | J174: =J62 -> 0 | K174: =K62 -> 0 | L174: 0 | M174: 0 | N174: 0 | O174: 0 | P174: 0 | Q174: 0 | R174: 0 | S174: 0 | T174: 0 | U174: 0 | V174: 0 | W174: 0 | X174: 0 | Y174: 0 | Z174: 0 | AA174: 0 | AB174: 0 | AC174: 0 | AD174: 0 | AE174: 0 | AF174: 0 | AG174: 0 | AH174: 0 | AI174: 0 | AJ174: 0 | AK174: 0 | AL174: 0 | AM174: 0 | AN174: 0 | AO174: 0 | AP174: 0 | AQ174: 0 | AR174: 0 | AS174: 0 | AT174: 0 | AU174: 0 | AV174: 0 | AW174: 0 | AX174: 0 | AY174: 0 | AZ174: 0 | BA174: 0 | BB174: 0 | BC174: 0 | BD174: 0 | BE174: 0 | BF174: 0 | BG174: 0
B175: ='2.1_BC'!$B$20 -> 0 | G175: ='1_KMA'!$I$20 -> 2024-06-30 | H175: ='1_KMA'!$I$19 -> $millions | J175: =J63 -> 0 | K175: =K63 -> 0 | L175: 0 | M175: 0 | N175: 0 | O175: 0 | P175: 0 | Q175: 0 | R175: 0 | S175: 0 | T175: 0 | U175: 0 | V175: 0 | W175: 0 | X175: 0 | Y175: 0 | Z175: 0 | AA175: 0 | AB175: 0 | AC175: 0 | AD175: 0 | AE175: 0 | AF175: 0 | AG175: 0 | AH175: 0 | AI175: 0 | AJ175: 0 | AK175: 0 | AL175: 0 | AM175: 0 | AN175: 0 | AO175: 0 | AP175: 0 | AQ175: 0 | AR175: 0 | AS175: 0 | AT175: 0 | AU175: 0 | AV175: 0 | AW175: 0 | AX175: 0 | AY175: 0 | AZ175: 0 | BA175: 0 | BB175: 0 | BC175: 0 | BD175: 0 | BE175: 0 | BF175: 0 | BG175: 0
B176: Total | G176: ='1_KMA'!$I$20 -> 2024-06-30 | H176: ='1_KMA'!$I$19 -> $millions | J176: =SUM(J171:J175) -> 0 | K176: =SUM(K171:K175) -> 0 | L176: =SUM(L171:L175) -> -0.1047 | M176: =SUM(M171:M175) -> -1.0108 | N176: =SUM(N171:N175) -> -2.858 | O176: -0.864 | P176: -2.2109 | Q176: -3.9971 | R176: -6.539 | S176: -10.1145 | T176: -14.9844 | U176: -21.2257 | V176: -29.4786 | W176: -39.9487 | X176: -39.9487 | Y176: -39.9487 | Z176: -39.9487 | AA176: -39.9487 | AB176: -39.9487 | AC176: -39.9487 | AD176: -39.9487 | AE176: -39.9487 | AF176: -39.9487 | AG176: -39.9487 | AH176: -39.9487 | AI176: -39.9487 | AJ176: -39.9487 | AK176: -39.9487 | AL176: -39.9487 | AM176: -39.9487 | AN176: 0 | AO176: 0 | AP176: 0 | AQ176: 0 | AR176: 0 | AS176: 0 | AT176: 0 | AU176: 0 | AV176: 0 | AW176: 0 | AX176: 0 | AY176: 0 | AZ176: 0 | BA176: 0 | BB176: 0 | BC176: 0 | BD176: 0 | BE176: 0 | BF176: 0 | BG176: 0
B178: =Controls!$B$24&" "&Controls!$C$24&" (+"&TEXT(Controls!$F$24-1,"0.00%")&")" -> Sensitivity Scenario 3 Higher costs (+15.00%)
B179: Summary
B181: WACC | J181: =Controls!$E$24 -> 0.05555 | K181: =Controls!$E$24 -> 0.05555 | L181: =Controls!$E$24 -> 0.05555 | M181: =Controls!$E$24 -> 0.05555 | N181: =Controls!$E$24 -> 0.05555 | O181: =Controls!$E$24 -> 0.05555 | P181: =Controls!$E$24 -> 0.05555 | Q181: =Controls!$E$24 -> 0.05555 | R181: =Controls!$E$24 -> 0.05555 | S181: =Controls!$E$24 -> 0.05555 | T181: =Controls!$E$24 -> 0.05555 | U181: =Controls!$E$24 -> 0.05555 | V181: =Controls!$E$24 -> 0.05555 | W181: =Controls!$E$24 -> 0.05555 | X181: =Controls!$E$24 -> 0.05555 | Y181: =Controls!$E$24 -> 0.05555 | Z181: =Controls!$E$24 -> 0.05555 | AA181: =Controls!$E$24 -> 0.05555 | AB181: =Controls!$E$24 -> 0.05555 | AC181: =Controls!$E$24 -> 0.05555 | AD181: =Controls!$E$24 -> 0.05555 | AE181: =Controls!$E$24 -> 0.05555 | AF181: =Controls!$E$24 -> 0.05555 | AG181: =Controls!$E$24 -> 0.05555 | AH181: =Controls!$E$24 -> 0.05555 | AI181: =Controls!$E$24 -> 0.05555 | AJ181: =Controls!$E$24 -> 0.05555 | AK181: =Controls!$E$24 -> 0.05555 | AL181: =Controls!$E$24 -> 0.05555 | AM181: =Controls!$E$24 -> 0.05555 | AN181: =Controls!$E$24 -> 0.05555 | AO181: =Controls!$E$24 -> 0.05555 | AP181: =Controls!$E$24 -> 0.05555 | AQ181: =Controls!$E$24 -> 0.05555 | AR181: =Controls!$E$24 -> 0.05555 | AS181: =Controls!$E$24 -> 0.05555 | AT181: =Controls!$E$24 -> 0.05555 | AU181: =Controls!$E$24 -> 0.05555 | AV181: =Controls!$E$24 -> 0.05555 | AW181: =Controls!$E$24 -> 0.05555 | AX181: =Controls!$E$24 -> 0.05555 | AY181: =Controls!$E$24 -> 0.05555 | AZ181: =Controls!$E$24 -> 0.05555 | BA181: =Controls!$E$24 -> 0.05555 | BB181: =Controls!$E$24 -> 0.05555 | BC181: =Controls!$E$24 -> 0.05555 | BD181: =Controls!$E$24 -> 0.05555 | BE181: =Controls!$E$24 -> 0.05555 | BF181: =Controls!$E$24 -> 0.05555 | BG181: =Controls!$E$24 -> 0.05555
B182: Deflator (interim calculation) | J182: 1 | K182: =J182*(1+K181) -> 1.05555 | L182: =K182*(1+L181) -> 1.114185802 | M182: =L182*(1+M181) -> 1.176078824 | N182: =M182*(1+N181) -> 1.241410002 | O182: =N182*(1+O181) -> 1.310370328 | P182: =O182*(1+P181) -> 1.3831614 | Q182: =P182*(1+Q181) -> 1.459996016 | R182: =Q182*(1+R181) -> 1.541098794 | S182: =R182*(1+S181) -> 1.626706832 | T182: =S182*(1+T181) -> 1.717070397 | U182: =T182*(1+U181) -> 1.812453657 | V182: =U182*(1+V181) -> 1.913135458 | W182: =V182*(1+W181) -> 2.019410133 | X182: =W182*(1+X181) -> 2.131588366 | Y182: =X182*(1+Y181) -> 2.249998099 | Z182: =Y182*(1+Z181) -> 2.374985494 | AA182: =Z182*(1+AA181) -> 2.506915938 | AB182: =AA182*(1+AB181) -> 2.646175118 | AC182: =AB182*(1+AC181) -> 2.793170146 | AD182: =AC182*(1+AD181) -> 2.948330748 | AE182: =AD182*(1+AE181) -> 3.112110521 | AF182: =AE182*(1+AF181) -> 3.28498826 | AG182: =AF182*(1+AG181) -> 3.467469358 | AH182: =AG182*(1+AH181) -> 3.660087281 | AI182: =AH182*(1+AI181) -> 3.863405129 | AJ182: =AI182*(1+AJ181) -> 4.078017284 | AK182: =AJ182*(1+AK181) -> 4.304551144 | AL182: =AK182*(1+AL181) -> 4.54366896 | AM182: =AL182*(1+AM181) -> 4.796069771 | AN182: =AM182*(1+AN181) -> 5.062491447 | AO182: =AN182*(1+AO181) -> 5.343712847 | AP182: =AO182*(1+AP181) -> 5.640556096 | AQ182: =AP182*(1+AQ181) -> 5.953888987 | AR182: =AQ182*(1+AR181) -> 6.28462752 | AS182: =AR182*(1+AS181) -> 6.633738579 | AT182: =AS182*(1+AT181) -> 7.002242757 | AU182: =AT182*(1+AU181) -> 7.391217342 | AV182: =AU182*(1+AV181) -> 7.801799465 | AW182: =AV182*(1+AW181) -> 8.235189425 | AX182: =AW182*(1+AX181) -> 8.692654198 | AY182: =AX182*(1+AY181) -> 9.175531139 | AZ182: =AY182*(1+AZ181) -> 9.685231893 | BA182: =AZ182*(1+BA181) -> 10.22324653 | BB182: =BA182*(1+BB181) -> 10.79114787 | BC182: =BB182*(1+BC181) -> 11.39059613 | BD182: =BC182*(1+BD181) -> 12.02334375 | BE182: =BD182*(1+BE181) -> 12.69124049 | BF182: =BE182*(1+BF181) -> 13.3962389 | BG182: =BF182*(1+BG181) -> 14.14039997
B183: Deflator | J183: =1/J182 -> 1 | K183: =1/K182 -> 0.9473734072 | L183: =1/L182 -> 0.8975163727 | M183: =1/M182 -> 0.8502831441 | N183: =1/N182 -> 0.8055356393 | O183: =1/O182 -> 0.7631430433 | P183: 0.7229814251 | Q183: 0.6849333761 | R183: 0.6488876662 | S183: 0.6147389192 | T183: 0.5823873045 | U183: 0.551738245 | V183: 0.522702141 | W183: 0.4951941083 | X183: 0.4691337296 | Y183: 0.4444448199 | Z183: 0.4210552033 | AA183: 0.3988965026 | AB183: 0.3779039388 | AC183: 0.3580161421 | AD183: 0.3391749724 | AE183: 0.3213253493 | AF183: 0.304415091 | AG183: 0.2883947619 | AH183: 0.2732175282 | AI183: 0.2588390206 | AJ183: 0.2452172049 | AK183: 0.2323122589 | AL183: 0.2200864563 | AM183: 0.208504056 | AN183: 0.1975311979 | AO183: 0.187135804 | AP183: 0.1772874843 | AQ183: 0.167957448 | AR183: 0.1591184198 | AS183: 0.1507445595 | AT183: 0.142811387 | AU183: 0.1352957103 | AV183: 0.128175558 | AW183: 0.1214301151 | AX183: 0.1150396619 | AY183: 0.1089855165 | AZ183: 0.1032499801 | BA183: 0.09781628542 | BB183: 0.0926685476 | BC183: 0.08779171768 | BD183: 0.08317153871 | BE183: 0.07879450401 | BF183: 0.07464781773 | BG183: 0.07071935743
B185: Totex sought for EDPR FY27-31 (undiscounted) | G185: ="("&TEXT('1_KMA'!$I$21,"dd-mmm-yy")&" Dollars)" -> (30-Jun-24 Dollars)
C186: Net Capital Expenditure | G186: =SUM(J186:BG186) -> 0 | J186: =-J201*J$1 -> 0 | K186: =-K201*K$1 -> 0 | L186: =-L201*L$1 -> 0 | M186: =-M201*M$1 -> 0 | N186: =-N201*N$1 -> 0 | O186: 0 | P186: 0 | Q186: 0 | R186: 0 | S186: 0 | T186: 0 | U186: 0 | V186: 0 | W186: 0 | X186: 0 | Y186: 0 | Z186: 0 | AA186: 0 | AB186: 0 | AC186: 0 | AD186: 0 | AE186: 0 | AF186: 0 | AG186: 0 | AH186: 0 | AI186: 0 | AJ186: 0 | AK186: 0 | AL186: 0 | AM186: 0 | AN186: 0 | AO186: 0 | AP186: 0 | AQ186: 0 | AR186: 0 | AS186: 0 | AT186: 0 | AU186: 0 | AV186: 0 | AW186: 0 | AX186: 0 | AY186: 0 | AZ186: 0 | BA186: 0 | BB186: 0 | BC186: 0 | BD186: 0 | BE186: 0 | BF186: 0 | BG186: 0
C187: Operating Expenditure | G187: =SUM(J187:BG187) -> 0 | J187: =-J202*J$1 -> 0 | K187: =-K202*K$1 -> 0 | L187: =-L202*L$1 -> 0 | M187: 0 | N187: 0 | O187: 0 | P187: 0 | Q187: 0 | R187: 0 | S187: 0 | T187: 0 | U187: 0 | V187: 0 | W187: 0 | X187: 0 | Y187: 0 | Z187: 0 | AA187: 0 | AB187: 0 | AC187: 0 | AD187: 0 | AE187: 0 | AF187: 0 | AG187: 0 | AH187: 0 | AI187: 0 | AJ187: 0 | AK187: 0 | AL187: 0 | AM187: 0 | AN187: 0 | AO187: 0 | AP187: 0 | AQ187: 0 | AR187: 0 | AS187: 0 | AT187: 0 | AU187: 0 | AV187: 0 | AW187: 0 | AX187: 0 | AY187: 0 | AZ187: 0 | BA187: 0 | BB187: 0 | BC187: 0 | BD187: 0 | BE187: 0 | BF187: 0 | BG187: 0
C188: Totex | G188: =SUM(G186:G187) -> 0 | J188: =SUM(J186:J187) -> 0 | K188: =SUM(K186:K187) -> 0 | L188: =SUM(L186:L187) -> 0 | M188: 0 | N188: 0 | O188: 0 | P188: 0 | Q188: 0 | R188: 0 | S188: 0 | T188: 0 | U188: 0 | V188: 0 | W188: 0 | X188: 0 | Y188: 0 | Z188: 0 | AA188: 0 | AB188: 0 | AC188: 0 | AD188: 0 | AE188: 0 | AF188: 0 | AG188: 0 | AH188: 0 | AI188: 0 | AJ188: 0 | AK188: 0 | AL188: 0 | AM188: 0 | AN188: 0 | AO188: 0 | AP188: 0 | AQ188: 0 | AR188: 0 | AS188: 0 | AT188: 0 | AU188: 0 | AV188: 0 | AW188: 0 | AX188: 0 | AY188: 0 | AZ188: 0 | BA188: 0 | BB188: 0 | BC188: 0 | BD188: 0 | BE188: 0 | BF188: 0 | BG188: 0
B190: PV over full assessment period to establish the preferred option (discounted) | G190: ="("&TEXT('1_KMA'!$I$21,"dd-mmm-yy")&" Dollars)" -> (30-Jun-24 Dollars)
C191: Net Capital Expenditure | G191: =SUM(J191:BG191) -> 0 | J191: =-(J201)*J$183*J$8 -> 0 | K191: =-(K201)*K$183*K$8 -> 0 | L191: 0 | M191: 0 | N191: 0 | O191: 0 | P191: 0 | Q191: 0 | R191: 0 | S191: 0 | T191: 0 | U191: 0 | V191: 0 | W191: 0 | X191: 0 | Y191: 0 | Z191: 0 | AA191: 0 | AB191: 0 | AC191: 0 | AD191: 0 | AE191: 0 | AF191: 0 | AG191: 0 | AH191: 0 | AI191: 0 | AJ191: 0 | AK191: 0 | AL191: 0 | AM191: 0 | AN191: 0 | AO191: 0 | AP191: 0 | AQ191: 0 | AR191: 0 | AS191: 0 | AT191: 0 | AU191: 0 | AV191: 0 | AW191: 0 | AX191: 0 | AY191: 0 | AZ191: 0 | BA191: 0 | BB191: 0 | BC191: 0 | BD191: =-(BD201)*BD$183*BD$8 -> 0 | BE191: 0 | BF191: 0 | BG191: 0
C192: Operating Expenditure | G192: =SUM(J192:BG192) -> 0 | J192: =-(J202)*J$183*J$8 -> 0 | K192: =-(K202)*K$183*K$8 -> 0 | L192: 0 | M192: 0 | N192: 0 | O192: 0 | P192: 0 | Q192: 0 | R192: 0 | S192: 0 | T192: 0 | U192: 0 | V192: 0 | W192: 0 | X192: 0 | Y192: 0 | Z192: 0 | AA192: 0 | AB192: 0 | AC192: 0 | AD192: 0 | AE192: 0 | AF192: 0 | AG192: 0 | AH192: 0 | AI192: 0 | AJ192: 0 | AK192: 0 | AL192: 0 | AM192: 0 | AN192: 0 | AO192: 0 | AP192: 0 | AQ192: 0 | AR192: 0 | AS192: 0 | AT192: 0 | AU192: 0 | AV192: 0 | AW192: 0 | AX192: 0 | AY192: 0 | AZ192: 0 | BA192: 0 | BB192: 0 | BC192: 0 | BD192: =-(BD202)*BD$183*BD$8 -> 0 | BE192: 0 | BF192: 0 | BG192: 0
C193: Net Benefits | G193: =SUM(J193:BG193) -> -280.5134211 | J193: =(J213)*J$183*J$8 -> 0 | K193: =(K213)*K$183*K$8 -> 0 | L193: -0.09396996422 | M193: -0.859466202 | N193: -2.302220857 | O193: -0.6593555894 | P193: -1.598439633 | Q193: -2.737747197 | R193: -4.243076449 | S193: -6.217776799 | T193: -8.726724325 | U193: -11.71103047 | V193: -15.40852733 | W193: -19.78236087 | X193: -18.74128262 | Y193: -17.75499278 | Z193: -16.820608 | AA193: -15.93539671 | AB193: -15.09677108 | AC193: -14.30227946 | AD193: -13.54959922 | AE193: -12.83652998 | AF193: -12.16098714 | AG193: -11.52099583 | AH193: -10.91468507 | AI193: -10.34028238 | AJ193: -9.796108554 | AK193: -9.280572738 | AL193: -8.792167816 | AM193: -8.329465981 | AN193: 0 | AO193: 0 | AP193: 0 | AQ193: 0 | AR193: 0 | AS193: 0 | AT193: 0 | AU193: 0 | AV193: 0 | AW193: 0 | AX193: 0 | AY193: 0 | AZ193: 0 | BA193: 0 | BB193: 0 | BC193: 0 | BD193: =(BD213)*BD$183*BD$8 -> 0 | BE193: 0 | BF193: 0 | BG193: 0
B194: Total Present Value | G194: =SUM(J194:BG194) -> -280.5134211 | J194: =SUM(J191:J193) -> 0 | K194: =SUM(K191:K193) -> 0 | L194: -0.09396996422 | M194: -0.859466202 | N194: -2.302220857 | O194: -0.6593555894 | P194: -1.598439633 | Q194: -2.737747197 | R194: -4.243076449 | S194: -6.217776799 | T194: -8.726724325 | U194: -11.71103047 | V194: -15.40852733 | W194: -19.78236087 | X194: -18.74128262 | Y194: -17.75499278 | Z194: -16.820608 | AA194: -15.93539671 | AB194: -15.09677108 | AC194: -14.30227946 | AD194: -13.54959922 | AE194: -12.83652998 | AF194: -12.16098714 | AG194: -11.52099583 | AH194: -10.91468507 | AI194: -10.34028238 | AJ194: -9.796108554 | AK194: -9.280572738 | AL194: -8.792167816 | AM194: -8.329465981 | AN194: 0 | AO194: 0 | AP194: 0 | AQ194: 0 | AR194: 0 | AS194: 0 | AT194: 0 | AU194: 0 | AV194: 0 | AW194: 0 | AX194: 0 | AY194: 0 | AZ194: 0 | BA194: 0 | BB194: 0 | BC194: 0 | BD194: 0 | BE194: 0 | BF194: 0 | BG194: 0
B196: Undiscounted | D196: ="("&TEXT('1_KMA'!$I$21,"dd-mmm-yy")&" dollars)" -> (30-Jun-24 dollars)
B198: Costs
G200: $ Basis Reminder | H200: $ Reminder
B201: Net Capex | G201: ='1_KMA'!$I$21 -> 2024-06-30 | H201: ='1_KMA'!$I$19 -> $millions | J201: =J220*J$7 -> 0 | K201: 0 | L201: 0 | M201: 0 | N201: 0 | O201: 0 | P201: 0 | Q201: 0 | R201: 0 | S201: 0 | T201: 0 | U201: 0 | V201: 0 | W201: 0 | X201: 0 | Y201: 0 | Z201: 0 | AA201: 0 | AB201: 0 | AC201: 0 | AD201: 0 | AE201: 0 | AF201: 0 | AG201: 0 | AH201: 0 | AI201: 0 | AJ201: 0 | AK201: 0 | AL201: 0 | AM201: 0 | AN201: 0 | AO201: 0 | AP201: =AP220*AP$7 -> 0 | AQ201: 0 | AR201: 0 | AS201: 0 | AT201: 0 | AU201: 0 | AV201: 0 | AW201: 0 | AX201: 0 | AY201: 0 | AZ201: 0 | BA201: 0 | BB201: 0 | BC201: 0 | BD201: 0 | BE201: 0 | BF201: 0 | BG201: 0
B202: Opex | G202: ='1_KMA'!$I$21 -> 2024-06-30 | H202: ='1_KMA'!$I$19 -> $millions | J202: =J221*J$7 -> 0 | K202: 0 | L202: 0 | M202: 0 | N202: 0 | O202: 0 | P202: 0 | Q202: 0 | R202: 0 | S202: 0 | T202: 0 | U202: 0 | V202: 0 | W202: 0 | X202: 0 | Y202: 0 | Z202: 0 | AA202: 0 | AB202: 0 | AC202: 0 | AD202: 0 | AE202: 0 | AF202: 0 | AG202: 0 | AH202: 0 | AI202: 0 | AJ202: 0 | AK202: 0 | AL202: 0 | AM202: 0 | AN202: 0 | AO202: 0 | AP202: =AP221*AP$7 -> 0 | AQ202: 0 | AR202: 0 | AS202: 0 | AT202: 0 | AU202: 0 | AV202: 0 | AW202: 0 | AX202: 0 | AY202: 0 | AZ202: 0 | BA202: 0 | BB202: 0 | BC202: 0 | BD202: 0 | BE202: 0 | BF202: 0 | BG202: 0
B203: Total | G203: ='1_KMA'!$I$21 -> 2024-06-30 | H203: ='1_KMA'!$I$19 -> $millions | J203: =J222*J$7 -> 0 | K203: 0 | L203: 0 | M203: 0 | N203: 0 | O203: 0 | P203: 0 | Q203: 0 | R203: 0 | S203: 0 | T203: 0 | U203: 0 | V203: 0 | W203: 0 | X203: 0 | Y203: 0 | Z203: 0 | AA203: 0 | AB203: 0 | AC203: 0 | AD203: 0 | AE203: 0 | AF203: 0 | AG203: 0 | AH203: 0 | AI203: 0 | AJ203: 0 | AK203: 0 | AL203: 0 | AM203: 0 | AN203: 0 | AO203: 0 | AP203: =AP222*AP$7 -> 0 | AQ203: 0 | AR203: 0 | AS203: 0 | AT203: 0 | AU203: 0 | AV203: 0 | AW203: 0 | AX203: 0 | AY203: 0 | AZ203: 0 | BA203: 0 | BB203: 0 | BC203: 0 | BD203: 0 | BE203: 0 | BF203: 0 | BG203: 0
B205: Benefits
G207: $ Basis Reminder | H207: $ Reminder
B208: =B227 -> Value of EUE | G208: ='1_KMA'!$I$21 -> 2024-06-30 | H208: ='1_KMA'!$I$19 -> $millions | J208: =J227*J$7 -> 0 | K208: 0 | L208: -0.1047 | M208: -1.0108 | N208: -2.858 | O208: -0.864 | P208: -2.2109 | Q208: -3.9971 | R208: -6.539 | S208: -10.1145 | T208: -14.9844 | U208: -21.2257 | V208: -29.4786 | W208: -39.9487 | X208: -39.9487 | Y208: -39.9487 | Z208: -39.9487 | AA208: -39.9487 | AB208: -39.9487 | AC208: -39.9487 | AD208: -39.9487 | AE208: -39.9487 | AF208: -39.9487 | AG208: -39.9487 | AH208: -39.9487 | AI208: -39.9487 | AJ208: -39.9487 | AK208: -39.9487 | AL208: -39.9487 | AM208: -39.9487 | AN208: 0 | AO208: 0 | AP208: =AP227*AP$7 -> 0 | AQ208: 0 | AR208: 0 | AS208: 0 | AT208: 0 | AU208: 0 | AV208: 0 | AW208: 0 | AX208: 0 | AY208: 0 | AZ208: 0 | BA208: 0 | BB208: 0 | BC208: 0 | BD208: 0 | BE208: 0 | BF208: 0 | BG208: 0
B209: =B228 -> 0 | G209: ='1_KMA'!$I$21 -> 2024-06-30 | H209: ='1_KMA'!$I$19 -> $millions | J209: =J228*J$7 -> 0 | K209: 0 | L209: 0 | M209: 0 | N209: 0 | O209: 0 | P209: 0 | Q209: 0 | R209: 0 | S209: 0 | T209: 0 | U209: 0 | V209: 0 | W209: 0 | X209: 0 | Y209: 0 | Z209: 0 | AA209: 0 | AB209: 0 | AC209: 0 | AD209: 0 | AE209: 0 | AF209: 0 | AG209: 0 | AH209: 0 | AI209: 0 | AJ209: 0 | AK209: 0 | AL209: 0 | AM209: 0 | AN209: 0 | AO209: 0 | AP209: =AP228*AP$7 -> 0 | AQ209: 0 | AR209: 0 | AS209: 0 | AT209: 0 | AU209: 0 | AV209: 0 | AW209: 0 | AX209: 0 | AY209: 0 | AZ209: 0 | BA209: 0 | BB209: 0 | BC209: 0 | BD209: 0 | BE209: 0 | BF209: 0 | BG209: 0
B210: 0 | G210: ='1_KMA'!$I$21 -> 2024-06-30 | H210: ='1_KMA'!$I$19 -> $millions | J210: =J229*J$7 -> 0 | K210: 0 | L210: 0 | M210: 0 | N210: 0 | O210: 0 | P210: 0 | Q210: 0 | R210: 0 | S210: 0 | T210: 0 | U210: 0 | V210: 0 | W210: 0 | X210: 0 | Y210: 0 | Z210: 0 | AA210: 0 | AB210: 0 | AC210: 0 | AD210: 0 | AE210: 0 | AF210: 0 | AG210: 0 | AH210: 0 | AI210: 0 | AJ210: 0 | AK210: 0 | AL210: 0 | AM210: 0 | AN210: 0 | AO210: 0 | AP210: =AP229*AP$7 -> 0 | AQ210: 0 | AR210: 0 | AS210: 0 | AT210: 0 | AU210: 0 | AV210: 0 | AW210: 0 | AX210: 0 | AY210: 0 | AZ210: 0 | BA210: 0 | BB210: 0 | BC210: 0 | BD210: 0 | BE210: 0 | BF210: 0 | BG210: 0
B211: 0 | G211: ='1_KMA'!$I$21 -> 2024-06-30 | H211: ='1_KMA'!$I$19 -> $millions | J211: =J230*J$7 -> 0 | K211: 0 | L211: 0 | M211: 0 | N211: 0 | O211: 0 | P211: 0 | Q211: 0 | R211: 0 | S211: 0 | T211: 0 | U211: 0 | V211: 0 | W211: 0 | X211: 0 | Y211: 0 | Z211: 0 | AA211: 0 | AB211: 0 | AC211: 0 | AD211: 0 | AE211: 0 | AF211: 0 | AG211: 0 | AH211: 0 | AI211: 0 | AJ211: 0 | AK211: 0 | AL211: 0 | AM211: 0 | AN211: 0 | AO211: 0 | AP211: =AP230*AP$7 -> 0 | AQ211: 0 | AR211: 0 | AS211: 0 | AT211: 0 | AU211: 0 | AV211: 0 | AW211: 0 | AX211: 0 | AY211: 0 | AZ211: 0 | BA211: 0 | BB211: 0 | BC211: 0 | BD211: 0 | BE211: 0 | BF211: 0 | BG211: 0
B212: 0 | G212: ='1_KMA'!$I$21 -> 2024-06-30 | H212: ='1_KMA'!$I$19 -> $millions | J212: =J231*J$7 -> 0 | K212: 0 | L212: 0 | M212: 0 | N212: 0 | O212: 0 | P212: 0 | Q212: 0 | R212: 0 | S212: 0 | T212: 0 | U212: 0 | V212: 0 | W212: 0 | X212: 0 | Y212: 0 | Z212: 0 | AA212: 0 | AB212: 0 | AC212: 0 | AD212: 0 | AE212: 0 | AF212: 0 | AG212: 0 | AH212: 0 | AI212: 0 | AJ212: 0 | AK212: 0 | AL212: 0 | AM212: 0 | AN212: 0 | AO212: 0 | AP212: =AP231*AP$7 -> 0 | AQ212: 0 | AR212: 0 | AS212: 0 | AT212: 0 | AU212: 0 | AV212: 0 | AW212: 0 | AX212: 0 | AY212: 0 | AZ212: 0 | BA212: 0 | BB212: 0 | BC212: 0 | BD212: 0 | BE212: 0 | BF212: 0 | BG212: 0
B213: ='3_BC'!B232 -> Total | G213: ='1_KMA'!$I$21 -> 2024-06-30 | H213: ='1_KMA'!$I$19 -> $millions | J213: =J232*J$7 -> 0 | K213: 0 | L213: -0.1047 | M213: -1.0108 | N213: -2.858 | O213: -0.864 | P213: -2.2109 | Q213: -3.9971 | R213: -6.539 | S213: -10.1145 | T213: -14.9844 | U213: -21.2257 | V213: -29.4786 | W213: -39.9487 | X213: -39.9487 | Y213: -39.9487 | Z213: -39.9487 | AA213: -39.9487 | AB213: -39.9487 | AC213: -39.9487 | AD213: -39.9487 | AE213: -39.9487 | AF213: -39.9487 | AG213: -39.9487 | AH213: -39.9487 | AI213: -39.9487 | AJ213: -39.9487 | AK213: -39.9487 | AL213: -39.9487 | AM213: -39.9487 | AN213: 0 | AO213: 0 | AP213: =AP232*AP$7 -> 0 | AQ213: 0 | AR213: 0 | AS213: 0 | AT213: 0 | AU213: 0 | AV213: 0 | AW213: 0 | AX213: 0 | AY213: 0 | AZ213: 0 | BA213: 0 | BB213: 0 | BC213: 0 | BD213: 0 | BE213: 0 | BF213: 0 | BG213: 0
B215: Undiscounted | D215: ="("&TEXT('1_KMA'!$I$20,"dd-mmm-yy")&" dollars)" -> (30-Jun-24 dollars)
B217: Costs
G219: $ Basis Reminder | H219: $ Reminder
B220: Net Capex | G220: ='1_KMA'!$I$20 -> 2024-06-30 | H220: ='1_KMA'!$I$19 -> $millions | J220: =J52*Controls!$F$24 -> 0 | K220: =K52*Controls!$F$24 -> 0 | L220: =L52*Controls!$F$24 -> 0 | M220: =M52*Controls!$F$24 -> 0 | N220: =N52*Controls!$F$24 -> 0 | O220: =O52*Controls!$F$24 -> 0 | P220: =P52*Controls!$F$24 -> 0 | Q220: =Q52*Controls!$F$24 -> 0 | R220: =R52*Controls!$F$24 -> 0 | S220: =S52*Controls!$F$24 -> 0 | T220: =T52*Controls!$F$24 -> 0 | U220: =U52*Controls!$F$24 -> 0 | V220: =V52*Controls!$F$24 -> 0 | W220: =W52*Controls!$F$24 -> 0 | X220: =X52*Controls!$F$24 -> 0 | Y220: =Y52*Controls!$F$24 -> 0 | Z220: =Z52*Controls!$F$24 -> 0 | AA220: =AA52*Controls!$F$24 -> 0 | AB220: =AB52*Controls!$F$24 -> 0 | AC220: =AC52*Controls!$F$24 -> 0 | AD220: =AD52*Controls!$F$24 -> 0 | AE220: =AE52*Controls!$F$24 -> 0 | AF220: =AF52*Controls!$F$24 -> 0 | AG220: =AG52*Controls!$F$24 -> 0 | AH220: =AH52*Controls!$F$24 -> 0 | AI220: =AI52*Controls!$F$24 -> 0 | AJ220: =AJ52*Controls!$F$24 -> 0 | AK220: =AK52*Controls!$F$24 -> 0 | AL220: =AL52*Controls!$F$24 -> 0 | AM220: =AM52*Controls!$F$24 -> 0 | AN220: =AN52*Controls!$F$24 -> 0 | AO220: =AO52*Controls!$F$24 -> 0 | AP220: =AP52*Controls!$F$24 -> 0 | AQ220: =AQ52*Controls!$F$24 -> 0 | AR220: =AR52*Controls!$F$24 -> 0 | AS220: =AS52*Controls!$F$24 -> 0 | AT220: =AT52*Controls!$F$24 -> 0 | AU220: =AU52*Controls!$F$24 -> 0 | AV220: =AV52*Controls!$F$24 -> 0 | AW220: =AW52*Controls!$F$24 -> 0 | AX220: =AX52*Controls!$F$24 -> 0 | AY220: =AY52*Controls!$F$24 -> 0 | AZ220: =AZ52*Controls!$F$24 -> 0 | BA220: =BA52*Controls!$F$24 -> 0 | BB220: =BB52*Controls!$F$24 -> 0 | BC220: =BC52*Controls!$F$24 -> 0 | BD220: =BD52*Controls!$F$24 -> 0 | BE220: =BE52*Controls!$F$24 -> 0 | BF220: =BF52*Controls!$F$24 -> 0 | BG220: =BG52*Controls!$F$24 -> 0
B221: Opex | G221: ='1_KMA'!$I$20 -> 2024-06-30 | H221: ='1_KMA'!$I$19 -> $millions | J221: =J53*Controls!$F$24 -> 0 | K221: =K53*Controls!$F$24 -> 0 | L221: =L53*Controls!$F$24 -> 0 | M221: =M53*Controls!$F$24 -> 0 | N221: =N53*Controls!$F$24 -> 0 | O221: =O53*Controls!$F$24 -> 0 | P221: =P53*Controls!$F$24 -> 0 | Q221: =Q53*Controls!$F$24 -> 0 | R221: =R53*Controls!$F$24 -> 0 | S221: =S53*Controls!$F$24 -> 0 | T221: =T53*Controls!$F$24 -> 0 | U221: =U53*Controls!$F$24 -> 0 | V221: =V53*Controls!$F$24 -> 0 | W221: =W53*Controls!$F$24 -> 0 | X221: =X53*Controls!$F$24 -> 0 | Y221: =Y53*Controls!$F$24 -> 0 | Z221: =Z53*Controls!$F$24 -> 0 | AA221: =AA53*Controls!$F$24 -> 0 | AB221: =AB53*Controls!$F$24 -> 0 | AC221: =AC53*Controls!$F$24 -> 0 | AD221: =AD53*Controls!$F$24 -> 0 | AE221: =AE53*Controls!$F$24 -> 0 | AF221: =AF53*Controls!$F$24 -> 0 | AG221: =AG53*Controls!$F$24 -> 0 | AH221: =AH53*Controls!$F$24 -> 0 | AI221: =AI53*Controls!$F$24 -> 0 | AJ221: =AJ53*Controls!$F$24 -> 0 | AK221: =AK53*Controls!$F$24 -> 0 | AL221: =AL53*Controls!$F$24 -> 0 | AM221: =AM53*Controls!$F$24 -> 0 | AN221: =AN53*Controls!$F$24 -> 0 | AO221: =AO53*Controls!$F$24 -> 0 | AP221: =AP53*Controls!$F$24 -> 0 | AQ221: =AQ53*Controls!$F$24 -> 0 | AR221: =AR53*Controls!$F$24 -> 0 | AS221: =AS53*Controls!$F$24 -> 0 | AT221: =AT53*Controls!$F$24 -> 0 | AU221: =AU53*Controls!$F$24 -> 0 | AV221: =AV53*Controls!$F$24 -> 0 | AW221: =AW53*Controls!$F$24 -> 0 | AX221: =AX53*Controls!$F$24 -> 0 | AY221: =AY53*Controls!$F$24 -> 0 | AZ221: =AZ53*Controls!$F$24 -> 0 | BA221: =BA53*Controls!$F$24 -> 0 | BB221: =BB53*Controls!$F$24 -> 0 | BC221: =BC53*Controls!$F$24 -> 0 | BD221: =BD53*Controls!$F$24 -> 0 | BE221: =BE53*Controls!$F$24 -> 0 | BF221: =BF53*Controls!$F$24 -> 0 | BG221: =BG53*Controls!$F$24 -> 0
B222: Total | G222: ='1_KMA'!$I$20 -> 2024-06-30 | H222: ='1_KMA'!$I$19 -> $millions | J222: =SUM(J220:J221) -> 0 | K222: =SUM(K220:K221) -> 0 | L222: 0 | M222: 0 | N222: 0 | O222: 0 | P222: 0 | Q222: 0 | R222: 0 | S222: 0 | T222: 0 | U222: 0 | V222: 0 | W222: 0 | X222: 0 | Y222: 0 | Z222: 0 | AA222: 0 | AB222: 0 | AC222: 0 | AD222: 0 | AE222: 0 | AF222: 0 | AG222: 0 | AH222: 0 | AI222: 0 | AJ222: 0 | AK222: 0 | AL222: 0 | AM222: 0 | AN222: 0 | AO222: 0 | AP222: 0 | AQ222: 0 | AR222: 0 | AS222: 0 | AT222: 0 | AU222: 0 | AV222: 0 | AW222: 0 | AX222: 0 | AY222: 0 | AZ222: 0 | BA222: 0 | BB222: 0 | BC222: 0 | BD222: 0 | BE222: 0 | BF222: 0 | BG222: 0
B224: Benefits
G226: $ Basis Reminder | H226: $ Reminder
B227: ='2.1_BC'!$B$16 -> Value of EUE | G227: ='1_KMA'!$I$20 -> 2024-06-30 | H227: ='1_KMA'!$I$19 -> $millions | J227: =J59 -> 0 | K227: =K59 -> 0 | L227: -0.1047 | M227: -1.0108 | N227: -2.858 | O227: -0.864 | P227: -2.2109 | Q227: -3.9971 | R227: -6.539 | S227: -10.1145 | T227: -14.9844 | U227: -21.2257 | V227: -29.4786 | W227: -39.9487 | X227: -39.9487 | Y227: -39.9487 | Z227: -39.9487 | AA227: -39.9487 | AB227: -39.9487 | AC227: -39.9487 | AD227: -39.9487 | AE227: -39.9487 | AF227: -39.9487 | AG227: -39.9487 | AH227: -39.9487 | AI227: -39.9487 | AJ227: -39.9487 | AK227: -39.9487 | AL227: -39.9487 | AM227: -39.9487 | AN227: 0 | AO227: 0 | AP227: 0 | AQ227: 0 | AR227: 0 | AS227: 0 | AT227: 0 | AU227: 0 | AV227: 0 | AW227: 0 | AX227: 0 | AY227: 0 | AZ227: 0 | BA227: 0 | BB227: 0 | BC227: 0 | BD227: 0 | BE227: 0 | BF227: 0 | BG227: 0
B228: ='2.1_BC'!$B$17 -> 0 | G228: ='1_KMA'!$I$20 -> 2024-06-30 | H228: ='1_KMA'!$I$19 -> $millions | J228: =J60 -> 0 | K228: =K60 -> 0 | L228: 0 | M228: 0 | N228: 0 | O228: 0 | P228: 0 | Q228: 0 | R228: 0 | S228: 0 | T228: 0 | U228: 0 | V228: 0 | W228: 0 | X228: 0 | Y228: 0 | Z228: 0 | AA228: 0 | AB228: 0 | AC228: 0 | AD228: 0 | AE228: 0 | AF228: 0 | AG228: 0 | AH228: 0 | AI228: 0 | AJ228: 0 | AK228: 0 | AL228: 0 | AM228: 0 | AN228: 0 | AO228: 0 | AP228: 0 | AQ228: 0 | AR228: 0 | AS228: 0 | AT228: 0 | AU228: 0 | AV228: 0 | AW228: 0 | AX228: 0 | AY228: 0 | AZ228: 0 | BA228: 0 | BB228: 0 | BC228: 0 | BD228: 0 | BE228: 0 | BF228: 0 | BG228: 0
B229: ='2.1_BC'!$B$18 -> 0 | G229: ='1_KMA'!$I$20 -> 2024-06-30 | H229: ='1_KMA'!$I$19 -> $millions | J229: =J61 -> 0 | K229: =K61 -> 0 | L229: 0 | M229: 0 | N229: 0 | O229: 0 | P229: 0 | Q229: 0 | R229: 0 | S229: 0 | T229: 0 | U229: 0 | V229: 0 | W229: 0 | X229: 0 | Y229: 0 | Z229: 0 | AA229: 0 | AB229: 0 | AC229: 0 | AD229: 0 | AE229: 0 | AF229: 0 | AG229: 0 | AH229: 0 | AI229: 0 | AJ229: 0 | AK229: 0 | AL229: 0 | AM229: 0 | AN229: 0 | AO229: 0 | AP229: 0 | AQ229: 0 | AR229: 0 | AS229: 0 | AT229: 0 | AU229: 0 | AV229: 0 | AW229: 0 | AX229: 0 | AY229: 0 | AZ229: 0 | BA229: 0 | BB229: 0 | BC229: 0 | BD229: 0 | BE229: 0 | BF229: 0 | BG229: 0
B230: ='2.1_BC'!$B$19 -> 0 | G230: ='1_KMA'!$I$20 -> 2024-06-30 | H230: ='1_KMA'!$I$19 -> $millions | J230: =J62 -> 0 | K230: =K62 -> 0 | L230: 0 | M230: 0 | N230: 0 | O230: 0 | P230: 0 | Q230: 0 | R230: 0 | S230: 0 | T230: 0 | U230: 0 | V230: 0 | W230: 0 | X230: 0 | Y230: 0 | Z230: 0 | AA230: 0 | AB230: 0 | AC230: 0 | AD230: 0 | AE230: 0 | AF230: 0 | AG230: 0 | AH230: 0 | AI230: 0 | AJ230: 0 | AK230: 0 | AL230: 0 | AM230: 0 | AN230: 0 | AO230: 0 | AP230: 0 | AQ230: 0 | AR230: 0 | AS230: 0 | AT230: 0 | AU230: 0 | AV230: 0 | AW230: 0 | AX230: 0 | AY230: 0 | AZ230: 0 | BA230: 0 | BB230: 0 | BC230: 0 | BD230: 0 | BE230: 0 | BF230: 0 | BG230: 0
B231: ='2.1_BC'!$B$20 -> 0 | G231: ='1_KMA'!$I$20 -> 2024-06-30 | H231: ='1_KMA'!$I$19 -> $millions | J231: =J63 -> 0 | K231: =K63 -> 0 | L231: 0 | M231: 0 | N231: 0 | O231: 0 | P231: 0 | Q231: 0 | R231: 0 | S231: 0 | T231: 0 | U231: 0 | V231: 0 | W231: 0 | X231: 0 | Y231: 0 | Z231: 0 | AA231: 0 | AB231: 0 | AC231: 0 | AD231: 0 | AE231: 0 | AF231: 0 | AG231: 0 | AH231: 0 | AI231: 0 | AJ231: 0 | AK231: 0 | AL231: 0 | AM231: 0 | AN231: 0 | AO231: 0 | AP231: 0 | AQ231: 0 | AR231: 0 | AS231: 0 | AT231: 0 | AU231: 0 | AV231: 0 | AW231: 0 | AX231: 0 | AY231: 0 | AZ231: 0 | BA231: 0 | BB231: 0 | BC231: 0 | BD231: 0 | BE231: 0 | BF231: 0 | BG231: 0
B232: Total | G232: ='1_KMA'!$I$20 -> 2024-06-30 | H232: ='1_KMA'!$I$19 -> $millions | J232: =SUM(J227:J231) -> 0 | K232: =SUM(K227:K231) -> 0 | L232: -0.1047 | M232: =SUM(M227:M231) -> -1.0108 | N232: =SUM(N227:N231) -> -2.858 | O232: -0.864 | P232: -2.2109 | Q232: -3.9971 | R232: -6.539 | S232: -10.1145 | T232: -14.9844 | U232: -21.2257 | V232: -29.4786 | W232: -39.9487 | X232: -39.9487 | Y232: -39.9487 | Z232: -39.9487 | AA232: -39.9487 | AB232: -39.9487 | AC232: -39.9487 | AD232: -39.9487 | AE232: -39.9487 | AF232: -39.9487 | AG232: -39.9487 | AH232: -39.9487 | AI232: -39.9487 | AJ232: -39.9487 | AK232: -39.9487 | AL232: -39.9487 | AM232: -39.9487 | AN232: 0 | AO232: 0 | AP232: 0 | AQ232: 0 | AR232: 0 | AS232: 0 | AT232: 0 | AU232: 0 | AV232: 0 | AW232: 0 | AX232: 0 | AY232: 0 | AZ232: 0 | BA232: 0 | BB232: 0 | BC232: 0 | BD232: 0 | BE232: 0 | BF232: 0 | BG232: 0
B234: =Controls!$B$25&" "&Controls!$C$25&" ("&TEXT(Controls!$F$25-1,"0.00%")&")" -> Sensitivity Scenario 4 Lower costs (-15.00%)
B235: Summary
B237: WACC | J237: =Controls!$E$25 -> 0.05555 | K237: =Controls!$E$25 -> 0.05555 | L237: =Controls!$E$25 -> 0.05555 | M237: =Controls!$E$25 -> 0.05555 | N237: =Controls!$E$25 -> 0.05555 | O237: =Controls!$E$25 -> 0.05555 | P237: =Controls!$E$25 -> 0.05555 | Q237: =Controls!$E$25 -> 0.05555 | R237: =Controls!$E$25 -> 0.05555 | S237: =Controls!$E$25 -> 0.05555 | T237: =Controls!$E$25 -> 0.05555 | U237: =Controls!$E$25 -> 0.05555 | V237: =Controls!$E$25 -> 0.05555 | W237: =Controls!$E$25 -> 0.05555 | X237: =Controls!$E$25 -> 0.05555 | Y237: =Controls!$E$25 -> 0.05555 | Z237: =Controls!$E$25 -> 0.05555 | AA237: =Controls!$E$25 -> 0.05555 | AB237: =Controls!$E$25 -> 0.05555 | AC237: =Controls!$E$25 -> 0.05555 | AD237: =Controls!$E$25 -> 0.05555 | AE237: =Controls!$E$25 -> 0.05555 | AF237: =Controls!$E$25 -> 0.05555 | AG237: =Controls!$E$25 -> 0.05555 | AH237: =Controls!$E$25 -> 0.05555 | AI237: =Controls!$E$25 -> 0.05555 | AJ237: =Controls!$E$25 -> 0.05555 | AK237: =Controls!$E$25 -> 0.05555 | AL237: =Controls!$E$25 -> 0.05555 | AM237: =Controls!$E$25 -> 0.05555 | AN237: =Controls!$E$25 -> 0.05555 | AO237: =Controls!$E$25 -> 0.05555 | AP237: =Controls!$E$25 -> 0.05555 | AQ237: =Controls!$E$25 -> 0.05555 | AR237: =Controls!$E$25 -> 0.05555 | AS237: =Controls!$E$25 -> 0.05555 | AT237: =Controls!$E$25 -> 0.05555 | AU237: =Controls!$E$25 -> 0.05555 | AV237: =Controls!$E$25 -> 0.05555 | AW237: =Controls!$E$25 -> 0.05555 | AX237: =Controls!$E$25 -> 0.05555 | AY237: =Controls!$E$25 -> 0.05555 | AZ237: =Controls!$E$25 -> 0.05555 | BA237: =Controls!$E$25 -> 0.05555 | BB237: =Controls!$E$25 -> 0.05555 | BC237: =Controls!$E$25 -> 0.05555 | BD237: =Controls!$E$25 -> 0.05555 | BE237: =Controls!$E$25 -> 0.05555 | BF237: =Controls!$E$25 -> 0.05555 | BG237: =Controls!$E$25 -> 0.05555
B238: Deflator (interim calculation) | J238: 1 | K238: =J238*(1+K237) -> 1.05555 | L238: =K238*(1+L237) -> 1.114185802 | M238: =L238*(1+M237) -> 1.176078824 | N238: =M238*(1+N237) -> 1.241410002 | O238: =N238*(1+O237) -> 1.310370328 | P238: =O238*(1+P237) -> 1.3831614 | Q238: =P238*(1+Q237) -> 1.459996016 | R238: =Q238*(1+R237) -> 1.541098794 | S238: =R238*(1+S237) -> 1.626706832 | T238: =S238*(1+T237) -> 1.717070397 | U238: =T238*(1+U237) -> 1.812453657 | V238: =U238*(1+V237) -> 1.913135458 | W238: =V238*(1+W237) -> 2.019410133 | X238: =W238*(1+X237) -> 2.131588366 | Y238: =X238*(1+Y237) -> 2.249998099 | Z238: =Y238*(1+Z237) -> 2.374985494 | AA238: =Z238*(1+AA237) -> 2.506915938 | AB238: =AA238*(1+AB237) -> 2.646175118 | AC238: =AB238*(1+AC237) -> 2.793170146 | AD238: =AC238*(1+AD237) -> 2.948330748 | AE238: =AD238*(1+AE237) -> 3.112110521 | AF238: =AE238*(1+AF237) -> 3.28498826 | AG238: =AF238*(1+AG237) -> 3.467469358 | AH238: =AG238*(1+AH237) -> 3.660087281 | AI238: =AH238*(1+AI237) -> 3.863405129 | AJ238: =AI238*(1+AJ237) -> 4.078017284 | AK238: =AJ238*(1+AK237) -> 4.304551144 | AL238: =AK238*(1+AL237) -> 4.54366896 | AM238: =AL238*(1+AM237) -> 4.796069771 | AN238: =AM238*(1+AN237) -> 5.062491447 | AO238: =AN238*(1+AO237) -> 5.343712847 | AP238: =AO238*(1+AP237) -> 5.640556096 | AQ238: =AP238*(1+AQ237) -> 5.953888987 | AR238: =AQ238*(1+AR237) -> 6.28462752 | AS238: =AR238*(1+AS237) -> 6.633738579 | AT238: =AS238*(1+AT237) -> 7.002242757 | AU238: =AT238*(1+AU237) -> 7.391217342 | AV238: =AU238*(1+AV237) -> 7.801799465 | AW238: =AV238*(1+AW237) -> 8.235189425 | AX238: =AW238*(1+AX237) -> 8.692654198 | AY238: =AX238*(1+AY237) -> 9.175531139 | AZ238: =AY238*(1+AZ237) -> 9.685231893 | BA238: =AZ238*(1+BA237) -> 10.22324653 | BB238: =BA238*(1+BB237) -> 10.79114787 | BC238: =BB238*(1+BC237) -> 11.39059613 | BD238: =BC238*(1+BD237) -> 12.02334375 | BE238: =BD238*(1+BE237) -> 12.69124049 | BF238: =BE238*(1+BF237) -> 13.3962389 | BG238: =BF238*(1+BG237) -> 14.14039997
B239: Deflator | J239: =1/J238 -> 1 | K239: =1/K238 -> 0.9473734072 | L239: =1/L238 -> 0.8975163727 | M239: =1/M238 -> 0.8502831441 | N239: =1/N238 -> 0.8055356393 | O239: =1/O238 -> 0.7631430433 | P239: 0.7229814251 | Q239: 0.6849333761 | R239: 0.6488876662 | S239: 0.6147389192 | T239: 0.5823873045 | U239: 0.551738245 | V239: 0.522702141 | W239: 0.4951941083 | X239: 0.4691337296 | Y239: 0.4444448199 | Z239: 0.4210552033 | AA239: 0.3988965026 | AB239: 0.3779039388 | AC239: 0.3580161421 | AD239: 0.3391749724 | AE239: 0.3213253493 | AF239: 0.304415091 | AG239: 0.2883947619 | AH239: 0.2732175282 | AI239: 0.2588390206 | AJ239: 0.2452172049 | AK239: 0.2323122589 | AL239: 0.2200864563 | AM239: 0.208504056 | AN239: 0.1975311979 | AO239: 0.187135804 | AP239: 0.1772874843 | AQ239: 0.167957448 | AR239: 0.1591184198 | AS239: 0.1507445595 | AT239: 0.142811387 | AU239: 0.1352957103 | AV239: 0.128175558 | AW239: 0.1214301151 | AX239: 0.1150396619 | AY239: 0.1089855165 | AZ239: 0.1032499801 | BA239: 0.09781628542 | BB239: 0.0926685476 | BC239: 0.08779171768 | BD239: 0.08317153871 | BE239: 0.07879450401 | BF239: 0.07464781773 | BG239: 0.07071935743
B241: Totex sought for EDPR FY27-31 (undiscounted) | G241: ="("&TEXT('1_KMA'!$I$21,"dd-mmm-yy")&" Dollars)" -> (30-Jun-24 Dollars)
C242: Net Capital Expenditure | G242: =SUM(J242:BG242) -> 0 | J242: =-J257*J$1*J$8 -> 0 | K242: =-K257*K$1*K$8 -> 0 | L242: 0 | M242: 0 | N242: 0 | O242: =-O257*O$1*O$8 -> 0 | P242: 0 | Q242: 0 | R242: 0 | S242: 0 | T242: 0 | U242: 0 | V242: 0 | W242: 0 | X242: 0 | Y242: 0 | Z242: 0 | AA242: 0 | AB242: 0 | AC242: 0 | AD242: 0 | AE242: 0 | AF242: 0 | AG242: 0 | AH242: 0 | AI242: 0 | AJ242: 0 | AK242: 0 | AL242: 0 | AM242: 0 | AN242: 0 | AO242: 0 | AP242: 0 | AQ242: 0 | AR242: 0 | AS242: 0 | AT242: 0 | AU242: 0 | AV242: 0 | AW242: 0 | AX242: 0 | AY242: 0 | AZ242: 0 | BA242: 0 | BB242: 0 | BC242: 0 | BD242: 0 | BE242: 0 | BF242: 0 | BG242: 0
C243: Operating Expenditure | G243: =SUM(J243:BG243) -> 0 | J243: =-J258*J$1*J$8 -> 0 | K243: =-K258*K$1*K$8 -> 0 | L243: 0 | M243: =-M258*M$1*M$8 -> 0 | N243: =-N258*N$1*N$8 -> 0 | O243: 0 | P243: 0 | Q243: 0 | R243: 0 | S243: 0 | T243: 0 | U243: 0 | V243: 0 | W243: 0 | X243: 0 | Y243: 0 | Z243: 0 | AA243: 0 | AB243: 0 | AC243: 0 | AD243: 0 | AE243: 0 | AF243: 0 | AG243: 0 | AH243: 0 | AI243: 0 | AJ243: 0 | AK243: 0 | AL243: 0 | AM243: 0 | AN243: 0 | AO243: 0 | AP243: 0 | AQ243: 0 | AR243: 0 | AS243: 0 | AT243: 0 | AU243: 0 | AV243: 0 | AW243: 0 | AX243: 0 | AY243: 0 | AZ243: 0 | BA243: 0 | BB243: 0 | BC243: 0 | BD243: 0 | BE243: 0 | BF243: 0 | BG243: 0
C244: Totex | G244: =SUM(G242:G243) -> 0 | J244: =SUM(J242:J243) -> 0 | K244: =SUM(K242:K243) -> 0 | L244: =SUM(L242:L243) -> 0 | M244: 0 | N244: 0 | O244: 0 | P244: 0 | Q244: 0 | R244: 0 | S244: 0 | T244: 0 | U244: 0 | V244: 0 | W244: 0 | X244: 0 | Y244: 0 | Z244: 0 | AA244: 0 | AB244: 0 | AC244: 0 | AD244: 0 | AE244: 0 | AF244: 0 | AG244: 0 | AH244: 0 | AI244: 0 | AJ244: 0 | AK244: 0 | AL244: 0 | AM244: 0 | AN244: 0 | AO244: 0 | AP244: 0 | AQ244: 0 | AR244: 0 | AS244: 0 | AT244: 0 | AU244: 0 | AV244: 0 | AW244: 0 | AX244: 0 | AY244: 0 | AZ244: 0 | BA244: 0 | BB244: 0 | BC244: 0 | BD244: 0 | BE244: 0 | BF244: 0 | BG244: 0
B246: PV over full assessment period to establish the preferred option (discounted) | G246: ="("&TEXT('1_KMA'!$I$21,"dd-mmm-yy")&" Dollars)" -> (30-Jun-24 Dollars)
C247: Net Capital Expenditure | G247: =SUM(J247:BG247) -> 0 | J247: =-(J257)*J$239*J$8 -> 0 | K247: =-(K257)*K$239*K$8 -> 0 | L247: 0 | M247: 0 | N247: =-(N257)*N$239*N$8 -> 0 | O247: 0 | P247: 0 | Q247: 0 | R247: 0 | S247: 0 | T247: 0 | U247: 0 | V247: 0 | W247: 0 | X247: 0 | Y247: 0 | Z247: 0 | AA247: 0 | AB247: 0 | AC247: 0 | AD247: 0 | AE247: 0 | AF247: 0 | AG247: 0 | AH247: 0 | AI247: 0 | AJ247: 0 | AK247: 0 | AL247: 0 | AM247: 0 | AN247: 0 | AO247: 0 | AP247: 0 | AQ247: 0 | AR247: 0 | AS247: 0 | AT247: 0 | AU247: 0 | AV247: 0 | AW247: 0 | AX247: 0 | AY247: 0 | AZ247: 0 | BA247: 0 | BB247: 0 | BC247: 0 | BD247: 0 | BE247: 0 | BF247: 0 | BG247: 0
C248: Operating Expenditure | G248: =SUM(J248:BG248) -> 0 | J248: =-(J258)*J$239*J$8 -> 0 | K248: =-(K258)*K$239*K$8 -> 0 | L248: 0 | M248: =-(M258)*M$239*M$8 -> 0 | N248: =-(N258)*N$239*N$8 -> 0 | O248: 0 | P248: 0 | Q248: 0 | R248: 0 | S248: 0 | T248: 0 | U248: 0 | V248: 0 | W248: 0 | X248: 0 | Y248: 0 | Z248: 0 | AA248: 0 | AB248: 0 | AC248: 0 | AD248: 0 | AE248: 0 | AF248: 0 | AG248: 0 | AH248: 0 | AI248: 0 | AJ248: 0 | AK248: 0 | AL248: 0 | AM248: 0 | AN248: 0 | AO248: 0 | AP248: 0 | AQ248: 0 | AR248: 0 | AS248: 0 | AT248: 0 | AU248: 0 | AV248: 0 | AW248: 0 | AX248: 0 | AY248: 0 | AZ248: 0 | BA248: 0 | BB248: 0 | BC248: 0 | BD248: 0 | BE248: 0 | BF248: 0 | BG248: 0
C249: Net Benefits | G249: =SUM(J249:BG249) -> -280.5134211 | J249: =(J269)*J$239*J$8 -> 0 | K249: =(K269)*K$239*K$8 -> 0 | L249: -0.09396996422 | M249: =(M269)*M$239*M$8 -> -0.859466202 | N249: =(N269)*N$239*N$8 -> -2.302220857 | O249: -0.6593555894 | P249: -1.598439633 | Q249: -2.737747197 | R249: -4.243076449 | S249: -6.217776799 | T249: -8.726724325 | U249: -11.71103047 | V249: -15.40852733 | W249: -19.78236087 | X249: -18.74128262 | Y249: -17.75499278 | Z249: -16.820608 | AA249: -15.93539671 | AB249: -15.09677108 | AC249: -14.30227946 | AD249: -13.54959922 | AE249: -12.83652998 | AF249: -12.16098714 | AG249: -11.52099583 | AH249: -10.91468507 | AI249: -10.34028238 | AJ249: -9.796108554 | AK249: -9.280572738 | AL249: -8.792167816 | AM249: -8.329465981 | AN249: 0 | AO249: 0 | AP249: 0 | AQ249: 0 | AR249: 0 | AS249: 0 | AT249: 0 | AU249: 0 | AV249: 0 | AW249: 0 | AX249: 0 | AY249: 0 | AZ249: 0 | BA249: 0 | BB249: 0 | BC249: 0 | BD249: 0 | BE249: 0 | BF249: 0 | BG249: 0
B250: Total Present Value | G250: =SUM(J250:BG250) -> -280.5134211 | J250: =SUM(J247:J249) -> 0 | K250: =SUM(K247:K249) -> 0 | L250: -0.09396996422 | M250: -0.859466202 | N250: -2.302220857 | O250: -0.6593555894 | P250: -1.598439633 | Q250: -2.737747197 | R250: -4.243076449 | S250: -6.217776799 | T250: -8.726724325 | U250: -11.71103047 | V250: -15.40852733 | W250: -19.78236087 | X250: -18.74128262 | Y250: -17.75499278 | Z250: -16.820608 | AA250: -15.93539671 | AB250: -15.09677108 | AC250: -14.30227946 | AD250: -13.54959922 | AE250: -12.83652998 | AF250: -12.16098714 | AG250: -11.52099583 | AH250: -10.91468507 | AI250: -10.34028238 | AJ250: -9.796108554 | AK250: -9.280572738 | AL250: -8.792167816 | AM250: -8.329465981 | AN250: 0 | AO250: 0 | AP250: 0 | AQ250: 0 | AR250: 0 | AS250: 0 | AT250: 0 | AU250: 0 | AV250: 0 | AW250: 0 | AX250: 0 | AY250: 0 | AZ250: 0 | BA250: 0 | BB250: 0 | BC250: 0 | BD250: 0 | BE250: 0 | BF250: 0 | BG250: 0
B252: Undiscounted | D252: ="("&TEXT('1_KMA'!$I$21,"dd-mmm-yy")&" dollars)" -> (30-Jun-24 dollars)
B254: Costs
G256: $ Basis Reminder | H256: $ Reminder
B257: Net Capex | G257: ='1_KMA'!$I$21 -> 2024-06-30 | H257: ='1_KMA'!$I$19 -> $millions | J257: =J276*J$7 -> 0 | K257: 0 | L257: 0 | M257: 0 | N257: 0 | O257: 0 | P257: 0 | Q257: 0 | R257: 0 | S257: 0 | T257: 0 | U257: 0 | V257: 0 | W257: 0 | X257: 0 | Y257: 0 | Z257: 0 | AA257: 0 | AB257: 0 | AC257: 0 | AD257: 0 | AE257: 0 | AF257: 0 | AG257: 0 | AH257: 0 | AI257: 0 | AJ257: 0 | AK257: 0 | AL257: 0 | AM257: 0 | AN257: 0 | AO257: 0 | AP257: =AP276*AP$7 -> 0 | AQ257: 0 | AR257: 0 | AS257: 0 | AT257: 0 | AU257: 0 | AV257: 0 | AW257: 0 | AX257: 0 | AY257: 0 | AZ257: 0 | BA257: 0 | BB257: 0 | BC257: 0 | BD257: 0 | BE257: 0 | BF257: 0 | BG257: 0
B258: Opex | G258: ='1_KMA'!$I$21 -> 2024-06-30 | H258: ='1_KMA'!$I$19 -> $millions | J258: =J277*J$7 -> 0 | K258: 0 | L258: 0 | M258: 0 | N258: 0 | O258: 0 | P258: 0 | Q258: 0 | R258: 0 | S258: 0 | T258: 0 | U258: 0 | V258: 0 | W258: 0 | X258: 0 | Y258: 0 | Z258: 0 | AA258: 0 | AB258: 0 | AC258: 0 | AD258: 0 | AE258: 0 | AF258: 0 | AG258: 0 | AH258: 0 | AI258: 0 | AJ258: 0 | AK258: 0 | AL258: 0 | AM258: 0 | AN258: 0 | AO258: 0 | AP258: =AP277*AP$7 -> 0 | AQ258: 0 | AR258: 0 | AS258: 0 | AT258: 0 | AU258: 0 | AV258: 0 | AW258: 0 | AX258: 0 | AY258: 0 | AZ258: 0 | BA258: 0 | BB258: 0 | BC258: 0 | BD258: 0 | BE258: 0 | BF258: 0 | BG258: 0
B259: Total | G259: ='1_KMA'!$I$21 -> 2024-06-30 | H259: ='1_KMA'!$I$19 -> $millions | J259: =J278*J$7 -> 0 | K259: 0 | L259: 0 | M259: 0 | N259: 0 | O259: 0 | P259: 0 | Q259: 0 | R259: 0 | S259: 0 | T259: 0 | U259: 0 | V259: 0 | W259: 0 | X259: 0 | Y259: 0 | Z259: 0 | AA259: 0 | AB259: 0 | AC259: 0 | AD259: 0 | AE259: 0 | AF259: 0 | AG259: 0 | AH259: 0 | AI259: 0 | AJ259: 0 | AK259: 0 | AL259: 0 | AM259: 0 | AN259: 0 | AO259: 0 | AP259: =AP278*AP$7 -> 0 | AQ259: 0 | AR259: 0 | AS259: 0 | AT259: 0 | AU259: 0 | AV259: 0 | AW259: 0 | AX259: 0 | AY259: 0 | AZ259: 0 | BA259: 0 | BB259: 0 | BC259: 0 | BD259: 0 | BE259: 0 | BF259: 0 | BG259: 0
B261: Benefits
G263: $ Basis Reminder | H263: $ Reminder
B264: =B283 -> Value of EUE | G264: ='1_KMA'!$I$21 -> 2024-06-30 | H264: ='1_KMA'!$I$19 -> $millions | J264: =J283*J$7 -> 0 | K264: 0 | L264: -0.1047 | M264: -1.0108 | N264: -2.858 | O264: -0.864 | P264: -2.2109 | Q264: -3.9971 | R264: -6.539 | S264: -10.1145 | T264: -14.9844 | U264: -21.2257 | V264: -29.4786 | W264: -39.9487 | X264: -39.9487 | Y264: -39.9487 | Z264: -39.9487 | AA264: -39.9487 | AB264: -39.9487 | AC264: -39.9487 | AD264: -39.9487 | AE264: -39.9487 | AF264: -39.9487 | AG264: -39.9487 | AH264: -39.9487 | AI264: -39.9487 | AJ264: -39.9487 | AK264: -39.9487 | AL264: -39.9487 | AM264: -39.9487 | AN264: 0 | AO264: 0 | AP264: =AP283*AP$7 -> 0 | AQ264: 0 | AR264: 0 | AS264: 0 | AT264: 0 | AU264: 0 | AV264: 0 | AW264: 0 | AX264: 0 | AY264: 0 | AZ264: 0 | BA264: 0 | BB264: 0 | BC264: 0 | BD264: 0 | BE264: 0 | BF264: 0 | BG264: 0
B265: =B284 -> 0 | G265: ='1_KMA'!$I$21 -> 2024-06-30 | H265: ='1_KMA'!$I$19 -> $millions | J265: =J284*J$7 -> 0 | K265: 0 | L265: 0 | M265: 0 | N265: 0 | O265: 0 | P265: 0 | Q265: 0 | R265: 0 | S265: 0 | T265: 0 | U265: 0 | V265: 0 | W265: 0 | X265: 0 | Y265: 0 | Z265: 0 | AA265: 0 | AB265: 0 | AC265: 0 | AD265: 0 | AE265: 0 | AF265: 0 | AG265: 0 | AH265: 0 | AI265: 0 | AJ265: 0 | AK265: 0 | AL265: 0 | AM265: 0 | AN265: 0 | AO265: 0 | AP265: =AP284*AP$7 -> 0 | AQ265: 0 | AR265: 0 | AS265: 0 | AT265: 0 | AU265: 0 | AV265: 0 | AW265: 0 | AX265: 0 | AY265: 0 | AZ265: 0 | BA265: 0 | BB265: 0 | BC265: 0 | BD265: 0 | BE265: 0 | BF265: 0 | BG265: 0
B266: 0 | G266: ='1_KMA'!$I$21 -> 2024-06-30 | H266: ='1_KMA'!$I$19 -> $millions | J266: =J285*J$7 -> 0 | K266: 0 | L266: 0 | M266: 0 | N266: 0 | O266: 0 | P266: 0 | Q266: 0 | R266: 0 | S266: 0 | T266: 0 | U266: 0 | V266: 0 | W266: 0 | X266: 0 | Y266: 0 | Z266: 0 | AA266: 0 | AB266: 0 | AC266: 0 | AD266: 0 | AE266: 0 | AF266: 0 | AG266: 0 | AH266: 0 | AI266: 0 | AJ266: 0 | AK266: 0 | AL266: 0 | AM266: 0 | AN266: 0 | AO266: 0 | AP266: =AP285*AP$7 -> 0 | AQ266: 0 | AR266: 0 | AS266: 0 | AT266: 0 | AU266: 0 | AV266: 0 | AW266: 0 | AX266: 0 | AY266: 0 | AZ266: 0 | BA266: 0 | BB266: 0 | BC266: 0 | BD266: 0 | BE266: 0 | BF266: 0 | BG266: 0
... 17 more rows

Sheet 3_Op1 (hidden)
B1: Interim Calculations: Option 1 | I1: Regulatory Period Indicator | J1: ='1_KMA'!J30 -> 0 | K1: ='1_KMA'!K30 -> 0 | L1: ='1_KMA'!L30 -> 1 | M1: ='1_KMA'!M30 -> 1 | N1: ='1_KMA'!N30 -> 1 | O1: ='1_KMA'!O30 -> 1 | P1: ='1_KMA'!P30 -> 1 | Q1: ='1_KMA'!Q30 -> 0 | R1: ='1_KMA'!R30 -> 0 | S1: ='1_KMA'!S30 -> 0 | T1: ='1_KMA'!T30 -> 0 | U1: ='1_KMA'!U30 -> 0 | V1: ='1_KMA'!V30 -> 0 | W1: ='1_KMA'!W30 -> 0 | X1: ='1_KMA'!X30 -> 0 | Y1: ='1_KMA'!Y30 -> 0 | Z1: ='1_KMA'!Z30 -> 0 | AA1: ='1_KMA'!AA30 -> 0 | AB1: ='1_KMA'!AB30 -> 0 | AC1: ='1_KMA'!AC30 -> 0 | AD1: ='1_KMA'!AD30 -> 0 | AE1: ='1_KMA'!AE30 -> 0 | AF1: ='1_KMA'!AF30 -> 0 | AG1: ='1_KMA'!AG30 -> 0 | AH1: ='1_KMA'!AH30 -> 0 | AI1: ='1_KMA'!AI30 -> 0 | AJ1: ='1_KMA'!AJ30 -> 0 | AK1: ='1_KMA'!AK30 -> 0 | AL1: ='1_KMA'!AL30 -> 0 | AM1: ='1_KMA'!AM30 -> 0 | AN1: ='1_KMA'!AN30 -> 0 | AO1: ='1_KMA'!AO30 -> 0 | AP1: ='1_KMA'!AP30 -> 0 | AQ1: ='1_KMA'!AQ30 -> 0 | AR1: ='1_KMA'!AR30 -> 0 | AS1: ='1_KMA'!AS30 -> 0 | AT1: ='1_KMA'!AT30 -> 0 | AU1: ='1_KMA'!AU30 -> 0 | AV1: ='1_KMA'!AV30 -> 0 | AW1: ='1_KMA'!AW30 -> 0 | AX1: ='1_KMA'!AX30 -> 0 | AY1: ='1_KMA'!AY30 -> 0 | AZ1: ='1_KMA'!AZ30 -> 0 | BA1: ='1_KMA'!BA30 -> 0 | BB1: ='1_KMA'!BB30 -> 0 | BC1: ='1_KMA'!BC30 -> 0 | BD1: ='1_KMA'!BD30 -> 0 | BE1: ='1_KMA'!BE30 -> 0 | BF1: ='1_KMA'!BF30 -> 0 | BG1: ='1_KMA'!BG30 -> 0
B2: =Cover!$C$9 -> AusNet Services | I2: Period Start Date | J2: ='1_KMA'!J31 -> 2024-07-01 | K2: ='1_KMA'!K31 -> 2025-07-01 | L2: ='1_KMA'!L31 -> 2026-07-01 | M2: ='1_KMA'!M31 -> 2027-07-01 | N2: ='1_KMA'!N31 -> 2028-07-01 | O2: ='1_KMA'!O31 -> 2029-07-01 | P2: ='1_KMA'!P31 -> 2030-07-01 | Q2: ='1_KMA'!Q31 -> 2031-07-01 | R2: ='1_KMA'!R31 -> 2032-07-01 | S2: ='1_KMA'!S31 -> 2033-07-01 | T2: ='1_KMA'!T31 -> 2034-07-01 | U2: ='1_KMA'!U31 -> 2035-07-01 | V2: ='1_KMA'!V31 -> 2036-07-01 | W2: ='1_KMA'!W31 -> 2037-07-01 | X2: ='1_KMA'!X31 -> 2038-07-01 | Y2: ='1_KMA'!Y31 -> 2039-07-01 | Z2: ='1_KMA'!Z31 -> 2040-07-01 | AA2: ='1_KMA'!AA31 -> 2041-07-01 | AB2: ='1_KMA'!AB31 -> 2042-07-01 | AC2: ='1_KMA'!AC31 -> 2043-07-01 | AD2: ='1_KMA'!AD31 -> 2044-07-01 | AE2: ='1_KMA'!AE31 -> 2045-07-01 | AF2: ='1_KMA'!AF31 -> 2046-07-01 | AG2: ='1_KMA'!AG31 -> 2047-07-01 | AH2: ='1_KMA'!AH31 -> 2048-07-01 | AI2: ='1_KMA'!AI31 -> 2049-07-01 | AJ2: ='1_KMA'!AJ31 -> 2050-07-01 | AK2: ='1_KMA'!AK31 -> 2051-07-01 | AL2: ='1_KMA'!AL31 -> 2052-07-01 | AM2: ='1_KMA'!AM31 -> 2053-07-01 | AN2: ='1_KMA'!AN31 -> 2054-07-01 | AO2: ='1_KMA'!AO31 -> 2055-07-01 | AP2: ='1_KMA'!AP31 -> 2056-07-01 | AQ2: ='1_KMA'!AQ31 -> 2057-07-01 | AR2: ='1_KMA'!AR31 -> 2058-07-01 | AS2: ='1_KMA'!AS31 -> 2059-07-01 | AT2: ='1_KMA'!AT31 -> 2060-07-01 | AU2: ='1_KMA'!AU31 -> 2061-07-01 | AV2: ='1_KMA'!AV31 -> 2062-07-01 | AW2: ='1_KMA'!AW31 -> 2063-07-01 | AX2: ='1_KMA'!AX31 -> 2064-07-01 | AY2: ='1_KMA'!AY31 -> 2065-07-01 | AZ2: ='1_KMA'!AZ31 -> 2066-07-01 | BA2: ='1_KMA'!BA31 -> 2067-07-01 | BB2: ='1_KMA'!BB31 -> 2068-07-01 | BC2: ='1_KMA'!BC31 -> 2069-07-01 | BD2: ='1_KMA'!BD31 -> 2070-07-01 | BE2: ='1_KMA'!BE31 -> 2071-07-01 | BF2: ='1_KMA'!BF31 -> 2072-07-01 | BG2: ='1_KMA'!BG31 -> 2073-07-01
B3: =Cover!$C$10 -> Business Case Evaluation | I3: Period End Date | J3: ='1_KMA'!J32 -> 2025-06-30 | K3: ='1_KMA'!K32 -> 2026-06-30 | L3: ='1_KMA'!L32 -> 2027-06-30 | M3: ='1_KMA'!M32 -> 2028-06-30 | N3: ='1_KMA'!N32 -> 2029-06-30 | O3: ='1_KMA'!O32 -> 2030-06-30 | P3: ='1_KMA'!P32 -> 2031-06-30 | Q3: ='1_KMA'!Q32 -> 2032-06-30 | R3: ='1_KMA'!R32 -> 2033-06-30 | S3: ='1_KMA'!S32 -> 2034-06-30 | T3: ='1_KMA'!T32 -> 2035-06-30 | U3: ='1_KMA'!U32 -> 2036-06-30 | V3: ='1_KMA'!V32 -> 2037-06-30 | W3: ='1_KMA'!W32 -> 2038-06-30 | X3: ='1_KMA'!X32 -> 2039-06-30 | Y3: ='1_KMA'!Y32 -> 2040-06-30 | Z3: ='1_KMA'!Z32 -> 2041-06-30 | AA3: ='1_KMA'!AA32 -> 2042-06-30 | AB3: ='1_KMA'!AB32 -> 2043-06-30 | AC3: ='1_KMA'!AC32 -> 2044-06-30 | AD3: ='1_KMA'!AD32 -> 2045-06-30 | AE3: ='1_KMA'!AE32 -> 2046-06-30 | AF3: ='1_KMA'!AF32 -> 2047-06-30 | AG3: ='1_KMA'!AG32 -> 2048-06-30 | AH3: ='1_KMA'!AH32 -> 2049-06-30 | AI3: ='1_KMA'!AI32 -> 2050-06-30 | AJ3: ='1_KMA'!AJ32 -> 2051-06-30 | AK3: ='1_KMA'!AK32 -> 2052-06-30 | AL3: ='1_KMA'!AL32 -> 2053-06-30 | AM3: ='1_KMA'!AM32 -> 2054-06-30 | AN3: ='1_KMA'!AN32 -> 2055-06-30 | AO3: ='1_KMA'!AO32 -> 2056-06-30 | AP3: ='1_KMA'!AP32 -> 2057-06-30 | AQ3: ='1_KMA'!AQ32 -> 2058-06-30 | AR3: ='1_KMA'!AR32 -> 2059-06-30 | AS3: ='1_KMA'!AS32 -> 2060-06-30 | AT3: ='1_KMA'!AT32 -> 2061-06-30 | AU3: ='1_KMA'!AU32 -> 2062-06-30 | AV3: ='1_KMA'!AV32 -> 2063-06-30 | AW3: ='1_KMA'!AW32 -> 2064-06-30 | AX3: ='1_KMA'!AX32 -> 2065-06-30 | AY3: ='1_KMA'!AY32 -> 2066-06-30 | AZ3: ='1_KMA'!AZ32 -> 2067-06-30 | BA3: ='1_KMA'!BA32 -> 2068-06-30 | BB3: ='1_KMA'!BB32 -> 2069-06-30 | BC3: ='1_KMA'!BC32 -> 2070-06-30 | BD3: ='1_KMA'!BD32 -> 2071-06-30 | BE3: ='1_KMA'!BE32 -> 2072-06-30 | BF3: ='1_KMA'!BF32 -> 2073-06-30 | BG3: ='1_KMA'!BG32 -> 2074-06-30
B4: =Cover!$C$11 -> Eastern Cranbourne 66kV loop augmentation | I4: Project Year | J4: ='1_KMA'!J33 -> 1 | K4: ='1_KMA'!K33 -> 2 | L4: ='1_KMA'!L33 -> 3 | M4: ='1_KMA'!M33 -> 4 | N4: ='1_KMA'!N33 -> 5 | O4: ='1_KMA'!O33 -> 6 | P4: ='1_KMA'!P33 -> 7 | Q4: ='1_KMA'!Q33 -> 8 | R4: ='1_KMA'!R33 -> 9 | S4: ='1_KMA'!S33 -> 10 | T4: ='1_KMA'!T33 -> 11 | U4: ='1_KMA'!U33 -> 12 | V4: ='1_KMA'!V33 -> 13 | W4: ='1_KMA'!W33 -> 14 | X4: ='1_KMA'!X33 -> 15 | Y4: ='1_KMA'!Y33 -> 16 | Z4: ='1_KMA'!Z33 -> 17 | AA4: ='1_KMA'!AA33 -> 18 | AB4: ='1_KMA'!AB33 -> 19 | AC4: ='1_KMA'!AC33 -> 20 | AD4: ='1_KMA'!AD33 -> 21 | AE4: ='1_KMA'!AE33 -> 22 | AF4: ='1_KMA'!AF33 -> 23 | AG4: ='1_KMA'!AG33 -> 24 | AH4: ='1_KMA'!AH33 -> 25 | AI4: ='1_KMA'!AI33 -> 26 | AJ4: ='1_KMA'!AJ33 -> 27 | AK4: ='1_KMA'!AK33 -> 28 | AL4: ='1_KMA'!AL33 -> 29 | AM4: ='1_KMA'!AM33 -> 30 | AN4: ='1_KMA'!AN33 -> 31 | AO4: ='1_KMA'!AO33 -> 32 | AP4: ='1_KMA'!AP33 -> 33 | AQ4: ='1_KMA'!AQ33 -> 34 | AR4: ='1_KMA'!AR33 -> 35 | AS4: ='1_KMA'!AS33 -> 36 | AT4: ='1_KMA'!AT33 -> 37 | AU4: ='1_KMA'!AU33 -> 38 | AV4: ='1_KMA'!AV33 -> 39 | AW4: ='1_KMA'!AW33 -> 40 | AX4: ='1_KMA'!AX33 -> 41 | AY4: ='1_KMA'!AY33 -> 42 | AZ4: ='1_KMA'!AZ33 -> 43 | BA4: ='1_KMA'!BA33 -> 44 | BB4: ='1_KMA'!BB33 -> 45 | BC4: ='1_KMA'!BC33 -> 46 | BD4: ='1_KMA'!BD33 -> 47 | BE4: ='1_KMA'!BE33 -> 48 | BF4: ='1_KMA'!BF33 -> 49 | BG4: ='1_KMA'!BG33 -> 50
I5: Financial Year | J5: ='1_KMA'!J34 -> 2025 | K5: ='1_KMA'!K34 -> 2026 | L5: ='1_KMA'!L34 -> 2027 | M5: ='1_KMA'!M34 -> 2028 | N5: ='1_KMA'!N34 -> 2029 | O5: ='1_KMA'!O34 -> 2030 | P5: ='1_KMA'!P34 -> 2031 | Q5: ='1_KMA'!Q34 -> 2032 | R5: ='1_KMA'!R34 -> 2033 | S5: ='1_KMA'!S34 -> 2034 | T5: ='1_KMA'!T34 -> 2035 | U5: ='1_KMA'!U34 -> 2036 | V5: ='1_KMA'!V34 -> 2037 | W5: ='1_KMA'!W34 -> 2038 | X5: ='1_KMA'!X34 -> 2039 | Y5: ='1_KMA'!Y34 -> 2040 | Z5: ='1_KMA'!Z34 -> 2041 | AA5: ='1_KMA'!AA34 -> 2042 | AB5: ='1_KMA'!AB34 -> 2043 | AC5: ='1_KMA'!AC34 -> 2044 | AD5: ='1_KMA'!AD34 -> 2045 | AE5: ='1_KMA'!AE34 -> 2046 | AF5: ='1_KMA'!AF34 -> 2047 | AG5: ='1_KMA'!AG34 -> 2048 | AH5: ='1_KMA'!AH34 -> 2049 | AI5: ='1_KMA'!AI34 -> 2050 | AJ5: ='1_KMA'!AJ34 -> 2051 | AK5: ='1_KMA'!AK34 -> 2052 | AL5: ='1_KMA'!AL34 -> 2053 | AM5: ='1_KMA'!AM34 -> 2054 | AN5: ='1_KMA'!AN34 -> 2055 | AO5: ='1_KMA'!AO34 -> 2056 | AP5: ='1_KMA'!AP34 -> 2057 | AQ5: ='1_KMA'!AQ34 -> 2058 | AR5: ='1_KMA'!AR34 -> 2059 | AS5: ='1_KMA'!AS34 -> 2060 | AT5: ='1_KMA'!AT34 -> 2061 | AU5: ='1_KMA'!AU34 -> 2062 | AV5: ='1_KMA'!AV34 -> 2063 | AW5: ='1_KMA'!AW34 -> 2064 | AX5: ='1_KMA'!AX34 -> 2065 | AY5: ='1_KMA'!AY34 -> 2066 | AZ5: ='1_KMA'!AZ34 -> 2067 | BA5: ='1_KMA'!BA34 -> 2068 | BB5: ='1_KMA'!BB34 -> 2069 | BC5: ='1_KMA'!BC34 -> 2070 | BD5: ='1_KMA'!BD34 -> 2071 | BE5: ='1_KMA'!BE34 -> 2072 | BF5: ='1_KMA'!BF34 -> 2073 | BG5: ='1_KMA'!BG34 -> 2074
